Workbook

Sheet AuswahlExperte
C1: =UPPER(Translation!$A$4) -> MATERIAL COMPOSITION
C8: =IF(BH44=TRUE,"Produktdatensuche",Translation!A846) -> Please select product categories | BF8: Wärmepumpe | BG8: TRUE | BH8: =IF(ISERROR(Auswahl!T9),"",Auswahl!T9) -> Air|Water heat pump WPL 25 AS | BI8: =Auswahl!AG47 -> 4786 | BJ8: =Auswahl!O9 -> 232492 | BK8: =IF(ISERROR(VLOOKUP(BJ8,Waermepumpe!$A$234:$H$252,8,FALSE)),VLOOKUP(BJ8,Preisliste!$A:$AQ,29,FALSE),VLOOKUP(BJ8,Waermepumpe!$A$234:$H$252,8,FALSE)) -> PIC00003555-00.jpg | BL8: ="btnSlot"&Berechnung!D4 -> btnSlot1
BF9: Photovoltaik | BG9: FALSE | BH9: =IF(ISERROR(Auswahl!T705),"",Auswahl!T705) -> PV-module TEGREON 260 P | BI9: =Auswahl!AG743 -> 0 | BJ9: =Auswahl!O705 -> 274179 | BK9: =VLOOKUP(BJ9,Preisliste!$A:$AQ,29,FALSE) -> PIC00001191-00.jpg | BL9: ="btnSlot"&Berechnung!D10 -> btnSlot0
BF10: ISG | BG10: FALSE | BH10: =IF(ISERROR(Auswahl!T805),"",Auswahl!T805) -> Internet-Service Gateway ISG web | BI10: =Auswahl!AG843 -> 711 | BJ10: =Auswahl!O805 -> 229336 | BK10: =VLOOKUP(BJ10,Preisliste!$A:$AQ,29,FALSE) -> PIC00001002-00.jpg | BL10: ="btnSlot"&Berechnung!D13 -> btnSlot0
BF11: Lüftung | BG11: FALSE | BH11: =IF(ISERROR(Auswahl!T205),"",Auswahl!T205) -> Central Ventilation device LWZ 70 E | BI11: =Auswahl!AG293 -> 1853 | BJ11: =Auswahl!O205 -> 233851 | BK11: =VLOOKUP(BJ11,Preisliste!$A:$AQ,29,FALSE) -> PIC00004306-00.jpg | BL11: ="btnSlot"&Berechnung!D6 -> btnSlot0
BF12: Solarthermie | BG12: FALSE | BH12: =IF(ISERROR(Auswahl!T105),"",Auswahl!T105) -> Solar flat-plate collector SOL 27 premium S | BI12: =Auswahl!AG143 -> 23884 | BJ12: =Auswahl!O105 -> 230016 | BK12: =VLOOKUP(BJ12,Preisliste!$A:$AQ,29,FALSE) -> PIC00001016-00.jpg | BL12: ="btnSlot"&Berechnung!D5 -> btnSlot0
BF13: Warmwasser | BG13: FALSE | BH13: =IF(ISERROR(Auswahl!T405),"",Auswahl!T405) -> Instantaneous water heater DHE 18/21/24 SL | BI13: =Auswahl!AG443 -> 0 | BJ13: =Auswahl!O405 -> 227490 | BK13: =VLOOKUP(BJ13,Preisliste!$A:$AQ,29,FALSE) -> PIC00002157-00.jpg | BL13: ="btnSlot"&Berechnung!D8 -> btnSlot0
BF14: Klima | BG14: FALSE | BH14: =IF(ISERROR(Auswahl!T905),"",Auswahl!T905) -> Singlesplit-Air conditioning unit CACR 25 premium | BI14: =Auswahl!AG943 -> 0 | BJ14: =Auswahl!O905 -> 232639 | BK14: =VLOOKUP(BJ14,Preisliste!$A:$AQ,29,FALSE) -> PIC00001275-00.jpg | BL14: ="btnSlot"&Berechnung!D7 -> btnSlot0
BF15: Übergabestation | BG15: FALSE | BH15: =IF(ISERROR(Auswahl!T505),"",Auswahl!T505) -> 0 | BI15: =Auswahl!AG543 -> 2789 | BJ15: =Auswahl!O505 -> Station | BK15: =VLOOKUP(BJ15,Preisliste!$A:$AQ,29,FALSE) -> PIC00005032-00.jpg | BL15: ="btnSlot"&Berechnung!D9 -> btnSlot0
BF16: Raumheizung | BG16: FALSE | BH16: =IF(ISERROR(Auswahl!T605),"",Auswahl!T605) -> Standard storage heater ETS 200 | BI16: =Auswahl!AG643 -> 746 | BJ16: =Auswahl!O605 -> 74484 | BK16: =VLOOKUP(BJ16,Preisliste!$A:$AQ,29,FALSE) -> PIC00001468-00.jpg | BL16: ="btnSlot"&Berechnung!D11 -> btnSlot0
BF17: Eigene Liste | BG17: FALSE | BH17: =IF(Auswahl!T305="---","",Auswahl!T305) -> Hand dryer highspeed Ultronic S | BI17: =IF(Auswahl!AG343=0,"",Auswahl!AG343) -> 466 | BJ17: =Auswahl!O305 -> 231582 | BK17: =VLOOKUP(BJ17,Preisliste!$A:$AQ,29,FALSE) -> PIC00002971-00.jpg | BL17: ="btnSlot"&Berechnung!D12 -> btnSlot0
BF18: CboProduktdatensuche | BG18: TRUE | BI18: Gefunden ? | BK18: cboProduktbereich
BG19: Montageanweisung | BH19: =VLOOKUP($BH$18,Preisliste!$A:$AL,28,FALSE)&".pdf" ->  | BI19: =IF(ISERROR(BH19),FALSE,IF(OR(LEFT(BH19,1)="-",BH19=0),FALSE,TRUE)) -> FALSE | BK19: Alle anzeigen
BG20: Produktdatenblatt | BH20: =VLOOKUP($BH$18,Preisliste!$A:$AL,31,FALSE) ->  | BI20: =IF(ISERROR(BH20),FALSE,IF(OR(LEFT(BH20,1)="-",BH20=0),FALSE,TRUE)) -> FALSE | BK20: Wärmepumpe
BK21: Lüftung
BG22: Maßzeichnung | BH22: =VLOOKUP($BH$18,Preisliste!$A:$AL,25,FALSE)&".png" ->  | BI22: FALSE | BK22: Solar
BG23: Ausschreibungstext | BH23: =IF(ISERROR(VLOOKUP(BH18,'Langtexte-Vorlage'!A:C,3,FALSE)),"---",IF(VLOOKUP(BH18,'Langtexte-Vorlage'!A:C,3,FALSE)="","---","http://www.ausschreiben.de/online/usr/export.php?tblst=Stiebel,"&TEXT(BH18,"000000")&"&key=ANr&caption=Produktdatenbank%2520Stiebel-Eltron&fmt=")) -> --- | BI23: FALSE | BK23: Photovoltaik
BG24: Produktabbildung | BH24: =VLOOKUP($BH$18,Preisliste!$A:$AL,32,FALSE) ->  | BI24: FALSE | BK24: Klima
BG25: Auszug Preisliste | BH25: ="Preisliste-"&VLOOKUP($BH$18,Preisliste!$A:$AL,27,FALSE)&".pdf" ->  | BI25: FALSE | BK25: Wärmeübergabestation
BG26: Auszug Planungsmappe | BH26: =VLOOKUP($BH$18,Preisliste!$A:$AL,21,FALSE)&".pdf" ->  | BI26: FALSE | BK26: Warmwasser
BG27: Aufstellpläne | BH27: =VLOOKUP($BH$18,Preisliste!$A:$AL,20,FALSE)&".pdf" ->  | BI27: FALSE | BK27: Raumheizung
BG28: Produktbroschüre | BH28: =VLOOKUP($BH$18,Preisliste!$A:$AL,19,FALSE)&".pdf" ->  | BI28: =IF(ISERROR(BH28),FALSE,IF(OR(LEFT(BH28,1)="-",BH28=0),FALSE,TRUE)) -> FALSE | BK28: Dienstleistungen
BA29: =IF(Berechnung!D21>=7,Translation!A848,"") ->  | BG29: Platzhalter | BK29: Geowell
BG30: Platzhalter | BK30: Material bauseits
BG31: Platzhalter | BK31: Artikel manuell
BG32: Platzhalter
BG33: Platzhalter
BG34: Platzhalter
BG35: Platzhalter
BG36: Platzhalter
BG37: Platzhalter
C39: v4.09 | BB39: =IF(Berechnung!B36=FALSE,"",Translation!A849) -> 
BG40: Preis/Rabattgruppe | BH40: =IF(BI40=FALSE,"","Bruttopreis: "&VLOOKUP(BH18,Preisliste!A:C,3,FALSE)&"€ | Rabattgruppe: "&VLOOKUP(BH18,Preisliste!A:D,4,FALSE)) ->  | BI40: =IF(ISERROR(BH18),FALSE,IF(ISERROR(VLOOKUP(BH18,Preisliste!A:C,3,FALSE)*1),FALSE,IF(OR(LEFT(BH18,1)="-",BH18=0),FALSE,TRUE))) -> FALSE
BG44: Produktdaten anzeigen ? | BH44: FALSE
BG46: Einstellungen
BG50: Online-Bilder ? | BH50: TRUE
BG51: Proxy ? | BH51: FALSE | BI51: ftp://proxy.MeineFirma.com:21

Sheet Druckauswahl (hidden)
BG1: =AuswahlExperte!$C$39 -> v4.09
B8: =IF(BO501=TRUE,"",Translation!A16) -> Choose configuration - printout
B11: =IF(BO501=FALSE,Translation!$A$17,"Angaben zum Projekt") -> Print with cover page | BO11: TRUE | BP11: Gewählt ?
C13: =Translation!$A$18 -> Project | X13: =Translation!A19 -> Customer
C15: =Translation!$A$26 -> Project.-Nr. | X15: =Translation!A27 -> Customer-No.
S16: =IF($BO$501=FALSE,"",IF(BO517=TRUE,"*","")) ->  | BO16: Search customer | BP16: Suche FHW
BO17: =IF(ISERROR(LEFT(BO16,FIND(" ",BO16)-1)),BO16,LEFT(BO16,FIND(" ",BO16)-1)) -> Search | BP17: Suchbegriff 1
C18: =Translation!$A$20 -> Name | X18: =Translation!$A$20 -> Name | BO18: =IF(ISERROR(RIGHT(BO16,LEN(BO16)-SEARCH(" ",BO16,1))),"",RIGHT(BO16,LEN(BO16)-SEARCH(" ",BO16,1))) -> customer | BP18: Suchbegriff 2
C19: Example - Project
C21: =Translation!$A$21 -> Street | X21: =Translation!$A$21 -> Street
BO22: =IF(BO51=FALSE,TRUE,IF(OR(C31="",C31=0,C31=" ",C31=Berechnung!G63),FALSE,TRUE)) -> FALSE | BP22: Name Bearbeiter korrekt eingegeben?
C24: =Translation!$A$22 -> Postcode | H24: =Translation!$A$23 -> Town | X24: =Translation!$A$22 -> Postcode | AC24: =Translation!$A$23 -> Town | BO24: Klickmakro (Hyperlink für Mouseovertext Quadrate)
BO25: Makro Deckblatt
BO26: Makro Stückliste
C27: =Translation!$A$25 -> Notes/Phone | X27: =Translation!$A$24 -> Phone | BO27: MakroHInweisblatt
BO28: MakroSchaltplan
BO29: MakroDatenblatt
C30: =Translation!$A$150 -> Editor | X30: =Translation!A28 -> Contact | BO30: Makro Exceltools
S31: *
BC32: =Translation!A859 -> * mandatory field
BO42: FALSE
B51: =Translation!A35 -> Print list of material | BO51: TRUE | BP51: Gewählt ?
D53: =Translation!A36 -> Printout with prices | X53: =Translation!A43 -> Product range - separatly shown | BO53: TRUE | BP53: Mit Preisen ?
D54: =Translation!A38 -> With instructional text | X54: =Translation!A44 -> Printout with long text | BO54: FALSE | BP54: Mit Hinweistext ?
X55: =Translation!A115 -> Print with product pictures | BO55: FALSE | BP55: Mit Produktbereichen?
C56: =IF(BO54=FALSE,"",Translation!$A$41) ->  | BO56: FALSE | BP56: Mit Langtexten?
BO57: FALSE | BP57: Mit Rabattschlüssel ?
BO58: TRUE | BP58: Mit Produktbild?
BO96: 31.12.2015 | BP96: Presi gültig bis…(Eingabe aus Preisliste)
BO97: =IF(BO53=FALSE,""," "&Translation!A37&" "&TEXT(BO96,"TT.MM.JJJJJ")) -> Price valid untill 31.12.2015 | BP97: Text Preisgültigkeit für Fußzeile
B101: =Translation!A75 -> Instructional page | C101: Translation!A73 | BO101: TRUE | BP101: Gewählt ?
BO103: FALSE | BP103: Textbausteine auf Extra Blatt ?
C104: =Translation!A42 -> Please add your notes. You'll find them on a separate piece of paper in the printout.
B151: =Translation!A76 -> Print hydraulic scetch | BO151: TRUE | BP151: Gewählt ?
C156: =IF(Druckauswahl!BO156=FALSE,Translation!$A$61,IF(Waermepumpe!B221=TRUE,Translation!A63,"")) ->  | BO156: TRUE | BP156: Online ?
C162: =IF(BO164=FALSE,Translation!$A$47,"") ->  | V162: =IF(BO166=FALSE,Translation!$A$47,"") -> No sketch available
BO164: TRUE | BP164: Hydraulik gefunden ?
BO166: FALSE | BP166: Elektrik gefunden ?
BO168: TRUE | BP168: Verfügbhrkeitsprüfung?
BO169: =IF(BO168=TRUE,Translation!A864,Translation!A865) -> Verfügbarkeitspüfung Ein | BP169: Text
C175: =Translation!$A$59 -> Hydraulic | V175: =Translation!$A$60 -> Electric
B201: =Translation!A66 -> Print product data | C201: =Translation!A66 -> Print product data | BO201: TRUE | BP201: gewählt?
BO203: 185458 | BP203: Artikelnr.gewählt
BO205: =IF(ISERROR(VLOOKUP(BO203,Preisliste!A:AF,31,FALSE)),0,VLOOKUP(BO203,Preisliste!A:AF,30,FALSE))&"-" -> 6627- | BP205: Link PDF
BO207: 1 | BP207: gewähltes Bild
BO209: 0 | BP209: Datenblätter gewählt
BO211: FALSE | BP211: Slot 1 belgt ?
BO212: FALSE | BP212: Slot 2 belgt ?
BO213: FALSE | BP213: Slot 3 belgt ?
BO214: FALSE | BP214: Slot 4 belgt ?
BO215: FALSE | BP215: Slot 5 belgt ?
B251: =Translation!A77 -> Print results from other tools | C251: =" "&Translation!A77 -> Print results from other tools | BO251: FALSE
B501: ITML-Objekterfassung | BO501: FALSE | BP501: SAP-Angebot ?
C503: Objektname | X503: Kunden-Nr. | BO503: =IF(BO517=TRUE,IF(OR(C504="",C507="",X504="",X507="",BO511="",BO512=""),FALSE,TRUE),IF(OR(C504="",C507="",X504="",X507="",C520="",C523="",BO511="",BO512="",BO513=""),FALSE,TRUE)) -> FALSE | BP503: Pflichtfelder ausgefüllt ?
C504: Beispielprojekt | S504: * | AP504: *
C506: Objektort | X506: Bearbeiter | BO506: =SUBSTITUTE(X504," ","") ->  | BP506: Kundennummer ohne Leerzeichen (kann sonst nicht sauber ins ITML übertragen werden)
S507: * | AP507: *
C510: ITML-Objekt | X510: SAP-Angebot
D511: Neu erstellen | K511: Bereits vorhanden | S511: =IF($BO$501=FALSE,"","*") ->  | Y511: GAEB-Datei an Kunden verschicken | BO511: Stiebel Eltron | BP511: Organisation
Y512: Projekt-PDF an ITML-Objekt anhängen | BO512: Stiebel Eltron | BP512: Vertriebsweg
C513: Verantwortlicher Mitarbeiter | BP513: Mitarbeiter
S514: =IF(OR($BO$501=FALSE,$BO$517=TRUE),"","*") ->  | Y514: Projekt-Export an ITML-Objekt anhängen | BP514: Teamkollege
C515: =IF(X16="","",IF(ISERROR(VLOOKUP(X16*1,'Datenbank-Kunden'!C:I,7,FALSE)),"","Kundenbetreuer: "&VLOOKUP(X16*1,'Datenbank-Kunden'!C:I,7,FALSE))) -> 
C516: Teamkollege | X516: Beschreibungstext zu ITML-Objekt hinzufügen
BO517: FALSE | BP517: Objekt bereits vorhanden?
C519: Wiedervorlagedatum
S520: =IF(OR($BO$501=FALSE,$BO$517=TRUE),"","*") -> 
BO521: TRUE | BP521: Projekt Export XLS zu CRM ?
C522: Enddatum | BO522: FALSE | BP522: Gaeb-Datei?
S523: =IF(OR($BO$501=FALSE,$BO$517=TRUE),"","*") ->  | BO523: TRUE | BP523: Projekt-PDF zu CRM?

Sheet Auswahl (hidden)
A1: lwz403sol
AO2: Bedingte Formatierung
AO4: Slot | AP4: 1 | AQ4: 2 | AR4: 3 | AS4: 4 | AT4: 5 | AU4: 6 | AV4: 6
AO5: Einblenden ? | AP5: =Berechnung!L4 -> TRUE | AQ5: =Berechnung!L5 -> FALSE | AR5: =Berechnung!L6 -> FALSE | AS5: =Berechnung!L7 -> FALSE | AT5: =Berechnung!L8 -> FALSE | AU5: =Berechnung!L9 -> FALSE | AV5: =Berechnung!L10 -> FALSE
AO6: Gewählt? | AP6: =Berechnung!O4 -> TRUE | AQ6: =Berechnung!O5 -> FALSE | AR6: =Berechnung!O6 -> FALSE | AS6: =Berechnung!O7 -> FALSE | AT6: =Berechnung!O8 -> FALSE | AU6: =Berechnung!O9 -> FALSE | AV6: =Berechnung!O10 -> FALSE
M8: =Translation!$A$7 -> Position | O8: =Translation!$A$8 -> ID | R8: =Translation!$A$9 -> Quantity | T8: =Translation!$A$10 -> Name | AD8: =Translation!$A$11 -> Price each | AG8: =Translation!$A$12 -> Total price
M9: 1 | O9: 232492 | R9: 1 | T9: =VLOOKUP(O9,Preisliste!$A:$C,2,FALSE) -> Air|Water heat pump WPL 25 AS | AD9: =VLOOKUP(O9,Preisliste!$A:$C,3,FALSE) -> On request | AG9: =IF(ISERROR(R9*AD9),IF(ISNUMBER(R9),AD9,"---"),R9*AD9) -> On request | AX9: Nummer | AY9: Link
M10: 2 | O10: 233623 | R10: 1 | T10: =VLOOKUP(O10,Preisliste!$A:$C,2,FALSE) -> Connection kit AS-WP 2 | AD10: =VLOOKUP(O10,Preisliste!$A:$C,3,FALSE) -> 81 | AG10: =IF(ISERROR(R10*AD10),IF(ISNUMBER(R10),AD10,"---"),R10*AD10) -> 81 | AU10: Artikel gewählt | AX10: 232492
M11: 3 | O11: 234922 | R11: 1 | T11: =VLOOKUP(O11,Preisliste!$A:$C,2,FALSE) -> Heat pump manager WPMW 3 international | AD11: =VLOOKUP(O11,Preisliste!$A:$C,3,FALSE) -> 589 | AG11: 589 | AU11: Datenblatt | AX11: =VLOOKUP(AX10,Preisliste!A:AQ,31,FALSE) -> http://www.stiebel-eltron.be/ste_shared/pdf/data/E_8725-Int_0_de_English.pdf | AY11: =AX11 -> http://www.stiebel-eltron.be/ste_shared/pdf/data/E_8725-Int_0_de_English.pdf
M12: 4 | O12: 185579 | R12: 1 | T12: =VLOOKUP(O12,Preisliste!$A:$C,2,FALSE) -> Remote control FE 7 | AD12: =VLOOKUP(O12,Preisliste!$A:$C,3,FALSE) -> 26 | AG12: 26 | AU12: Montageanw. | AX12: =VLOOKUP(AX10,Preisliste!A:AQ,28,FALSE) -> DM0000028817 | AY12: ="https://csd.stiebel-eltron.de/GMA/"&AX12&".pdf" -> https://csd.stiebel-eltron.de/GMA/DM0000028817.pdf
M13: 5 | O13: 185458 | R13: 1 | T13: =VLOOKUP(O13,Preisliste!$A:$C,2,FALSE) -> Buffer cylinder SBP 200 E | AD13: =VLOOKUP(O13,Preisliste!$A:$C,3,FALSE) -> 763 | AG13: 763
M14: 6 | O14: 234763 | R14: 1 | T14: =VLOOKUP(O14,Preisliste!$A:$C,2,FALSE) -> Compact installation WPKI 5 | AD14: =VLOOKUP(O14,Preisliste!$A:$C,3,FALSE) -> 279 | AG14: 279 | AU14: Text | AY14: =IF(ISERROR(VLOOKUP(AX10,'Langtexte-Vorlage'!A:C,3,FALSE)),"---",IF(VLOOKUP(AX10,'Langtexte-Vorlage'!A:C,3,FALSE)="","---","http://www.ausschreiben.de/online/usr/export.php?tblst=Stiebel,"&TEXT(AX10,"000000")&"&key=ANr&caption=Produktdatenbank%2520Stiebel-Eltron&fmt=")) -> http://www.ausschreiben.de/online/usr/export.php?tblst=Stiebel,232492&key=ANr&caption=Produktdatenbank%2520Stiebel-Eltron&fmt=
M15: 7 | O15: 232943 | R15: 2 | T15: =VLOOKUP(O15,Preisliste!$A:$C,2,FALSE) -> Circulation pump UP 25/7.5 E | AD15: =VLOOKUP(O15,Preisliste!$A:$C,3,FALSE) -> 184 | AG15: 368 | AU15: Bild | AX15: =IF(ISERROR(VLOOKUP(AX10,Waermepumpe!A234:H252,8,FALSE)),VLOOKUP(AX10,Preisliste!A:AQ,29,FALSE),VLOOKUP(AX10,Waermepumpe!A234:H252,8,FALSE)) -> PIC00003555-00.jpg | AY15: ="https://csd.stiebel-eltron.de/Produktbilder/"&AX15 -> https://csd.stiebel-eltron.de/Produktbilder/PIC00003555-00.jpg
M16: 8 | O16: 233602 | R16: 1 | T16: =VLOOKUP(O16,Preisliste!$A:$C,2,FALSE) -> Compact installation WPKI-HK E | AD16: =VLOOKUP(O16,Preisliste!$A:$C,3,FALSE) -> 416 | AG16: 416 | AU16: Bild zeigen ? | AX16: TRUE
M17: 9 | O17: 221360 | R17: 1 | T17: =VLOOKUP(O17,Preisliste!$A:$C,2,FALSE) -> Warm water cylinder SBB 301 WP | AD17: =VLOOKUP(O17,Preisliste!$A:$C,3,FALSE) -> 1924 | AG17: 1924
M18: 10 | O18: 234764 | R18: 1 | T18: =VLOOKUP(O18,Preisliste!$A:$C,2,FALSE) -> Compact installation BBI 5 | AD18: =VLOOKUP(O18,Preisliste!$A:$C,3,FALSE) -> 114 | AG18: 114 | AU18: CDB-Maßzeichnung | AX18: =VLOOKUP(AX10,Preisliste!A:AQ,25,FALSE) -> --- | AY18: ="https://csd.stiebel-eltron.de/Masszeichnungen/"&AX18&".png" -> https://csd.stiebel-eltron.de/Masszeichnungen/---.png
M19: 11 | O19: 230013 | R19: 1 | T19: =VLOOKUP(O19,Preisliste!$A:$C,2,FALSE) -> Heating descaler HZEA | AD19: =VLOOKUP(O19,Preisliste!$A:$C,3,FALSE) -> 226 | AG19: 226
M20: 12 | O20: 283722 | R20: 1 | T20: =VLOOKUP(O20,Preisliste!$A:$C,2,FALSE) -> Commissioning heat pump | AD20: =VLOOKUP(O20,Preisliste!$A:$C,3,FALSE) -> On request | AG20: On request
M21: 13 | O21: 233719 | R21: Optional (1) | T21: =VLOOKUP(O21,Preisliste!$A:$C,2,FALSE) -> Circulation pump DHW UPZ | AD21: =VLOOKUP(O21,Preisliste!$A:$C,3,FALSE) -> 269 | AG21: ---
M22: 14 | O22: 233711 | R22: Optional (1) | T22: =VLOOKUP(O22,Preisliste!$A:$C,2,FALSE) -> Safety temperature controller STB-FB | AD22: =VLOOKUP(O22,Preisliste!$A:$C,3,FALSE) -> 34 | AG22: ---
M23: 15 | T23: =VLOOKUP(O23,Preisliste!$A:$C,2,FALSE) ->  | AD23: =VLOOKUP(O23,Preisliste!$A:$C,3,FALSE) ->  | AG23: ---
M24: 16 | T24: =VLOOKUP(O24,Preisliste!$A:$C,2,FALSE) ->  | AD24: =VLOOKUP(O24,Preisliste!$A:$C,3,FALSE) ->  | AG24: ---
M25: 17 | T25: =VLOOKUP(O25,Preisliste!$A:$C,2,FALSE) ->  | AD25: =VLOOKUP(O25,Preisliste!$A:$C,3,FALSE) ->  | AG25: ---
M26: 18 | T26: =VLOOKUP(O26,Preisliste!$A:$C,2,FALSE) ->  | AD26: =VLOOKUP(O26,Preisliste!$A:$C,3,FALSE) ->  | AG26: ---
M27: 19 | T27: =VLOOKUP(O27,Preisliste!$A:$C,2,FALSE) ->  | AD27: =VLOOKUP(O27,Preisliste!$A:$C,3,FALSE) ->  | AG27: ---
M28: 20 | T28: =VLOOKUP(O28,Preisliste!$A:$C,2,FALSE) ->  | AD28: =VLOOKUP(O28,Preisliste!$A:$C,3,FALSE) ->  | AG28: ---
M29: 21 | T29: =VLOOKUP(O29,Preisliste!$A:$C,2,FALSE) ->  | AD29: =VLOOKUP(O29,Preisliste!$A:$C,3,FALSE) ->  | AG29: ---
M30: 22 | T30: =VLOOKUP(O30,Preisliste!$A:$C,2,FALSE) ->  | AD30: =VLOOKUP(O30,Preisliste!$A:$C,3,FALSE) ->  | AG30: --- | AU30: Schaltplan zeigen ? | AX30: 1
M31: 23 | T31: =VLOOKUP(O31,Preisliste!$A:$C,2,FALSE) ->  | AD31: =VLOOKUP(O31,Preisliste!$A:$C,3,FALSE) ->  | AG31: ---
M32: 24 | T32: =VLOOKUP(O32,Preisliste!$A:$C,2,FALSE) ->  | AD32: =VLOOKUP(O32,Preisliste!$A:$C,3,FALSE) ->  | AG32: ---
M33: 25 | T33: =VLOOKUP(O33,Preisliste!$A:$C,2,FALSE) ->  | AD33: =VLOOKUP(O33,Preisliste!$A:$C,3,FALSE) ->  | AG33: ---
M34: 26 | T34: =VLOOKUP(O34,Preisliste!$A:$C,2,FALSE) ->  | AD34: =VLOOKUP(O34,Preisliste!$A:$C,3,FALSE) ->  | AG34: ---
M35: 27 | T35: =VLOOKUP(O35,Preisliste!$A:$C,2,FALSE) ->  | AD35: =VLOOKUP(O35,Preisliste!$A:$C,3,FALSE) ->  | AG35: ---
M36: 28 | T36: =VLOOKUP(O36,Preisliste!$A:$C,2,FALSE) ->  | AD36: =VLOOKUP(O36,Preisliste!$A:$C,3,FALSE) ->  | AG36: ---
M37: 29 | T37: =VLOOKUP(O37,Preisliste!$A:$C,2,FALSE) ->  | AD37: =VLOOKUP(O37,Preisliste!$A:$C,3,FALSE) ->  | AG37: ---
M38: 30 | T38: =VLOOKUP(O38,Preisliste!$A:$C,2,FALSE) ->  | AD38: =VLOOKUP(O38,Preisliste!$A:$C,3,FALSE) ->  | AG38: ---
M39: 31 | T39: =VLOOKUP(O39,Preisliste!$A:$C,2,FALSE) ->  | AD39: =VLOOKUP(O39,Preisliste!$A:$C,3,FALSE) ->  | AG39: ---
M40: 32 | T40: =VLOOKUP(O40,Preisliste!$A:$C,2,FALSE) ->  | AD40: =VLOOKUP(O40,Preisliste!$A:$C,3,FALSE) ->  | AG40: ---
M41: 33 | T41: =VLOOKUP(O41,Preisliste!$A:$C,2,FALSE) ->  | AD41: =VLOOKUP(O41,Preisliste!$A:$C,3,FALSE) ->  | AG41: ---
M42: 34 | T42: =VLOOKUP(O42,Preisliste!$A:$C,2,FALSE) ->  | AD42: =VLOOKUP(O42,Preisliste!$A:$C,3,FALSE) ->  | AG42: ---
M43: 35 | T43: =VLOOKUP(O43,Preisliste!$A:$C,2,FALSE) ->  | AD43: =VLOOKUP(O43,Preisliste!$A:$C,3,FALSE) ->  | AG43: ---
M44: 36 | T44: =VLOOKUP(O44,Preisliste!$A:$C,2,FALSE) ->  | AD44: =VLOOKUP(O44,Preisliste!$A:$C,3,FALSE) ->  | AG44: ---
M45: 37 | T45: =VLOOKUP(O45,Preisliste!$A:$C,2,FALSE) ->  | AD45: =VLOOKUP(O45,Preisliste!$A:$C,3,FALSE) ->  | AG45: ---
M46: 38 | T46: =VLOOKUP(O46,Preisliste!$A:$C,2,FALSE) ->  | AD46: =VLOOKUP(O46,Preisliste!$A:$C,3,FALSE) ->  | AG46: ---
AC47: =Translation!$A$13 -> Recommended retail price excl. VAT | AG47: =SUM(AG9:AI46) -> 4786
AU54: Schaltplan Zeigen? | AX54: FALSE
AU55: Text Button | AX55: =IF(AX54=TRUE,Translation!A48,Translation!A49) -> Show sketch
B101: Kategorie Solar
M104: =$M$8 -> Position | O104: =$O$8 -> ID | R104: =$R$8 -> Quantity | T104: =$T$8 -> Name | AD104: =$AD$8 -> Price each | AG104: =$AG$8 -> Total price
M105: 1 | O105: 230016 | R105: 16 | T105: =VLOOKUP(O105,Preisliste!$A:$C,2,FALSE) -> Solar flat-plate collector SOL 27 premium S | AD105: =VLOOKUP(O105,Preisliste!$A:$C,3,FALSE) -> 825 | AG105: =IF(ISERROR(R105*AD105),IF(ISNUMBER(R105),AD105,"---"),R105*AD105) -> 13200
M106: 2 | O106: 230170 | R106: 8 | T106: =VLOOKUP(O106,Preisliste!$A:$C,2,FALSE) -> Mounting frame SOL R2 | AD106: =VLOOKUP(O106,Preisliste!$A:$C,3,FALSE) -> 163 | AG106: 1304
M107: 3 | O107: 230171 | R107: 4 | T107: =VLOOKUP(O107,Preisliste!$A:$C,2,FALSE) -> Frame connection set SOL RV | AD107: =VLOOKUP(O107,Preisliste!$A:$C,3,FALSE) -> 68 | AG107: 272
M108: 4 | O108: 230175 | R108: 16 | T108: =VLOOKUP(O108,Preisliste!$A:$C,2,FALSE) -> Fixing Kit - tiled roof SOL BP | AD108: =VLOOKUP(O108,Preisliste!$A:$C,3,FALSE) -> 82 | AG108: 1312
M109: 5 | O109: 230185 | R109: 12 | T109: =VLOOKUP(O109,Preisliste!$A:$C,2,FALSE) -> Push-fit connection SOL SV-A | AD109: =VLOOKUP(O109,Preisliste!$A:$C,3,FALSE) -> 50 | AG109: 600
M110: 6 | O110: 230186 | R110: 4 | T110: =VLOOKUP(O110,Preisliste!$A:$C,2,FALSE) -> Push-fit connection SOL SV-D | AD110: =VLOOKUP(O110,Preisliste!$A:$C,3,FALSE) -> 305 | AG110: 1220
M111: 7 | O111: 234784 | R111: 1 | T111: =VLOOKUP(O111,Preisliste!$A:$C,2,FALSE) -> Solar compact installation SOKI 7 E plus | AD111: =VLOOKUP(O111,Preisliste!$A:$C,3,FALSE) -> 652 | AG111: 652
M112: 8 | O112: 229987 | R112: 1 | T112: =VLOOKUP(O112,Preisliste!$A:$C,2,FALSE) -> Instantaneous cylinder SBS 1501 W SOL | AD112: =VLOOKUP(O112,Preisliste!$A:$C,3,FALSE) -> 3975 | AG112: 3975
M113: 9 | O113: 231928 | R113: 1 | T113: =VLOOKUP(O113,Preisliste!$A:$C,2,FALSE) -> Thermal insulation WDH 1501 SBS | AD113: =VLOOKUP(O113,Preisliste!$A:$C,3,FALSE) -> 784 | AG113: 784
M114: 10 | O114: 73222 | R114: 4 | T114: =VLOOKUP(O114,Preisliste!$A:$C,2,FALSE) -> Heat transfer liquid H30-L, 20 l | AD114: =VLOOKUP(O114,Preisliste!$A:$C,3,FALSE) -> 81 | AG114: 324
M115: 11 | O115: 231899 | R115: 1 | T115: =VLOOKUP(O115,Preisliste!$A:$C,2,FALSE) -> Solar expansion vessel 80 l | AD115: =VLOOKUP(O115,Preisliste!$A:$C,3,FALSE) -> 241 | AG115: 241
M116: 12 | O116: 283733 | R116: 1 | T116: =VLOOKUP(O116,Preisliste!$A:$C,2,FALSE) -> Commissioning solar system | AD116: =VLOOKUP(O116,Preisliste!$A:$C,3,FALSE) -> On request | AG116: On request
M117: 13 | O117: 240591 | R117: Optional (1) | T117: =VLOOKUP(O117,Preisliste!$A:$C,2,FALSE) -> Engineering solar system | AD117: =VLOOKUP(O117,Preisliste!$A:$C,3,FALSE) -> On request | AG117: ---
M118: 14 | T118: =VLOOKUP(O118,Preisliste!$A:$C,2,FALSE) ->  | AD118: =VLOOKUP(O118,Preisliste!$A:$C,3,FALSE) ->  | AG118: ---
M119: 15 | T119: =VLOOKUP(O119,Preisliste!$A:$C,2,FALSE) ->  | AD119: =VLOOKUP(O119,Preisliste!$A:$C,3,FALSE) ->  | AG119: ---
M120: 16 | T120: =VLOOKUP(O120,Preisliste!$A:$C,2,FALSE) ->  | AD120: =VLOOKUP(O120,Preisliste!$A:$C,3,FALSE) ->  | AG120: ---
M121: 17 | T121: =VLOOKUP(O121,Preisliste!$A:$C,2,FALSE) ->  | AD121: =VLOOKUP(O121,Preisliste!$A:$C,3,FALSE) ->  | AG121: ---
M122: 18 | T122: =VLOOKUP(O122,Preisliste!$A:$C,2,FALSE) ->  | AD122: =VLOOKUP(O122,Preisliste!$A:$C,3,FALSE) ->  | AG122: ---
M123: 19 | T123: =VLOOKUP(O123,Preisliste!$A:$C,2,FALSE) ->  | AD123: =VLOOKUP(O123,Preisliste!$A:$C,3,FALSE) ->  | AG123: ---
M124: 20 | T124: =VLOOKUP(O124,Preisliste!$A:$C,2,FALSE) ->  | AD124: =VLOOKUP(O124,Preisliste!$A:$C,3,FALSE) ->  | AG124: ---
M125: 21 | T125: =VLOOKUP(O125,Preisliste!$A:$C,2,FALSE) ->  | AD125: =VLOOKUP(O125,Preisliste!$A:$C,3,FALSE) ->  | AG125: ---
M126: 22 | T126: =VLOOKUP(O126,Preisliste!$A:$C,2,FALSE) ->  | AD126: =VLOOKUP(O126,Preisliste!$A:$C,3,FALSE) ->  | AG126: ---
M127: 23 | T127: =VLOOKUP(O127,Preisliste!$A:$C,2,FALSE) ->  | AD127: =VLOOKUP(O127,Preisliste!$A:$C,3,FALSE) ->  | AG127: ---
M128: 24 | T128: =VLOOKUP(O128,Preisliste!$A:$C,2,FALSE) ->  | AD128: =VLOOKUP(O128,Preisliste!$A:$C,3,FALSE) ->  | AG128: ---
M129: 25 | T129: =VLOOKUP(O129,Preisliste!$A:$C,2,FALSE) ->  | AD129: =VLOOKUP(O129,Preisliste!$A:$C,3,FALSE) ->  | AG129: ---
M130: 26 | T130: =VLOOKUP(O130,Preisliste!$A:$C,2,FALSE) ->  | AD130: =VLOOKUP(O130,Preisliste!$A:$C,3,FALSE) ->  | AG130: ---
M131: 27 | T131: =VLOOKUP(O131,Preisliste!$A:$C,2,FALSE) ->  | AD131: =VLOOKUP(O131,Preisliste!$A:$C,3,FALSE) ->  | AG131: ---
M132: 28 | T132: =VLOOKUP(O132,Preisliste!$A:$C,2,FALSE) ->  | AD132: =VLOOKUP(O132,Preisliste!$A:$C,3,FALSE) ->  | AG132: ---
M133: 29 | T133: =VLOOKUP(O133,Preisliste!$A:$C,2,FALSE) ->  | AD133: =VLOOKUP(O133,Preisliste!$A:$C,3,FALSE) ->  | AG133: ---
M134: 30 | T134: =VLOOKUP(O134,Preisliste!$A:$C,2,FALSE) ->  | AD134: =VLOOKUP(O134,Preisliste!$A:$C,3,FALSE) ->  | AG134: ---
M135: 31 | T135: =VLOOKUP(O135,Preisliste!$A:$C,2,FALSE) ->  | AD135: =VLOOKUP(O135,Preisliste!$A:$C,3,FALSE) ->  | AG135: ---
M136: 32 | T136: =VLOOKUP(O136,Preisliste!$A:$C,2,FALSE) ->  | AD136: =VLOOKUP(O136,Preisliste!$A:$C,3,FALSE) ->  | AG136: ---
M137: 33 | T137: =VLOOKUP(O137,Preisliste!$A:$C,2,FALSE) ->  | AD137: =VLOOKUP(O137,Preisliste!$A:$C,3,FALSE) ->  | AG137: ---
M138: 34 | T138: =VLOOKUP(O138,Preisliste!$A:$C,2,FALSE) ->  | AD138: =VLOOKUP(O138,Preisliste!$A:$C,3,FALSE) ->  | AG138: ---
M139: 35 | T139: =VLOOKUP(O139,Preisliste!$A:$C,2,FALSE) ->  | AD139: =VLOOKUP(O139,Preisliste!$A:$C,3,FALSE) ->  | AG139: ---
M140: 36 | T140: =VLOOKUP(O140,Preisliste!$A:$C,2,FALSE) ->  | AD140: =VLOOKUP(O140,Preisliste!$A:$C,3,FALSE) ->  | AG140: ---
M141: 37 | T141: =VLOOKUP(O141,Preisliste!$A:$C,2,FALSE) ->  | AD141: =VLOOKUP(O141,Preisliste!$A:$C,3,FALSE) ->  | AG141: ---
M142: 38 | T142: =VLOOKUP(O142,Preisliste!$A:$C,2,FALSE) ->  | AD142: =VLOOKUP(O142,Preisliste!$A:$C,3,FALSE) ->  | AG142: ---
AC143: =Translation!$A$13 -> Recommended retail price excl. VAT | AG143: =SUM(AG105:AI142) -> 23884
B201: Kategorie Lüftung
M204: =$M$8 -> Position | O204: =$O$8 -> ID | R204: =$R$8 -> Quantity | T204: =$T$8 -> Name | AD204: =$AD$8 -> Price each | AG204: =$AG$8 -> Total price
M205: 1 | O205: 233851 | R205: 1 | T205: =VLOOKUP(O205,Preisliste!$A:$C,2,FALSE) -> Central Ventilation device LWZ 70 E | AD205: =VLOOKUP(O205,Preisliste!$A:$C,3,FALSE) -> 1853 | AG205: =IF(ISERROR(R205*AD205),IF(ISNUMBER(R205),AD205,"---"),R205*AD205) -> 1853
M206: 2 | O206: 185358 | R206: 1 | T206: =VLOOKUP(O206,Preisliste!$A:$C,2,FALSE) -> Remote control FEZ | AD206: =VLOOKUP(O206,Preisliste!$A:$C,3,FALSE) -> On request | AG206: On request
M207: 3 | O207: 234894 | R207: 1 | T207: =VLOOKUP(O207,Preisliste!$A:$C,2,FALSE) -> Ventilation Basic Set LVE à 130 m² | AD207: =VLOOKUP(O207,Preisliste!$A:$C,3,FALSE) -> On request | AG207: On request
M208: 4 | O208: 317147 | R208: 1 | T208: =VLOOKUP(O208,Preisliste!$A:$C,2,FALSE) -> Ventilation Accessories Set LVE à 130 m² | AD208: =VLOOKUP(O208,Preisliste!$A:$C,3,FALSE) -> On request | AG208: On request
M209: 5 | O209: 233019 | R209: 1 | T209: =VLOOKUP(O209,Preisliste!$A:$C,2,FALSE) -> Connection Set ventilation LWF VA-Set 2 | AD209: =VLOOKUP(O209,Preisliste!$A:$C,3,FALSE) -> On request | AG209: On request
M210: 6 | O210: 233025 | R210: 1 | T210: =VLOOKUP(O210,Preisliste!$A:$C,2,FALSE) -> Exhaust air set LWF FA-Set 125 W2 | AD210: =VLOOKUP(O210,Preisliste!$A:$C,3,FALSE) -> On request | AG210: On request
M211: 7 | O211: 283731 | R211: 1 | T211: =VLOOKUP(O211,Preisliste!$A:$C,2,FALSE) -> Commissioning LWZ 100 / LWZ 70 | AD211: =VLOOKUP(O211,Preisliste!$A:$C,3,FALSE) -> On request | AG211: On request
M212: 8 | O212: 233016 | R212: Optional (1) | T212: =VLOOKUP(O212,Preisliste!$A:$C,2,FALSE) -> Filter box DN 160 | AD212: =VLOOKUP(O212,Preisliste!$A:$C,3,FALSE) -> On request | AG212: ---
M213: 9 | O213: 233870 | R213: Optional (1) | T213: =VLOOKUP(O213,Preisliste!$A:$C,2,FALSE) -> Filter cassette VOC for filter box DN 160 | AD213: =VLOOKUP(O213,Preisliste!$A:$C,3,FALSE) -> On request | AG213: ---
M214: 10 | O214: 304060 | R214: Optional (1) | T214: =VLOOKUP(O214,Preisliste!$A:$C,2,FALSE) -> Maintenance contract LWZ 70…370 (annual subscription) | AD214: =VLOOKUP(O214,Preisliste!$A:$C,3,FALSE) -> On request | AG214: ---
M215: 11 | O215: 240592 | R215: Optional (1) | T215: =VLOOKUP(O215,Preisliste!$A:$C,2,FALSE) -> Engineering air ventilation system | AD215: =VLOOKUP(O215,Preisliste!$A:$C,3,FALSE) -> On request | AG215: ---
M216: 12 | T216: =VLOOKUP(O216,Preisliste!$A:$C,2,FALSE) ->  | AD216: =VLOOKUP(O216,Preisliste!$A:$C,3,FALSE) ->  | AG216: ---
M217: 13 | T217: =VLOOKUP(O217,Preisliste!$A:$C,2,FALSE) ->  | AD217: =VLOOKUP(O217,Preisliste!$A:$C,3,FALSE) ->  | AG217: ---
M218: 14 | T218: =VLOOKUP(O218,Preisliste!$A:$C,2,FALSE) ->  | AD218: =VLOOKUP(O218,Preisliste!$A:$C,3,FALSE) ->  | AG218: ---
M219: 15 | T219: =VLOOKUP(O219,Preisliste!$A:$C,2,FALSE) ->  | AD219: =VLOOKUP(O219,Preisliste!$A:$C,3,FALSE) ->  | AG219: ---
M220: 16 | T220: =VLOOKUP(O220,Preisliste!$A:$C,2,FALSE) ->  | AD220: =VLOOKUP(O220,Preisliste!$A:$C,3,FALSE) ->  | AG220: ---
M221: 17 | T221: =VLOOKUP(O221,Preisliste!$A:$C,2,FALSE) ->  | AD221: =VLOOKUP(O221,Preisliste!$A:$C,3,FALSE) ->  | AG221: ---
M222: 18 | T222: =VLOOKUP(O222,Preisliste!$A:$C,2,FALSE) ->  | AD222: =VLOOKUP(O222,Preisliste!$A:$C,3,FALSE) ->  | AG222: ---
M223: 19 | T223: =VLOOKUP(O223,Preisliste!$A:$C,2,FALSE) ->  | AD223: =VLOOKUP(O223,Preisliste!$A:$C,3,FALSE) ->  | AG223: ---
M224: 20 | T224: =VLOOKUP(O224,Preisliste!$A:$C,2,FALSE) ->  | AD224: =VLOOKUP(O224,Preisliste!$A:$C,3,FALSE) ->  | AG224: ---
M225: 21 | T225: =VLOOKUP(O225,Preisliste!$A:$C,2,FALSE) ->  | AD225: =VLOOKUP(O225,Preisliste!$A:$C,3,FALSE) ->  | AG225: ---
M226: 22 | T226: =VLOOKUP(O226,Preisliste!$A:$C,2,FALSE) ->  | AD226: =VLOOKUP(O226,Preisliste!$A:$C,3,FALSE) ->  | AG226: ---
M227: 23 | T227: =VLOOKUP(O227,Preisliste!$A:$C,2,FALSE) ->  | AD227: =VLOOKUP(O227,Preisliste!$A:$C,3,FALSE) ->  | AG227: ---
M228: 24 | T228: =VLOOKUP(O228,Preisliste!$A:$C,2,FALSE) ->  | AD228: =VLOOKUP(O228,Preisliste!$A:$C,3,FALSE) ->  | AG228: ---
M229: 25 | T229: =VLOOKUP(O229,Preisliste!$A:$C,2,FALSE) ->  | AD229: =VLOOKUP(O229,Preisliste!$A:$C,3,FALSE) ->  | AG229: ---
M230: 26 | T230: =VLOOKUP(O230,Preisliste!$A:$C,2,FALSE) ->  | AD230: =VLOOKUP(O230,Preisliste!$A:$C,3,FALSE) ->  | AG230: ---
M231: 27 | T231: =VLOOKUP(O231,Preisliste!$A:$C,2,FALSE) ->  | AD231: =VLOOKUP(O231,Preisliste!$A:$C,3,FALSE) ->  | AG231: ---
M232: 28 | T232: =VLOOKUP(O232,Preisliste!$A:$C,2,FALSE) ->  | AD232: =VLOOKUP(O232,Preisliste!$A:$C,3,FALSE) ->  | AG232: ---
M233: 29 | T233: =VLOOKUP(O233,Preisliste!$A:$C,2,FALSE) ->  | AD233: =VLOOKUP(O233,Preisliste!$A:$C,3,FALSE) ->  | AG233: ---
M234: 30 | T234: =VLOOKUP(O234,Preisliste!$A:$C,2,FALSE) ->  | AD234: =VLOOKUP(O234,Preisliste!$A:$C,3,FALSE) ->  | AG234: ---
M235: 31 | T235: =VLOOKUP(O235,Preisliste!$A:$C,2,FALSE) ->  | AD235: =VLOOKUP(O235,Preisliste!$A:$C,3,FALSE) ->  | AG235: ---
M236: 32 | T236: =VLOOKUP(O236,Preisliste!$A:$C,2,FALSE) ->  | AD236: =VLOOKUP(O236,Preisliste!$A:$C,3,FALSE) ->  | AG236: ---
M237: 33 | T237: =VLOOKUP(O237,Preisliste!$A:$C,2,FALSE) ->  | AD237: =VLOOKUP(O237,Preisliste!$A:$C,3,FALSE) ->  | AG237: ---
M238: 34 | T238: =VLOOKUP(O238,Preisliste!$A:$C,2,FALSE) ->  | AD238: =VLOOKUP(O238,Preisliste!$A:$C,3,FALSE) ->  | AG238: ---
M239: 35 | T239: =VLOOKUP(O239,Preisliste!$A:$C,2,FALSE) ->  | AD239: =VLOOKUP(O239,Preisliste!$A:$C,3,FALSE) ->  | AG239: ---
M240: 36 | T240: =VLOOKUP(O240,Preisliste!$A:$C,2,FALSE) ->  | AD240: =VLOOKUP(O240,Preisliste!$A:$C,3,FALSE) ->  | AG240: ---
M241: 37 | T241: =VLOOKUP(O241,Preisliste!$A:$C,2,FALSE) ->  | AD241: =VLOOKUP(O241,Preisliste!$A:$C,3,FALSE) ->  | AG241: ---
M242: 38 | T242: =VLOOKUP(O242,Preisliste!$A:$C,2,FALSE) ->  | AD242: =VLOOKUP(O242,Preisliste!$A:$C,3,FALSE) ->  | AG242: ---
M243: 39 | T243: =VLOOKUP(O243,Preisliste!$A:$C,2,FALSE) ->  | AD243: =VLOOKUP(O243,Preisliste!$A:$C,3,FALSE) ->  | AG243: ---
M244: 40 | T244: =VLOOKUP(O244,Preisliste!$A:$C,2,FALSE) ->  | AD244: =VLOOKUP(O244,Preisliste!$A:$C,3,FALSE) ->  | AG244: ---
M245: 41 | T245: =VLOOKUP(O245,Preisliste!$A:$C,2,FALSE) ->  | AD245: =VLOOKUP(O245,Preisliste!$A:$C,3,FALSE) ->  | AG245: ---
M246: 42 | T246: =VLOOKUP(O246,Preisliste!$A:$C,2,FALSE) ->  | AD246: =VLOOKUP(O246,Preisliste!$A:$C,3,FALSE) ->  | AG246: ---
M247: 43 | T247: =VLOOKUP(O247,Preisliste!$A:$C,2,FALSE) ->  | AD247: =VLOOKUP(O247,Preisliste!$A:$C,3,FALSE) ->  | AG247: ---
M248: 44 | T248: =VLOOKUP(O248,Preisliste!$A:$C,2,FALSE) ->  | AD248: =VLOOKUP(O248,Preisliste!$A:$C,3,FALSE) ->  | AG248: ---
M249: 45 | T249: =VLOOKUP(O249,Preisliste!$A:$C,2,FALSE) ->  | AD249: =VLOOKUP(O249,Preisliste!$A:$C,3,FALSE) ->  | AG249: ---
M250: 46 | T250: =VLOOKUP(O250,Preisliste!$A:$C,2,FALSE) ->  | AD250: =VLOOKUP(O250,Preisliste!$A:$C,3,FALSE) ->  | AG250: ---
M251: 47 | T251: =VLOOKUP(O251,Preisliste!$A:$C,2,FALSE) ->  | AD251: =VLOOKUP(O251,Preisliste!$A:$C,3,FALSE) ->  | AG251: ---
M252: 48 | T252: =VLOOKUP(O252,Preisliste!$A:$C,2,FALSE) ->  | AD252: =VLOOKUP(O252,Preisliste!$A:$C,3,FALSE) ->  | AG252: ---
M253: 49 | T253: =VLOOKUP(O253,Preisliste!$A:$C,2,FALSE) ->  | AD253: =VLOOKUP(O253,Preisliste!$A:$C,3,FALSE) ->  | AG253: ---
M254: 50 | T254: =VLOOKUP(O254,Preisliste!$A:$C,2,FALSE) ->  | AD254: =VLOOKUP(O254,Preisliste!$A:$C,3,FALSE) ->  | AG254: ---
M255: 51 | T255: =VLOOKUP(O255,Preisliste!$A:$C,2,FALSE) ->  | AD255: =VLOOKUP(O255,Preisliste!$A:$C,3,FALSE) ->  | AG255: ---
M256: 52 | T256: =VLOOKUP(O256,Preisliste!$A:$C,2,FALSE) ->  | AD256: =VLOOKUP(O256,Preisliste!$A:$C,3,FALSE) ->  | AG256: ---
M257: 53 | T257: =VLOOKUP(O257,Preisliste!$A:$C,2,FALSE) ->  | AD257: =VLOOKUP(O257,Preisliste!$A:$C,3,FALSE) ->  | AG257: ---
M258: 54 | T258: =VLOOKUP(O258,Preisliste!$A:$C,2,FALSE) ->  | AD258: =VLOOKUP(O258,Preisliste!$A:$C,3,FALSE) ->  | AG258: ---
M259: 55 | T259: =VLOOKUP(O259,Preisliste!$A:$C,2,FALSE) ->  | AD259: =VLOOKUP(O259,Preisliste!$A:$C,3,FALSE) ->  | AG259: ---
M260: 56 | T260: =VLOOKUP(O260,Preisliste!$A:$C,2,FALSE) ->  | AD260: =VLOOKUP(O260,Preisliste!$A:$C,3,FALSE) ->  | AG260: ---
M261: 57 | T261: =VLOOKUP(O261,Preisliste!$A:$C,2,FALSE) ->  | AD261: =VLOOKUP(O261,Preisliste!$A:$C,3,FALSE) ->  | AG261: ---
M262: 58 | T262: =VLOOKUP(O262,Preisliste!$A:$C,2,FALSE) ->  | AD262: =VLOOKUP(O262,Preisliste!$A:$C,3,FALSE) ->  | AG262: ---
M263: 59 | T263: =VLOOKUP(O263,Preisliste!$A:$C,2,FALSE) ->  | AD263: =VLOOKUP(O263,Preisliste!$A:$C,3,FALSE) ->  | AG263: ---
M264: 60 | T264: =VLOOKUP(O264,Preisliste!$A:$C,2,FALSE) ->  | AD264: =VLOOKUP(O264,Preisliste!$A:$C,3,FALSE) ->  | AG264: ---
M265: 61 | T265: =VLOOKUP(O265,Preisliste!$A:$C,2,FALSE) ->  | AD265: =VLOOKUP(O265,Preisliste!$A:$C,3,FALSE) ->  | AG265: ---
M266: 62 | T266: =VLOOKUP(O266,Preisliste!$A:$C,2,FALSE) ->  | AD266: =VLOOKUP(O266,Preisliste!$A:$C,3,FALSE) ->  | AG266: ---
M267: 63 | T267: =VLOOKUP(O267,Preisliste!$A:$C,2,FALSE) ->  | AD267: =VLOOKUP(O267,Preisliste!$A:$C,3,FALSE) ->  | AG267: ---
M268: 64 | T268: =VLOOKUP(O268,Preisliste!$A:$C,2,FALSE) ->  | AD268: =VLOOKUP(O268,Preisliste!$A:$C,3,FALSE) ->  | AG268: ---
M269: 65 | T269: =VLOOKUP(O269,Preisliste!$A:$C,2,FALSE) ->  | AD269: =VLOOKUP(O269,Preisliste!$A:$C,3,FALSE) ->  | AG269: =IF(ISERROR(R269*AD269),IF(ISNUMBER(R269),AD269,"---"),R269*AD269) -> ---
M270: 66 | T270: =VLOOKUP(O270,Preisliste!$A:$C,2,FALSE) ->  | AD270: =VLOOKUP(O270,Preisliste!$A:$C,3,FALSE) ->  | AG270: ---
M271: 67 | T271: =VLOOKUP(O271,Preisliste!$A:$C,2,FALSE) ->  | AD271: =VLOOKUP(O271,Preisliste!$A:$C,3,FALSE) ->  | AG271: ---
M272: 68 | T272: =VLOOKUP(O272,Preisliste!$A:$C,2,FALSE) ->  | AD272: =VLOOKUP(O272,Preisliste!$A:$C,3,FALSE) ->  | AG272: ---
M273: 69 | T273: =VLOOKUP(O273,Preisliste!$A:$C,2,FALSE) ->  | AD273: =VLOOKUP(O273,Preisliste!$A:$C,3,FALSE) ->  | AG273: ---
M274: 70 | T274: =VLOOKUP(O274,Preisliste!$A:$C,2,FALSE) ->  | AD274: =VLOOKUP(O274,Preisliste!$A:$C,3,FALSE) ->  | AG274: ---
M275: 71 | T275: =VLOOKUP(O275,Preisliste!$A:$C,2,FALSE) ->  | AD275: =VLOOKUP(O275,Preisliste!$A:$C,3,FALSE) ->  | AG275: ---
M276: 72 | T276: =VLOOKUP(O276,Preisliste!$A:$C,2,FALSE) ->  | AD276: =VLOOKUP(O276,Preisliste!$A:$C,3,FALSE) ->  | AG276: ---
M277: 73 | T277: =VLOOKUP(O277,Preisliste!$A:$C,2,FALSE) ->  | AD277: =VLOOKUP(O277,Preisliste!$A:$C,3,FALSE) ->  | AG277: ---
M278: 74 | T278: =VLOOKUP(O278,Preisliste!$A:$C,2,FALSE) ->  | AD278: =VLOOKUP(O278,Preisliste!$A:$C,3,FALSE) ->  | AG278: ---
M279: 75 | T279: =VLOOKUP(O279,Preisliste!$A:$C,2,FALSE) ->  | AD279: =VLOOKUP(O279,Preisliste!$A:$C,3,FALSE) ->  | AG279: ---
M280: 76 | T280: =VLOOKUP(O280,Preisliste!$A:$C,2,FALSE) ->  | AD280: =VLOOKUP(O280,Preisliste!$A:$C,3,FALSE) ->  | AG280: ---
M281: 77 | T281: =VLOOKUP(O281,Preisliste!$A:$C,2,FALSE) ->  | AD281: =VLOOKUP(O281,Preisliste!$A:$C,3,FALSE) ->  | AG281: ---
M282: 78 | T282: =VLOOKUP(O282,Preisliste!$A:$C,2,FALSE) ->  | AD282: =VLOOKUP(O282,Preisliste!$A:$C,3,FALSE) ->  | AG282: ---
M283: 79 | T283: =VLOOKUP(O283,Preisliste!$A:$C,2,FALSE) ->  | AD283: =VLOOKUP(O283,Preisliste!$A:$C,3,FALSE) ->  | AG283: ---
M284: 80 | T284: =VLOOKUP(O284,Preisliste!$A:$C,2,FALSE) ->  | AD284: =VLOOKUP(O284,Preisliste!$A:$C,3,FALSE) ->  | AG284: ---
M285: 81 | T285: =VLOOKUP(O285,Preisliste!$A:$C,2,FALSE) ->  | AD285: =VLOOKUP(O285,Preisliste!$A:$C,3,FALSE) ->  | AG285: ---
M286: 82 | T286: =VLOOKUP(O286,Preisliste!$A:$C,2,FALSE) ->  | AD286: =VLOOKUP(O286,Preisliste!$A:$C,3,FALSE) ->  | AG286: ---
M287: 83 | T287: =VLOOKUP(O287,Preisliste!$A:$C,2,FALSE) ->  | AD287: =VLOOKUP(O287,Preisliste!$A:$C,3,FALSE) ->  | AG287: ---
M288: 84 | T288: =VLOOKUP(O288,Preisliste!$A:$C,2,FALSE) ->  | AD288: =VLOOKUP(O288,Preisliste!$A:$C,3,FALSE) ->  | AG288: ---
M289: 85 | T289: =VLOOKUP(O289,Preisliste!$A:$C,2,FALSE) ->  | AD289: =VLOOKUP(O289,Preisliste!$A:$C,3,FALSE) ->  | AG289: ---
M290: 86 | T290: =VLOOKUP(O290,Preisliste!$A:$C,2,FALSE) ->  | AD290: =VLOOKUP(O290,Preisliste!$A:$C,3,FALSE) ->  | AG290: ---
M291: 87 | T291: =VLOOKUP(O291,Preisliste!$A:$C,2,FALSE) ->  | AD291: =VLOOKUP(O291,Preisliste!$A:$C,3,FALSE) ->  | AG291: ---
M292: 88 | T292: =VLOOKUP(O292,Preisliste!$A:$C,2,FALSE) ->  | AD292: =VLOOKUP(O292,Preisliste!$A:$C,3,FALSE) ->  | AG292: ---
AC293: =Translation!$A$13 -> Recommended retail price excl. VAT | AG293: =SUM(AG205:AI242) -> 1853
B301: Kategorie Manuelle Eingabe
M304: =$M$8 -> Position | O304: =$O$8 -> ID | R304: =$R$8 -> Quantity | T304: =$T$8 -> Name | AD304: =$AD$8 -> Price each | AG304: =$AG$8 -> Total price
M305: 1 | O305: 231582 | R305: 1 | T305: =IF(ISERROR(VLOOKUP(O305,Preisliste!$A:$C,2,FALSE)),"---",VLOOKUP(O305,Preisliste!$A:$C,2,FALSE)) -> Hand dryer highspeed Ultronic S | AD305: =IF(ISERROR(VLOOKUP(O305,Preisliste!$A:$C,3,FALSE)),"---",VLOOKUP(O305,Preisliste!$A:$C,3,FALSE)) -> 466 | AG305: =IF(ISERROR(R305*AD305),IF(ISNUMBER(R305),AD305,"---"),R305*AD305) -> 466
E306: Own list | M306: 2 | T306: =IF(ISERROR(VLOOKUP(O306,Preisliste!$A:$C,2,FALSE)),"---",VLOOKUP(O306,Preisliste!$A:$C,2,FALSE)) -> --- | AD306: =IF(ISERROR(VLOOKUP(O306,Preisliste!$A:$C,3,FALSE)),"---",VLOOKUP(O306,Preisliste!$A:$C,3,FALSE)) -> --- | AG306: ---
M307: 3 | T307: =IF(ISERROR(VLOOKUP(O307,Preisliste!$A:$C,2,FALSE)),"---",VLOOKUP(O307,Preisliste!$A:$C,2,FALSE)) -> --- | AD307: =IF(ISERROR(VLOOKUP(O307,Preisliste!$A:$C,3,FALSE)),"---",VLOOKUP(O307,Preisliste!$A:$C,3,FALSE)) -> --- | AG307: ---
M308: 4 | T308: =IF(ISERROR(VLOOKUP(O308,Preisliste!$A:$C,2,FALSE)),"---",VLOOKUP(O308,Preisliste!$A:$C,2,FALSE)) -> --- | AD308: =IF(ISERROR(VLOOKUP(O308,Preisliste!$A:$C,3,FALSE)),"---",VLOOKUP(O308,Preisliste!$A:$C,3,FALSE)) -> --- | AG308: ---
M309: 5 | T309: =IF(ISERROR(VLOOKUP(O309,Preisliste!$A:$C,2,FALSE)),"---",VLOOKUP(O309,Preisliste!$A:$C,2,FALSE)) -> --- | AD309: =IF(ISERROR(VLOOKUP(O309,Preisliste!$A:$C,3,FALSE)),"---",VLOOKUP(O309,Preisliste!$A:$C,3,FALSE)) -> --- | AG309: ---
M310: 6 | T310: =IF(ISERROR(VLOOKUP(O310,Preisliste!$A:$C,2,FALSE)),"---",VLOOKUP(O310,Preisliste!$A:$C,2,FALSE)) -> --- | AD310: =IF(ISERROR(VLOOKUP(O310,Preisliste!$A:$C,3,FALSE)),"---",VLOOKUP(O310,Preisliste!$A:$C,3,FALSE)) -> --- | AG310: ---
M311: 7 | T311: =IF(ISERROR(VLOOKUP(O311,Preisliste!$A:$C,2,FALSE)),"---",VLOOKUP(O311,Preisliste!$A:$C,2,FALSE)) -> --- | AD311: =IF(ISERROR(VLOOKUP(O311,Preisliste!$A:$C,3,FALSE)),"---",VLOOKUP(O311,Preisliste!$A:$C,3,FALSE)) -> --- | AG311: ---
M312: 8 | T312: =IF(ISERROR(VLOOKUP(O312,Preisliste!$A:$C,2,FALSE)),"---",VLOOKUP(O312,Preisliste!$A:$C,2,FALSE)) -> --- | AD312: =IF(ISERROR(VLOOKUP(O312,Preisliste!$A:$C,3,FALSE)),"---",VLOOKUP(O312,Preisliste!$A:$C,3,FALSE)) -> --- | AG312: ---
M313: 9 | T313: =IF(ISERROR(VLOOKUP(O313,Preisliste!$A:$C,2,FALSE)),"---",VLOOKUP(O313,Preisliste!$A:$C,2,FALSE)) -> --- | AD313: =IF(ISERROR(VLOOKUP(O313,Preisliste!$A:$C,3,FALSE)),"---",VLOOKUP(O313,Preisliste!$A:$C,3,FALSE)) -> --- | AG313: ---
M314: 10 | T314: =IF(ISERROR(VLOOKUP(O314,Preisliste!$A:$C,2,FALSE)),"---",VLOOKUP(O314,Preisliste!$A:$C,2,FALSE)) -> --- | AD314: =IF(ISERROR(VLOOKUP(O314,Preisliste!$A:$C,3,FALSE)),"---",VLOOKUP(O314,Preisliste!$A:$C,3,FALSE)) -> --- | AG314: ---
M315: 11 | T315: =IF(ISERROR(VLOOKUP(O315,Preisliste!$A:$C,2,FALSE)),"---",VLOOKUP(O315,Preisliste!$A:$C,2,FALSE)) -> --- | AD315: =IF(ISERROR(VLOOKUP(O315,Preisliste!$A:$C,3,FALSE)),"---",VLOOKUP(O315,Preisliste!$A:$C,3,FALSE)) -> --- | AG315: ---
M316: 12 | T316: =IF(ISERROR(VLOOKUP(O316,Preisliste!$A:$C,2,FALSE)),"---",VLOOKUP(O316,Preisliste!$A:$C,2,FALSE)) -> --- | AD316: =IF(ISERROR(VLOOKUP(O316,Preisliste!$A:$C,3,FALSE)),"---",VLOOKUP(O316,Preisliste!$A:$C,3,FALSE)) -> --- | AG316: ---
M317: 13 | T317: =IF(ISERROR(VLOOKUP(O317,Preisliste!$A:$C,2,FALSE)),"---",VLOOKUP(O317,Preisliste!$A:$C,2,FALSE)) -> --- | AD317: =IF(ISERROR(VLOOKUP(O317,Preisliste!$A:$C,3,FALSE)),"---",VLOOKUP(O317,Preisliste!$A:$C,3,FALSE)) -> --- | AG317: ---
M318: 14 | T318: =IF(ISERROR(VLOOKUP(O318,Preisliste!$A:$C,2,FALSE)),"---",VLOOKUP(O318,Preisliste!$A:$C,2,FALSE)) -> --- | AD318: =IF(ISERROR(VLOOKUP(O318,Preisliste!$A:$C,3,FALSE)),"---",VLOOKUP(O318,Preisliste!$A:$C,3,FALSE)) -> --- | AG318: ---
M319: 15 | T319: =IF(ISERROR(VLOOKUP(O319,Preisliste!$A:$C,2,FALSE)),"---",VLOOKUP(O319,Preisliste!$A:$C,2,FALSE)) -> --- | AD319: =IF(ISERROR(VLOOKUP(O319,Preisliste!$A:$C,3,FALSE)),"---",VLOOKUP(O319,Preisliste!$A:$C,3,FALSE)) -> --- | AG319: ---
M320: 16 | T320: =IF(ISERROR(VLOOKUP(O320,Preisliste!$A:$C,2,FALSE)),"---",VLOOKUP(O320,Preisliste!$A:$C,2,FALSE)) -> --- | AD320: =IF(ISERROR(VLOOKUP(O320,Preisliste!$A:$C,3,FALSE)),"---",VLOOKUP(O320,Preisliste!$A:$C,3,FALSE)) -> --- | AG320: ---
M321: 17 | T321: =IF(ISERROR(VLOOKUP(O321,Preisliste!$A:$C,2,FALSE)),"---",VLOOKUP(O321,Preisliste!$A:$C,2,FALSE)) -> --- | AD321: =IF(ISERROR(VLOOKUP(O321,Preisliste!$A:$C,3,FALSE)),"---",VLOOKUP(O321,Preisliste!$A:$C,3,FALSE)) -> --- | AG321: ---
M322: 18 | T322: =IF(ISERROR(VLOOKUP(O322,Preisliste!$A:$C,2,FALSE)),"---",VLOOKUP(O322,Preisliste!$A:$C,2,FALSE)) -> --- | AD322: =IF(ISERROR(VLOOKUP(O322,Preisliste!$A:$C,3,FALSE)),"---",VLOOKUP(O322,Preisliste!$A:$C,3,FALSE)) -> --- | AG322: ---
M323: 19 | T323: =IF(ISERROR(VLOOKUP(O323,Preisliste!$A:$C,2,FALSE)),"---",VLOOKUP(O323,Preisliste!$A:$C,2,FALSE)) -> --- | AD323: =IF(ISERROR(VLOOKUP(O323,Preisliste!$A:$C,3,FALSE)),"---",VLOOKUP(O323,Preisliste!$A:$C,3,FALSE)) -> --- | AG323: ---
... 269 more rows

Sheet Berechnung (hidden)
A1: Auswahl Kategorie | K1: Auswahl Slots | S1: Auswahl Textbausteine
A2: Kategorie | B2: Freigeschaltet ? | C2: Kategorie Gewählt ? | D2: Slot gewählt | E2: Anzeige Slot | F2: Auswahl Makro | G2: Schlüssel Matrix | H2: Zeile Matrix | I2: Preis | J2: Auswahl Makro | K2: Slot | L2: Slot gefüllt ? | M2: Anzeige Name | N2: Makro | O2: Slot gewählt ? | P2: Name Button Slot | Q2: Name Button Slot 2 | R2: Makro Reiter | S2: Werte
J3: Reiter ein-ausblenden | R3: ein-/ausblenden
A4: =Translation!$A$165 -> Heat pump | B4: TRUE | C4: =AuswahlExperte!BG8 -> TRUE | D4: =IF(C4=TRUE,1,0) -> 1 | E4: =A4 -> Heat pump | F4: btnWaermepumpe | G4: =Waermepumpe!B210 -> 30111321 | H4: =Waermepumpe!B211 -> 255 | I4: =IF(OR(B4=FALSE,C4=FALSE),0,Auswahl!$AG$47) -> 4786 | J4: Tabelle1.btnAuswahlWaermepumpe | K4: 1 | L4: TRUE | M4: =IF(L4=FALSE,"",VLOOKUP(K4,$D$4:$E$20,2,FALSE)) -> Heat pump | N4: =VLOOKUP(K4,$D$4:$F$20,3,FALSE) -> btnWaermepumpe | O4: TRUE | P4: btnSlot1Nein | Q4: btnSlot1Ja | R4: =VLOOKUP(K4,$D$4:$J$20,7,FALSE) -> Tabelle1.btnAuswahlWaermepumpe | S4: =Translation!A86 -> Show all
A5: =Translation!$A$239 -> Solar | B5: TRUE | C5: =AuswahlExperte!BG12 -> FALSE | D5: =IF(C5=TRUE,D4+1,0) -> 0 | E5: =A5 -> Solar | F5: btnSolar | G5: =Solar!B39 -> 2121111116 | H5: =Solar!B40 -> 1443 | I5: =IF(OR(B5=FALSE,C5=FALSE),0,Auswahl!$AG$143) -> 0 | J5: Tabelle1.btnAuswahlSolar | K5: 2 | L5: =IF(K5<=$D$21,TRUE,FALSE) -> FALSE | M5: =IF(L5=FALSE,"",VLOOKUP(K5,$D$4:$E$20,2,FALSE)) ->  | N5: =VLOOKUP(K5,$D$4:$F$20,3,FALSE) ->  | O5: FALSE | P5: btnSlot2Nein | Q5: btnSlot2Ja | S5: =Translation!$A$165 -> Heat pump
A6: =Translation!$A$268 -> Ventilation | B6: TRUE | C6: =AuswahlExperte!BG11 -> FALSE | D6: =IF(C6=TRUE,MAX($D$4:D5)+1,0) -> 0 | E6: =A6 -> Ventilation | F6: btnLueftung | G6: =Lueftung!B77 -> 351111 | H6: =Lueftung!B78 -> 51 | I6: =IF(OR(B6=FALSE,C6=FALSE),0,Auswahl!$AG$293) -> 0 | J6: Tabelle1.btnAuswahlLueftung | K6: 3 | L6: =IF(K6<=$D$21,TRUE,FALSE) -> FALSE | M6: =IF(L6=FALSE,"",VLOOKUP(K6,$D$4:$E$20,2,FALSE)) ->  | O6: FALSE | P6: btnSlot3Nein | Q6: btnSlot3Ja | R6: =VLOOKUP(K6,$D$4:$J$20,7,FALSE) ->  | S6: =Translation!$A$239 -> Solar
A7: =Translation!$A$310 -> Cooling | B7: TRUE | C7: =AuswahlExperte!BG14 -> FALSE | D7: =IF(C7=TRUE,MAX($D$4:D6)+1,0) -> 0 | E7: Cooling | F7: btnKlima | G7: =Klima!B61 -> 32313 | H7: =Klima!B62 -> 57 | I7: =IF(OR(B7=FALSE,C7=FALSE),0,Auswahl!$AG$943) -> 0 | J7: Tabelle1.btnAuswahlKlima | K7: 4 | L7: =IF(K7<=$D$21,TRUE,FALSE) -> FALSE | M7: =IF(L7=FALSE,"",VLOOKUP(K7,$D$4:$E$20,2,FALSE)) ->  | O7: FALSE | P7: btnSlot4Nein | Q7: btnSlot4Ja | S7: =Translation!$A$268 -> Ventilation
A8: =Translation!$A$345 -> Hot water | B8: TRUE | C8: =AuswahlExperte!BG13 -> FALSE | D8: =IF(C8=TRUE,MAX($D$4:D7)+1,0) -> 0 | E8: Hot water | F8: btnWarmwasser | G8: =Warmwasser!B167 -> 111111 | H8: =Warmwasser!B168 -> 3 | I8: =IF(OR(B8=FALSE,C8=FALSE),0,Auswahl!$AG$443) -> 0 | J8: Tabelle1.btnAuswahlWarmwasser | K8: 5 | L8: FALSE | O8: FALSE | P8: btnSlot5Nein | Q8: btnSlot5Ja | S8: =Translation!$A$310 -> Cooling
A9: =Translation!$A$487 -> Heat transfer station | B9: TRUE | C9: =AuswahlExperte!BG15 -> FALSE | D9: =IF(C9=TRUE,MAX($D$4:D8)+1,0) -> 0 | E9: Heat transfer station | F9: btnUebergabestation | G9: =Uebergabe!B88 -> 24122 | H9: =Uebergabe!B89 -> 216 | I9: =IF(OR(B9=FALSE,C9=FALSE),0,Auswahl!$AG$543) -> 0 | J9: Tabelle1.btnAuswahlUebergabestation | K9: 6 | L9: FALSE | O9: FALSE | P9: btnSlot6Nein | Q9: btnSlot6Ja | S9: =Translation!$A$345 -> Hot water
A10: =Translation!$A$589 -> Photovoltaik | B10: TRUE | C10: =AuswahlExperte!BG9 -> FALSE | D10: =IF(C10=TRUE,MAX($D$4:D9)+1,0) -> 0 | E10: Photovoltaik | F10: btnPhotovoltaik | G10: =Photovoltaik!F84 -> 1110002 | H10: =Photovoltaik!F85 -> 2596 | I10: =IF(OR(B10=FALSE,C10=FALSE),0,Auswahl!$AG$743) -> 0 | J10: Tabelle1.btnAuswahlPhotovoltaik | K10: 7 | L10: =IF(K10<=$D$21,TRUE,FALSE) -> FALSE | M10: =IF(L10=FALSE,"",VLOOKUP(K10,$D$4:$E$20,2,FALSE)) ->  | O10: FALSE | P10: btnSlot7Nein | Q10: btnSlot7Ja | S10: =Translation!$A$487 -> Heat transfer station
A11: =Translation!$A$538 -> Central heating | B11: TRUE | C11: =AuswahlExperte!BG16 -> FALSE | D11: =IF(C11=TRUE,MAX($D$4:D10)+1,0) -> 0 | E11: Central heating | F11: btnRaumheizung | G11: =Raumheizung!B61 -> 1111 | H11: =Raumheizung!B62 -> 4 | I11: =IF(OR(B11=FALSE,C11=FALSE),0,Auswahl!$AG$643) -> 0 | J11: Tabelle1.btnAuswahlRaumheizung | S11: =Translation!$A$589 -> Photovoltaik
A12: =Auswahl!E306 -> Own list | B12: TRUE | C12: =AuswahlExperte!BG17 -> FALSE | D12: =IF(C12=TRUE,MAX($D$4:D11)+1,0) -> 0 | E12: =IF(LEN(A12)>19,Translation!A659,A12) -> Own list | F12: btnManuelleEingabe | G12: =A12 -> Own list | H12: =B12 -> TRUE | I12: =IF(OR(B12=FALSE,C12=FALSE),0,Auswahl!$AG$343) -> 0 | J12: Tabelle1.btnAuswahlManuelleEingabe | S12: =Translation!$A$538 -> Central heating
A13: =Translation!A631 -> ISG | Serviceworld | B13: TRUE | C13: =AuswahlExperte!BG10 -> FALSE | D13: =IF(C13=TRUE,MAX($D$4:D12)+1,0) -> 0 | E13: ISG | Serviceworld | F13: btnISG | G13: =ISG!M77 -> 110111 | H13: =ISG!M78 -> 24 | I13: =IF(OR(B13=FALSE,C13=FALSE),0,Auswahl!$AG$843) -> 0 | J13: Tabelle1.btnAuswahlISG
D20: max. Anzahl Slots | L20: Name Slot gewählt | M20: Makro gewählt | N20: Makro gespeichert | O20: Slot gewählt neu
D21: =MAX(D4:D13) -> 1 | I21: =SUM(I4:I20) -> 4786 | J21: =Translation!A12&": "&FIXED(I21,0)&" €" -> Total price: 4.786 € | L21: =INDEX(M4:M19,MATCH(TRUE,O4:O19,0)) -> Heat pump | M21: =IF(ISERROR(INDEX(N4:N19,MATCH(TRUE,O4:O19,0))),#REF!,(INDEX(N4:N19,MATCH(TRUE,O4:O19,0)))) -> btnWaermepumpe | N21: btnWaermepumpe | O21: =IF(ISERROR(VLOOKUP(N21,N4:P11,3,FALSE)),P4,VLOOKUP(N21,N4:P11,3,FALSE)) -> btnSlot1Nein
A25: Fehlermeldung | C25: Text E-Mail
A26: Kat | B26: =INDEX(M4:M20,MATCH(TRUE,O4:O20,0)) -> Heat pump | C26: =A26&": "&B26 -> Kat: Heat pump
A27: SysIndex | B27: =VLOOKUP(B26,A4:I12,7,FALSE) -> 30111321 | C27: =A27&": "&B27 -> SysIndex: 30111321
A28: SysZeile | B28: =VLOOKUP(B26,A4:H20,8,FALSE) -> 255 | C28: =A28&": "&B28 -> SysZeile: 255
A29: Ver | B29: =AuswahlExperte!C39 -> v4.09 | C29: =B29 -> v4.09
A30: Gesamt | C30: =C26&" | "&C27&" | "&C28&" | "&C29 -> Kat: Heat pump | SysIndex: 30111321 | SysZeile: 255 | v4.09 | G30: Übersetzung Änderungen rückgängig | M30: Ausgabe Ansprechpartner | Q30: VKORG | T30: Ansprechpartner
N31: Ausgabe | O31: Valid ? | Q31: Stiebel Eltron | R31: 10 | T31: =Druckauswahl!$BO$513 ->  | U31: 350
A32: Vollbildmodus ? | B32: Mehrwertsteuer in % | G32: =Translation!A163 -> Maximum 8 systems can be saved. | M32: PLZ-gewählt | N32: 37603 | O32: =IF(ISERROR(VLOOKUP(N32*1,$A200:$E40802,2,FALSE)),FALSE,TRUE) -> TRUE | Q32: EHT | R32: 80 | T32: =IF(T39=TRUE,U31,IF(T31="","",VLOOKUP(T31,Berechnung!$Q:$R,2,FALSE))) -> 
A33: FALSE | B33: 19 | G33: =Translation!A162 -> Please rename the saved list of material. | M33: Stadt-gewählt | N33: =IF($O$32=FALSE,"","Ihre Ansprechpartner für "&N32&" "&VLOOKUP(N32*1,$A200:$E40802,2,FALSE)&":") -> Ihre Ansprechpartner für 37603 Holzminden: | Q33: tecalor | R33: 90
G34: =Translation!A141 -> All manual changes will be rejected and set to standard values. Continue ? | M34: VZ-Nummer | N34: =IF($O$32=FALSE,"",VLOOKUP(N32*1,$A:$E,4,FALSE)) -> 7 | T34: Teamkollege
A35: Diese Version | B35: Neue Version verfügbar ? | G35: =Translation!A160 -> Material list will be deleted. Continue ? | M35: VZ-Name | N35: =IF($O$32=FALSE,"",VLOOKUP($N$34,$T$204:$X$220,2,FALSE)) -> Vertriebszentrum Nord | T35: =Druckauswahl!$BO$514 -> 
A36: ="Materialliste-"&SUBSTITUTE(SUBSTITUTE(B29,".",""),"v","")&".txt" -> Materialliste-409.txt | B36: FALSE | G36: =Translation!A161 -> Saved material list will be overwritten. Continue ? | M36: VZ-Adresse | N36: =IF($O$32=FALSE,"",VLOOKUP($N$34,$T$204:$X$220,3,FALSE)) -> Georg-Heyken-Straße 4 a | 21147 Hamburg | T36: =IF(T35="","",VLOOKUP(T35,Berechnung!$Q:$R,2,FALSE)) -> 
G37: Übersetzungen Fenster Artikel hinzufügen | M37: VZ-Tel/Fax | N37: =IF($O$32=FALSE,"",VLOOKUP($N$34,$T$204:$X$220,4,FALSE)) -> Tel. 040 752018 10 | Fax 040 752018 88 | Q37: =Druckauswahl!$BO$511 -> Stiebel Eltron
A38: Typzuordnung in Preisliste | G38: =Translation!A143 -> Add item | M38: VZ-Mail | N38: =IF($O$32=FALSE,"",VLOOKUP($N$34,$T$204:$X$220,5,FALSE)) -> hamburg@stiebel-eltron.de | Q38: =VLOOKUP(Q37,Q31:R36,2,FALSE) -> 10 | T38: Objekt vorhanden ?
G39: =Translation!A144 -> Please enter product number and description. | M39: VBH-Nummer | N39: =IF($O$32=FALSE,"",VLOOKUP(N32*1,$A:$E,5,FALSE)) -> 48 | T39: =Druckauswahl!$BO$517 -> FALSE
A40: Nummer | B40: Kategrorie | G40: =Translation!A145 -> Search pricelist | M40: VBH-Name | N40: =IF($O$32=FALSE,"",VLOOKUP($N$39,$J$204:$N$427,2,FALSE)) -> Thomas Paul
A41: 1 | B41: Wärmepumpe Luft Wasser | G41: =Translation!A146 -> Entire pricelist | M41: VBH-Tel | N41: =IF($O$32=FALSE,"","Tel. "&VLOOKUP($N$39,$J$204:$N$427,4,FALSE)) -> Tel. 0171 3055760 | T41: Nur Objekt erstellen ?
A42: 2 | B42: Lüftungsgerät | G42: =Translation!A165 -> Heat pump | M42: HBH-Mail | N42: =IF($O$32=FALSE,"",VLOOKUP($N$39,$J$204:$N$427,5,FALSE)) -> thomas.paul@stiebel-eltron.de | Q42: Vertriebsweg | T42: =IF(AND(Druckauswahl!BO520=FALSE,Druckauswahl!BO521=FALSE),TRUE,FALSE) -> FALSE
A43: 3 | B43: Solarkollektor | G43: =Translation!A238 -> Solar | M43: VBH-Überschrift | N43: =IF($O$32=FALSE,"","Vertriebsbeauftragter für Haustechnik") -> Vertriebsbeauftragter für Haustechnik | Q43: Stiebel Eltron | R43: 10
A44: 4 | B44: Warmwasserspeicher | G44: =Translation!A268 -> Ventilation | M44: VBE-Nummer | N44: =IF($O$32=FALSE,"",VLOOKUP(N32*1,$A:$F,6,FALSE)) -> 76 | Q44: AEG | R44: 80 | T44: Gaeb-Datei erzeugen ?
A45: 5 | B45: Pufferspeicher | G45: =Translation!A310 -> Cooling | M45: VBE-Name | N45: =IF($O$32=FALSE,"",VLOOKUP($N$44,$J$204:$N$427,2,FALSE)) -> Dimitrie Lubenko | Q45: Zanker | R45: 81 | T45: =Druckauswahl!BO522 -> FALSE
A46: 6 | B46: Dämmung Speicher | G46: =Translation!A345 -> Hot water | M46: VBE-Tel | N46: =IF($O$32=FALSE,"","Tel. "&VLOOKUP($N$44,$J$204:$N$427,4,FALSE)) -> Tel. 0175 5740342 | Q46: tecalor | R46: 90
A47: 7 | B47: Zubehör WPF | G47: =Translation!A487 -> Heat transfer station | M47: VBE-Mail | N47: =IF($O$32=FALSE,"",VLOOKUP($N$44,$J$204:$N$427,5,FALSE)) -> dimitrie.lubenko@stiebel-eltron.de | T47: PDF mitsenden ?
A48: 8 | B48: Regelungstechnik WP | G48: =Translation!A538 -> Central heating | M48: VB-H Überschrift | N48: =IF($O$32=FALSE,"","Vertriebsbeauftragter für Systemtechnik") -> Vertriebsbeauftragter für Systemtechnik | T48: =Druckauswahl!BO523 -> TRUE
A49: 9 | B49: Pumpen/WPKI/HUV | G49: =Translation!A663 -> Design | Customer service | Q49: =Druckauswahl!$BO$512 -> Stiebel Eltron
A50: 10 | B50: Zusatzheizung | G50: =Translation!A147 -> Manually added | Q50: =VLOOKUP(Q49,Q43:R48,2,FALSE) -> 10 | T50: Proxy-Server ?
A51: 11 | B51: Druckschläuche | G51: =Translation!A126 -> Please enter the E-Mail address of the recipient
A52: 12 | B52: Konvektoren | G52: =Translation!A127 -> Send project
A53: 13 | B53: Inbetriebnahme | G53: =Translation!A128 -> Example@stiebel-eltron.com
A54: 14 | B54: Planungsleistung | G54: =Translation!A129 -> Short offer
A55: 15 | B55: Zubehör Wärmequelle Luft | G55: =Translation!A104 -> Import previously memorized notifications? Attention, this will overwrite any in the tool curently stored text.
A56: 16 | B56: Filter Lüftung | G56: =Translation!A91 -> Previous stored alternatives or entries in the category "Manuel input" will be overwritten again.Continue ?
A57: 17 | B57: Materialsets Lüftung | G57: =Translation!A34 -> Search customer
A58: 18 | B58: Zubehör Lüftungsgeräte | G58: =Translation!A105 -> With price
A59: 19 | B59: Zu- und Abluftventile | G59: =Translation!A106 -> Optional
A60: 20 | B60: Zubehör Außen- Fortluft | G60: =Translation!A108 -> Alternative
A61: 21 | B61: Material Wickelfalzrohr | G61: =Translation!A109 -> Set-price
A62: 22 | B62: Material LVE | G62: =Translation!A112 -> Example - Project
A63: 23 | B63: Material LVS | G63: =Translation!A113 -> Enter name editor
A64: 24 | B64: Material LFK | G64: =Translation!A142 -> Please note, changes to the system selection means that the list of material automatically reassembled and therefore all previously made ​​changes to the list are discarded. Back to system selection?
A65: 25 | B65: Zubehör Solar | G65: =Translation!A53 -> Yes
A66: 26 | B66: SOM / SOKI | G66: =Translation!A54 -> No
A67: 27 | B67: Klima-Außengeräte | G67: =Translation!A851 -> Please fill in all mandatory fields the necessary data.
A68: 28 | B68: Zubehör Klimageräte | G68: =Translation!A96 -> Change category name
A69: 29 | B69: Klima-Innengeräte | G69: =Translation!A97 -> Please enter desired name for category
A70: 30 | B70: Einzelraum-Klimageräte | G70: =Translation!A856 -> Please choose
A71: 31 | B71: Übergabestation | G71: =Translation!A852 -> Please input name of editor
A72: 32 | B72: Durchlauferhitzer | G72: =Translation!A863 -> Das gespeicherte Projekt wurde mit einer älteren Programmversion erstellt. Daher sind einzelne Artikel eventuell nicht mehr verfügbar und auch die Preise sind nicht mehr aktuell. Das Projekt kann mit dieser Programmversion 2015 nicht geöffnet werden.
A73: 33 | B73: Zubehör Durchlauferhitzer
A74: 34 | B74: Klein-Durchlauferhitzer
A75: 35 | B75: Kochendwasergeräte
A76: 36 | B76: Warmwasserspeicher
A77: 37 | B77: Zubehör WW-Speicher
A78: 38 | B78: Kleinspeicher
A79: 39 | B79: Wärmespeicher
A80: 40 | B80: Zubehör Wärmespeicher
A81: 41 | B81: Natursteinheizung
A82: 42 | B82: Fußbodenheizung
A83: 43 | B83: Bad-Heizkörper/Konvektoren/Schnellheizer
A84: 44 | B84: Sondenbohrung/Zubehör Wärmequelle
A85: 45 | B85: Wärmetauscher STE/Alfa Laval
A86: 46 | B86: Wärmepumpe Sole-Wasser
A87: 47 | B87: Wärmepumpe Wasser-Wasser
A88: 48 | B88: WWB andere Lösungen
A89: 49 | B89: Puffer andere Lösungen
A90: 50 | B90: Armaturen
A91: 51 | B91: Händetrockner
A92: 52 | B92: Zubehör WPL
A93: 53 | B93: Artikel manuell
A94: 54 | B94: PV-Modul
A95: 55 | B95: PV-Wechselrichter
A96: 56 | B96: PV-Elektrozubehör
A97: 57 | B97: PV-Dachbefestigung
A98: 58 | B98: Wärmepumpen-Schaltschränke
A99: 59 | B99: Service- und Wartungsverträge
A100: 60 | B100: Zubehör SBP-Gas
A108: Kopiervorlage Preise Ausdruck Gesamtliste (Zeile 110-122) (so belassen, ganze Zeile und Formatierung wird in Ausdrucksblatt kopiert)
A110: TRUE
A111: TRUE | G111: =Translation!A13 -> Recommended retail price excl. VAT | H111: =FIXED(Gesamtliste!AH14,2)&" €" -> 14.490,00 €
A112: TRUE
A113: =IF(Gesamtliste!$AH$47=TRUE,Gesamtliste!$U$10,FALSE) -> FALSE | G113: =Translation!$A$15&" "&Gesamtliste!B8 -> Summary | H113: =FIXED(Gesamtliste!$H$96,2)&" €" -> 14.490,00 €
A114: =IF(Gesamtliste!$AH$47=TRUE,Gesamtliste!$U$100,FALSE) -> FALSE | G114: =Translation!$A$15&" "&Gesamtliste!B98 -> Summary Solar | H114: =FIXED(Gesamtliste!$H$196,2)&" €" -> 0,00 €
A115: =IF(Gesamtliste!$AH$47=TRUE,Gesamtliste!$U$200,FALSE) -> FALSE | G115: =Translation!$A$15&" "&Gesamtliste!B198 -> Summary Ventilation | H115: =FIXED(Gesamtliste!$H$296,2)&" €" -> 0,00 €
A116: =IF(Gesamtliste!$AH$47=TRUE,Gesamtliste!$U$300,FALSE) -> FALSE | G116: =Translation!$A$15&" "&Gesamtliste!B298 -> Summary Cooling | H116: =FIXED(Gesamtliste!$H$396,2)&" €" -> 0,00 €
A117: =IF(Gesamtliste!$AH$47=TRUE,Gesamtliste!$U$400,FALSE) -> FALSE | G117: =Translation!$A$15&" "&Gesamtliste!B398 -> Summary Hot water | H117: =FIXED(Gesamtliste!$H$496,2)&" €" -> 0,00 €
A118: =IF(Gesamtliste!$AH$47=TRUE,Gesamtliste!$U$500,FALSE) -> FALSE | G118: =Translation!$A$15&" "&Gesamtliste!B498 -> Summary Heat transfer station | H118: =FIXED(Gesamtliste!$H$596,2)&" €" -> 0,00 €
A119: =IF(Gesamtliste!$AH$47=TRUE,Gesamtliste!$U$600,FALSE) -> FALSE | G119: =Translation!$A$15&" "&Gesamtliste!B598 -> Summary Central heating | H119: =FIXED(Gesamtliste!$H$696,2)&" €" -> 0,00 €
A120: =IF(Gesamtliste!$AH$47=TRUE,Gesamtliste!$U$700,FALSE) -> FALSE | G120: =Translation!$A$15&" "&Gesamtliste!B698 -> Summary Photovoltaik | H120: =FIXED(Gesamtliste!$H$796,2)&" €" -> 0,00 €
A121: =IF(Gesamtliste!$AH$47=TRUE,Gesamtliste!$U$800,FALSE) -> FALSE | G121: =Translation!$A$15&" "&Gesamtliste!B798 -> Summary Own list | H121: =FIXED(Gesamtliste!$H$896,2)&" €" -> 0,00 €
A122: =IF(Gesamtliste!$AH$47=TRUE,Gesamtliste!$U$900,FALSE) -> FALSE | G122: =Translation!$A$15&" "&Gesamtliste!B898 -> Summary ISG | Serviceworld | H122: =FIXED(Gesamtliste!$H$996,2)&" €" -> 0,00 €
A123: true
A149: Comboboxwerte (nicht verrücken, Zugriff per VBA, bei neuen Comboboxen Name in Zeile 150 in nächste freie Spalte schreiben)
A150: cboWärmepumpeGerätetyp | B150: cboWärmepumpePuffer | C150: cboWärmepumpeWarmwasser | D150: cboWärmepumpeAufstellung | E150: cboLüftungGerät | F150: cboLüftungVerteilsystem | G150: cboLüftungFortluft | H150: cboKlimaLeistung | I150: cboWarmwasserKategorie | J150: cboWarmwasserFunktionen | K150: cboWarmwasserTyp | L150: cboWarmwasserZubehör1 | M150: cboWarmwasserZubehör2 | N150: cboWarmwasserZubehör3 | O150: cboRaumheizungLeistung | P150: cboPhotovoltaikAnzahlReihen
A151: WPL 25 AS | B151: Buffer cylinder SBP | C151: DHW cylinder SBB | D151: External installation | E151: LWZ 70 E | F151: LVE | G151: External wall | H151: Bis ca. 30 m² | I151: Instantaneous water heater | J151: Fully electronically DHE | K151: 18/21/24 KW | L151: None | M151: None | N151: None | O151: 1 apartment | P151: 1 row
A152: 8 | B152: 5 | C152: 3 | D152: 1 | E152: 7 | F152: 2 | G152: 2 | H152: 3 | I152: 5 | J152: 5 | K152: 3 | L152: 3 | M152: 6 | N152: 2 | O152: 5 | P152: 6 | AY152: 28
A153: WPL 25 AS | B153: Buffer cylinder SBP | C153: DHW cylinder SBB | D153: External installation | E153: LWZ 70 E | F153: LVE | G153: External wall | H153: Bis ca. 30 m² | I153: Instantaneous water heater | J153: Fully electronically DHE | K153: 18/21/24 KW | L153: None | M153: None | N153: None | O153: 1 apartment | P153: 1 row | AY153: WPL 15 ACS
A154: WPL 10 ACS | B154: Low loss header | C154: Hydraulics module HSBB | E154: LWZ 170 E Plus | F154: LVS | G154: Roof outlet | H154: Bis ca. 40 m² | I154: Wall mounted cylinder | J154: Electronically DEL | K154: 27 KW | L154: With radio and WLAN | M154: Mounting frame | N154: Wireless remote control | O154: 2 apartments | P154: 2 rows | AY154: WPL 25 AC
A155: WPL 13 basic | B155: Water cylinder SBS | C155: DHW-heatpump | E155: LWZ 170 | H155: Bis ca. 60 m² | I155: Under worktop cylinder | J155: Electronically DHB-E | K155: 18 KW - 25A | L155: With touch panel | M155: Offset installation set | O155: 3 apartments | P155: 3 rows | AY155: WPL 15 IS
A156: WPL 20 basic | B156: Wall mounted cylinder | E156: LWZ 100 Plus RE | I156: Freestanding cylinder | J156: Electronically DHB ST | M156: Gas replacement set | O156: 4 apartments | P156: 4 rows | AY156: WPL 25 I
A157: WPL 13 basic S | B157: Without buffer | E157: LWZ 100 Plus LI | I157: Heat pump | J157: Electronically HDB-E | M157: Surface mounting set | O157: 5 apartments | P157: 5 rows | AY157: WPL 15 IKS
A158: WPL 18 basic S | E158: LWZ 100 RE | M158: Undersink assembly | P158: 6 rows | AY158: WPL 25 IK
A159: WPL 33 HT S | E159: LWZ 100 LI | AY159: WPL 08 S Trend
A160: WPL 33 | AY160: WPL 12 S Trend
AY161: WPL 16 S Trend
AY162: WPL 22 Trend
AY163: WPL 28 Trend
AY164: WPL 10 AC
AY165: WPL 10 I/IK
AY166: WPL 5 N plus
AY167: WPL 13 E
AY168: WPL 18 E
AY169: WPL 23 E
AY170: WPL 33 HT
AY171: WPL 34
AY172: WPL 47
AY173: WPL 57
AY174: 2 x WPL 23 E
AY175: 3 x WPL 23 E
AY176: 2 x WPL 57
AY177: 3 x WPL 57
AY178: 4 x WPL 57
AY179: 5 x WPL 57
AY180: 6 x WPL 57
A200: Daten nach Postleitzahl
A202: PLZ | B202: Stadt | C202: Außentemp. | D202: VZ-Nummer | E202: UBZ-VB-H | F202: UBZ-VB-E | J202: Ansprechpartner Kontaktformular | Q202: Ansprechpartner SAP
A203: 78267 | B203: Aach | C203: -14 | D203: 23 | E203: 406 | F203: 452 | J203: UBZ | K203: Ansprechpartner | L203: Telefon | M203: Mobil | N203: E-Mail | Q203: Name | R203: UBZ | T203: Nr. | U203: Name | V203: Adresse | W203: Tel/Fax | X203: E-Mail
A204: 54298 | B204: Aach | C204: -14 | D204: 6 | E204: 134 | F204: 188 | J204: 1 | K204: Gerhard Langner | L204: 0521 751399 | M204: 0171 3045866 | N204: gerhard.langner@stiebel-eltron.de | T204: 12 | U204: Vertriebszentrum Ost | V204: Magdeborner Str. 3 | 04416 Markkleeberg (Leipzig) | W204: Tel. 034297 985 10 | Fax 034297 985 188 | X204: leipzig@stiebel-eltron.de
A205: 52078 | B205: Aachen | C205: -12 | D205: 10 | E205: 379 | F205: 337 | J205: 2 | K205: Björn Busse | L205: 05271 6946883 | M205: 0170 5720881 | N205: bjoern.busse@stiebel-eltron.de | Q205: Albertz | R205: 352 | T205: 44 | U205: Vertriebszentrum Süd | Bayern | V205: Hainbuchenring 4 | 82061 Neuried | W205: Tel. 089 899156 10 | Fax 089 899156 88 | X205: muenchen@stiebel-eltron.de
A206: 52100 | B206: Aachen | C206: -12 | D206: 10 | E206: 379 | F206: 337 | J206: 6 | K206: Marc van Bebber | L206: 0208 88215148 | N206: marc.vanbebber@stiebel-eltron.de | Q206: Armenti | R206: 498 | T206: 7 | U206: Vertriebszentrum Nord | V206: Georg-Heyken-Straße 4 a | 21147 Hamburg | W206: Tel. 040 752018 10 | Fax 040 752018 88 | X206: hamburg@stiebel-eltron.de
A207: 52099 | B207: Aachen | C207: -12 | D207: 10 | E207: 379 | F207: 337 | J207: 7 | K207: Dominic Kröger | L207: 0251 87188830 | M207: 0175 5740343 | N207: dominic.kroeger@stiebel-eltron.de | Q207: Aschenbrenner | R207: 214 | T207: 3 | U207: Vertriebszentrum West | V207: Max-Planck-Ring 33 | 46049 Oberhausen | W207: Tel. 0208 88215 10 | Fax 0208 88215 188 | X207: oberhausen@stiebel-eltron.de
A208: 52095 | B208: Aachen | C208: -12 | D208: 10 | E208: 379 | F208: 337 | J208: 8 | K208: Marco Schmülling | L208: 02361 9058328 | M208: 0170 2452043 | N208: marco.schmuelling@stiebel-eltron.de | Q208: Bartels | R208: 40 | T208: 6 | U208: Vertriebszentrum Mitte | V208: Rudolf-Diesel-Straße 18 | 65760 Eschborn | W208: Tel. 06173 602 10 | Fax 06173 602 38 | X208: frankfurt@stiebel-eltron.de
A209: 52094 | B209: Aachen | C209: -12 | D209: 10 | E209: 379 | F209: 337 | J209: 21 | K209: Thomas Peithmann | L209: 040 60903879 | M209: 0160 7182793 | N209: thomas.peithmann@stiebel-eltron.de | Q209: Begerow | R209: 78 | T209: 10 | U209: Vertriebszentrum West | V209: Max-Planck-Ring 33 | 46049 Oberhausen | W209: Tel. 0208 88215 10 | Fax 0208 88215 188 | X209: oberhausen@stiebel-eltron.de
A210: 52093 | B210: Aachen | C210: -12 | D210: 10 | E210: 379 | F210: 337 | J210: 23 | K210: Thomas Schmidt | M210: 0160-97032280 | N210: thomas.schmidt@stiebel-eltron.de | Q210: Bertram | R210: 332 | T210: 23 | U210: Vertriebszentrum Süd | Baden-Württemberg | V210: Motorstraße 39 | 70499 Stuttgart | W210: Tel. 0711 98867 10 | Fax 0711 98867 88 | X210: stuttgart@stiebel-eltron.de
A211: 52092 | B211: Aachen | C211: -12 | D211: 10 | E211: 379 | F211: 337 | J211: 24 | K211: Stefan König | M211: 0170-7940248 | N211: stefan.koenig@stiebel-eltron.de | Q211: Bettinger | R211: 187
A212: 52089 | B212: Aachen | C212: -12 | D212: 10 | E212: 379 | F212: 337 | J212: 25 | K212: Martin Liese-Flügel | M212: 0170 6385911 | N212: martin.liese-fluegel@stiebel-eltron.de | Q212: Binder | R212: 423
A213: 52088 | B213: Aachen | C213: -12 | D213: 10 | E213: 379 | F213: 337 | J213: 31 | K213: Andreas Michel | L213: 0345 1201004 | M213: 0171 8641841 | N213: andreas.michel@stiebel-eltron.de | Q213: Birke | R213: 57
A214: 52087 | B214: Aachen | C214: -12 | D214: 10 | E214: 379 | F214: 337 | J214: 32 | K214: Ralf Luft | L214: 0341 4417597 | M214: 0171 8669836 | N214: ralf.luft@stiebel-eltron.de | Q214: Bonn | R214: 330
A215: 52086 | B215: Aachen | C215: -12 | D215: 10 | E215: 379 | F215: 337 | J215: 38 | K215: Klaus Wünschmann | L215: 0341 4800047 | M215: 0171 2275839 | N215: klaus.wuenschmann@stiebel-eltron.de | Q215: Boschert | R215: 407
A216: 52085 | B216: Aachen | C216: -12 | D216: 10 | E216: 379 | F216: 337 | J216: 39 | K216: Monika Edler | L216: 034297 985132 | N216: monika.edler@stiebel-eltron.de | Q216: Böttche | R216: 117
A217: 52080 | B217: Aachen | C217: -12 | D217: 10 | E217: 379 | F217: 337 | J217: 40 | K217: Andrea Bartels | L217: 05531 70295143 | N217: andrea.bartels@stiebel-eltron.de | Q217: Breuer | R217: 379
A218: 52076 | B218: Aachen | C218: -12 | D218: 10 | E218: 379 | F218: 337 | J218: 41 | K218: Sabine Fleischer | L218: 034297 985133 | N218: sabine.fleischer@stiebel-eltron.de | Q218: Bruns | R218: 58
A219: 52074 | B219: Aachen | C219: -12 | D219: 10 | E219: 379 | F219: 337 | J219: 43 | K219: Toralf Erb | L219: 0381 2018538 | M219: 0171 3606903 | N219: toralf.erb@stiebel-eltron.de | Q219: Busse | R219: 2
A220: 52072 | B220: Aachen | C220: -12 | D220: 10 | E220: 379 | F220: 337 | J220: 46 | K220: Andre Hofmeister | M220: 0171 2275848 | N220: andre.hofmeister@stiebel-eltron.de | Q220: Butzek | R220: 130
A221: 52070 | B221: Aachen | C221: -12 | D221: 10 | E221: 379 | F221: 337 | J221: 47 | K221: Martin Hankel | M221: 0170 2249522 | N221: martin.hankel@stiebel-eltron.de | Q221: Cüppers | R221: 351
A222: 52068 | B222: Aachen | C222: -12 | D222: 10 | E222: 379 | F222: 337 | J222: 48 | K222: Thomas Paul | L222: 05126 8048627 | M222: 0171 3055760 | N222: thomas.paul@stiebel-eltron.de | Q222: Dachtler | R222: 420
A223: 52066 | B223: Aachen | C223: -12 | D223: 10 | E223: 379 | F223: 337 | J223: 50 | K223: Volker Witt | L223: 04335 921073 | M223: 0170 5622888 | N223: volker.witt@stiebel-eltron.de | Q223: Eberle | R223: 484
A224: 52064 | B224: Aachen | C224: -12 | D224: 10 | E224: 379 | F224: 337 | J224: 51 | K224: Andreas Möller | M224: 0151 14729874 | N224: andreas.moeller@stiebel-eltron.de | Q224: Eder | R224: 492
A225: 52062 | B225: Aachen | C225: -12 | D225: 10 | E225: 379 | F225: 337 | J225: 53 | K225: Alexander Fanenstiel | M225: 0151 61326719 | N225: alexander.fanenstiel@stiebel-eltorn.de | Q225: Edler | R225: 39
A226: 52060 | B226: Aachen | C226: -12 | D226: 10 | E226: 379 | F226: 337 | J226: 54 | K226: Herr Matzen | L226: 040 75201830 | N226: dirk.matzen@stiebel-eltron.de | Q226: Engelmann | R226: 132
A227: 52059 | B227: Aachen | C227: -12 | D227: 10 | E227: 379 | F227: 337 | J227: 56 | K227: Torsten Marquardt | L227: 040 75201861 | N227: torsten.marquardt@stiebel-eltron.de | Q227: Erb | R227: 43
A228: 52058 | B228: Aachen | C228: -12 | D228: 10 | E228: 379 | F228: 337 | J228: 57 | K228: Kira Birke | L228: 05531 70295123 | N228: kira.birke@stiebel-eltron.de | Q228: Erlenbach | R228: 135
A229: 52057 | B229: Aachen | C229: -12 | D229: 10 | E229: 379 | F229: 337 | J229: 58 | K229: Carmen Bruns | L229: 05531 70295142 | N229: carmen.bruns@stiebel-eltron.de | Q229: Faika | R229: 66
A230: 52056 | B230: Aachen | C230: -12 | D230: 10 | E230: 379 | F230: 337 | J230: 59 | K230: Eike Schmereim | L230: 05531 70295147 | N230: eike.schmereim@stiebel-eltron.de | Q230: Fanenstiel | R230: 53
A231: 52055 | B231: Aachen | C231: -12 | D231: 10 | E231: 379 | F231: 337 | J231: 61 | K231: Enrico Mütze | L231: 035723 20112 | M231: 0171 2290929 | N231: enrico.muetze@stiebel-eltron.de | Q231: Faßbender | R231: 377
A232: 52054 | B232: Aachen | C232: -12 | D232: 10 | E232: 379 | F232: 337 | J232: 64 | K232: Julius Iltner | L232: 05531 70295161 | N232: julius.iltner@stiebel-eltron.de | Q232: Felkel | R232: 219
A233: 52053 | B233: Aachen | C233: -12 | D233: 10 | E233: 379 | F233: 337 | J233: 65 | K233: Annette Scharping | L233: 05531 70295155 | N233: annette.scharping@stiebel-eltron.de | Q233: Fleischer | R233: 41
A234: 52052 | B234: Aachen | C234: -12 | D234: 10 | E234: 379 | F234: 337 | J234: 66 | K234: Patrick Faika | L234: 030 83225194 | M234: 0171 2275855 | N234: patrick.faika@stiebel-eltron.de | Q234: Flink | R234: 999
A235: 52051 | B235: Aachen | C235: -12 | D235: 10 | E235: 379 | F235: 337 | J235: 67 | K235: Matthias Fritsche | L235: 0351 2705481 | M235: 0171 2290974 | N235: matthias.fritsche@stiebel-eltron.de | Q235: Franz | R235: 338
A236: 52050 | B236: Aachen | C236: -12 | D236: 10 | E236: 379 | F236: 337 | J236: 68 | K236: Gunnar Wilcke | M236: 0171 3037682 | N236: gunnar.wilcke@stiebel-eltron.de | Q236: Friedemann | R236: 424
A237: 52049 | B237: Aachen | C237: -12 | D237: 10 | E237: 379 | F237: 337 | J237: 74 | K237: Jörg Hensche | L237: 03933 805970 | M237: 0171 2295191 | N237: joerg.hensche@stiebel-eltron.de | Q237: Fritsche | R237: 67
A238: 52048 | B238: Aachen | C238: -12 | D238: 10 | E238: 379 | F238: 337 | J238: 75 | K238: Udo Steinberg | L238: 05033 980719 | M238: 0171 2275859 | N238: udo.steinberg@stiebel-eltron.de | Q238: Gerike | R238: 112
A239: 52047 | B239: Aachen | C239: -12 | D239: 10 | E239: 379 | F239: 337 | J239: 76 | K239: Dimitrie Lubenko | L239: 05154 7063835 | M239: 0175 5740342 | N239: dimitrie.lubenko@stiebel-eltron.de | Q239: Gervers | R239: 327
A240: 52046 | B240: Aachen | C240: -12 | D240: 10 | E240: 379 | F240: 337 | J240: 77 | K240: Gerd Hoffmann | L240: 039200 52089 | M240: 0160 7182786 | N240: gerd.hoffmann@stiebel-eltron.de | Q240: Gietmann | R240: 374
A241: 52045 | B241: Aachen | C241: -12 | D241: 10 | E241: 379 | F241: 337 | J241: 78 | K241: Thomas Begerow | L241: 05171 12024 | M241: 0170 7940245 | N241: thomas.begerow@stiebel-eltron.de | Q241: Goebel | R241: 995
A242: 52039 | B242: Aachen | C242: -12 | D242: 10 | E242: 379 | F242: 337 | J242: 82 | K242: Thomas Körner | L242: 040 75201834 | N242: thomas2.koerner@stiebel-eltron.de | Q242: Gräfe | R242: 160
A243: 52037 | B243: Aachen | C243: -12 | D243: 10 | E243: 379 | F243: 337 | J243: 111 | K243: Sascha Griepentrog | L243: 030 41721667 | M243: 0171 5668203 | N243: sascha.griepentrog@stiebel-eltron.de | Q243: Griepentrog | R243: 111
A244: 52036 | B244: Aachen | C244: -12 | D244: 10 | E244: 379 | F244: 337 | J244: 112 | K244: Bernd Gerike | L244: 03391 402970 | M244: 0171 3024991 | N244: bernd.gerike@stiebel-eltron.de | Q244: Hankel | R244: 47
A245: 52035 | B245: Aachen | C245: -12 | D245: 10 | E245: 379 | F245: 337 | J245: 117 | K245: Roland Böttche | L245: 033846 41229 | M245: 0171 2243477 | N245: roland.boettche@stiebel-eltron.de | Q245: Harms | R245: 7511
A246: 52034 | B246: Aachen | C246: -12 | D246: 10 | E246: 379 | F246: 337 | J246: 130 | K246: Sebastian Butzek | M246: 0171 2995385 | N246: sebastian.butzek@stiebel-eltron.de | Q246: Hau | R246: 137
A247: 52032 | B247: Aachen | C247: -12 | D247: 10 | E247: 379 | F247: 337 | J247: 132 | K247: Robin Engelmann | M247: 0151 20311233 | N247: robin.engelmann@stiebel-eltron.de | Q247: Heindl | R247: 146
A248: 52026 | B248: Aachen | C248: -12 | D248: 10 | E248: 379 | F248: 337 | J248: 133 | K248: Oliver Rink | L248: 06224 145520 | M248: 0171 4920115 | N248: oliver.rink@stiebel-eltron.de | Q248: Hensche | R248: 74
A249: 52025 | B249: Aachen | C249: -12 | D249: 10 | E249: 379 | F249: 337 | J249: 134 | K249: Hans Jakob | L249: 06375 993885 | M249: 0151 15120929 | N249: hans.jakob@stiebel-eltron.de | Q249: Herklotz | R249: 334
A250: 52024 | B250: Aachen | C250: -12 | D250: 10 | E250: 379 | F250: 337 | J250: 135 | K250: Ina Erlenbach | L250: 05531 70295144 | N250: ina.erlenbach@stiebel-eltron.de | Q250: Hinneburg | R250: 306
A251: 52023 | B251: Aachen | C251: -12 | D251: 10 | E251: 379 | F251: 337 | J251: 136 | K251: Herbert Sohns | L251: 0611 7239407 | M251: 0170 2249514 | N251: herbert.sohns@stiebel-eltron.de | Q251: Hoffman | R251: 77
A252: 52022 | B252: Aachen | C252: -12 | D252: 10 | E252: 379 | F252: 337 | J252: 137 | K252: Jürgen Hau | L252: 06044 9875947 | M252: 0151-20311218 | N252: juergen.hau@stiebel-eltron.de | Q252: Hofmeister | R252: 46
A253: 52021 | B253: Aachen | C253: -12 | D253: 10 | E253: 379 | F253: 337 | J253: 141 | K253: Sarah Koch | L253: 05531 70295118 | N253: sarah.koch@stiebel-eltron.de | Q253: Iltner | R253: 64
A254: 52020 | B254: Aachen | C254: -12 | D254: 10 | E254: 379 | F254: 337 | J254: 142 | K254: Stefan Schmidt | L254: 05531 70295159 | N254: stefan.schmidt@stiebel-eltron.de | Q254: Jakob | R254: 134
A255: 52019 | B255: Aachen | C255: -12 | D255: 10 | E255: 379 | F255: 337 | J255: 144 | K255: Thomas Schichtel | L255: 06173 60232 | N255: thomas.schichtel@stiebel-eltron.de | Q255: Janßen | R255: 375
A256: 52018 | B256: Aachen | C256: -12 | D256: 10 | E256: 379 | F256: 337 | J256: 146 | K256: Jürgen Heindl | L256: 06173 60233 | N256: juergen.heindl@stiebel-eltron.de | Q256: Kirchner | R256: 403
A257: 52017 | B257: Aachen | C257: -12 | D257: 10 | E257: 379 | F257: 337 | J257: 160 | K257: Holger Gräfe | L257: 03642 720818 | M257: 0171 5583450 | N257: holger.graefe@stiebel-eltron.de | Q257: Knapp | R257: 480
A258: 52016 | B258: Aachen | C258: -12 | D258: 10 | E258: 379 | F258: 337 | J258: 167 | K258: Bernd Schäfer | L258: 06623 7979 | M258: 0170 5779298 | N258: bernd.schaefer@stiebel-eltron.de | Q258: Koch | R258: 141
A259: 52015 | B259: Aachen | C259: -12 | D259: 10 | E259: 379 | F259: 337 | J259: 168 | K259: Axel Pres | L259: 05621 72079 | M259: 0160 7182790 | N259: axel.pres@stiebel-eltron.de | Q259: Könen | R259: 400
A260: 52014 | B260: Aachen | C260: -12 | D260: 10 | E260: 379 | F260: 337 | J260: 187 | K260: Jörg Bettinger | L260: 06861 790132 | M260: 0170 8359481 | N260: joerg.bettinger@stiebel-eltron.de | Q260: König | R260: 24
A261: 52013 | B261: Aachen | C261: -12 | D261: 10 | E261: 379 | F261: 337 | J261: 188 | K261: Winfried Müller | L261: 06588 3346 | M261: 0171 3052675 | N261: winfried.mueller@stiebel-eltron.de | Q261: Körner | R261: 82
A262: 52012 | B262: Aachen | C262: -12 | D262: 10 | E262: 379 | F262: 337 | J262: 190 | K262: Stefan Warnecke | L262: 069 577517 | M262: 0151 17129395 | N262: stefan.warnecke@stiebel-eltron.de | Q262: Koschitzki | R262: 336
... 4238 more rows

Sheet Preisliste (hidden)
AR1: =IF(ISERROR(MATCH("Eingabe Bezeichnung",B:B,)),2562,MATCH("Eingabe Bezeichnung",B:B,)) -> 2562 | AS1: << letzte Zeile für Produktdatensuche
A2: =Translation!A8 -> ID | B2: =Translation!A10 -> Name | C2: =Translation!A11 -> Price each | D2: Rabatt | E2: Kategorie (bei Änderung Combobox Produktsuche anpassen!!!) | F2: Typ | G2: Erzeuger-Hzg | H2: Erzeuger-WW | I2: Heizungspuffer | J2: Erzeuger-Solar | K2: Erzeuger-Lüftung | L2: Nicht mit L/W einsetzbar | M2: Nicht mit S/W einsetzbar | N2: Nicht mit W/W einsetzbar | O2: Nicht mit Solar einsetzbar | P2: Erzeuger PV | Q2: ISG-Regler | S2: ProduktBroschueren | T2: Aufstellzeichnung | U2: Auszug Plama | W2: 2D-CAD | X2: 3D-CAD | Y2: Maßzeichnung CDB | AA2: Seite Preisliste | AB2: Montageanweisung | AC2: Bild-Name | AD2: Dateiname Datenblatt | AE2: Datenblatt | AF2: Label 1 | AG2: Hinweis 1 | AH2: Label 2 | AI2: Hinweis 2 | AJ2: Kategorie Label | AP2: =Translation!A56 -> Use item? | AQ2: =Translation!A57 -> Delivery capacity | AS2: Unterkategorie 1 | AT2: Unterkategorie 2 | AX2: Neuheit
A3: 234759 | B3: Air|Water heat pump WPL 15 ACS | C3: 8373 | D3: --- | E3: Wärmepumpe | F3: 1 | G3: 1 | M3: 1 | N3: 1 | S3: Broschuere_Luft-WP | T3: Aufstellung_WPL_15_25_A | U3: Planung_WP_WPL_15_25_A | W3: D0000034899 | X3: D0000041887 | Y3: D0000034131 | AA3: 93 | AB3: DM0000036828 | AC3: PIC00003714-00.jpg | AE3: =IF(AD3="","",HYPERLINK("http://www.stiebel-eltron.be/ste_shared/pdf/data/E_"&AD3&"_0_de_English.pdf")) ->  | AF3: A++ | AG3: (55 °C) | AH3: A++ | AI3: (35 °C) | AJ3: 11 | AP3: Yes | AS3: Luft|Wasser-Wärmepumpen | AT3: Inverterbaureihe
A4: 234760 | B4: Air|Water heat pump WPL 25 AC | C4: 9901 | D4: --- | E4: Wärmepumpe | F4: 1 | S4: Broschuere_Luft-WP | T4: Aufstellung_WPL_15_25_A | U4: Planung_WP_WPL_15_25_A | W4: D0000034897 | X4: D0000041900 | Y4: D0000028296 | AA4: 93 | AB4: DM0000036828 | AC4: PIC00003555-00.jpg | AF4: A++ | AG4: (55 °C) | AH4: A++ | AI4: (35 °C) | AJ4: 11 | AP4: Yes | AS4: Luft|Wasser-Wärmepumpen | AT4: Inverterbaureihe
A5: 231888 | B5: Air|Water heat pump WPL 15 IS-2 | C5: On request | D5: --- | E5: Wärmepumpe | F5: 1 | G5: 1 | M5: 1 | N5: 1 | S5: Broschuere_Luft-WP | T5: Aufstellung_WPL_15_25_I | U5: Planung_WP_WPL_15_25_I | W5: D0000037435 | X5: D0000040344 | Y5: D0000018765 | AA5: 94 | AB5: DM0000028789 | AC5: PIC00003553-00.jpg | AD5: 8726 | AE5: =IF(AD5="","",HYPERLINK("http://www.stiebel-eltron.be/ste_shared/pdf/data/E_"&AD5&"_0_de_English.pdf")) -> http://www.stiebel-eltron.be/ste_shared/pdf/data/E_8726_0_de_English.pdf | AF5: A++ | AG5: (55 °C) | AH5: A++ | AI5: (35 °C) | AJ5: 11 | AP5: Yes | AS5: Luft|Wasser-Wärmepumpen | AT5: Inverterbaureihe
A6: 231889 | B6: Air|Water heat pump WPL 25 I-2 | C6: On request | D6: --- | E6: Wärmepumpe | F6: 1 | G6: 1 | M6: 1 | N6: 1 | S6: Broschuere_Luft-WP | T6: Aufstellung_WPL_15_25_I | U6: Planung_WP_WPL_15_25_I | W6: D0000018784 | X6: D0000051009 | Y6: D0000018765 | AA6: 94 | AB6: DM0000028789 | AC6: PIC00003554-00.jpg | AD6: 8726 | AE6: http://www.stiebel-eltron.be/ste_shared/pdf/data/E_8726_0_de_English.pdf | AF6: A++ | AG6: (55 °C) | AH6: A++ | AI6: (35 °C) | AJ6: 11 | AP6: Yes | AS6: Luft|Wasser-Wärmepumpen | AT6: Inverterbaureihe
A7: 231886 | B7: Air|Water heat pump WPL 15 IKS-2 | C7: On request | D7: --- | E7: Wärmepumpe | F7: 1 | G7: 1 | H7: 1 | M7: 1 | N7: 1 | O7: 1 | S7: Broschuere_Luft-WP | T7: Aufstellung_WPL_15_25_IK | U7: Planung_WP_WPL_15_25_IK | W7: D0000037435 | X7: D0000051008 | Y7: D0000018764 | AA7: 95 | AB7: DM0000023959 | AC7: PIC00003177-00.jpg | AD7: 8505 | AE7: http://www.stiebel-eltron.be/ste_shared/pdf/data/E_8505_0_de_English.pdf | AF7: A++ | AG7: (55 °C) | AH7: A++ | AI7: (35 °C) | AJ7: 12 | AP7: Yes | AS7: Luft|Wasser-Wärmepumpen | AT7: Inverterbaureihe
A8: 231887 | B8: Air|Water heat pump WPL 25 IK-2 | C8: On request | D8: --- | E8: Wärmepumpe | F8: 1 | G8: 1 | H8: 1 | M8: 1 | N8: 1 | O8: 1 | S8: Broschuere_Luft-WP | T8: Aufstellung_WPL_15_25_IK | U8: Planung_WP_WPL_15_25_IK | W8: D0000018784 | X8: D0000051008 | Y8: D0000018765 | AA8: 95 | AB8: DM0000023959 | AC8: PIC00003178-00.jpg | AD8: 8505 | AE8: http://www.stiebel-eltron.be/ste_shared/pdf/data/E_8505_0_de_English.pdf | AF8: A++ | AG8: (55 °C) | AH8: A++ | AI8: (35 °C) | AJ8: 12 | AP8: Yes | AS8: Luft|Wasser-Wärmepumpen | AT8: Inverterbaureihe
A9: 233871 | B9: Air|Water heat pump WPL 08 S Trend | C9: On request | D9: --- | E9: Wärmepumpe | F9: 1 | G9: 1 | M9: 1 | N9: 1 | S9: Broschuere_Luft-WP | T9: --- | U9: --- | W9: --- | X9: --- | Y9: D0000052361 | AA9: 96 | AB9: DM0000036825 | AC9: PIC00004917-00.jpg | AF9: A++ | AG9: (55 °C) | AH9: A++ | AI9: (35 °C) | AJ9: 11 | AP9: No | AS9: Luft|Wasser-Wärmepumpen | AT9: Inverterbaureihe
A10: 233872 | B10: Air|Water heat pump WPL 12 S Trend | C10: On request | D10: --- | E10: Wärmepumpe | F10: 1 | G10: 1 | M10: 1 | N10: 1 | S10: Broschuere_Luft-WP | T10: --- | U10: --- | W10: --- | X10: --- | Y10: D0000052361 | AA10: 96 | AB10: DM0000036825 | AC10: PIC00004917-00.jpg | AF10: A++ | AG10: (55 °C) | AH10: A++ | AI10: (35 °C) | AJ10: 11 | AP10: No | AS10: Luft|Wasser-Wärmepumpen | AT10: Inverterbaureihe
A11: 233873 | B11: Air|Water heat pump WPL 16 S Trend | C11: On request | D11: --- | E11: Wärmepumpe | F11: 1 | G11: 1 | M11: 1 | N11: 1 | S11: Broschuere_Luft-WP | T11: --- | U11: --- | W11: --- | X11: --- | Y11: D0000052361 | AA11: 96 | AB11: DM0000036825 | AC11: PIC00004917-00.jpg | AF11: A++ | AG11: (55 °C) | AH11: A++ | AI11: (35 °C) | AJ11: 11 | AP11: No | AS11: Luft|Wasser-Wärmepumpen | AT11: Inverterbaureihe
A12: 233876 | B12: Air|Water heat pump WPL 22 Trend | C12: On request | D12: --- | E12: Wärmepumpe | F12: 1 | G12: 1 | M12: 1 | N12: 1 | S12: Broschuere_Luft-WP | T12: --- | U12: --- | W12: --- | X12: --- | Y12: D0000052363 | AA12: 96 | AB12: DM0000036825 | AC12: PIC00004918-00.jpg | AF12: A++ | AG12: (55 °C) | AH12: A++ | AI12: (35 °C) | AJ12: 11 | AP12: No | AS12: Luft|Wasser-Wärmepumpen | AT12: Inverterbaureihe
A13: 233877 | B13: Air|Water heat pump WPL 28 Trend | C13: On request | D13: --- | E13: Wärmepumpe | F13: 1 | G13: 1 | M13: 1 | N13: 1 | S13: Broschuere_Luft-WP | T13: --- | U13: --- | W13: --- | X13: --- | Y13: D0000052363 | AA13: 96 | AB13: DM0000036825 | AC13: PIC00004918-00.jpg | AF13: A++ | AG13: (55 °C) | AH13: A++ | AI13: (35 °C) | AJ13: 11 | AP13: No | AS13: Luft|Wasser-Wärmepumpen | AT13: Inverterbaureihe
A14: 233878 | B14: Air|Water heat pump WPL 08 S Trend Set 1 | C14: On request | D14: --- | E14: Wärmepumpe | F14: 1 | S14: Broschuere_Luft-WP | T14: --- | U14: --- | W14: --- | X14: --- | Y14: D0000052361 | AA14: 97 | AB14: DM0000036825 | AC14: PIC00004946-00.jpg | AF14: A++ | AG14: (55 °C) | AH14: A++ | AI14: (35 °C) | AJ14: 11 | AP14: Yes | AS14: Luft|Wasser-Wärmepumpen | AT14: Inverterbaureihe
A15: 233879 | B15: Air|Water heat pump WPL 12 S Trend Set 1 | C15: On request | D15: --- | E15: Wärmepumpe | F15: 1 | S15: Broschuere_Luft-WP | T15: --- | U15: --- | W15: --- | X15: --- | Y15: D0000052361 | AA15: 97 | AB15: DM0000036825 | AC15: PIC00004946-00.jpg | AF15: A++ | AG15: (55 °C) | AH15: A++ | AI15: (35 °C) | AJ15: 11 | AP15: Yes | AS15: Luft|Wasser-Wärmepumpen | AT15: Inverterbaureihe
A16: 233880 | B16: Air|Water heat pump WPL 16 S Trend Set 1 | C16: On request | D16: --- | E16: Wärmepumpe | F16: 1 | S16: Broschuere_Luft-WP | T16: --- | U16: --- | W16: --- | X16: --- | Y16: D0000052361 | AA16: 97 | AB16: DM0000036825 | AC16: PIC00004946-00.jpg | AF16: A++ | AG16: (55 °C) | AH16: A++ | AI16: (35 °C) | AJ16: 11 | AP16: Yes | AS16: Luft|Wasser-Wärmepumpen | AT16: Inverterbaureihe
A17: 233883 | B17: Air|Water heat pump WPL 22 Trend Set 1 | C17: On request | D17: --- | E17: Wärmepumpe | F17: 1 | S17: Broschuere_Luft-WP | T17: --- | U17: --- | W17: --- | X17: --- | Y17: D0000052363 | AA17: 97 | AB17: DM0000036825 | AC17: PIC00004947-00.jpg | AF17: A++ | AG17: (55 °C) | AH17: A++ | AI17: (35 °C) | AJ17: 11 | AP17: Yes | AS17: Luft|Wasser-Wärmepumpen | AT17: Inverterbaureihe
A18: 233884 | B18: Air|Water heat pump WPL 28 Trend Set 1 | C18: On request | D18: --- | E18: Wärmepumpe | F18: 1 | S18: Broschuere_Luft-WP | T18: --- | U18: --- | W18: --- | X18: --- | Y18: D0000052363 | AA18: 97 | AB18: DM0000036825 | AC18: PIC00004947-00.jpg | AF18: A++ | AG18: (55 °C) | AH18: A++ | AI18: (35 °C) | AJ18: 11 | AP18: Yes | AS18: Luft|Wasser-Wärmepumpen | AT18: Inverterbaureihe
A19: 233885 | B19: Air|Water heat pump WPL 08 S Trend Set 2 | C19: On request | D19: --- | E19: Wärmepumpe | F19: 1 | S19: Broschuere_Luft-WP | T19: --- | U19: --- | W19: --- | X19: --- | Y19: D0000052361 | AA19: 97 | AB19: DM0000036825 | AC19: PIC00004948-00.jpg | AF19: A++ | AG19: (55 °C) | AH19: A++ | AI19: (35 °C) | AJ19: 11 | AP19: Yes | AS19: Luft|Wasser-Wärmepumpen | AT19: Inverterbaureihe
A20: 233886 | B20: Air|Water heat pump WPL 12 S Trend Set 2 | C20: On request | D20: --- | E20: Wärmepumpe | F20: 1 | S20: Broschuere_Luft-WP | T20: --- | U20: --- | W20: --- | X20: --- | Y20: D0000052361 | AA20: 97 | AB20: DM0000036825 | AC20: PIC00004948-00.jpg | AF20: A++ | AG20: (55 °C) | AH20: A++ | AI20: (35 °C) | AJ20: 11 | AP20: Yes | AS20: Luft|Wasser-Wärmepumpen | AT20: Inverterbaureihe
A21: 233887 | B21: Air|Water heat pump WPL 16 S Trend Set 2 | C21: On request | D21: --- | E21: Wärmepumpe | F21: 1 | S21: Broschuere_Luft-WP | T21: --- | U21: --- | W21: --- | X21: --- | Y21: D0000052361 | AA21: 97 | AB21: DM0000036825 | AC21: PIC00004948-00.jpg | AF21: A++ | AG21: (55 °C) | AH21: A++ | AI21: (35 °C) | AJ21: 11 | AP21: Yes | AS21: Luft|Wasser-Wärmepumpen | AT21: Inverterbaureihe
A22: 233890 | B22: Air|Water heat pump WPL 22 Trend Set 2 | C22: On request | D22: --- | E22: Wärmepumpe | F22: 1 | S22: Broschuere_Luft-WP | T22: --- | U22: --- | W22: --- | X22: --- | Y22: D0000052363 | AA22: 97 | AB22: DM0000036825 | AC22: PIC00004949-00.jpg | AF22: A++ | AG22: (55 °C) | AH22: A++ | AI22: (35 °C) | AJ22: 11 | AP22: Yes | AS22: Luft|Wasser-Wärmepumpen | AT22: Inverterbaureihe
A23: 233891 | B23: Air|Water heat pump WPL 28 Trend Set 2 | C23: On request | D23: --- | E23: Wärmepumpe | F23: 1 | S23: Broschuere_Luft-WP | T23: --- | U23: --- | W23: --- | X23: --- | Y23: D0000052363 | AA23: 97 | AB23: DM0000036825 | AC23: PIC00004949-00.jpg | AF23: A++ | AG23: (55 °C) | AH23: A++ | AI23: (35 °C) | AJ23: 11 | AP23: Yes | AS23: Luft|Wasser-Wärmepumpen | AT23: Inverterbaureihe
A24: 234729 | B24: Air|Water heat pump WPL 08 S Trend Set 3 | C24: On request | D24: --- | E24: Wärmepumpe | F24: 1 | S24: Broschuere_Luft-WP | T24: --- | U24: --- | W24: --- | X24: --- | Y24: D0000052361 | AA24: 97 | AB24: DM0000036825 | AC24: PIC00004950-00.jpg | AF24: A++ | AG24: (55 °C) | AH24: A++ | AI24: (35 °C) | AJ24: 11 | AP24: Yes | AS24: Luft|Wasser-Wärmepumpen | AT24: Inverterbaureihe
A25: 234730 | B25: Air|Water heat pump WPL 12 S Trend Set 3 | C25: On request | D25: --- | E25: Wärmepumpe | F25: 1 | S25: Broschuere_Luft-WP | T25: --- | U25: --- | W25: --- | X25: --- | Y25: D0000052361 | AA25: 97 | AB25: DM0000036825 | AC25: PIC00004950-00.jpg | AF25: A++ | AG25: (55 °C) | AH25: A++ | AI25: (35 °C) | AJ25: 11 | AP25: Yes | AS25: Luft|Wasser-Wärmepumpen | AT25: Inverterbaureihe
A26: 234731 | B26: Air|Water heat pump WPL 16 S Trend Set 3 | C26: On request | D26: --- | E26: Wärmepumpe | F26: 1 | S26: Broschuere_Luft-WP | T26: --- | U26: --- | W26: --- | X26: --- | Y26: D0000052361 | AA26: 97 | AB26: DM0000036825 | AC26: PIC00004950-00.jpg | AF26: A++ | AG26: (55 °C) | AH26: A++ | AI26: (35 °C) | AJ26: 11 | AP26: Yes | AS26: Luft|Wasser-Wärmepumpen | AT26: Inverterbaureihe
A27: 234733 | B27: Air|Water heat pump WPL 22 Trend Set 3 | C27: On request | D27: --- | E27: Wärmepumpe | F27: 1 | S27: Broschuere_Luft-WP | T27: --- | U27: --- | W27: --- | X27: --- | Y27: D0000052363 | AA27: 97 | AB27: DM0000036825 | AC27: PIC00004951-00.jpg | AF27: A++ | AG27: (55 °C) | AH27: A++ | AI27: (35 °C) | AJ27: 11 | AP27: Yes | AS27: Luft|Wasser-Wärmepumpen | AT27: Inverterbaureihe
A28: 234734 | B28: Air|Water heat pump WPL 28 Trend Set 3 | C28: On request | D28: --- | E28: Wärmepumpe | F28: 1 | S28: Broschuere_Luft-WP | T28: --- | U28: --- | W28: --- | X28: --- | Y28: D0000052363 | AA28: 97 | AB28: DM0000036825 | AC28: PIC00004951-00.jpg | AF28: A++ | AG28: (55 °C) | AH28: A++ | AI28: (35 °C) | AJ28: 11 | AP28: Yes | AS28: Luft|Wasser-Wärmepumpen | AT28: Inverterbaureihe
A29: 234735 | B29: Air|Water heat pump WPL 08 S Trend Set 4 | C29: On request | D29: --- | E29: Wärmepumpe | F29: 1 | S29: Broschuere_Luft-WP | T29: --- | U29: --- | W29: --- | X29: --- | Y29: D0000052361 | AA29: 97 | AB29: DM0000036825 | AC29: PIC00004952-00.jpg | AF29: A++ | AG29: (55 °C) | AH29: A++ | AI29: (35 °C) | AJ29: 11 | AP29: Yes | AS29: Luft|Wasser-Wärmepumpen | AT29: Inverterbaureihe
A30: 234736 | B30: Air|Water heat pump WPL 12 S Trend Set 4 | C30: On request | D30: --- | E30: Wärmepumpe | F30: 1 | S30: Broschuere_Luft-WP | T30: --- | U30: --- | W30: --- | X30: --- | Y30: D0000052361 | AA30: 97 | AB30: DM0000036825 | AC30: PIC00004952-00.jpg | AF30: A++ | AG30: (55 °C) | AH30: A++ | AI30: (35 °C) | AJ30: 11 | AP30: Yes | AS30: Luft|Wasser-Wärmepumpen | AT30: Inverterbaureihe
A31: 234737 | B31: Air|Water heat pump WPL 16 S Trend Set 4 | C31: On request | D31: --- | E31: Wärmepumpe | F31: 1 | S31: Broschuere_Luft-WP | T31: --- | U31: --- | W31: --- | X31: --- | Y31: D0000052361 | AA31: 97 | AB31: DM0000036825 | AC31: PIC00004952-00.jpg | AF31: A++ | AG31: (55 °C) | AH31: A++ | AI31: (35 °C) | AJ31: 11 | AP31: Yes | AS31: Luft|Wasser-Wärmepumpen | AT31: Inverterbaureihe
A32: 234739 | B32: Air|Water heat pump WPL 22 Trend Set 4 | C32: On request | D32: --- | E32: Wärmepumpe | F32: 1 | S32: Broschuere_Luft-WP | T32: --- | U32: --- | W32: --- | X32: --- | Y32: D0000052363 | AA32: 97 | AB32: DM0000036825 | AC32: PIC00004953-00.jpg | AF32: A++ | AG32: (55 °C) | AH32: A++ | AI32: (35 °C) | AJ32: 11 | AP32: Yes | AS32: Luft|Wasser-Wärmepumpen | AT32: Inverterbaureihe
A33: 234740 | B33: Air|Water heat pump WPL 28 Trend Set 4 | C33: On request | D33: --- | E33: Wärmepumpe | F33: 1 | S33: Broschuere_Luft-WP | T33: --- | U33: --- | W33: --- | X33: --- | Y33: D0000052363 | AA33: 97 | AB33: DM0000036825 | AC33: PIC00004953-00.jpg | AF33: A++ | AG33: (55 °C) | AH33: A++ | AI33: (35 °C) | AJ33: 11 | AP33: No | AS33: Luft|Wasser-Wärmepumpen | AT33: Inverterbaureihe
A34: 234741 | B34: Air|Water heat pump WPL 08 S Trend Set 5 | C34: On request | D34: --- | E34: Wärmepumpe | F34: 1 | S34: Broschuere_Luft-WP | T34: --- | U34: --- | W34: --- | X34: --- | Y34: D0000052361 | AA34: 98 | AB34: DM0000036825 | AC34: PIC00004954-00.jpg | AF34: A++ | AG34: (55 °C) | AH34: A++ | AI34: (35 °C) | AJ34: 11 | AP34: Yes | AS34: Luft|Wasser-Wärmepumpen | AT34: Inverterbaureihe
A35: 234742 | B35: Air|Water heat pump WPL 12 S Trend Set 5 | C35: On request | D35: --- | E35: Wärmepumpe | F35: 1 | S35: Broschuere_Luft-WP | T35: --- | U35: --- | W35: --- | X35: --- | Y35: D0000052361 | AA35: 98 | AB35: DM0000036825 | AC35: PIC00004954-00.jpg | AF35: A++ | AG35: (55 °C) | AH35: A++ | AI35: (35 °C) | AJ35: 11 | AP35: Yes | AS35: Luft|Wasser-Wärmepumpen | AT35: Inverterbaureihe
A36: 234743 | B36: Air|Water heat pump WPL 16 S Trend Set 5 | C36: On request | D36: --- | E36: Wärmepumpe | F36: 1 | S36: Broschuere_Luft-WP | T36: --- | U36: --- | W36: --- | X36: --- | Y36: D0000052361 | AA36: 98 | AB36: DM0000036825 | AC36: PIC00004954-00.jpg | AF36: A++ | AG36: (55 °C) | AH36: A++ | AI36: (35 °C) | AJ36: 11 | AP36: Yes | AS36: Luft|Wasser-Wärmepumpen | AT36: Inverterbaureihe
A37: 234745 | B37: Air|Water heat pump WPL 22 Trend Set 5 | C37: On request | D37: --- | E37: Wärmepumpe | F37: 1 | S37: Broschuere_Luft-WP | T37: --- | U37: --- | W37: --- | X37: --- | Y37: D0000052363 | AA37: 98 | AB37: DM0000036825 | AC37: PIC00004955-00.jpg | AF37: A++ | AG37: (55 °C) | AH37: A++ | AI37: (35 °C) | AJ37: 11 | AP37: Yes | AS37: Luft|Wasser-Wärmepumpen | AT37: Inverterbaureihe
A38: 234746 | B38: Air|Water heat pump WPL 28 Trend Set 5 | C38: On request | D38: --- | E38: Wärmepumpe | F38: 1 | S38: Broschuere_Luft-WP | T38: --- | U38: --- | W38: --- | X38: --- | Y38: D0000052363 | AA38: 98 | AB38: DM0000036825 | AC38: PIC00004955-00.jpg | AF38: A++ | AG38: (55 °C) | AH38: A++ | AI38: (35 °C) | AJ38: 11 | AP38: Yes | AS38: Luft|Wasser-Wärmepumpen | AT38: Inverterbaureihe
A39: 234747 | B39: Air|Water heat pump WPL 08 S Trend Set 6 | C39: On request | D39: --- | E39: Wärmepumpe | F39: 1 | S39: Broschuere_Luft-WP | T39: --- | U39: --- | W39: --- | X39: --- | Y39: D0000052361 | AA39: 98 | AB39: DM0000036825 | AC39: PIC00004956-00.jpg | AF39: A++ | AG39: (55 °C) | AH39: A++ | AI39: (35 °C) | AJ39: 11 | AP39: Yes | AS39: Luft|Wasser-Wärmepumpen | AT39: Inverterbaureihe
A40: 234748 | B40: Air|Water heat pump WPL 12 S Trend Set 6 | C40: On request | D40: --- | E40: Wärmepumpe | F40: 1 | S40: Broschuere_Luft-WP | T40: --- | U40: --- | W40: --- | X40: --- | Y40: D0000052361 | AA40: 98 | AB40: DM0000036825 | AC40: PIC00004956-00.jpg | AF40: A++ | AG40: (55 °C) | AH40: A++ | AI40: (35 °C) | AJ40: 11 | AP40: Yes | AS40: Luft|Wasser-Wärmepumpen | AT40: Inverterbaureihe
A41: 234749 | B41: Air|Water heat pump WPL 16 S Trend Set 6 | C41: On request | D41: --- | E41: Wärmepumpe | F41: 1 | S41: Broschuere_Luft-WP | T41: --- | U41: --- | W41: --- | X41: --- | Y41: D0000052361 | AA41: 98 | AB41: DM0000036825 | AC41: PIC00004956-00.jpg | AF41: A++ | AG41: (55 °C) | AH41: A++ | AI41: (35 °C) | AJ41: 11 | AP41: Yes | AS41: Luft|Wasser-Wärmepumpen | AT41: Inverterbaureihe
A42: 234751 | B42: Air|Water heat pump WPL 22 Trend Set 6 | C42: On request | D42: --- | E42: Wärmepumpe | F42: 1 | S42: Broschuere_Luft-WP | T42: --- | U42: --- | W42: --- | X42: --- | Y42: D0000052363 | AA42: 98 | AB42: DM0000036825 | AC42: PIC00004957-00.jpg | AF42: A++ | AG42: (55 °C) | AH42: A++ | AI42: (35 °C) | AJ42: 11 | AP42: Yes | AS42: Luft|Wasser-Wärmepumpen | AT42: Inverterbaureihe
A43: 234752 | B43: Air|Water heat pump WPL 28 Trend Set 6 | C43: On request | D43: --- | E43: Wärmepumpe | F43: 1 | S43: Broschuere_Luft-WP | T43: --- | U43: --- | W43: --- | X43: --- | Y43: D0000052363 | AA43: 98 | AB43: DM0000036825 | AC43: PIC00004957-00.jpg | AF43: A++ | AG43: (55 °C) | AH43: A++ | AI43: (35 °C) | AJ43: 11 | AP43: Yes | AS43: Luft|Wasser-Wärmepumpen | AT43: Inverterbaureihe
A44: 234753 | B44: Air|Water heat pump WPL 08 S Trend Set 7 | C44: On request | D44: --- | E44: Wärmepumpe | F44: 1 | S44: Broschuere_Luft-WP | T44: --- | U44: --- | W44: --- | X44: --- | Y44: D0000052361 | AA44: 98 | AB44: DM0000036825 | AC44: PIC00004958-00.jpg | AF44: A++ | AG44: (55 °C) | AH44: A++ | AI44: (35 °C) | AJ44: 11 | AP44: Yes | AS44: Luft|Wasser-Wärmepumpen | AT44: Inverterbaureihe
A45: 234754 | B45: Air|Water heat pump WPL 12 S Trend Set 7 | C45: On request | D45: --- | E45: Wärmepumpe | F45: 1 | S45: Broschuere_Luft-WP | T45: --- | U45: --- | W45: --- | X45: --- | Y45: D0000052361 | AA45: 98 | AB45: DM0000036825 | AC45: PIC00004958-00.jpg | AF45: A++ | AG45: (55 °C) | AH45: A++ | AI45: (35 °C) | AJ45: 11 | AP45: Yes | AS45: Luft|Wasser-Wärmepumpen | AT45: Inverterbaureihe
A46: 234755 | B46: Air|Water heat pump WPL 16 S Trend Set 7 | C46: On request | D46: --- | E46: Wärmepumpe | F46: 1 | S46: Broschuere_Luft-WP | T46: --- | U46: --- | W46: --- | X46: --- | Y46: D0000052361 | AA46: 98 | AB46: DM0000036825 | AC46: PIC00004958-00.jpg | AF46: A++ | AG46: (55 °C) | AH46: A++ | AI46: (35 °C) | AJ46: 11 | AP46: Yes | AS46: Luft|Wasser-Wärmepumpen | AT46: Inverterbaureihe
A47: 234757 | B47: Air|Water heat pump WPL 22 Trend Set 7 | C47: On request | D47: --- | E47: Wärmepumpe | F47: 1 | S47: Broschuere_Luft-WP | T47: --- | U47: --- | W47: --- | X47: --- | Y47: D0000052363 | AA47: 98 | AB47: DM0000036825 | AC47: PIC00004959-00.jpg | AF47: A++ | AG47: (55 °C) | AH47: A++ | AI47: (35 °C) | AJ47: 11 | AP47: Yes | AS47: Luft|Wasser-Wärmepumpen | AT47: Inverterbaureihe
A48: 234758 | B48: Air|Water heat pump WPL 28 Trend Set 7 | C48: On request | D48: --- | E48: Wärmepumpe | F48: 1 | S48: Broschuere_Luft-WP | T48: --- | U48: --- | W48: --- | X48: --- | Y48: D0000052363 | AA48: 98 | AB48: DM0000036825 | AC48: PIC00004959-00.jpg | AF48: A++ | AG48: (55 °C) | AH48: A++ | AI48: (35 °C) | AJ48: 11 | AP48: No | AS48: Luft|Wasser-Wärmepumpen | AT48: Inverterbaureihe
A49: 235097 | B49: Schutzgitter Verdampfer für WPL 08-16 Trend | C49: On request | D49: --- | F49: 15 | M49: 1 | N49: 1 | S49: --- | T49: --- | U49: --- | W49: --- | X49: --- | Y49: --- | AA49: --- | AB49: DM0000036825 | AC49: --- | AJ49: --- | AP49: Yes | AS49: Luft|Wasser-Wärmepumpen | AT49: Zubehör
A50: 235098 | B50: Schutzgitter Verdampfer für WPL 22-28 Trend | C50: On request | D50: --- | F50: 15 | M50: 1 | N50: 1 | S50: --- | T50: --- | U50: --- | W50: --- | X50: --- | Y50: --- | AA50: --- | AB50: DM0000036825 | AC50: --- | AJ50: --- | AP50: Yes | AS50: Luft|Wasser-Wärmepumpen | AT50: Zubehör
A51: 232978 | B51: Rohrbegleitheizung Kondensatablauf HZB-1 | C51: On request | D51: --- | F51: 15 | M51: 1 | N51: 1 | S51: --- | T51: --- | U51: --- | W51: --- | X51: --- | Y51: --- | AA51: --- | AB51: DM0000028785 | AC51: PIC00004775-00.jpg | AJ51: --- | AP51: Yes | AS51: Luft|Wasser-Wärmepumpen | AT51: Zubehör
A52: 232979 | B52: Rohrbegleitheizung Kondensatablauf HZB-2 | C52: On request | D52: --- | F52: 15 | M52: 1 | N52: 1 | S52: --- | T52: --- | U52: --- | W52: --- | X52: --- | Y52: --- | AA52: --- | AB52: DM0000028785 | AC52: PIC00004775-00.jpg | AJ52: --- | AP52: Yes | AS52: Luft|Wasser-Wärmepumpen | AT52: Zubehör
A53: 229938 | B53: Air|Water heat pump WPL 33 HT | C53: 15654 | D53: --- | E53: Wärmepumpe | F53: 1 | G53: 1 | M53: 1 | N53: 1 | S53: Broschuere_Luft-WP | T53: Aufstellung_WPL_33_HT | U53: Planung_WP_WPL_33_HT | W53: D0000017643 | X53: D0000041913 | Y53: D0000016798 | AA53: 99 | AB53: DM0000022412 | AC53: PIC00000457-00.jpg | AD53: 8158 | AE53: http://www.stiebel-eltron.be/ste_shared/pdf/data/E_8158_0_de_English.pdf | AF53: A+ | AG53: (55 °C) | AH53: A+ | AI53: (35 °C) | AJ53: 11 | AP53: Yes | AS53: Luft|Wasser-Wärmepumpen | AT53: Inverterbaureihe
A54: 229908 | B54: Air|Water heat pump WPL 5 N plus | C54: On request | D54: --- | E54: Wärmepumpe | F54: 1 | G54: 1 | H54: 1 | M54: 1 | N54: 1 | O54: 1 | S54: Broschuere_Luft-WP | T54: Aufstellung_WPL5N | U54: Planung_WP_WPL5N | W54: --- | X54: D0000051003 | Y54: D0000016785 | AA54: 100 | AB54: DM0000022299 | AC54: PIC00000743-00.jpg | AD54: 6553 | AE54: http://www.stiebel-eltron.be/ste_shared/pdf/data/E_6553_0_de_English.pdf | AF54: --- | AJ54: 12 | AP54: No | AS54: Luft|Wasser-Wärmepumpen | AT54: Inverterbaureihe
A55: 230236 | B55: Air|Water heat pump WPL 10 AC | C55: 5894 | D55: --- | E55: Wärmepumpe | F55: 1 | G55: 1 | M55: 1 | N55: 1 | S55: Broschuere_Luft-WP | T55: Aufstellung_WPL_10_AC | U55: Planung_WP_WPL_10_AC | W55: D0000017144 | X55: D0000051012 | Y55: D0000016780 | AA55: 101 | AB55: DM0000019526 | AC55: PIC00001670-00.jpg | AD55: 8427 | AE55: http://www.stiebel-eltron.be/ste_shared/pdf/data/E_8427_0_de_English.pdf | AF55: A+ | AG55: (55 °C) | AH55: A+ | AI55: (35 °C) | AJ55: 11 | AP55: Yes | AS55: Luft|Wasser-Wärmepumpen | AT55: 'Fixed Speed' - Baureihe
A56: 220811 | B56: Air|Water heat pump WPL 10 I | C56: 6250 | D56: --- | E56: Wärmepumpe | F56: 1 | G56: 1 | M56: 1 | N56: 1 | S56: Broschuere_Luft-WP | T56: Aufstellung_WPL_10_I | U56: Planung_WP_WPL_10_IK | W56: D0000017619 | X56: D0000041940 | Y56: D0000017277 | AA56: 102 | AB56: DM0000019119 | AC56: PIC00004156-00.jpg | AD56: 5969 | AE56: http://www.stiebel-eltron.be/ste_shared/pdf/data/E_5969_0_de_English.pdf | AF56: A+ | AG56: (55 °C) | AH56: A+ | AI56: (35 °C) | AJ56: 11 | AP56: Yes | AS56: Luft|Wasser-Wärmepumpen | AT56: 'Fixed Speed' - Baureihe
A57: 234655 | B57: Air|Water heat pump WPL 10 IK | C57: 7335 | D57: --- | E57: Wärmepumpe | F57: 1 | G57: 1 | M57: 1 | N57: 1 | S57: Broschuere_Luft-WP | T57: Aufstellung_WPL_10_IK | U57: Planung_WP_WPL_10_IK | W57: D0000017620 | X57: D0000051011 | Y57: D0000016751 | AA57: 102 | AB57: DM0000019119 | AC57: PIC00004961-00.jpg | AF57: A+ | AG57: (55 °C) | AH57: A+ | AI57: (35 °C) | AJ57: 11 | AP57: Yes | AS57: Luft|Wasser-Wärmepumpen | AT57: 'Fixed Speed' - Baureihe
A58: 227756 | B58: Air|Water heat pump WPL 13 E | C58: 8369 | D58: --- | E58: Wärmepumpe | F58: 1 | G58: 1 | M58: 1 | N58: 1 | S58: Broschuere_Luft-WP | T58: Aufstellung_WPL_13_18_23 | U58: Planung_WP_WPL_E_cool | W58: D0000017625 | X58: D0000043931 | Y58: D0000016719 | AA58: 103 | AB58: DM0000018963 | AC58: PIC00000457-00.jpg | AD58: 5968 | AE58: http://www.stiebel-eltron.be/ste_shared/pdf/data/E_5968_0_de_English.pdf | AF58: A+ | AG58: (55 °C) | AH58: A++ | AI58: (35 °C) | AJ58: 11 | AP58: Yes | AS58: Luft|Wasser-Wärmepumpen | AT58: 'Fixed Speed' - Baureihe
A59: 227757 | B59: Air|Water heat pump WPL 18 E | C59: 8578 | D59: --- | E59: Wärmepumpe | F59: 1 | G59: 1 | M59: 1 | N59: 1 | S59: Broschuere_Luft-WP | T59: Aufstellung_WPL_13_18_23 | U59: Planung_WP_WPL_E_cool | W59: D0000017625 | X59: D0000043931 | Y59: D0000016719 | AA59: 103 | AB59: DM0000018963 | AC59: PIC00000457-00.jpg | AD59: 5968 | AE59: http://www.stiebel-eltron.be/ste_shared/pdf/data/E_5968_0_de_English.pdf | AF59: A+ | AG59: (55 °C) | AH59: A++ | AI59: (35 °C) | AJ59: 11 | AP59: Yes | AS59: Luft|Wasser-Wärmepumpen | AT59: 'Fixed Speed' - Baureihe
A60: 227758 | B60: Air|Water heat pump WPL 23 E | C60: 8920 | D60: --- | E60: Wärmepumpe | F60: 1 | G60: 1 | M60: 1 | N60: 1 | S60: Broschuere_Luft-WP | T60: Aufstellung_WPL_13_18_23 | U60: Planung_WP_WPL_E_cool | W60: D0000017625 | X60: D0000043931 | Y60: D0000016719 | AA60: 103 | AB60: DM0000018963 | AC60: PIC00000457-00.jpg | AD60: 5968 | AE60: http://www.stiebel-eltron.be/ste_shared/pdf/data/E_5968_0_de_English.pdf | AF60: A+ | AG60: (55 °C) | AH60: A+ | AI60: (35 °C) | AJ60: 11 | AP60: Yes | AS60: Luft|Wasser-Wärmepumpen | AT60: 'Fixed Speed' - Baureihe
A61: 223400 | B61: Air|Water heat pump WPL 13 cool | C61: 8535 | D61: --- | E61: Wärmepumpe | F61: 1 | G61: 1 | M61: 1 | N61: 1 | S61: Broschuere_Luft-WP | T61: Aufstellung_WPL_13_18_23 | U61: Planung_WP_WPL_E_cool | W61: D0000017625 | X61: D0000043931 | Y61: D0000016719 | AA61: 104 | AB61: DM0000018963 | AC61: PIC00000457-00.jpg | AD61: 6555 | AE61: http://www.stiebel-eltron.be/ste_shared/pdf/data/E_6555_0_de_English.pdf | AF61: A+ | AG61: (55 °C) | AH61: A+ | AI61: (35 °C) | AJ61: 11 | AP61: Yes | AS61: Luft|Wasser-Wärmepumpen | AT61: 'Fixed Speed' - Baureihe
A62: 223401 | B62: Air|Water heat pump WPL 18 cool | C62: 8740 | D62: --- | E62: Wärmepumpe | F62: 1 | G62: 1 | M62: 1 | N62: 1 | S62: Broschuere_Luft-WP | T62: Aufstellung_WPL_13_18_23 | U62: Planung_WP_WPL_E_cool | W62: D0000017625 | X62: D0000043931 | Y62: D0000016719 | AA62: 104 | AB62: DM0000018963 | AC62: PIC00000457-00.jpg | AD62: 6555 | AE62: http://www.stiebel-eltron.be/ste_shared/pdf/data/E_6555_0_de_English.pdf | AF62: A++ | AG62: (55 °C) | AH62: A++ | AI62: (35 °C) | AJ62: 11 | AP62: Yes | AS62: Luft|Wasser-Wärmepumpen | AT62: 'Fixed Speed' - Baureihe
A63: 223402 | B63: Air|Water heat pump WPL 23 cool | C63: 9059 | D63: --- | E63: Wärmepumpe | F63: 1 | G63: 1 | M63: 1 | N63: 1 | S63: Broschuere_Luft-WP | T63: Aufstellung_WPL_13_18_23 | U63: Planung_WP_WPL_E_cool | W63: D0000017625 | X63: D0000043931 | Y63: D0000016719 | AA63: 104 | AB63: DM0000018963 | AC63: PIC00000457-00.jpg | AD63: 6555 | AE63: http://www.stiebel-eltron.be/ste_shared/pdf/data/E_6555_0_de_English.pdf | AF63: A+ | AG63: (55 °C) | AH63: A++ | AI63: (35 °C) | AJ63: 11 | AP63: Yes | AS63: Luft|Wasser-Wärmepumpen | AT63: 'Fixed Speed' - Baureihe
A64: 228835 | B64: Air|Water heat pump WPL 34 | C64: 18594 | D64: --- | E64: Wärmepumpe | F64: 1 | G64: 1 | M64: 1 | N64: 1 | S64: Broschuere_Luft-WP | T64: Aufstellung_WPL_34_57 | U64: Planung_WP_WPL_34_57 | W64: D0000017633 | X64: D0000051233 | Y64: D0000016788 | AA64: 105 | AB64: DM0000019437 | AC64: PIC00001676-00.jpg | AD64: 7124 | AE64: http://www.stiebel-eltron.be/ste_shared/pdf/data/E_7124_0_de_English.pdf | AF64: A+ | AG64: (55 °C) | AH64: A+ | AI64: (35 °C) | AJ64: 11 | AP64: Yes | AS64: Luft|Wasser-Wärmepumpen | AT64: 'Fixed Speed' - Baureihe
A65: 228836 | B65: Air|Water heat pump WPL 47 | C65: 19084 | D65: --- | E65: Wärmepumpe | F65: 1 | G65: 1 | M65: 1 | N65: 1 | S65: Broschuere_Luft-WP | T65: Aufstellung_WPL_34_57 | U65: Planung_WP_WPL_34_57 | W65: D0000017633 | X65: D0000051232 | Y65: D0000016788 | AA65: 105 | AB65: DM0000019437 | AC65: PIC00001676-00.jpg | AD65: 7124 | AE65: http://www.stiebel-eltron.be/ste_shared/pdf/data/E_7124_0_de_English.pdf | AF65: A+ | AG65: (55 °C) | AH65: A+ | AI65: (35 °C) | AJ65: 11 | AP65: Yes | AS65: Luft|Wasser-Wärmepumpen | AT65: 'Fixed Speed' - Baureihe
A66: 228837 | B66: Air|Water heat pump WPL 57 | C66: 20715 | D66: --- | E66: Wärmepumpe | F66: 1 | G66: 1 | M66: 1 | N66: 1 | S66: Broschuere_Luft-WP | T66: Aufstellung_WPL_34_57 | U66: Planung_WP_WPL_34_57 | W66: D0000017633 | X66: D0000051231 | Y66: D0000016788 | AA66: 105 | AB66: DM0000019437 | AC66: PIC00001676-00.jpg | AD66: 7124 | AE66: http://www.stiebel-eltron.be/ste_shared/pdf/data/E_7124_0_de_English.pdf | AF66: A+ | AG66: (55 °C) | AH66: A+ | AI66: (35 °C) | AJ66: 11 | AP66: Yes | AS66: Luft|Wasser-Wärmepumpen | AT66: 'Fixed Speed' - Baureihe
A67: 232124 | B67: Air|Water heat pump WPL 34 SR | C67: 18645 | D67: --- | E67: Wärmepumpe | F67: 1 | G67: 1 | M67: 1 | N67: 1 | S67: Broschuere_Luft-WP | T67: Aufstellung_WPL_34_57 | U67: Planung_WP_WPL_34_57 | W67: D0000017633 | X67: D0000051233 | Y67: D0000016788 | AA67: 105 | AB67: DM0000019437 | AC67: PIC00004402-00.jpg | AD67: 6607 | AE67: =IF(AD67="","",HYPERLINK("http://www.stiebel-eltron.be/ste_shared/pdf/data/E_"&AD67&"_0_de_English.pdf")) -> http://www.stiebel-eltron.be/ste_shared/pdf/data/E_6607_0_de_English.pdf | AF67: A+ | AG67: (55 °C) | AH67: A+ | AI67: (35 °C) | AJ67: 11 | AP67: Yes | AS67: Luft|Wasser-Wärmepumpen | AT67: 'Fixed Speed' - Baureihe
A68: 232125 | B68: Air|Water heat pump WPL 47 SR | C68: 19214 | D68: --- | E68: Wärmepumpe | F68: 1 | G68: 1 | M68: 1 | N68: 1 | S68: Broschuere_Luft-WP | T68: Aufstellung_WPL_34_57 | U68: Planung_WP_WPL_34_57 | W68: D0000017633 | X68: D0000051232 | Y68: D0000016788 | AA68: 105 | AB68: DM0000019437 | AC68: PIC00004402-00.jpg | AD68: 6607 | AE68: http://www.stiebel-eltron.be/ste_shared/pdf/data/E_6607_0_de_English.pdf | AF68: A+ | AG68: (55 °C) | AH68: A+ | AI68: (35 °C) | AJ68: 11 | AP68: Yes | AS68: Luft|Wasser-Wärmepumpen | AT68: 'Fixed Speed' - Baureihe
A69: 232126 | B69: Air|Water heat pump WPL 57 SR | C69: 20879 | D69: --- | E69: Wärmepumpe | F69: 1 | G69: 1 | M69: 1 | N69: 1 | S69: Broschuere_Luft-WP | T69: Aufstellung_WPL_34_57 | U69: Planung_WP_WPL_34_57 | W69: D0000017633 | X69: D0000051231 | Y69: D0000016788 | AA69: 105 | AB69: DM0000019437 | AC69: PIC00004402-00.jpg | AD69: 6607 | AE69: http://www.stiebel-eltron.be/ste_shared/pdf/data/E_6607_0_de_English.pdf | AF69: A+ | AG69: (55 °C) | AH69: A+ | AI69: (35 °C) | AJ69: 11 | AP69: Yes | AS69: Luft|Wasser-Wärmepumpen | AT69: 'Fixed Speed' - Baureihe
A70: 233749 | B70: Hydraulic module HM | C70: 2693 | D70: --- | E70: Wärmepumpe | F70: 9 | M70: 1 | N70: 1 | S70: --- | T70: --- | U70: --- | W70: D0000040716 | X70: D0000040716 | Y70: D0000041455 | AA70: 106 | AB70: DM0000035125 | AC70: PIC00004301-00.jpg | AD70: 9342 | AE70: http://www.stiebel-eltron.be/ste_shared/pdf/data/E_9342_0_de_English.pdf | AJ70: --- | AP70: Yes | AS70: Luft|Wasser-Wärmepumpen | AT70: Zubehör
A71: 232805 | B71: Hydraulic module HM Trend | C71: 2203 | D71: --- | E71: Wärmepumpe | F71: 9 | M71: 1 | N71: 1 | S71: --- | T71: --- | U71: --- | W71: --- | X71: D0000049789 | Y71: D0000041456 | AA71: 106 | AB71: DM0000035125 | AC71: PIC00004266-00.jpg | AD71: 9342 | AE71: http://www.stiebel-eltron.be/ste_shared/pdf/data/E_9342_0_de_English.pdf | AJ71: --- | AP71: Yes | AS71: Luft|Wasser-Wärmepumpen | AT71: Zubehör
A72: 232806 | B72: Connection set ASL-HM | C72: 406 | D72: --- | E72: Wärmepumpe | F72: 9 | M72: 1 | N72: 1 | S72: --- | T72: --- | U72: --- | W72: --- | X72: --- | Y72: --- | AA72: 107 | AB72: DM0000035125 | AC72: PIC00004268-00.jpg | AD72: 9342 | AE72: http://www.stiebel-eltron.be/ste_shared/pdf/data/E_9342_0_de_English.pdf | AJ72: --- | AP72: Yes | AS72: Luft|Wasser-Wärmepumpen | AT72: Zubehör
A73: 233750 | B73: Connection set ASL-HM Tend | C73: 152 | D73: --- | E73: Wärmepumpe | F73: 9 | M73: 1 | N73: 1 | S73: --- | T73: --- | U73: --- | W73: --- | X73: --- | Y73: --- | AA73: 107 | AB73: DM0000035125 | AC73: PIC00004794-00.jpg | AD73: --- | AE73: http://www.stiebel-eltron.be/ste_shared/pdf/data/E_---_0_de_English.pdf | AJ73: --- | AP73: Yes | AS73: Luft|Wasser-Wärmepumpen | AT73: Zubehör
A74: 234264 | B74: Cylinder and hydraulic module HSBB 3 | C74: 4080 | D74: --- | E74: Wärmepumpe | F74: 48 | H74: 1 | M74: 1 | N74: 1 | O74: 1 | S74: Broschuere_Speicher | T74: --- | U74: --- | W74: D0000049848 | X74: D0000049790 | Y74: D0000050025 | AA74: 108 | AB74: DM0000039056 | AC74: PIC00004964-00.jpg | AF74: C | AJ74: 15 | AP74: Yes | AS74: Luft|Wasser-Wärmepumpen | AT74: Zubehör
A75: 233510 | B75: Integral cylinder HSBC 200 | C75: 4350 | D75: --- | E75: Wärmepumpe | F75: 48 | H75: 1 | I75: 1 | M75: 1 | N75: 1 | O75: 1 | S75: Broschuere_Speicher | T75: --- | U75: --- | W75: --- | X75: --- | Y75: D0000055503 | AA75: 109 | AB75: DM0000039089 | AC75: PIC00004973-00.jpg | AF75: C | AJ75: 15 | AP75: Yes | AS75: Luft|Wasser-Wärmepumpen | AT75: Zubehör
A76: 234648 | B76: Pump assembly mixer circuit for HSBC 200 | C76: 498 | D76: --- | E76: Wärmepumpe | F76: 48 | S76: --- | T76: --- | U76: --- | W76: --- | X76: --- | Y76: D0000056347 | AA76: 109 | AB76: DM0000039089 | AC76: PIC00005030-00.jpg | AJ76: --- | AP76: Yes | AS76: Zubehör Warmwasser | AT76: Zubehör
A77: 234343 | B77: Compact indoor installation WPIC for WPL 13/18/23 | C77: 4275 | D77: --- | E77: Wärmepumpe | F77: 52 | M77: 1 | N77: 1 | S77: --- | T77: --- | U77: Planung_WP_WPL_E_cool | W77: D0000017541 | X77: --- | Y77: D0000016719 | AA77: 110 | AB77: DM0000036803 | AC77: PIC00005051-00.jpg | AJ77: --- | AP77: Yes | AS77: Luft|Wasser-Wärmepumpen | AT77: Zubehör
A78: 74412 | B78: Accessories WPL 13/18/23 internal installation | C78: 1080 | D78: --- | E78: Wärmepumpe | F78: 52 | M78: 1 | N78: 1 | S78: --- | T78: --- | U78: Planung_WP_WPL_E_cool | W78: D0000017626 | X78: --- | Y78: D0000016755 | AA78: 110 | AB78: DM0000018963 | AC78: PIC00000418-00.jpg | AD78: 6607 | AE78: http://www.stiebel-eltron.be/ste_shared/pdf/data/E_6607_0_de_English.pdf | AJ78: --- | AP78: Yes | AS78: Luft|Wasser-Wärmepumpen | AT78: Zubehör
A79: 74413 | B79: Accessories WPL 13/18/23 external installation | C79: 1270 | D79: --- | E79: Wärmepumpe | F79: 52 | M79: 1 | N79: 1 | S79: --- | T79: --- | U79: Planung_WP_WPL_E_cool | W79: D0000017625 | X79: --- | Y79: D0000016755 | AA79: 110 | AB79: DM0000018963 | AC79: PIC00000457-00.jpg | AD79: 6607 | AE79: http://www.stiebel-eltron.be/ste_shared/pdf/data/E_6607_0_de_English.pdf | AJ79: --- | AP79: Yes | AS79: Luft|Wasser-Wärmepumpen | AT79: Zubehör
A80: 231890 | B80: Accessories WPL 13/18/23 SR external installation | C80: 1395 | D80: --- | E80: Wärmepumpe | F80: 52 | M80: 1 | N80: 1 | S80: --- | T80: --- | U80: Planung_WP_WPL_E_cool | W80: D0000017625 | X80: --- | Y80: D0000016755 | AA80: 110 | AB80: DM0000018963 | AC80: PIC00002963-00.jpg | AD80: 6607 | AE80: http://www.stiebel-eltron.be/ste_shared/pdf/data/E_6607_0_de_English.pdf | AJ80: --- | AP80: Yes | AS80: Luft|Wasser-Wärmepumpen | AT80: Zubehör
A81: 230206 | B81: Accessories WPL 33 HT internal installation | C81: 1148 | D81: --- | E81: Wärmepumpe | F81: 52 | M81: 1 | N81: 1 | S81: --- | T81: --- | U81: Planung_WP_WPL_33_HT | W81: D0000049967 | X81: --- | Y81: D0000016774 | AA81: 110 | AB81: DM0000022412 | AC81: PIC00000418-00.jpg | AD81: 6607 | AE81: http://www.stiebel-eltron.be/ste_shared/pdf/data/E_6607_0_de_English.pdf | AJ81: --- | AP81: Yes | AS81: Luft|Wasser-Wärmepumpen | AT81: Zubehör
A82: 230207 | B82: Accessories WPL 33 HT external installation | C82: 1447 | D82: --- | E82: Wärmepumpe | F82: 52 | M82: 1 | N82: 1 | S82: --- | T82: --- | U82: Planung_WP_WPL_33_HT | W82: D0000017643 | X82: D0000041913 | Y82: D0000016798 | AA82: 110 | AB82: DM0000022412 | AC82: PIC00000457-00.jpg | AD82: 6607 | AE82: http://www.stiebel-eltron.be/ste_shared/pdf/data/E_6607_0_de_English.pdf | AJ82: --- | AP82: Yes | AS82: Luft|Wasser-Wärmepumpen | AT82: Zubehör
A83: 232021 | B83: Accessories WPL 33 HRT SR external installation | C83: 1512 | D83: --- | E83: Wärmepumpe | F83: 52 | M83: 1 | N83: 1 | S83: --- | T83: --- | U83: Planung_WP_WPL_33_HT | W83: D0000017643 | X83: D0000041913 | Y83: D0000016798 | AA83: 110 | AB83: DM0000022412 | AC83: PIC00002963-00.jpg | AD83: 6607 | AE83: http://www.stiebel-eltron.be/ste_shared/pdf/data/E_6607_0_de_English.pdf | AJ83: --- | AP83: Yes | AS83: Luft|Wasser-Wärmepumpen | AT83: Zubehör
A84: 233836 | B84: Air routing AWG 315 silver | C84: 352 | D84: --- | E84: Wärmepumpe | F84: 15 | M84: 1 | N84: 1 | S84: --- | T84: --- | U84: Planung_WP_Zubehoer_Luft | W84: D0000017645 | X84: --- | Y84: D0000017267 | AA84: 111 | AB84: DM0000019872 | AC84: PIC00004294-00.jpg | AD84: 6608 | AE84: http://www.stiebel-eltron.be/ste_shared/pdf/data/E_6608_0_de_English.pdf | AJ84: --- | AP84: Yes | AS84: Luft|Wasser-Wärmepumpen | AT84: Zubehör
A85: 232955 | B85: Air routing AWG 315 grey | C85: 352 | D85: --- | E85: Wärmepumpe | F85: 15 | M85: 1 | N85: 1 | S85: --- | T85: --- | U85: Planung_WP_Zubehoer_Luft | W85: D0000017645 | X85: --- | Y85: D0000017267 | AA85: 111 | AB85: DM0000019872 | AC85: PIC00003468-00.jpg | AD85: 6608 | AE85: http://www.stiebel-eltron.be/ste_shared/pdf/data/E_6608_0_de_English.pdf | AJ85: --- | AP85: Yes | AS85: Luft|Wasser-Wärmepumpen | AT85: Zubehör
A86: 231039 | B86: Air routing AWG 315 lightwell | C86: 289 | D86: --- | E86: Wärmepumpe | F86: 15 | M86: 1 | N86: 1 | S86: --- | T86: --- | U86: Planung_WP_Zubehoer_Luft | W86: D0000017648 | X86: --- | Y86: D0000017270 | AA86: 111 | AB86: DM0000019872 | AC86: PIC00002968-00.jpg | AD86: 6608 | AE86: http://www.stiebel-eltron.be/ste_shared/pdf/data/E_6608_0_de_English.pdf | AJ86: --- | AP86: Yes | AS86: Luft|Wasser-Wärmepumpen | AT86: Zubehör
A87: 233837 | B87: Air routing AWG 560 H silver | C87: 456 | D87: --- | E87: Wärmepumpe | F87: 15 | M87: 1 | N87: 1 | S87: --- | T87: --- | U87: Planung_WP_Zubehoer_Luft | W87: D0000017646 | X87: --- | Y87: D0000017268 | AA87: 112 | AB87: DM0000019872 | AC87: PIC00004295-00.jpg | AD87: 6608 | AE87: http://www.stiebel-eltron.be/ste_shared/pdf/data/E_6608_0_de_English.pdf | AJ87: --- | AP87: Yes | AS87: Luft|Wasser-Wärmepumpen | AT87: Zubehör
A88: 232956 | B88: Air routing AWG 560 H grey | C88: 452 | D88: --- | E88: Wärmepumpe | F88: 15 | M88: 1 | N88: 1 | S88: --- | T88: --- | U88: Planung_WP_Zubehoer_Luft | W88: D0000017646 | X88: --- | Y88: D0000017268 | AA88: 112 | AB88: DM0000019872 | AC88: PIC00003567-00.jpg | AD88: 6608 | AE88: http://www.stiebel-eltron.be/ste_shared/pdf/data/E_6608_0_de_English.pdf | AJ88: --- | AP88: Yes | AS88: Luft|Wasser-Wärmepumpen | AT88: Zubehör
A89: 231041 | B89: Air routing AWG 560 lightwell | C89: 380 | D89: --- | E89: Wärmepumpe | F89: 15 | M89: 1 | N89: 1 | S89: --- | T89: --- | U89: Planung_WP_Zubehoer_Luft | W89: D0000017649 | X89: --- | Y89: D0000017271 | AA89: 112 | AB89: DM0000019872 | AC89: PIC00005260-00.jpg | AD89: 6608 | AE89: http://www.stiebel-eltron.be/ste_shared/pdf/data/E_6608_0_de_English.pdf | AJ89: --- | AP89: Yes | AS89: Luft|Wasser-Wärmepumpen | AT89: Zubehör
A90: 233838 | B90: Air routing AWG 560 V silver | C90: 487 | D90: --- | E90: Wärmepumpe | F90: 15 | M90: 1 | N90: 1 | S90: --- | T90: --- | U90: Planung_WP_Zubehoer_Luft | W90: D0000017647 | X90: --- | Y90: D0000017269 | AA90: 112 | AB90: DM0000019872 | AC90: PIC00004296-00.jpg | AD90: 6608 | AE90: http://www.stiebel-eltron.be/ste_shared/pdf/data/E_6608_0_de_English.pdf | AJ90: --- | AP90: Yes | AS90: Luft|Wasser-Wärmepumpen | AT90: Zubehör
A91: 232957 | B91: Air routing AWG 560 V grey | C91: 477 | D91: --- | E91: Wärmepumpe | F91: 15 | M91: 1 | N91: 1 | S91: --- | T91: --- | U91: Planung_WP_Zubehoer_Luft | W91: D0000017647 | X91: --- | Y91: D0000017269 | AA91: 112 | AB91: DM0000019872 | AC91: PIC00003568-00.jpg | AD91: 6608 | AE91: http://www.stiebel-eltron.be/ste_shared/pdf/data/E_6608_0_de_English.pdf | AJ91: --- | AP91: Yes | AS91: Luft|Wasser-Wärmepumpen | AT91: Zubehör
A92: 231044 | B92: Air routing AWG 600 lightwell | C92: 423 | D92: --- | E92: Wärmepumpe | F92: 15 | M92: 1 | N92: 1 | S92: --- | T92: --- | U92: Planung_WP_Zubehoer_Luft | W92: D0000017650 | X92: --- | Y92: D0000017272 | AA92: 112 | AB92: DM0000019872 | AC92: PIC00002968-00.jpg | AD92: 6608 | AE92: http://www.stiebel-eltron.be/ste_shared/pdf/data/E_6608_0_de_English.pdf | AJ92: --- | AP92: Yes | AS92: Luft|Wasser-Wärmepumpen | AT92: Zubehör
A93: 232341 | B93: Air baffle for exhaust air LLB AWG 315 L | C93: 31 | D93: --- | E93: Wärmepumpe | F93: 15 | M93: 1 | N93: 1 | S93: --- | T93: --- | U93: Planung_WP_Zubehoer_Luft | W93: --- | X93: --- | Y93: D0000026671 | AA93: 113 | AB93: DM0000028803 | AC93: PIC00004772-00.jpg | AD93: --- | AE93: http://www.stiebel-eltron.be/ste_shared/pdf/data/E_---_0_de_English.pdf | AJ93: --- | AP93: Yes | AS93: Luft|Wasser-Wärmepumpen | AT93: Zubehör
A94: 232342 | B94: Air baffle for exhaust air LLB AWG 560 L | C94: 42 | D94: --- | E94: Wärmepumpe | F94: 15 | M94: 1 | N94: 1 | S94: --- | T94: --- | U94: Planung_WP_Zubehoer_Luft | W94: --- | X94: --- | Y94: D0000026672 | AA94: 113 | AB94: DM0000028803 | AC94: PIC00004772-00.jpg | AD94: --- | AE94: http://www.stiebel-eltron.be/ste_shared/pdf/data/E_---_0_de_English.pdf | AJ94: --- | AP94: Yes | AS94: Luft|Wasser-Wärmepumpen | AT94: Zubehör
A95: 170018 | B95: Silencer DN 315 | C95: 141 | D95: --- | E95: Wärmepumpe | F95: 15 | M95: 1 | N95: 1 | S95: --- | T95: --- | U95: --- | W95: --- | X95: --- | Y95: --- | AA95: 113 | AB95: --- | AC95: PIC00004717-00.jpg | AD95: 6608 | AE95: http://www.stiebel-eltron.be/ste_shared/pdf/data/E_6608_0_de_English.pdf | AJ95: --- | AP95: Yes | AS95: Luft|Wasser-Wärmepumpen | AT95: Zubehör
A96: 167120 | B96: Hose connection plate DN 315 | C96: 104 | D96: --- | E96: Wärmepumpe | F96: 15 | M96: 1 | N96: 1 | S96: --- | T96: --- | U96: Planung_WP_Zubehoer_Luft | W96: --- | X96: --- | Y96: D0000017277 | AA96: 113 | AB96: --- | AC96: PIC00000585-00.jpg | AD96: 6608 | AE96: http://www.stiebel-eltron.be/ste_shared/pdf/data/E_6608_0_de_English.pdf | AJ96: --- | AP96: Yes | AS96: Luft|Wasser-Wärmepumpen | AT96: Zubehör
A97: 3478 | B97: Hose connection plate DN 560 | C97: On request | D97: --- | E97: Wärmepumpe | F97: 15 | M97: 1 | N97: 1 | S97: --- | T97: --- | U97: Planung_WP_Zubehoer_Luft | W97: --- | X97: --- | Y97: --- | AA97: 113 | AB97: --- | AC97: PIC00003966-00.jpg | AD97: 6608 | AE97: http://www.stiebel-eltron.be/ste_shared/pdf/data/E_6608_0_de_English.pdf | AJ97: --- | AP97: Yes | AS97: Luft|Wasser-Wärmepumpen | AT97: Zubehör
A98: 234646 | B98: Air hose DN 315, 4m, S | C98: 141 | D98: --- | E98: Wärmepumpe | F98: 15 | M98: 1 | N98: 1 | S98: --- | T98: --- | U98: Planung_WP_Zubehoer_Luft | W98: --- | X98: --- | Y98: --- | AA98: 113 | AB98: --- | AC98: PIC00002914-00.jpg | AJ98: --- | AP98: Yes | AS98: Luft|Wasser-Wärmepumpen | AT98: Zubehör
A99: 234647 | B99: Air hose DN 560, 4m, S | C99: 345 | D99: --- | E99: Wärmepumpe | F99: 15 | M99: 1 | N99: 1 | S99: --- | T99: --- | U99: Planung_WP_Zubehoer_Luft | W99: --- | X99: --- | Y99: --- | AA99: 113 | AB99: --- | AC99: PIC00002914-00.jpg | AJ99: --- | AP99: Yes | AS99: Luft|Wasser-Wärmepumpen | AT99: Zubehör
A100: 231835 | B100: Air hose DN 315, 4m | C100: 130 | D100: --- | E100: Wärmepumpe | F100: 15 | M100: 1 | N100: 1 | S100: --- | T100: --- | U100: Planung_WP_Zubehoer_Luft | W100: --- | X100: --- | Y100: --- | AA100: 113 | AB100: --- | AC100: PIC00002914-00.jpg | AD100: 6608 | AE100: http://www.stiebel-eltron.be/ste_shared/pdf/data/E_6608_0_de_English.pdf | AJ100: --- | AP100: Yes | AS100: Luft|Wasser-Wärmepumpen | AT100: Zubehör
A101: 231836 | B101: Air hose DN 560, 4m | C101: 250 | D101: --- | E101: Wärmepumpe | F101: 15 | M101: 1 | N101: 1 | S101: --- | T101: --- | U101: Planung_WP_Zubehoer_Luft | W101: --- | X101: --- | Y101: --- | AA101: 113 | AB101: --- | AC101: PIC00002914-00.jpg | AD101: 6608 | AE101: http://www.stiebel-eltron.be/ste_shared/pdf/data/E_6608_0_de_English.pdf | AJ101: --- | AP101: Yes | AS101: Luft|Wasser-Wärmepumpen | AT101: Zubehör
A102: 229286 | B102: Condensate pump PK 9 | C102: 228 | D102: --- | E102: Wärmepumpe | F102: 52 | M102: 1 | N102: 1 | S102: --- | T102: --- | U102: Planung_WP_Zubehoer_Luft | W102: --- | X102: --- | Y102: D0000017281 | AA102: 113 | AB102: DM0000019188 | AC102: PIC00001683-00.jpg | AD102: 6614 | AE102: http://www.stiebel-eltron.be/ste_shared/pdf/data/E_6614_0_de_English.pdf | AJ102: --- | AP102: Yes | AS102: Luft|Wasser-Wärmepumpen | AT102: Zubehör
A103: 185325 | B103: Duct silencer KSD for WPL 13/18/23 | C103: 977 | D103: --- | E103: Wärmepumpe | F103: 15 | M103: 1 | N103: 1 | S103: --- | T103: --- | U103: Planung_WP_Zubehoer_Luft | W103: D0000022121 | X103: --- | Y103: --- | AA103: 113 | AB103: --- | AC103: PIC00000593-00.jpg | AD103: 6612 | AE103: http://www.stiebel-eltron.be/ste_shared/pdf/data/E_6612_0_de_English.pdf | AJ103: --- | AP103: Yes | AS103: Luft|Wasser-Wärmepumpen | AT103: Zubehör
A104: 185370 | B104: Duct silencer KSD for WPL 33 HT | C104: 1144 | D104: --- | E104: Wärmepumpe | F104: 15 | M104: 1 | N104: 1 | S104: --- | T104: --- | U104: Planung_WP_Zubehoer_Luft | W104: --- | X104: --- | Y104: --- | AA104: 113 | AB104: --- | AC104: PIC00000593-00.jpg | AD104: 6612 | AE104: http://www.stiebel-eltron.be/ste_shared/pdf/data/E_6612_0_de_English.pdf | AJ104: --- | AP104: Yes | AS104: Luft|Wasser-Wärmepumpen | AT104: Zubehör
A105: 222263 | B105: Wall mounting panel 2 | C105: 48 | D105: --- | E105: Wärmepumpe | F105: 52 | M105: 1 | N105: 1 | S105: --- | T105: --- | U105: Planung_WP_Zubehoer_Luft | W105: --- | X105: --- | Y105: --- | AA105: 114 | AB105: DM0000019233 | AC105: PIC00004686-00.jpg | AD105: 6613 | AE105: http://www.stiebel-eltron.be/ste_shared/pdf/data/E_6613_0_de_English.pdf | AJ105: --- | AP105: Yes | AS105: Luft|Wasser-Wärmepumpen | AT105: Zubehör
A106: 232963 | B106: Wall mounting WPL 10/15/25 MK-WPL | C106: 153 | D106: --- | E106: Wärmepumpe | F106: 52 | M106: 1 | N106: 1 | S106: --- | T106: --- | U106: Planung_WP_Zubehoer_Luft | W106: D0000017653 | X106: --- | Y106: D0000017280 | AA106: 114 | AB106: DM0000022314 | AC106: PIC00001166-00.jpg | AD106: 8308 | AE106: http://www.stiebel-eltron.be/ste_shared/pdf/data/E_8308_0_de_English.pdf | AJ106: --- | AP106: Yes | AS106: Luft|Wasser-Wärmepumpen | AT106: Zubehör
A107: 234722 | B107: Wall mounting panel WPL 10/25 AC | C107: 315 | D107: --- | E107: Wärmepumpe | F107: 52 | M107: 1 | N107: 1 | S107: --- | T107: --- | U107: Planung_WP_Zubehoer_Luft | W107: --- | X107: --- | Y107: D0000055068 | AA107: 114 | AB107: DM0000039036 | AC107: PIC00004741-00.jpg | AJ107: --- | AP107: Yes | AS107: Luft|Wasser-Wärmepumpen | AT107: Zubehör
A108: 232964 | B108: Console WPL 10/15/25 SK-WPL | C108: 472 | D108: --- | E108: Wärmepumpe | F108: 52 | M108: 1 | N108: 1 | S108: --- | T108: --- | U108: Planung_WP_Zubehoer_Luft | W108: D0000017652 | X108: --- | Y108: D0000017279 | AA108: 114 | AB108: DM0000022329 | AC108: PIC00001131-00.jpg | AD108: 8307 | AE108: http://www.stiebel-eltron.be/ste_shared/pdf/data/E_8307_0_de_English.pdf | AJ108: --- | AP108: Yes | AS108: Luft|Wasser-Wärmepumpen | AT108: Zubehör
A109: 233047 | B109: Console WPL 10 AC MK-WPL | C109: 480 | D109: --- | E109: Wärmepumpe | F109: 52 | M109: 1 | N109: 1 | S109: --- | T109: --- | U109: Planung_WP_Zubehoer_Luft | W109: --- | X109: --- | Y109: --- | AA109: 114 | AB109: DM0000027198 | AC109: PIC00003657-00.jpg | AD109: 8560 | AE109: http://www.stiebel-eltron.be/ste_shared/pdf/data/E_8560_0_de_English.pdf | AJ109: --- | AP109: Yes | AS109: Luft|Wasser-Wärmepumpen | AT109: Zubehör
A110: 233622 | B110: Connection kit AS-WP 1 | C110: 129 | D110: --- | E110: Wärmepumpe | F110: 9 | M110: 1 | N110: 1 | S110: --- | T110: --- | U110: --- | W110: --- | X110: --- | Y110: --- | AA110: 114 | AB110: DM0000031106 | AC110: PIC00004288-00.jpg | AD110: --- | AE110: http://www.stiebel-eltron.be/ste_shared/pdf/data/E_---_0_de_English.pdf | AJ110: --- | AP110: Yes | AS110: Luft|Wasser-Wärmepumpen | AT110: Zubehör
A111: 233623 | B111: Connection kit AS-WP 2 | C111: 81 | D111: --- | E111: Wärmepumpe | F111: 9 | M111: 1 | N111: 1 | S111: --- | T111: --- | U111: --- | W111: --- | X111: --- | Y111: --- | AA111: 114 | AB111: DM0000031103 | AC111: PIC00004316-00.jpg | AD111: --- | AE111: http://www.stiebel-eltron.be/ste_shared/pdf/data/E_---_0_de_English.pdf | AJ111: --- | AP111: Yes | AS111: Luft|Wasser-Wärmepumpen | AT111: Zubehör
A112: 232047 | B112: Split line 10x1 10 m | C112: 74 | D112: --- | E112: Wärmepumpe | F112: 52 | M112: 1 | N112: 1 | S112: --- | T112: --- | U112: --- | W112: --- | X112: --- | Y112: --- | AA112: 115 | AB112: --- | AC112: PIC00002380-00.jpg | AD112: 8507 | AE112: http://www.stiebel-eltron.be/ste_shared/pdf/data/E_8507_0_de_English.pdf | AJ112: --- | AP112: Yes | AS112: Luft|Wasser-Wärmepumpen | AT112: Zubehör
A113: 232048 | B113: Split line 10x1 15 m | C113: 111 | D113: --- | E113: Wärmepumpe | F113: 52 | M113: 1 | N113: 1 | S113: --- | T113: --- | U113: --- | W113: --- | X113: --- | Y113: --- | AA113: 115 | AB113: --- | AC113: PIC00002380-00.jpg | AD113: 8507 | AE113: http://www.stiebel-eltron.be/ste_shared/pdf/data/E_8507_0_de_English.pdf | AJ113: --- | AP113: Yes | AS113: Luft|Wasser-Wärmepumpen | AT113: Zubehör
A114: 232049 | B114: Split line 10x1 25 m | C114: 185 | D114: --- | E114: Wärmepumpe | F114: 52 | M114: 1 | N114: 1 | S114: --- | T114: --- | U114: --- | W114: --- | X114: --- | Y114: --- | AA114: 115 | AB114: --- | AC114: PIC00002380-00.jpg | AD114: 8507 | AE114: http://www.stiebel-eltron.be/ste_shared/pdf/data/E_8507_0_de_English.pdf | AJ114: --- | AP114: Yes | AS114: Luft|Wasser-Wärmepumpen | AT114: Zubehör
A115: 232050 | B115: Split line 16x1 10 m | C115: 119 | D115: --- | E115: Wärmepumpe | F115: 52 | M115: 1 | N115: 1 | S115: --- | T115: --- | U115: --- | W115: --- | X115: --- | Y115: --- | AA115: 115 | AB115: --- | AC115: PIC00002380-00.jpg | AD115: 8509 | AE115: http://www.stiebel-eltron.be/ste_shared/pdf/data/E_8509_0_de_English.pdf | AJ115: --- | AP115: Yes | AS115: Luft|Wasser-Wärmepumpen | AT115: Zubehör
A116: 232051 | B116: Split line 16x1 15 m | C116: 179 | D116: --- | E116: Wärmepumpe | F116: 52 | M116: 1 | N116: 1 | S116: --- | T116: --- | U116: --- | W116: --- | X116: --- | Y116: --- | AA116: 115 | AB116: --- | AC116: PIC00002380-00.jpg | AD116: 8509 | AE116: http://www.stiebel-eltron.be/ste_shared/pdf/data/E_8509_0_de_English.pdf | AJ116: --- | AP116: Yes | AS116: Luft|Wasser-Wärmepumpen | AT116: Zubehör
A117: 232052 | B117: Split line 16x1 25 m | C117: 298 | D117: --- | E117: Wärmepumpe | F117: 52 | M117: 1 | N117: 1 | S117: --- | T117: --- | U117: --- | W117: --- | X117: --- | Y117: --- | AA117: 115 | AB117: --- | AC117: PIC00002380-00.jpg | AD117: 8509 | AE117: http://www.stiebel-eltron.be/ste_shared/pdf/data/E_8509_0_de_English.pdf | AJ117: --- | AP117: Yes | AS117: Luft|Wasser-Wärmepumpen | AT117: Zubehör
A118: 232053 | B118: Split line 18x1 10 m | C118: 135 | D118: --- | E118: Wärmepumpe | F118: 52 | M118: 1 | N118: 1 | S118: --- | T118: --- | U118: --- | W118: --- | X118: --- | Y118: --- | AA118: 115 | AB118: --- | AC118: PIC00002380-00.jpg | AD118: 8510 | AE118: http://www.stiebel-eltron.be/ste_shared/pdf/data/E_8510_0_de_English.pdf | AJ118: --- | AP118: Yes | AS118: Luft|Wasser-Wärmepumpen | AT118: Zubehör
A119: 232054 | B119: Split line 18x1 15 m | C119: 202 | D119: --- | E119: Wärmepumpe | F119: 52 | M119: 1 | N119: 1 | S119: --- | T119: --- | U119: --- | W119: --- | X119: --- | Y119: --- | AA119: 115 | AB119: --- | AC119: PIC00002380-00.jpg | AD119: 8510 | AE119: http://www.stiebel-eltron.be/ste_shared/pdf/data/E_8510_0_de_English.pdf | AJ119: --- | AP119: Yes | AS119: Luft|Wasser-Wärmepumpen | AT119: Zubehör
A120: 232055 | B120: Split line 18x1 25 m | C120: 336 | D120: --- | E120: Wärmepumpe | F120: 52 | M120: 1 | N120: 1 | S120: --- | T120: --- | U120: --- | W120: --- | X120: --- | Y120: --- | AA120: 115 | AB120: --- | AC120: PIC00002380-00.jpg | AD120: 8510 | AE120: http://www.stiebel-eltron.be/ste_shared/pdf/data/E_8510_0_de_English.pdf | AJ120: --- | AP120: Yes | AS120: Luft|Wasser-Wärmepumpen | AT120: Zubehör
A121: 227557 | B121: Insulating tape, 10 m | C121: On request | D121: --- | E121: Wärmepumpe | F121: 52 | M121: 1 | N121: 1 | S121: --- | T121: --- | U121: --- | W121: --- | X121: --- | Y121: --- | AA121: 115 | AB121: --- | AC121: PIC00002542-00.jpg | AD121: 6734 | AE121: http://www.stiebel-eltron.be/ste_shared/pdf/data/E_6734_0_de_English.pdf | AJ121: --- | AP121: Yes | AS121: Luft|Wasser-Wärmepumpen | AT121: Zubehör
A122: 232926 | B122: Brine|Water heat pump WPC 04 | C122: 7368 | D122: --- | E122: Wärmepumpe | F122: 46 | G122: 1 | H122: 1 | L122: 1 | O122: 1 | S122: Broschuere_Sole-WP | T122: --- | U122: Planung_WP_WPC | W122: D0000033969 | X122: D0000040692 | Y122: D0000033980 | AA122: 117 | AB122: DM0000030878 | AC122: PIC00003663-00.jpg | AD122: 5973 | AE122: http://www.stiebel-eltron.be/ste_shared/pdf/data/E_5973_0_de_English.pdf | AF122: A++ | AG122: (55 °C) | AH122: A++ | AI122: (35 °C) | AJ122: 12 | AP122: Yes | AS122: Sole|Wasser-Wärmepumpen | AT122: Kompaktbaureihe
A123: 232927 | B123: Brine|Water heat pump WPC 05 | C123: 8028 | D123: --- | E123: Wärmepumpe | F123: 46 | G123: 1 | H123: 1 | L123: 1 | O123: 1 | S123: Broschuere_Sole-WP | T123: --- | U123: Planung_WP_WPC | W123: D0000033969 | X123: D0000040692 | Y123: D0000033980 | AA123: 117 | AB123: DM0000030878 | AC123: PIC00003663-00.jpg | AD123: 5973 | AE123: http://www.stiebel-eltron.be/ste_shared/pdf/data/E_5973_0_de_English.pdf | AF123: A++ | AG123: (55 °C) | AH123: A++ | AI123: (35 °C) | AJ123: 12 | AP123: Yes | AS123: Sole|Wasser-Wärmepumpen | AT123: Kompaktbaureihe
A124: 232928 | B124: Brine|Water heat pump WPC 07 | C124: 8290 | D124: --- | E124: Wärmepumpe | F124: 46 | G124: 1 | H124: 1 | L124: 1 | O124: 1 | S124: Broschuere_Sole-WP | T124: --- | U124: Planung_WP_WPC | W124: D0000033969 | X124: D0000040692 | Y124: D0000033980 | AA124: 117 | AB124: DM0000030878 | AC124: PIC00003663-00.jpg | AD124: 5973 | AE124: http://www.stiebel-eltron.be/ste_shared/pdf/data/E_5973_0_de_English.pdf | AF124: A++ | AG124: (55 °C) | AH124: A++ | AI124: (35 °C) | AJ124: 12 | AP124: Yes | AS124: Sole|Wasser-Wärmepumpen | AT124: Kompaktbaureihe
A125: 232929 | B125: Brine|Water heat pump WPC 10 | C125: 8688 | D125: --- | E125: Wärmepumpe | F125: 46 | G125: 1 | H125: 1 | L125: 1 | O125: 1 | S125: Broschuere_Sole-WP | T125: --- | U125: Planung_WP_WPC | W125: D0000033969 | X125: D0000040692 | Y125: D0000033980 | AA125: 117 | AB125: DM0000030878 | AC125: PIC00003663-00.jpg | AD125: 5973 | AE125: http://www.stiebel-eltron.be/ste_shared/pdf/data/E_5973_0_de_English.pdf | AF125: A++ | AG125: (55 °C) | AH125: A++ | AI125: (35 °C) | AJ125: 12 | AP125: Yes | AS125: Sole|Wasser-Wärmepumpen | AT125: Kompaktbaureihe
A126: 232930 | B126: Brine|Water heat pump WPC 13 | C126: 8901 | D126: --- | E126: Wärmepumpe | F126: 46 | G126: 1 | H126: 1 | L126: 1 | O126: 1 | S126: Broschuere_Sole-WP | T126: --- | U126: Planung_WP_WPC | W126: D0000033969 | X126: D0000040692 | Y126: D0000033980 | AA126: 117 | AB126: DM0000030878 | AC126: PIC00003663-00.jpg | AD126: 5973 | AE126: http://www.stiebel-eltron.be/ste_shared/pdf/data/E_5973_0_de_English.pdf | AF126: A++ | AG126: (55 °C) | AH126: A++ | AI126: (35 °C) | AJ126: 12 | AP126: Yes | AS126: Sole|Wasser-Wärmepumpen | AT126: Kompaktbaureihe
A127: 232931 | B127: Brine|Water heat pump WPC 04 cool | C127: 8128 | D127: --- | E127: Wärmepumpe | F127: 46 | G127: 1 | H127: 1 | L127: 1 | O127: 1 | S127: Broschuere_Sole-WP | T127: --- | U127: Planung_WP_WPC | W127: D0000033969 | X127: D0000040692 | Y127: D0000033980 | AA127: 118 | AB127: DM0000030878 | AC127: PIC00003663-00.jpg | AD127: 5973 | AE127: http://www.stiebel-eltron.be/ste_shared/pdf/data/E_5973_0_de_English.pdf | AF127: A++ | AG127: (55 °C) | AH127: A++ | AI127: (35 °C) | AJ127: 12 | AP127: Yes | AS127: Sole|Wasser-Wärmepumpen | AT127: Kompaktbaureihe
A128: 232932 | B128: Brine|Water heat pump WPC 05 cool | C128: 8708 | D128: --- | E128: Wärmepumpe | F128: 46 | G128: 1 | H128: 1 | L128: 1 | O128: 1 | S128: Broschuere_Sole-WP | T128: --- | U128: Planung_WP_WPC | W128: D0000033969 | X128: D0000040692 | Y128: D0000033980 | AA128: 118 | AB128: DM0000030878 | AC128: PIC00003663-00.jpg | AD128: 5973 | AE128: http://www.stiebel-eltron.be/ste_shared/pdf/data/E_5973_0_de_English.pdf | AF128: A++ | AG128: (55 °C) | AH128: A++ | AI128: (35 °C) | AJ128: 12 | AP128: Yes | AS128: Sole|Wasser-Wärmepumpen | AT128: Kompaktbaureihe
A129: 232933 | B129: Brine|Water heat pump WPC 07 cool | C129: 9101 | D129: --- | E129: Wärmepumpe | F129: 46 | G129: 1 | H129: 1 | L129: 1 | O129: 1 | S129: Broschuere_Sole-WP | T129: --- | U129: Planung_WP_WPC | W129: D0000033969 | X129: D0000040692 | Y129: D0000033980 | AA129: 118 | AB129: DM0000030878 | AC129: PIC00003663-00.jpg | AD129: 5973 | AE129: http://www.stiebel-eltron.be/ste_shared/pdf/data/E_5973_0_de_English.pdf | AF129: A++ | AG129: (55 °C) | AH129: A++ | AI129: (35 °C) | AJ129: 12 | AP129: Yes | AS129: Sole|Wasser-Wärmepumpen | AT129: Kompaktbaureihe
A130: 232934 | B130: Brine|Water heat pump WPC 10 cool | C130: 9536 | D130: --- | E130: Wärmepumpe | F130: 46 | G130: 1 | H130: 1 | L130: 1 | O130: 1 | S130: Broschuere_Sole-WP | T130: --- | U130: Planung_WP_WPC | W130: D0000033969 | X130: D0000040692 | Y130: D0000033980 | AA130: 118 | AB130: DM0000030878 | AC130: PIC00003663-00.jpg | AD130: 5973 | AE130: http://www.stiebel-eltron.be/ste_shared/pdf/data/E_5973_0_de_English.pdf | AF130: A++ | AG130: (55 °C) | AH130: A++ | AI130: (35 °C) | AJ130: 12 | AP130: Yes | AS130: Sole|Wasser-Wärmepumpen | AT130: Kompaktbaureihe
A131: 232935 | B131: Brine|Water heat pump WPC 13 cool | C131: 9736 | D131: --- | E131: Wärmepumpe | F131: 46 | G131: 1 | H131: 1 | L131: 1 | O131: 1 | S131: Broschuere_Sole-WP | T131: --- | U131: Planung_WP_WPC | W131: D0000033969 | X131: D0000040692 | Y131: D0000033980 | AA131: 118 | AB131: DM0000030878 | AC131: PIC00003663-00.jpg | AD131: 5973 | AE131: =IF(AD131="","",HYPERLINK("http://www.stiebel-eltron.be/ste_shared/pdf/data/E_"&AD131&"_0_de_English.pdf")) -> http://www.stiebel-eltron.be/ste_shared/pdf/data/E_5973_0_de_English.pdf | AF131: A++ | AG131: (55 °C) | AH131: A++ | AI131: (35 °C) | AJ131: 12 | AP131: Yes | AS131: Sole|Wasser-Wärmepumpen | AT131: Kompaktbaureihe
A132: 232909 | B132: Brine|Water heat pump WPF 04 | C132: 5983 | D132: --- | E132: Wärmepumpe | F132: 46 | G132: 1 | L132: 1 | S132: Broschuere_Sole-WP | T132: Aufstellung_WPF_E | U132: Planung_WP_WPF | W132: D0000034467 | X132: D0000049763 | Y132: D0000034468 | AA132: 119 | AB132: DM0000030873 | AC132: PIC00003403-00.jpg | AD132: 7133 | AE132: http://www.stiebel-eltron.be/ste_shared/pdf/data/E_7133_0_de_English.pdf | AF132: A++ | AG132: (55 °C) | AH132: A++ | AI132: (35 °C) | AJ132: 11 | AP132: Yes | AS132: Sole|Wasser-Wärmepumpen | AT132: Komfortbaureihe
A133: 232910 | B133: Brine|Water heat pump WPF 05 | C133: 6195 | D133: --- | E133: Wärmepumpe | F133: 46 | G133: 1 | L133: 1 | S133: Broschuere_Sole-WP | T133: Aufstellung_WPF_E | U133: Planung_WP_WPF | W133: D0000034467 | X133: D0000051217 | Y133: D0000034468 | AA133: 119 | AB133: DM0000030873 | AC133: PIC00003403-00.jpg | AD133: 7133 | AE133: http://www.stiebel-eltron.be/ste_shared/pdf/data/E_7133_0_de_English.pdf | AF133: A++ | AG133: (55 °C) | AH133: A++ | AI133: (35 °C) | AJ133: 11 | AP133: Yes | AS133: Sole|Wasser-Wärmepumpen | AT133: Komfortbaureihe
A134: 232911 | B134: Brine|Water heat pump WPF 07 | C134: 6602 | D134: --- | E134: Wärmepumpe | F134: 46 | G134: 1 | L134: 1 | S134: Broschuere_Sole-WP | T134: Aufstellung_WPF_E | U134: Planung_WP_WPF | W134: D0000034467 | X134: D0000051216 | Y134: D0000034468 | AA134: 119 | AB134: DM0000030873 | AC134: PIC00003403-00.jpg | AD134: 7133 | AE134: http://www.stiebel-eltron.be/ste_shared/pdf/data/E_7133_0_de_English.pdf | AF134: A++ | AG134: (55 °C) | AH134: A++ | AI134: (35 °C) | AJ134: 11 | AP134: Yes | AS134: Sole|Wasser-Wärmepumpen | AT134: Komfortbaureihe
A135: 232912 | B135: Brine|Water heat pump WPF 10 | C135: 6842 | D135: --- | E135: Wärmepumpe | F135: 46 | G135: 1 | L135: 1 | S135: Broschuere_Sole-WP | T135: Aufstellung_WPF_E | U135: Planung_WP_WPF | W135: D0000034467 | X135: D0000051214 | Y135: D0000034468 | AA135: 119 | AB135: DM0000030873 | AC135: PIC00003403-00.jpg | AD135: 7133 | AE135: http://www.stiebel-eltron.be/ste_shared/pdf/data/E_7133_0_de_English.pdf | AF135: A++ | AG135: (55 °C) | AH135: A++ | AI135: (35 °C) | AJ135: 11 | AP135: Yes | AS135: Sole|Wasser-Wärmepumpen | AT135: Komfortbaureihe
A136: 232913 | B136: Brine|Water heat pump WPF 13 | C136: 7158 | D136: --- | E136: Wärmepumpe | F136: 46 | G136: 1 | L136: 1 | S136: Broschuere_Sole-WP | T136: Aufstellung_WPF_E | U136: Planung_WP_WPF | W136: D0000034467 | X136: D0000051214 | Y136: D0000034468 | AA136: 119 | AB136: DM0000030873 | AC136: PIC00003403-00.jpg | AD136: 7133 | AE136: http://www.stiebel-eltron.be/ste_shared/pdf/data/E_7133_0_de_English.pdf | AF136: A++ | AG136: (55 °C) | AH136: A++ | AI136: (35 °C) | AJ136: 11 | AP136: Yes | AS136: Sole|Wasser-Wärmepumpen | AT136: Komfortbaureihe
A137: 232914 | B137: Brine|Water heat pump WPF 16 | C137: 7697 | D137: --- | E137: Wärmepumpe | F137: 46 | G137: 1 | L137: 1 | S137: Broschuere_Sole-WP | T137: Aufstellung_WPF_E | U137: Planung_WP_WPF | W137: D0000034467 | X137: D0000051206 | Y137: D0000034468 | AA137: 119 | AB137: DM0000030873 | AC137: PIC00003403-00.jpg | AD137: 7133 | AE137: http://www.stiebel-eltron.be/ste_shared/pdf/data/E_7133_0_de_English.pdf | AF137: A++ | AG137: (55 °C) | AH137: A++ | AI137: (35 °C) | AJ137: 11 | AP137: Yes | AS137: Sole|Wasser-Wärmepumpen | AT137: Komfortbaureihe
A138: 232915 | B138: Brine|Water heat pump WPF 04 cool | C138: 6743 | D138: --- | E138: Wärmepumpe | F138: 46 | G138: 1 | L138: 1 | S138: Broschuere_Sole-WP | T138: Aufstellung_WPF_E | U138: Planung_WP_WPF | W138: D0000034467 | X138: D0000051218 | Y138: D0000034468 | AA138: 120 | AB138: DM0000030873 | AC138: PIC00003403-00.jpg | AD138: 7133 | AE138: http://www.stiebel-eltron.be/ste_shared/pdf/data/E_7133_0_de_English.pdf | AF138: A++ | AG138: (55 °C) | AH138: A++ | AI138: (35 °C) | AJ138: 11 | AP138: Yes | AS138: Sole|Wasser-Wärmepumpen | AT138: Komfortbaureihe
A139: 232916 | B139: Brine|Water heat pump WPF 05 cool | C139: 6956 | D139: --- | E139: Wärmepumpe | F139: 46 | G139: 1 | L139: 1 | S139: Broschuere_Sole-WP | T139: Aufstellung_WPF_E | U139: Planung_WP_WPF | W139: D0000034467 | X139: D0000051217 | Y139: D0000034468 | AA139: 120 | AB139: DM0000030873 | AC139: PIC00003403-00.jpg | AD139: 7133 | AE139: http://www.stiebel-eltron.be/ste_shared/pdf/data/E_7133_0_de_English.pdf | AF139: A++ | AG139: (55 °C) | AH139: A++ | AI139: (35 °C) | AJ139: 11 | AP139: Yes | AS139: Sole|Wasser-Wärmepumpen | AT139: Komfortbaureihe
A140: 232917 | B140: Brine|Water heat pump WPF 07 cool | C140: 7352 | D140: --- | E140: Wärmepumpe | F140: 46 | G140: 1 | L140: 1 | S140: Broschuere_Sole-WP | T140: Aufstellung_WPF_E | U140: Planung_WP_WPF | W140: D0000034467 | X140: D0000051216 | Y140: D0000034468 | AA140: 120 | AB140: DM0000030873 | AC140: PIC00003403-00.jpg | AD140: 7133 | AE140: http://www.stiebel-eltron.be/ste_shared/pdf/data/E_7133_0_de_English.pdf | AF140: A++ | AG140: (55 °C) | AH140: A++ | AI140: (35 °C) | AJ140: 11 | AP140: Yes | AS140: Sole|Wasser-Wärmepumpen | AT140: Komfortbaureihe
A141: 232918 | B141: Brine|Water heat pump WPF 10 cool | C141: 7581 | D141: --- | E141: Wärmepumpe | F141: 46 | G141: 1 | L141: 1 | S141: Broschuere_Sole-WP | T141: Aufstellung_WPF_E | U141: Planung_WP_WPF | W141: D0000034467 | X141: D0000051214 | Y141: D0000034468 | AA141: 120 | AB141: DM0000030873 | AC141: PIC00003403-00.jpg | AD141: 7133 | AE141: http://www.stiebel-eltron.be/ste_shared/pdf/data/E_7133_0_de_English.pdf | AF141: A++ | AG141: (55 °C) | AH141: A++ | AI141: (35 °C) | AJ141: 11 | AP141: Yes | AS141: Sole|Wasser-Wärmepumpen | AT141: Komfortbaureihe
A142: 232919 | B142: Brine|Water heat pump WPF 13 cool | C142: 7901 | D142: --- | E142: Wärmepumpe | F142: 46 | G142: 1 | L142: 1 | S142: Broschuere_Sole-WP | T142: Aufstellung_WPF_E | U142: Planung_WP_WPF | W142: D0000034467 | X142: D0000051214 | Y142: D0000034468 | AA142: 120 | AB142: DM0000030873 | AC142: PIC00003403-00.jpg | AD142: 7133 | AE142: http://www.stiebel-eltron.be/ste_shared/pdf/data/E_7133_0_de_English.pdf | AF142: A++ | AG142: (55 °C) | AH142: A++ | AI142: (35 °C) | AJ142: 11 | AP142: Yes | AS142: Sole|Wasser-Wärmepumpen | AT142: Komfortbaureihe
A143: 232920 | B143: Brine|Water heat pump WPF 16 cool | C143: 8443 | D143: --- | E143: Wärmepumpe | F143: 46 | G143: 1 | L143: 1 | S143: Broschuere_Sole-WP | T143: Aufstellung_WPF_E | U143: Planung_WP_WPF | W143: D0000034467 | X143: D0000051206 | Y143: D0000034468 | AA143: 120 | AB143: DM0000030873 | AC143: PIC00003403-00.jpg | AD143: 7133 | AE143: http://www.stiebel-eltron.be/ste_shared/pdf/data/E_7133_0_de_English.pdf | AF143: A++ | AG143: (55 °C) | AH143: A++ | AI143: (35 °C) | AJ143: 11 | AP143: Yes | AS143: Sole|Wasser-Wärmepumpen | AT143: Komfortbaureihe
A144: 230944 | B144: Brine|water heat pump WPF 5 basic | C144: 5091 | D144: --- | E144: Wärmepumpe | F144: 46 | G144: 1 | L144: 1 | N144: 1 | S144: Broschuere_Sole-WP | T144: Aufstellung_WPF_E | U144: Planung_WP_WPF_basic | W144: D0000017655 | X144: D0000051202 | Y144: D0000016823 | AA144: 121 | AB144: DM0000022470 | AC144: PIC00001138-00.jpg | AD144: 5974 | AE144: http://www.stiebel-eltron.be/ste_shared/pdf/data/E_5974_0_de_English.pdf | AF144: A+ | AG144: (55 °C) | AH144: A++ | AI144: (35 °C) | AJ144: 11 | AP144: Yes | AS144: Sole|Wasser-Wärmepumpen | AT144: Basisbaureihe
A145: 230945 | B145: Brine|water heat pump WPF 7 basic | C145: 5480 | D145: --- | E145: Wärmepumpe | F145: 46 | G145: 1 | L145: 1 | N145: 1 | S145: Broschuere_Sole-WP | T145: Aufstellung_WPF_E | U145: Planung_WP_WPF_basic | W145: D0000017655 | X145: D0000051198 | Y145: D0000016823 | AA145: 121 | AB145: DM0000022470 | AC145: PIC00001138-00.jpg | AD145: 5974 | AE145: http://www.stiebel-eltron.be/ste_shared/pdf/data/E_5974_0_de_English.pdf | AF145: A+ | AG145: (55 °C) | AH145: A++ | AI145: (35 °C) | AJ145: 11 | AP145: Yes | AS145: Sole|Wasser-Wärmepumpen | AT145: Basisbaureihe
A146: 230946 | B146: Brine|water heat pump WPF 10 basic | C146: 5727 | D146: --- | E146: Wärmepumpe | F146: 46 | G146: 1 | L146: 1 | N146: 1 | S146: Broschuere_Sole-WP | T146: Aufstellung_WPF_E | U146: Planung_WP_WPF_basic | W146: D0000017655 | X146: D0000051213 | Y146: D0000016823 | AA146: 121 | AB146: DM0000022470 | AC146: PIC00001138-00.jpg | AD146: 5974 | AE146: http://www.stiebel-eltron.be/ste_shared/pdf/data/E_5974_0_de_English.pdf | AF146: A+ | AG146: (55 °C) | AH146: A++ | AI146: (35 °C) | AJ146: 11 | AP146: Yes | AS146: Sole|Wasser-Wärmepumpen | AT146: Basisbaureihe
A147: 230947 | B147: Brine|water heat pump WPF 13 basic | C147: 5915 | D147: --- | E147: Wärmepumpe | F147: 46 | G147: 1 | L147: 1 | N147: 1 | S147: Broschuere_Sole-WP | T147: Aufstellung_WPF_E | U147: Planung_WP_WPF_basic | W147: D0000017655 | X147: D0000051209 | Y147: D0000016823 | AA147: 121 | AB147: DM0000022470 | AC147: PIC00001138-00.jpg | AD147: 5974 | AE147: http://www.stiebel-eltron.be/ste_shared/pdf/data/E_5974_0_de_English.pdf | AF147: A+ | AG147: (55 °C) | AH147: A++ | AI147: (35 °C) | AJ147: 11 | AP147: Yes | AS147: Sole|Wasser-Wärmepumpen | AT147: Basisbaureihe
A148: 230948 | B148: Brine|water heat pump WPF 16 basic | C148: 6157 | D148: --- | E148: Wärmepumpe | F148: 46 | G148: 1 | L148: 1 | N148: 1 | S148: Broschuere_Sole-WP | T148: Aufstellung_WPF_E | U148: Planung_WP_WPF_basic | W148: D0000017655 | X148: D0000051205 | Y148: D0000016823 | AA148: 121 | AB148: DM0000022470 | AC148: PIC00001138-00.jpg | AD148: 5974 | AE148: http://www.stiebel-eltron.be/ste_shared/pdf/data/E_5974_0_de_English.pdf | AF148: A+ | AG148: (55 °C) | AH148: A++ | AI148: (35 °C) | AJ148: 11 | AP148: Yes | AS148: Sole|Wasser-Wärmepumpen | AT148: Basisbaureihe
A149: 185349 | B149: Brine|water heat pump WPF 10 M | C149: 4577 | D149: --- | E149: Wärmepumpe | F149: 46 | G149: 1 | L149: 1 | S149: Broschuere_Sole-WP | T149: Aufstellung_WPF_E | U149: Planung_WP_WPF_M | W149: D0000017116 | X149: D0000041762 | Y149: D0000016831 | AA149: 122 | AB149: DM0000018994 | AC149: PIC00000594-00.jpg | AD149: 5975 | AE149: http://www.stiebel-eltron.be/ste_shared/pdf/data/E_5975_0_de_English.pdf | AF149: A+ | AG149: (55 °C) | AH149: A++ | AI149: (35 °C) | AJ149: 11 | AP149: Yes | AS149: Sole|Wasser-Wärmepumpen | AT149: Modulbaureihe
A150: 182135 | B150: Brine|water heat pump WPF 13 M | C150: 4680 | D150: --- | E150: Wärmepumpe | F150: 46 | G150: 1 | L150: 1 | S150: Broschuere_Sole-WP | T150: Aufstellung_WPF_E | U150: Planung_WP_WPF_M | W150: D0000017116 | X150: D0000041762 | Y150: D0000016831 | AA150: 122 | AB150: DM0000018994 | AC150: PIC00000594-00.jpg | AD150: 5975 | AE150: http://www.stiebel-eltron.be/ste_shared/pdf/data/E_5975_0_de_English.pdf | AF150: A++ | AG150: (55 °C) | AH150: A++ | AI150: (35 °C) | AJ150: 11 | AP150: Yes | AS150: Sole|Wasser-Wärmepumpen | AT150: Modulbaureihe
A151: 220894 | B151: Brine|water heat pump WPF 16 M | C151: 5117 | D151: --- | E151: Wärmepumpe | F151: 46 | G151: 1 | L151: 1 | S151: Broschuere_Sole-WP | T151: Aufstellung_WPF_E | U151: Planung_WP_WPF_M | W151: D0000017116 | X151: D0000041762 | Y151: D0000016831 | AA151: 122 | AB151: DM0000018994 | AC151: PIC00000594-00.jpg | AD151: 5975 | AE151: http://www.stiebel-eltron.be/ste_shared/pdf/data/E_5975_0_de_English.pdf | AF151: A+ | AG151: (55 °C) | AH151: A++ | AI151: (35 °C) | AJ151: 11 | AP151: Yes | AS151: Sole|Wasser-Wärmepumpen | AT151: Modulbaureihe
A152: 185365 | B152: Brine|water heat pump WPF 20 SET | C152: 11391 | D152: --- | E152: Wärmepumpe | F152: 46 | G152: 1 | L152: 1 | S152: Broschuere_Sole-WP | T152: --- | U152: Planung_WP_WPF_M | W152: D0000017116 | X152: D0000043929 | Y152: D0000017814 | AA152: 123 | AB152: DM0000018994 | AC152: PIC00002716-00.jpg | AD152: 5976 | AE152: http://www.stiebel-eltron.be/ste_shared/pdf/data/E_5976_0_de_English.pdf | AF152: A+ | AG152: (55 °C) | AH152: A++ | AI152: (35 °C) | AJ152: 11 | AP152: Yes | AS152: Sole|Wasser-Wärmepumpen | AT152: Modulbaureihe
A153: 185366 | B153: Brine|water heat pump WPF 23 SET | C153: 11567 | D153: --- | E153: Wärmepumpe | F153: 46 | G153: 1 | L153: 1 | S153: Broschuere_Sole-WP | T153: --- | U153: Planung_WP_WPF_M | W153: D0000017116 | X153: D0000043929 | Y153: D0000017814 | AA153: 123 | AB153: DM0000018994 | AC153: PIC00002716-00.jpg | AD153: 5976 | AE153: http://www.stiebel-eltron.be/ste_shared/pdf/data/E_5976_0_de_English.pdf | AF153: A+ | AG153: (55 °C) | AH153: A++ | AI153: (35 °C) | AJ153: 11 | AP153: Yes | AS153: Sole|Wasser-Wärmepumpen | AT153: Modulbaureihe
A154: 182139 | B154: Brine|water heat pump WPF 26 SET | C154: 11741 | D154: --- | E154: Wärmepumpe | F154: 46 | G154: 1 | L154: 1 | S154: Broschuere_Sole-WP | T154: --- | U154: Planung_WP_WPF_M | W154: D0000017116 | X154: D0000043929 | Y154: D0000017814 | AA154: 123 | AB154: DM0000018994 | AC154: PIC00002716-00.jpg | AD154: 5976 | AE154: http://www.stiebel-eltron.be/ste_shared/pdf/data/E_5976_0_de_English.pdf | AF154: A+ | AG154: (55 °C) | AH154: A++ | AI154: (35 °C) | AJ154: 11 | AP154: Yes | AS154: Sole|Wasser-Wärmepumpen | AT154: Modulbaureihe
A155: 220896 | B155: Brine|water heat pump WPF 29 SET | C155: 12149 | D155: --- | E155: Wärmepumpe | F155: 46 | G155: 1 | L155: 1 | S155: Broschuere_Sole-WP | T155: --- | U155: Planung_WP_WPF_M | W155: D0000017116 | X155: D0000043929 | Y155: D0000017814 | AA155: 123 | AB155: DM0000018994 | AC155: PIC00002716-00.jpg | AD155: 5976 | AE155: http://www.stiebel-eltron.be/ste_shared/pdf/data/E_5976_0_de_English.pdf | AF155: A+ | AG155: (55 °C) | AH155: A++ | AI155: (35 °C) | AJ155: 11 | AP155: Yes | AS155: Sole|Wasser-Wärmepumpen | AT155: Modulbaureihe
A156: 220897 | B156: Brine|water heat pump WPF 32 SET | C156: 12558 | D156: --- | E156: Wärmepumpe | F156: 46 | G156: 1 | L156: 1 | S156: Broschuere_Sole-WP | T156: --- | U156: Planung_WP_WPF_M | W156: D0000017116 | X156: D0000043929 | Y156: D0000017814 | AA156: 123 | AB156: DM0000018994 | AC156: PIC00002716-00.jpg | AD156: 5976 | AE156: http://www.stiebel-eltron.be/ste_shared/pdf/data/E_5976_0_de_English.pdf | AF156: A+ | AG156: (55 °C) | AH156: A++ | AI156: (35 °C) | AJ156: 11 | AP156: Yes | AS156: Sole|Wasser-Wärmepumpen | AT156: Modulbaureihe
A157: 233003 | B157: Brine|Water heat pump WPF 20 | C157: 11131 | D157: --- | E157: Wärmepumpe | F157: 46 | G157: 1 | L157: 1 | S157: Broschuere_Sole-WP | T157: Aufstellung_WPF_20_66 | U157: Planung_WP_WPF_20-66 | W157: D0000017130 | X157: D0000051015 | Y157: D0000016833 | AA157: 124 | AB157: DM0000018981 | AC157: PIC00000830-00.jpg | AD157: 6557 | AE157: http://www.stiebel-eltron.be/ste_shared/pdf/data/E_6557_0_de_English.pdf | AF157: A++ | AG157: (55 °C) | AH157: A++ | AI157: (35 °C) | AJ157: 11 | AP157: Yes | AS157: Sole|Wasser-Wärmepumpen | AT157: Modulbaureihe
A158: 233004 | B158: Brine|Water heat pump WPF 27 | C158: 12159 | D158: --- | E158: Wärmepumpe | F158: 46 | G158: 1 | L158: 1 | S158: Broschuere_Sole-WP | T158: Aufstellung_WPF_20_66 | U158: Planung_WP_WPF_20-66 | W158: D0000017130 | X158: D0000051014 | Y158: D0000016833 | AA158: 124 | AB158: DM0000018981 | AC158: PIC00000830-00.jpg | AD158: 6557 | AE158: http://www.stiebel-eltron.be/ste_shared/pdf/data/E_6557_0_de_English.pdf | AF158: A++ | AG158: (55 °C) | AH158: A++ | AI158: (35 °C) | AJ158: 11 | AP158: Yes | AS158: Sole|Wasser-Wärmepumpen | AT158: Modulbaureihe
A159: 233005 | B159: Brine|Water heat pump WPF 35 | C159: 14493 | D159: --- | E159: Wärmepumpe | F159: 46 | G159: 1 | L159: 1 | S159: Broschuere_Sole-WP | T159: Aufstellung_WPF_20_66 | U159: Planung_WP_WPF_20-66 | W159: D0000017130 | X159: D0000051204 | Y159: D0000016833 | AA159: 124 | AB159: DM0000018981 | AC159: PIC00000830-00.jpg | AD159: 6557 | AE159: http://www.stiebel-eltron.be/ste_shared/pdf/data/E_6557_0_de_English.pdf | AF159: A++ | AG159: (55 °C) | AH159: A++ | AI159: (35 °C) | AJ159: 11 | AP159: Yes | AS159: Sole|Wasser-Wärmepumpen | AT159: Modulbaureihe
A160: 233006 | B160: Brine|Water heat pump WPF 40 | C160: 14548 | D160: --- | E160: Wärmepumpe | F160: 46 | G160: 1 | L160: 1 | S160: Broschuere_Sole-WP | T160: Aufstellung_WPF_20_66 | U160: Planung_WP_WPF_20-66 | W160: D0000017130 | X160: D0000051203 | Y160: D0000016833 | AA160: 124 | AB160: DM0000018981 | AC160: PIC00000830-00.jpg | AD160: 6557 | AE160: http://www.stiebel-eltron.be/ste_shared/pdf/data/E_6557_0_de_English.pdf | AF160: A++ | AG160: (55 °C) | AH160: A++ | AI160: (35 °C) | AJ160: 11 | AP160: Yes | AS160: Sole|Wasser-Wärmepumpen | AT160: Modulbaureihe
A161: 233007 | B161: Brine|Water heat pump WPF 52 | C161: 17698 | D161: --- | E161: Wärmepumpe | F161: 46 | G161: 1 | L161: 1 | S161: Broschuere_Sole-WP | T161: Aufstellung_WPF_20_66 | U161: Planung_WP_WPF_20-66 | W161: D0000017130 | X161: D0000051201 | Y161: D0000016833 | AA161: 124 | AB161: DM0000018981 | AC161: PIC00000830-00.jpg | AD161: 6557 | AE161: http://www.stiebel-eltron.be/ste_shared/pdf/data/E_6557_0_de_English.pdf | AF161: A++ | AG161: (55 °C) | AH161: A++ | AI161: (35 °C) | AJ161: 11 | AP161: Yes | AS161: Sole|Wasser-Wärmepumpen | AT161: Modulbaureihe
A162: 233008 | B162: Brine|Water heat pump WPF 66 | C162: 19671 | D162: --- | E162: Wärmepumpe | F162: 46 | G162: 1 | L162: 1 | S162: Broschuere_Sole-WP | T162: Aufstellung_WPF_20_66 | U162: Planung_WP_WPF_20-66 | W162: D0000017130 | X162: D0000051200 | Y162: D0000016833 | AA162: 124 | AB162: DM0000018981 | AC162: PIC00000830-00.jpg | AD162: 6557 | AE162: http://www.stiebel-eltron.be/ste_shared/pdf/data/E_6557_0_de_English.pdf | AF162: A++ | AG162: (55 °C) | AH162: A++ | AI162: (35 °C) | AJ162: 11 | AP162: Yes | AS162: Sole|Wasser-Wärmepumpen | AT162: Modulbaureihe
A163: 227760 | B163: Connection assembly 2 x WPF 20..66 | C163: On request | D163: --- | E163: Wärmepumpe | F163: 7 | L163: 1 | S163: --- | T163: --- | U163: --- | W163: --- | X163: --- | Y163: D0000020355 | AA163: 124 | AB163: DM0000019998 | AC163: --- | AD163: 7727 | AE163: http://www.stiebel-eltron.be/ste_shared/pdf/data/E_7727_0_de_English.pdf | AJ163: --- | AP163: Yes | AS163: Sole|Wasser-Wärmepumpen | AT163: Zubehör
A164: 233009 | B164: Brine|Water heat pump WPF 27 HT | C164: 13001 | D164: --- | E164: Wärmepumpe | F164: 46 | G164: 1 | L164: 1 | S164: Broschuere_Sole-WP | T164: Aufstellung_WPF_20_66 | U164: Planung_WP_WPF_20-66 | W164: D0000017130 | X164: D0000043930 | Y164: D0000016833 | AA164: 125 | AB164: DM0000018981 | AC164: PIC00000830-00.jpg | AD164: 7700 | AE164: http://www.stiebel-eltron.be/ste_shared/pdf/data/E_7700_0_de_English.pdf | AF164: A++ | AG164: (55 °C) | AH164: A++ | AI164: (35 °C) | AJ164: 11 | AP164: Yes | AS164: Sole|Wasser-Wärmepumpen | AT164: Hochtemperaturbaureihe
A165: 189999 | B165: Air/heat module LWM 250 | C165: 2297 | D165: --- | E165: Wärmepumpe | F165: 2 | K165: 1 | L165: 1 | N165: 1 | S165: --- | T165: --- | U165: Planung_Lueftung_LWM250 | W165: D0000017121 | X165: --- | Y165: D0000017179 | AA165: 126 | AB165: DM0000019821 | AC165: PIC00000703-00.jpg | AD165: 5978 | AE165: http://www.stiebel-eltron.be/ste_shared/pdf/data/E_5978_0_de_English.pdf | AJ165: --- | AP165: Yes | AS165: Sole|Wasser-Wärmepumpen | AT165: Zubehör
A166: 230659 | B166: Groundwater module GWS 1 | C166: 1836 | D166: --- | E166: Wärmepumpe | F166: 7 | L166: 1 | M166: 1 | S166: Broschuere_Wasser-WP | T166: --- | U166: Planung_WP_GWS | W166: D0000017651 | X166: --- | Y166: D0000017273 | AA166: 126 | AB166: DM0000022373 | AC166: PIC00001125-00.jpg | AD166: 8306 | AE166: http://www.stiebel-eltron.be/ste_shared/pdf/data/E_8306_0_de_English.pdf | AJ166: --- | AP166: Yes | AS166: Sole|Wasser-Wärmepumpen | AT166: Zubehör
A167: 230660 | B167: Groundwater module GWS 2 | C167: 2110 | D167: --- | E167: Wärmepumpe | F167: 7 | L167: 1 | M167: 1 | S167: Broschuere_Wasser-WP | T167: --- | U167: Planung_WP_GWS | W167: D0000017651 | X167: --- | Y167: D0000017273 | AA167: 126 | AB167: DM0000022373 | AC167: PIC00001125-00.jpg | AD167: 8306 | AE167: http://www.stiebel-eltron.be/ste_shared/pdf/data/E_8306_0_de_English.pdf | AJ167: --- | AP167: Yes | AS167: Sole|Wasser-Wärmepumpen | AT167: Zubehör
A168: 232460 | B168: Brine distributor WPSV 25-4 | C168: 633 | D168: --- | E168: Wärmepumpe | F168: 44 | L168: 1 | N168: 1 | S168: --- | T168: --- | U168: Planung_WP_Zubehoer_Sole | W168: --- | X168: --- | Y168: D0000020342 | AA168: 126 | AB168: DM0000026646 | AC168: PIC00000708-00.jpg | AD168: 6616 | AE168: http://www.stiebel-eltron.be/ste_shared/pdf/data/E_6616_0_de_English.pdf | AJ168: --- | AP168: Yes | AS168: Sole|Wasser-Wärmepumpen | AT168: Zubehör
A169: 232461 | B169: Brine distributor WPSV 25-6 | C169: 860 | D169: --- | E169: Wärmepumpe | F169: 44 | L169: 1 | N169: 1 | S169: --- | T169: --- | U169: Planung_WP_Zubehoer_Sole | W169: --- | X169: --- | Y169: D0000027166 | AA169: 126 | AB169: DM0000026646 | AC169: PIC00000708-00.jpg | AD169: 6616 | AE169: http://www.stiebel-eltron.be/ste_shared/pdf/data/E_6616_0_de_English.pdf | AJ169: --- | AP169: Yes | AS169: Sole|Wasser-Wärmepumpen | AT169: Zubehör
A170: 232462 | B170: Brine distributor WPSV 32-4 | C170: 654 | D170: --- | E170: Wärmepumpe | F170: 44 | L170: 1 | N170: 1 | S170: --- | T170: --- | U170: Planung_WP_Zubehoer_Sole | W170: --- | X170: --- | Y170: D0000020342 | AA170: 126 | AB170: DM0000026646 | AC170: PIC00000708-00.jpg | AD170: 6616 | AE170: http://www.stiebel-eltron.be/ste_shared/pdf/data/E_6616_0_de_English.pdf | AJ170: --- | AP170: Yes | AS170: Sole|Wasser-Wärmepumpen | AT170: Zubehör
A171: 232463 | B171: Brine distributor WPSV 32-6 | C171: 895 | D171: --- | E171: Wärmepumpe | F171: 44 | L171: 1 | N171: 1 | S171: --- | T171: --- | U171: Planung_WP_Zubehoer_Sole | W171: --- | X171: --- | Y171: D0000027166 | AA171: 126 | AB171: DM0000026646 | AC171: PIC00000708-00.jpg | AD171: 6616 | AE171: http://www.stiebel-eltron.be/ste_shared/pdf/data/E_6616_0_de_English.pdf | AJ171: --- | AP171: Yes | AS171: Sole|Wasser-Wärmepumpen | AT171: Zubehör
A172: 232464 | B172: Brine distributor WPSV 40-4 | C172: 711 | D172: --- | E172: Wärmepumpe | F172: 44 | L172: 1 | N172: 1 | S172: --- | T172: --- | U172: Planung_WP_Zubehoer_Sole | W172: --- | X172: --- | Y172: D0000020342 | AA172: 126 | AB172: DM0000026646 | AC172: PIC00000708-00.jpg | AD172: 6616 | AE172: http://www.stiebel-eltron.be/ste_shared/pdf/data/E_6616_0_de_English.pdf | AJ172: --- | AP172: Yes | AS172: Sole|Wasser-Wärmepumpen | AT172: Zubehör
A173: 232465 | B173: Brine distributor WPSV 40-6 | C173: 978 | D173: --- | E173: Wärmepumpe | F173: 44 | L173: 1 | N173: 1 | S173: --- | T173: --- | U173: Planung_WP_Zubehoer_Sole | W173: --- | X173: --- | Y173: D0000027166 | AA173: 126 | AB173: DM0000026646 | AC173: PIC00000708-00.jpg | AD173: 6616 | AE173: http://www.stiebel-eltron.be/ste_shared/pdf/data/E_6616_0_de_English.pdf | AJ173: --- | AP173: Yes | AS173: Sole|Wasser-Wärmepumpen | AT173: Zubehör
A174: 222375 | B174: Brine assembly WPSB 308 | C174: 877 | D174: --- | E174: Wärmepumpe | F174: 44 | L174: 1 | S174: --- | T174: --- | U174: Planung_WP_Zubehoer_Sole | W174: --- | X174: --- | Y174: D0000032332 | AA174: 126 | AB174: DM0000028816 | AC174: PIC00000442-00.jpg | AD174: 6617 | AE174: http://www.stiebel-eltron.be/ste_shared/pdf/data/E_6617_0_de_English.pdf | AJ174: --- | AP174: Yes | AS174: Sole|Wasser-Wärmepumpen | AT174: Zubehör
A175: 232883 | B175: Brine assembly WPSB 312 E | C175: 1224 | D175: --- | E175: Wärmepumpe | F175: 44 | L175: 1 | S175: --- | T175: --- | U175: Planung_WP_Zubehoer_Sole | W175: --- | X175: --- | Y175: D0000032332 | AA175: 126 | AB175: DM0000028816 | AC175: PIC00000442-00.jpg | AD175: 6617 | AE175: http://www.stiebel-eltron.be/ste_shared/pdf/data/E_6617_0_de_English.pdf | AJ175: --- | AP175: Yes | AS175: Sole|Wasser-Wärmepumpen | AT175: Zubehör
A176: 232884 | B176: Brine assembly WPSB 408 E | C176: 1643 | D176: --- | E176: Wärmepumpe | F176: 44 | L176: 1 | S176: --- | T176: --- | U176: Planung_WP_Zubehoer_Sole | W176: --- | X176: --- | Y176: D0000032349 | AA176: 126 | AB176: DM0000028816 | AC176: PIC00000442-00.jpg | AD176: 6617 | AE176: http://www.stiebel-eltron.be/ste_shared/pdf/data/E_6617_0_de_English.pdf | AJ176: --- | AP176: Yes | AS176: Sole|Wasser-Wärmepumpen | AT176: Zubehör
A177: 233307 | B177: Brine filling unit WPSF | C177: 268 | D177: --- | E177: Wärmepumpe | F177: 44 | L177: 1 | S177: --- | T177: --- | U177: Planung_WP_Zubehoer_Sole | W177: --- | X177: --- | Y177: D0000038421 | AA177: 127 | AB177: DM0000030898 | AC177: PIC00004274-00.jpg | AD177: --- | AE177: http://www.stiebel-eltron.be/ste_shared/pdf/data/E_---_0_de_English.pdf | AJ177: --- | AP177: Yes | AS177: Sole|Wasser-Wärmepumpen | AT177: Zubehör
A178: 232532 | B178: Brine circulation pump UPF 30/1-8 E | C178: 525 | D178: --- | E178: Wärmepumpe | F178: 44 | L178: 1 | S178: --- | T178: --- | U178: Planung_WP_Zubehoer_Sole | W178: --- | X178: --- | Y178: --- | AA178: 127 | AB178: --- | AC178: PIC00004264-00.jpg | AD178: 6719 | AE178: http://www.stiebel-eltron.be/ste_shared/pdf/data/E_6719_0_de_English.pdf | AJ178: --- | AP178: Yes | AS178: Sole|Wasser-Wärmepumpen | AT178: Zubehör
A179: 227413 | B179: Brine circulation pump UPF 40/1-8 E | C179: 1229 | D179: --- | E179: Wärmepumpe | F179: 44 | L179: 1 | S179: --- | T179: --- | U179: Planung_WP_Zubehoer_Sole | W179: --- | X179: --- | Y179: --- | AA179: 127 | AB179: DM0000019653 | AC179: PIC00000839-00.jpg | AD179: 6719 | AE179: http://www.stiebel-eltron.be/ste_shared/pdf/data/E_6719_0_de_English.pdf | AJ179: --- | AP179: Yes | AS179: Sole|Wasser-Wärmepumpen | AT179: Zubehör
A180: 227414 | B180: Brine circulation pump UPF 50/1-12 E | C180: 1604 | D180: --- | E180: Wärmepumpe | F180: 44 | L180: 1 | S180: --- | T180: --- | U180: Planung_WP_Zubehoer_Sole | W180: --- | X180: --- | Y180: --- | AA180: 127 | AB180: DM0000019653 | AC180: PIC00000839-00.jpg | AD180: 6719 | AE180: http://www.stiebel-eltron.be/ste_shared/pdf/data/E_6719_0_de_English.pdf | AJ180: --- | AP180: Yes | AS180: Sole|Wasser-Wärmepumpen | AT180: Zubehör
A181: 221382 | B181: Brine pressure limiter DWS 1 | C181: 102 | D181: --- | E181: Wärmepumpe | F181: 44 | L181: 1 | S181: --- | T181: --- | U181: Planung_WP_Zubehoer_Sole | W181: --- | X181: --- | Y181: --- | AA181: 128 | AB181: DM0000019745 | AC181: PIC00000808-00.jpg | AD181: 6618 | AE181: http://www.stiebel-eltron.be/ste_shared/pdf/data/E_6618_0_de_English.pdf | AJ181: --- | AP181: Yes | AS181: Sole|Wasser-Wärmepumpen | AT181: Zubehör
A182: 189981 | B182: Expansion vessel 12l | C182: 61 | D182: --- | E182: Wärmepumpe | F182: 44 | L182: 1 | S182: --- | T182: --- | U182: Planung_WP_Zubehoer_Sole | W182: --- | X182: --- | Y182: --- | AA182: 128 | AB182: --- | AC182: PIC00000702-00.jpg | AD182: 6619 | AE182: http://www.stiebel-eltron.be/ste_shared/pdf/data/E_6619_0_de_English.pdf | AJ182: --- | AP182: Yes | AS182: Sole|Wasser-Wärmepumpen | AT182: Zubehör
A183: 227415 | B183: Expansion vessel 18 l | C183: 63 | D183: --- | E183: Wärmepumpe | F183: 44 | L183: 1 | S183: --- | T183: --- | U183: Planung_WP_Zubehoer_Sole | W183: --- | X183: --- | Y183: --- | AA183: 128 | AB183: --- | AC183: PIC00004746-00.jpg | AD183: 6619 | AE183: http://www.stiebel-eltron.be/ste_shared/pdf/data/E_6619_0_de_English.pdf | AJ183: --- | AP183: Yes | AS183: Sole|Wasser-Wärmepumpen | AT183: Zubehör
A184: 227416 | B184: Expansion vessel 25 l | C184: 63 | D184: --- | E184: Wärmepumpe | F184: 44 | L184: 1 | S184: --- | T184: --- | U184: Planung_WP_Zubehoer_Sole | W184: --- | X184: --- | Y184: --- | AA184: 128 | AB184: --- | AC184: PIC00002946-00.jpg | AD184: 6619 | AE184: http://www.stiebel-eltron.be/ste_shared/pdf/data/E_6619_0_de_English.pdf | AJ184: --- | AP184: Yes | AS184: Sole|Wasser-Wärmepumpen | AT184: Zubehör
A185: 227417 | B185: Expansion vessel 50 l | C185: 101 | D185: --- | E185: Wärmepumpe | F185: 44 | L185: 1 | S185: --- | T185: --- | U185: Planung_WP_Zubehoer_Sole | W185: --- | X185: --- | Y185: --- | AA185: 128 | AB185: --- | AC185: PIC00002946-00.jpg | AD185: 6619 | AE185: http://www.stiebel-eltron.be/ste_shared/pdf/data/E_6619_0_de_English.pdf | AJ185: --- | AP185: Yes | AS185: Sole|Wasser-Wärmepumpen | AT185: Zubehör
A186: 231109 | B186: Heat transfer medium MEG 10 l | C186: 64 | D186: --- | E186: Wärmepumpe | F186: 44 | L186: 1 | S186: --- | T186: --- | U186: Planung_WP_Zubehoer_Sole | W186: --- | X186: --- | Y186: --- | AA186: 128 | AB186: --- | AC186: PIC00000431-00.jpg | AD186: 6620 | AE186: http://www.stiebel-eltron.be/ste_shared/pdf/data/E_6620_0_de_English.pdf | AJ186: --- | AP186: Yes | AS186: Sole|Wasser-Wärmepumpen | AT186: Zubehör
A187: 161696 | B187: Heat transfer medium MEG | C187: 191 | D187: --- | E187: Wärmepumpe | F187: 44 | L187: 1 | S187: --- | T187: --- | U187: Planung_WP_Zubehoer_Sole | W187: --- | X187: --- | Y187: --- | AA187: 128 | AB187: --- | AC187: PIC00000431-00.jpg | AD187: 6620 | AE187: http://www.stiebel-eltron.be/ste_shared/pdf/data/E_6620_0_de_English.pdf | AJ187: --- | AP187: Yes | AS187: Sole|Wasser-Wärmepumpen | AT187: Zubehör
A188: 233903 | B188: Brine|Water heat pump WPD 05 Set | C188: On request | D188: --- | E188: Wärmepumpe | F188: 46 | G188: 1 | L188: 1 | S188: Broschuere_Sole-WP | T188: --- | U188: --- | W188: D0000040724 | X188: D0000040724 | Y188: D0000045587 | AA188: 129 | AB188: DM0000035534 | AC188: PIC00004315-00.jpg | AD188: 8506 | AE188: http://www.stiebel-eltron.be/ste_shared/pdf/data/E_8506_0_de_English.pdf | AF188: A++ | AG188: (55 °C) | AH188: A++ | AI188: (35 °C) | AJ188: --- | AP188: Yes | AS188: Sole|Wasser-Wärmepumpen | AT188: Direktverdampferbaureihe
A189: 233904 | B189: Brine|Water heat pump WPD 07 Set | C189: On request | D189: --- | E189: Wärmepumpe | F189: 46 | G189: 1 | L189: 1 | S189: Broschuere_Sole-WP | T189: --- | U189: --- | W189: D0000040724 | X189: D0000040724 | Y189: D0000045587 | AA189: 129 | AB189: DM0000035534 | AC189: PIC00004315-00.jpg | AD189: 8506 | AE189: http://www.stiebel-eltron.be/ste_shared/pdf/data/E_8506_0_de_English.pdf | AF189: A++ | AG189: (55 °C) | AH189: A++ | AI189: (35 °C) | AJ189: --- | AP189: Yes | AS189: Sole|Wasser-Wärmepumpen | AT189: Direktverdampferbaureihe
A190: 232948 | B190: Water|Water heat pump WPW 06 Set | C190: 7619 | D190: --- | E190: Wärmepumpe | F190: 47 | G190: 1 | L190: 1 | M190: 1 | S190: Broschuere_Wasser-WP | T190: --- | U190: Planung_WP_WPW_Set | W190: D0000034467 | X190: D0000051002 | Y190: D0000034468 | AA190: 131 | AB190: DM0000030873 | AC190: PIC00003715-00.jpg | AD190: 8170 | AE190: http://www.stiebel-eltron.be/ste_shared/pdf/data/E_8170_0_de_English.pdf | AF190: A++ | AG190: (55 °C) | AH190: A++ | AI190: (35 °C) | AJ190: 11 | AP190: Yes | AS190: Wasser|Wasser-Wärmepumpen | AT190: Komfortbaureihe
A191: 232949 | B191: Water|Water heat pump WPW 07 Set | C191: 7827 | D191: --- | E191: Wärmepumpe | F191: 47 | G191: 1 | L191: 1 | M191: 1 | S191: Broschuere_Wasser-WP | T191: --- | U191: Planung_WP_WPW_Set | W191: D0000034467 | X191: D0000050999 | Y191: D0000034468 | AA191: 131 | AB191: DM0000030873 | AC191: PIC00003715-00.jpg | AD191: 8170 | AE191: http://www.stiebel-eltron.be/ste_shared/pdf/data/E_8170_0_de_English.pdf | AF191: A++ | AG191: (55 °C) | AH191: A++ | AI191: (35 °C) | AJ191: 11 | AP191: Yes | AS191: Wasser|Wasser-Wärmepumpen | AT191: Komfortbaureihe
A192: 232950 | B192: Water|Water heat pump WPW 10 Set | C192: 8226 | D192: --- | E192: Wärmepumpe | F192: 47 | G192: 1 | L192: 1 | M192: 1 | S192: Broschuere_Wasser-WP | T192: --- | U192: Planung_WP_WPW_Set | W192: D0000034467 | X192: D0000050997 | Y192: D0000034468 | AA192: 131 | AB192: DM0000030873 | AC192: PIC00003715-00.jpg | AD192: 8170 | AE192: http://www.stiebel-eltron.be/ste_shared/pdf/data/E_8170_0_de_English.pdf | AF192: A++ | AG192: (55 °C) | AH192: A++ | AI192: (35 °C) | AJ192: 11 | AP192: Yes | AS192: Wasser|Wasser-Wärmepumpen | AT192: Komfortbaureihe
A193: 232951 | B193: Water|Water heat pump WPW 13 Set | C193: 8462 | D193: --- | E193: Wärmepumpe | F193: 47 | G193: 1 | L193: 1 | M193: 1 | S193: Broschuere_Wasser-WP | T193: --- | U193: Planung_WP_WPW_Set | W193: D0000034467 | X193: D0000050995 | Y193: D0000034468 | AA193: 131 | AB193: DM0000030873 | AC193: PIC00003715-00.jpg | AD193: 8170 | AE193: http://www.stiebel-eltron.be/ste_shared/pdf/data/E_8170_0_de_English.pdf | AF193: A++ | AG193: (55 °C) | AH193: A++ | AI193: (35 °C) | AJ193: 11 | AP193: Yes | AS193: Wasser|Wasser-Wärmepumpen | AT193: Komfortbaureihe
A194: 232952 | B194: Water|Water heat pump WPW 18 Set | C194: 9120 | D194: --- | E194: Wärmepumpe | F194: 47 | G194: 1 | L194: 1 | M194: 1 | S194: Broschuere_Wasser-WP | T194: --- | U194: Planung_WP_WPW_Set | W194: D0000034467 | X194: D0000050993 | Y194: D0000034468 | AA194: 131 | AB194: DM0000030873 | AC194: PIC00003715-00.jpg | AD194: 8170 | AE194: http://www.stiebel-eltron.be/ste_shared/pdf/data/E_8170_0_de_English.pdf | AF194: A++ | AG194: (55 °C) | AH194: A++ | AI194: (35 °C) | AJ194: 11 | AP194: Yes | AS194: Wasser|Wasser-Wärmepumpen | AT194: Komfortbaureihe
A195: 232953 | B195: Water|Water heat pump WPW 22 Set | C195: 9648 | D195: --- | E195: Wärmepumpe | F195: 47 | G195: 1 | L195: 1 | M195: 1 | S195: Broschuere_Wasser-WP | T195: --- | U195: Planung_WP_WPW_Set | W195: D0000034467 | X195: D0000050990 | Y195: D0000034468 | AA195: 131 | AB195: DM0000030873 | AC195: PIC00003715-00.jpg | AD195: 8170 | AE195: =IF(AD195="","",HYPERLINK("http://www.stiebel-eltron.be/ste_shared/pdf/data/E_"&AD195&"_0_de_English.pdf")) -> http://www.stiebel-eltron.be/ste_shared/pdf/data/E_8170_0_de_English.pdf | AF195: A++ | AG195: (55 °C) | AH195: A++ | AI195: (35 °C) | AJ195: 11 | AP195: Yes | AS195: Wasser|Wasser-Wärmepumpen | AT195: Komfortbaureihe
A196: 230915 | B196: Water|water heat pump WPW 7 basic set | C196: 7634 | D196: --- | E196: Wärmepumpe | F196: 47 | G196: 1 | L196: 1 | M196: 1 | S196: Broschuere_Wasser-WP | T196: --- | U196: Planung_WP_WPW_basic_Set | W196: D0000017655 | X196: D0000050989 | Y196: D0000016823 | AA196: 132 | AB196: DM0000022470 | AC196: PIC00002722-00.jpg | AD196: 8171 | AE196: http://www.stiebel-eltron.be/ste_shared/pdf/data/E_8171_0_de_English.pdf | AF196: A+ | AG196: (55 °C) | AH196: A++ | AI196: (35 °C) | AJ196: 11 | AP196: Yes | AS196: Wasser|Wasser-Wärmepumpen | AT196: Basisbaureihe
A197: 230916 | B197: Water|water heat pump WPW 10 basic set | C197: 8150 | D197: --- | E197: Wärmepumpe | F197: 47 | G197: 1 | L197: 1 | M197: 1 | S197: Broschuere_Wasser-WP | T197: --- | U197: Planung_WP_WPW_basic_Set | W197: D0000017655 | X197: D0000050998 | Y197: D0000016823 | AA197: 132 | AB197: DM0000022470 | AC197: PIC00002722-00.jpg | AD197: 8171 | AE197: http://www.stiebel-eltron.be/ste_shared/pdf/data/E_8171_0_de_English.pdf | AF197: A+ | AG197: (55 °C) | AH197: A++ | AI197: (35 °C) | AJ197: 11 | AP197: Yes | AS197: Wasser|Wasser-Wärmepumpen | AT197: Basisbaureihe
A198: 230917 | B198: Water|water heat pump WPW 13 basic set | C198: 8259 | D198: --- | E198: Wärmepumpe | F198: 47 | G198: 1 | L198: 1 | M198: 1 | S198: Broschuere_Wasser-WP | T198: --- | U198: Planung_WP_WPW_basic_Set | W198: D0000017655 | X198: D0000050996 | Y198: D0000016823 | AA198: 132 | AB198: DM0000022470 | AC198: PIC00002722-00.jpg | AD198: 8171 | AE198: http://www.stiebel-eltron.be/ste_shared/pdf/data/E_8171_0_de_English.pdf | AF198: A+ | AG198: (55 °C) | AH198: A++ | AI198: (35 °C) | AJ198: 11 | AP198: Yes | AS198: Wasser|Wasser-Wärmepumpen | AT198: Basisbaureihe
A199: 230918 | B199: Water|water heat pump WPW 18 basic set | C199: 8939 | D199: --- | E199: Wärmepumpe | F199: 47 | G199: 1 | L199: 1 | M199: 1 | S199: Broschuere_Wasser-WP | T199: --- | U199: Planung_WP_WPW_basic_Set | W199: D0000017655 | X199: D0000050994 | Y199: D0000016823 | AA199: 132 | AB199: DM0000022470 | AC199: PIC00002722-00.jpg | AD199: 8171 | AE199: http://www.stiebel-eltron.be/ste_shared/pdf/data/E_8171_0_de_English.pdf | AF199: A+ | AG199: (55 °C) | AH199: A++ | AI199: (35 °C) | AJ199: 11 | AP199: Yes | AS199: Wasser|Wasser-Wärmepumpen | AT199: Basisbaureihe
A200: 230919 | B200: Water|water heat pump WPW 22 basic set | C200: 9175 | D200: --- | E200: Wärmepumpe | F200: 47 | G200: 1 | L200: 1 | M200: 1 | S200: Broschuere_Wasser-WP | T200: --- | U200: Planung_WP_WPW_basic_Set | W200: D0000017655 | X200: D0000050992 | Y200: D0000016823 | AA200: 132 | AB200: DM0000022470 | AC200: PIC00002722-00.jpg | AD200: 8171 | AE200: http://www.stiebel-eltron.be/ste_shared/pdf/data/E_8171_0_de_English.pdf | AF200: A+ | AG200: (55 °C) | AH200: A++ | AI200: (35 °C) | AJ200: 11 | AP200: Yes | AS200: Wasser|Wasser-Wärmepumpen | AT200: Basisbaureihe
... 1863 more rows

Sheet Translation (hidden)
A2: Englisch [Int]
A3: Material composition
A4: Material composition
A5: Full screen On/Off
A6: System selection
A7: Position
A8: ID
A9: Quantity
A10: Name
A11: Price each
A12: Total price
A13: Recommended retail price excl. VAT
A14: inkl. MwSt.
A15: Summary
A16: Choose configuration - printout
A17: Print with cover page
A18: Project
A19: Customer
A20: Name
A21: Street
A22: Postcode
A23: Town
A24: Phone
A25: Notes/Phone
A26: Project.-Nr.
A27: Customer-No.
A28: Contact
A29: Support service
A30: Import project data
A31: Export project data
A32: Customer list
A33: Edit Customer list
A34: Search customer
A35: Print list of material
A36: Printout with prices
A37: Price valid untill
A38: With instructional text
A39: Add note
A40: Edit note
A41: Please add your notes. You'll find them below the list of material.
A42: Please add your notes. You'll find them on a separate piece of paper in the printout.
A43: Product range - separatly shown
A44: Printout with long text
A45: Text missing ?
A46: Change sketch
A47: No sketch available
A48: Show list
A49: Show sketch
A50: No hydraulic sketch available für chosen system.
A51: Request sketch
A52: Edit price list
A53: Yes
A54: No
A55: Product data
A56: Use item?
A57: Delivery capacity
A58: Input not required
A59: Hydraulic
A60: Electric
A61: A online connection is required to download the hydraulic & electric sektch. Please check your internet connection.
A62: To retrieve the product data sheets an online connection is required. Please check your Internet connection
A63: The selected sketch for this material list has been manually changed. Please select "Reset" to restore the default standard sketch.
A64: Add
A65: Not necessary indication
A66: Print product data
A67: Collection notifications
A68: Selection notification
A69: short description
A70: Notification
A71: Save
A72: Cancel
A73: Ready
A74: Update
A75: Instructional page
A76: Print hydraulic scetch
A77: Print results from other tools
A78: Import list
A79: E-Mail list
A80: Save project
A81: Import list
A82: Export list
A83: Reset
A84: Import ITML-file
A85: Add another list
A86: Show all
A87: Report errors
A88: Create list
A89: Put on Memory list
A90: Make copy
A91: Previous stored alternatives or entries in the category "Manuel input" will be overwritten again.Continue ?
A92: Back
A93: Back to main list
A94: Reset material list
A95: Show/hide categories
A96: Change category name
A97: Please enter desired name for category
A98: Show/hide long texts
A99: Back to selection
A100: To print settings
A101: Back to print settings
A102: Printout material list
A103: Create PDF
A104: Import previously memorized notifications? Attention, this will overwrite any in the tool curently stored text.
A105: With price
A106: Optional
A107: Optional
A108: Alternative
A109: Set-price
A110: Add item
A111: Change item
A112: Example - Project
A113: Enter name editor
A114: Discount
A115: Print with product pictures
A116: Print with discount
A117: Add item manually
A118: Delete item
A119: Data sheet
A120: Operation and installation
A121: Open product picture
A122: Open drawing
A123: Show CAD-data
A124: Tender specification
A125: Preview
A126: Please enter the E-Mail address of the recipient
A127: Send project
A128: Example@stiebel-eltron.com
A129: Short offer
A130: There are several heat generators in material list.
A131: There are several DHW systems in material list.
A132: There are several buffer systems in material list.
A133: There are several Solar systems in material list.
A134: There are several air ventilation systems in material list.
A135: Some items can not be combined with air|water heatpumps.
A136: Some items can not be combined with brine|water heatpumps.
A137: Some items can not be combined with water|water heatpumps.
A138: Some items can not be combined with solar systems.
A139: There are several PV-systems in material list.
A140: Several ISG (Internet Service Gateway) have been selected.
A141: All manual changes will be rejected and set to standard values. Continue ?
A142: Please note, changes to the system selection means that the list of material automatically reassembled and therefore all previously made ​​changes to the list are discarded. Back to system selection?
A143: Add item
A144: Please enter product number and description.
A145: Search pricelist
A146: Entire pricelist
A147: Manually added
A148: STIEBEL ELTRON International GmbH | Dr.-Stiebel-Straße 33 | 37603 Holzminden
A149: Tel: +49 5531 | Fax: +49 5531 702479 | info@stiebel-eltron.com
A150: Editor
A151: Renewables
A152: Legal note
A153: Stiebel Eltron shall not provide any guarantees that the information, values and data provided, or values, information and recommendations determined with the aid or on the basis of such information, values and data, are complete, accurate, correct or current in every respect. Stiebel Eltron shall reserve the right to make changes to the data, values and information provided at any time and without prior notification. Errors excepted. Subject to changes. None of the information, values and data provided or the values, information and recommendations determined with the aid or on the basis of such information, values and data constitutes any basis for a financial decision or for any other purpose, but rather is merely initial non-binding information as an initial guide. Under no circumstances should the following design tool be considered a substitute for consultation with Stiebel Eltron or another authorised expert engineer. Please contact Stiebel Eltron or another authorised expert engineer in relation to specific project design. Stiebel Eltron shall accept no liability for losses of any kind that may arise from the use of information, values and data provided, or values, information and recommendations determined with the aid or on the basis of such information, values and data. This exclusion of liability shall not apply if the loss is due to intent or gross negligence on the part of Stiebel Eltron or in the event of a fatality, physical injury or damage to health.
A154: Transfer
A155: Notes
A156: Text templates
A157: [insert]
A158: | Save material list
A159: Current selection
A160: Material list will be deleted. Continue ?
A161: Saved material list will be overwritten. Continue ?
A162: Please rename the saved list of material.
A163: Maximum 8 systems can be saved.
A164: Übersetzungen Wärmepumpe
A165: Heat pump
A166: Air-water-heatpump
A167: Brine-water-heatpump
A168: Water-water-heatpump
A169: Air
A170: Brine
A171: Water
A172: DHW
A173: Passive cooling
A174: Active cooling
A175: Heating output
A176: Heat pump type
A177: Buffer cylinder
A178: DHW
A179: Heat source
A180: Installation
A181: Heating
A182: Installation
A183: With hydraulic module
A184: Without hydraulic module
A185: 1 heating circuit
A186: 2 heating circuits
A187: Small
A188: Large
A189: Big cascades
A190: International pricelist
A191: all heat pumps
A192: Without buffer
A193: Buffer cylinder SBP
A194: Low loss header
A195: Water cylinder SBS
A196: Wall mounted cylinder
A197: SBP-Gas (bivalent)
A198: With integral cylinder HSBC
A199: DHW cylinder integrated
A200: DHW cylinder SBB
A201: Hydraulics module HSBB
... 663 more rows

Sheet Gesamtliste (hidden)
O1: Kein Zeilenumbruch, da Zeilenhöhe Langtexte per Autofit angepasst wird
B8: =IF($AH$47=FALSE,"",IF(B10>0,AB8,"")) ->  | O8: =Translation!$A$165 -> Heat pump | U8: Spalten per Code kopiert | AB8: Heat pump | AJ8: Plausibilitäsprüfung
B9: =" "&Translation!$A$7 -> Position | D9: ID | E9: Quantity | F9: =Translation!$A$10 -> Name | G9: =Translation!$A$11 -> Price each | H9: =Translation!$A$12 -> Total price | O9: Fehler ? | P9: =Translation!$A$8 -> ID | Q9: =Translation!$A$9 -> Quantity | R9: Optional? | S9: Im Setpreis? | T9: Datenblatt | U9: gewählt? | V9: Kategorie (SAP) | W9: Verfügbarkeit | X9: Ausschreibung | Z9: Produktbild | AA9: Langtext vorhanden? | AB9: Kurzname | AH9: Letzte Zeile | AJ9: Ident.Nr | AK9: Erzeuger-Hzg | AL9: Erzeuger-WW | AM9: Heizungspuffer | AN9: Erzeuger-Solar | AO9: Erzeuger-Lüftung | AP9: nicht mit L/W einsetzbar | AQ9: nicht mit S/W einsetzbar | AR9: nicht mit W/W einsetzbar | AS9: Nicht mit Solar einsetzbar | AT9: Erzeuger PV | AU9: ISGweb | BG9: Prüfung | BH9: Anzahl | BI9: Ergebnis | BJ9: Meldung | BK9: Ident 1 | BL9: Artikel 1 | BM9: Ident2 | BN9: Artikel 2 | BO9: Ident 3 | BP9: Artikel 3 | BQ9: Ident 4 | BR9: Artikel 4
B10: =IF(D10=0,0,1) -> 1 | D10: 234761 | E10: 1 | F10: =IF(ISERROR(AB10),"---",IF(ISERROR(VLOOKUP(D10,'Langtexte-Vorlage'!A:D,3,FALSE)),AB10,IF($AH$57=TRUE,AB10&CHAR(10)&CHAR(10)&VLOOKUP(D10,'Langtexte-Vorlage'!A:D,3,FALSE)&CHAR(10),AB10))) -> Air|Water heat pump WPL 25 ACS | G10: =IF(ISERROR(VLOOKUP(D10,Preisliste!$A:$C,3,FALSE)),0,VLOOKUP(D10,Preisliste!$A:$C,3,FALSE)) -> 9704 | H10: =IF(C10="O",Translation!$A$106,IF(C10="A",Translation!$A$108,IF(C10="S",Translation!$A$109,IF(ISERROR(E10*G10),"---",E10*G10)))) -> 9704 | I10: =IF(ISERROR(VLOOKUP(D10,Preisliste!$A:$AQ,43,FALSE)),"",IF(VLOOKUP(D10,Preisliste!$A:$AQ,43,FALSE)=0,"","*")) ->  | O10: =IF(D10=0,FALSE,IF(COUNTIF($BK$11:$BR$41,D10)>0,TRUE,FALSE)) -> FALSE | P10: =IF($U$10=FALSE,0,Auswahl!O9) -> 232492 | Q10: =IF($U$10=FALSE,0,IF(OR(R10=TRUE,S10=TRUE),LEFT(RIGHT(Auswahl!R9,2),1)*1,Auswahl!R9)) -> 1 | R10: =IF(LEFT(Auswahl!R9,3)=LEFT(Translation!$A$107,3),TRUE,FALSE) -> FALSE | S10: =IF(LEFT(Auswahl!R9,3)=LEFT(Translation!$A$109,3),TRUE,FALSE) -> FALSE | T10: =IF(ISERROR(VLOOKUP(D10,Preisliste!$A:$AF,31,FALSE)),"---",VLOOKUP(D10,Preisliste!$A:$AF,31,FALSE)) ->  | U10: =IF(Berechnung!$C$4=FALSE,FALSE,Berechnung!$B$4) -> TRUE | V10: =Translation!$A$165 -> Heat pump | W10: =IF($U$10=FALSE,"",IF(I10="","",D10&" "&VLOOKUP(D10,Preisliste!$A:$AQ,43,FALSE))) ->  | X10: =IF(B10=0,"",TEXT(D10,"000000")&",") -> 234761, | Y10: =VLOOKUP(D10,Preisliste!$A:$D,4,FALSE) -> --- | Z10: =VLOOKUP(D10,Preisliste!$A:$AE,29,FALSE) -> PIC00003555-00.jpg | AA10: =IF(OR(B10=0,B10=""),TRUE,IF(ISERROR(VLOOKUP(D10,'Langtexte-Vorlage'!A:D,3,FALSE)),FALSE,TRUE)) -> TRUE | AB10: =VLOOKUP(D10,Preisliste!$A:$B,2,FALSE) -> Air|Water heat pump WPL 25 ACS | AH10: =ROUNDDOWN(AH34/100,0)*100+95 -> 95 | AJ10: =IF(ISNUMBER(D10),D10,0) -> 234761 | AK10: =IF($AJ10=0,0,VLOOKUP($AJ10,Preisliste!$A:$Q,7,FALSE)) -> 0 | AL10: =IF($AJ10=0,0,VLOOKUP($AJ10,Preisliste!$A:$Q,8,FALSE)) -> 0 | AM10: =IF($AJ10=0,0,VLOOKUP($AJ10,Preisliste!$A:$Q,9,FALSE)) -> 0 | AN10: =IF($AJ10=0,0,VLOOKUP($AJ10,Preisliste!$A:$Q,10,FALSE)) -> 0 | AO10: =IF($AJ10=0,0,VLOOKUP($AJ10,Preisliste!$A:$Q,11,FALSE)) -> 0 | AP10: =IF($AJ10=0,0,VLOOKUP($AJ10,Preisliste!$A:$Q,12,FALSE)) -> 0 | AQ10: =IF($AJ10=0,0,VLOOKUP($AJ10,Preisliste!$A:$Q,13,FALSE)) -> 0 | AR10: =IF($AJ10=0,0,VLOOKUP($AJ10,Preisliste!$A:$Q,14,FALSE)) -> 0 | AS10: =IF($AJ10=0,0,VLOOKUP($AJ10,Preisliste!$A:$Q,15,FALSE)) -> 0 | AT10: =IF($AJ10=0,0,VLOOKUP($AJ10,Preisliste!$A:$Q,16,FALSE)) -> 0 | AU10: =IF($AJ10=0,0,VLOOKUP($AJ10,Preisliste!$A:$Q,17,FALSE)) -> 0
B11: =IF(D11=0,0,B10+1) -> 2 | D11: 233623 | E11: 1 | F11: =IF(ISERROR(AB11),"---",IF(ISERROR(VLOOKUP(D11,'Langtexte-Vorlage'!A:D,3,FALSE)),AB11,IF($AH$57=TRUE,AB11&CHAR(10)&CHAR(10)&VLOOKUP(D11,'Langtexte-Vorlage'!A:D,3,FALSE)&CHAR(10),AB11))) -> Connection kit AS-WP 2 | G11: =IF(ISERROR(VLOOKUP(D11,Preisliste!$A:$C,3,FALSE)),0,VLOOKUP(D11,Preisliste!$A:$C,3,FALSE)) -> 81 | H11: =IF(C11="O",Translation!$A$106,IF(C11="A",Translation!$A$108,IF(C11="S",Translation!$A$109,IF(ISERROR(E11*G11),"---",E11*G11)))) -> 81 | I11: =IF(ISERROR(VLOOKUP(D11,Preisliste!$A:$AQ,43,FALSE)),"",IF(VLOOKUP(D11,Preisliste!$A:$AQ,43,FALSE)=0,"","*")) ->  | O11: FALSE | P11: =IF($U$10=FALSE,0,Auswahl!O10) -> 233623 | Q11: =IF($U$10=FALSE,0,IF(OR(R11=TRUE,S11=TRUE),LEFT(RIGHT(Auswahl!R10,2),1)*1,Auswahl!R10)) -> 1 | R11: =IF(LEFT(Auswahl!R10,3)=LEFT(Translation!$A$107,3),TRUE,FALSE) -> FALSE | S11: =IF(LEFT(Auswahl!R10,3)=LEFT(Translation!$A$109,3),TRUE,FALSE) -> FALSE | T11: =IF(ISERROR(VLOOKUP(D11,Preisliste!$A:$AF,31,FALSE)),"---",VLOOKUP(D11,Preisliste!$A:$AF,31,FALSE)) -> http://www.stiebel-eltron.be/ste_shared/pdf/data/E_---_0_de_English.pdf | V11: =Translation!$A$165 -> Heat pump | W11: =IF($U$10=FALSE,"",IF(I11="","",D11&" "&VLOOKUP(D11,Preisliste!$A:$AQ,43,FALSE))) ->  | X11: =IF(AND(ISNUMBER(B11),B11>0),X10&TEXT(D11,"000000")&",",X10) -> 234761,233623, | Y11: =VLOOKUP(D11,Preisliste!$A:$D,4,FALSE) -> --- | Z11: =VLOOKUP(D11,Preisliste!$A:$AE,29,FALSE) -> PIC00004316-00.jpg | AA11: =IF(OR(B11=0,B11=""),TRUE,IF(ISERROR(VLOOKUP(D11,'Langtexte-Vorlage'!A:D,3,FALSE)),FALSE,TRUE)) -> TRUE | AB11: =VLOOKUP(D11,Preisliste!$A:$B,2,FALSE) -> Connection kit AS-WP 2 | AH11: =MATCH(MAX(B1:B1000),B1:B1000,0) -> 23 | AJ11: =IF(ISNUMBER(D11),D11,0) -> 233623 | AK11: =IF($AJ11=0,0,IF(VLOOKUP($AJ11,Preisliste!$A:$Q,7,FALSE)="",0,VLOOKUP($AJ11,Preisliste!$A:$Q,7,FALSE)+MAX(AK$10:AK10))) -> 0 | AL11: =IF($AJ11=0,0,IF(VLOOKUP($AJ11,Preisliste!$A:$Q,8,FALSE)="",0,VLOOKUP($AJ11,Preisliste!$A:$Q,8,FALSE)+AL10)) -> 0 | AM11: =IF($AJ11=0,0,IF(VLOOKUP($AJ11,Preisliste!$A:$Q,9,FALSE)="",0,VLOOKUP($AJ11,Preisliste!$A:$Q,9,FALSE)+AM10)) -> 0 | AN11: =IF($AJ11=0,0,IF(VLOOKUP($AJ11,Preisliste!$A:$Q,10,FALSE)="",0,VLOOKUP($AJ11,Preisliste!$A:$Q,10,FALSE)+AN10)) -> 0 | AO11: =IF($AJ11=0,0,IF(VLOOKUP($AJ11,Preisliste!$A:$Q,11,FALSE)="",0,VLOOKUP($AJ11,Preisliste!$A:$Q,11,FALSE)+AO10)) -> 0 | AP11: =IF($AJ11=0,0,IF(VLOOKUP($AJ11,Preisliste!$A:$Q,12,FALSE)="",0,VLOOKUP($AJ11,Preisliste!$A:$Q,12,FALSE)+AP10)) -> 0 | AQ11: =IF($AJ11=0,0,IF(VLOOKUP($AJ11,Preisliste!$A:$Q,13,FALSE)="",0,VLOOKUP($AJ11,Preisliste!$A:$Q,13,FALSE)+AQ10)) -> 1 | AR11: =IF($AJ11=0,0,IF(VLOOKUP($AJ11,Preisliste!$A:$Q,14,FALSE)="",0,VLOOKUP($AJ11,Preisliste!$A:$Q,14,FALSE)+AR10)) -> 1 | AS11: =IF($AJ11=0,0,IF(VLOOKUP($AJ11,Preisliste!$A:$Q,15,FALSE)="",0,VLOOKUP($AJ11,Preisliste!$A:$Q,15,FALSE)+AS10)) -> 0 | AT11: =IF($AJ11=0,0,IF(VLOOKUP($AJ11,Preisliste!$A:$Q,16,FALSE)="",0,VLOOKUP($AJ11,Preisliste!$A:$Q,16,FALSE)+AT10)) -> 0 | AU11: =IF($AJ11=0,0,IF(VLOOKUP($AJ11,Preisliste!$A:$Q,17,FALSE)="",0,VLOOKUP($AJ11,Preisliste!$A:$Q,17,FALSE)+AU10)) -> 0 | BG11: Mehrere Wärmeerzeuger | BH11: =MAX(AK:AK) -> 0 | BJ11: =Translation!A130 -> There are several heat generators in material list. | BK11: =IF($BH$11<2,0,INDEX($AJ:$AJ,MATCH(1,$AK:$AK,0))) -> 0 | BL11: =IF(BK11=0,"",VLOOKUP(BK11,Preisliste!$A:$P,2,FALSE)) ->  | BM11: =IF($BH$11<2,0,INDEX($AJ:$AJ,MATCH(2,$AK:$AK,0))) -> 0 | BN11: =IF(BM11=0,"",VLOOKUP(BM11,Preisliste!$A:$P,2,FALSE)) ->  | BO11: =IF($BH$11<3,0,INDEX($AJ:$AJ,MATCH(3,$AK:$AK,0))) -> 0 | BP11: =IF(BO11=0,"",VLOOKUP(BO11,Preisliste!$A:$P,2,FALSE)) ->  | BQ11: =IF($BH$11<4,0,INDEX($AJ:$AJ,MATCH(4,$AK:$AK,0))) -> 0 | BR11: =IF(BQ11=0,"",VLOOKUP(BQ11,Preisliste!$A:$P,2,FALSE)) -> 
B12: =IF(D12=0,0,MAX($B$10:B11)+1) -> 3 | D12: 234922 | E12: 1 | F12: =IF(ISERROR(AB12),"---",IF(ISERROR(VLOOKUP(D12,'Langtexte-Vorlage'!A:D,3,FALSE)),AB12,IF($AH$57=TRUE,AB12&CHAR(10)&CHAR(10)&VLOOKUP(D12,'Langtexte-Vorlage'!A:D,3,FALSE)&CHAR(10),AB12))) -> Heat pump manager WPMW 3 international | G12: =IF(ISERROR(VLOOKUP(D12,Preisliste!$A:$C,3,FALSE)),0,VLOOKUP(D12,Preisliste!$A:$C,3,FALSE)) -> 589 | H12: =IF(C12="O",Translation!$A$106,IF(C12="A",Translation!$A$108,IF(C12="S",Translation!$A$109,IF(ISERROR(E12*G12),"---",E12*G12)))) -> 589 | I12: =IF(ISERROR(VLOOKUP(D12,Preisliste!$A:$AQ,43,FALSE)),"",IF(VLOOKUP(D12,Preisliste!$A:$AQ,43,FALSE)=0,"","*")) ->  | O12: FALSE | P12: =IF($U$10=FALSE,0,Auswahl!O11) -> 234922 | Q12: =IF($U$10=FALSE,0,IF(OR(R12=TRUE,S12=TRUE),LEFT(RIGHT(Auswahl!R11,2),1)*1,Auswahl!R11)) -> 1 | R12: =IF(LEFT(Auswahl!R11,3)=LEFT(Translation!$A$107,3),TRUE,FALSE) -> FALSE | S12: =IF(LEFT(Auswahl!R11,3)=LEFT(Translation!$A$109,3),TRUE,FALSE) -> FALSE | T12: =IF(ISERROR(VLOOKUP(D12,Preisliste!$A:$AF,31,FALSE)),"---",VLOOKUP(D12,Preisliste!$A:$AF,31,FALSE)) -> http://www.stiebel-eltron.be/ste_shared/pdf/data/E_9340_0_de_English.pdf | U12: letzte Zeile | V12: =Translation!$A$165 -> Heat pump | W12: =IF($U$10=FALSE,"",IF(I12="","",D12&" "&VLOOKUP(D12,Preisliste!$A:$AQ,43,FALSE))) ->  | X12: =IF(AND(ISNUMBER(B12),B12>0),X11&TEXT(D12,"000000")&",",X11) -> 234761,233623,234922, | Y12: =VLOOKUP(D12,Preisliste!$A:$D,4,FALSE) -> --- | Z12: =VLOOKUP(D12,Preisliste!$A:$AE,29,FALSE) -> PIC00003569-00.jpg | AA12: =IF(OR(B12=0,B12=""),TRUE,IF(ISERROR(VLOOKUP(D12,'Langtexte-Vorlage'!A:D,3,FALSE)),FALSE,TRUE)) -> TRUE | AB12: =VLOOKUP(D12,Preisliste!$A:$B,2,FALSE) -> Heat pump manager WPMW 3 international | AH12: =IF(ISERROR(INDIRECT("U"&IF(ROUNDDOWN(AH34/100,0)=0,13,ROUNDDOWN(AH34/100,0)*100+3))),AH10,INDIRECT("U"&IF(ROUNDDOWN(AH34/100,0)=0,13,ROUNDDOWN(AH34/100,0)*100+3))) -> 23 | AJ12: 234922 | AK12: =IF($AJ12=0,0,IF(VLOOKUP($AJ12,Preisliste!$A:$Q,7,FALSE)="",0,VLOOKUP($AJ12,Preisliste!$A:$Q,7,FALSE)+MAX(AK$10:AK11))) -> 0 | AL12: =IF($AJ12=0,0,IF(VLOOKUP($AJ12,Preisliste!$A:$Q,8,FALSE)="",0,VLOOKUP($AJ12,Preisliste!$A:$Q,8,FALSE)+MAX(AL$10:AL11))) -> 0 | AM12: =IF($AJ12=0,0,IF(VLOOKUP($AJ12,Preisliste!$A:$Q,9,FALSE)="",0,VLOOKUP($AJ12,Preisliste!$A:$Q,9,FALSE)+MAX(AM$10:AM11))) -> 0 | AN12: =IF($AJ12=0,0,IF(VLOOKUP($AJ12,Preisliste!$A:$Q,10,FALSE)="",0,VLOOKUP($AJ12,Preisliste!$A:$Q,10,FALSE)+MAX(AN$10:AN11))) -> 0 | AO12: =IF($AJ12=0,0,IF(VLOOKUP($AJ12,Preisliste!$A:$Q,11,FALSE)="",0,VLOOKUP($AJ12,Preisliste!$A:$Q,11,FALSE)+MAX(AO$10:AO11))) -> 0 | AP12: =IF($AJ12=0,0,IF(VLOOKUP($AJ12,Preisliste!$A:$Q,12,FALSE)="",0,VLOOKUP($AJ12,Preisliste!$A:$Q,12,FALSE)+MAX(AP$10:AP11))) -> 0 | AQ12: =IF($AJ12=0,0,IF(VLOOKUP($AJ12,Preisliste!$A:$Q,13,FALSE)="",0,VLOOKUP($AJ12,Preisliste!$A:$Q,13,FALSE)+MAX(AQ$10:AQ11))) -> 0 | AR12: =IF($AJ12=0,0,IF(VLOOKUP($AJ12,Preisliste!$A:$Q,14,FALSE)="",0,VLOOKUP($AJ12,Preisliste!$A:$Q,14,FALSE)+MAX(AR$10:AR11))) -> 0 | AS12: =IF($AJ12=0,0,IF(VLOOKUP($AJ12,Preisliste!$A:$Q,15,FALSE)="",0,VLOOKUP($AJ12,Preisliste!$A:$Q,15,FALSE)+MAX(AS$10:AS11))) -> 0 | AT12: =IF($AJ12=0,0,IF(VLOOKUP($AJ12,Preisliste!$A:$Q,16,FALSE)="",0,VLOOKUP($AJ12,Preisliste!$A:$Q,16,FALSE)+MAX(AT$10:AT11))) -> 0 | AU12: =IF($AJ12=0,0,IF(VLOOKUP($AJ12,Preisliste!$A:$Q,17,FALSE)="",0,VLOOKUP($AJ12,Preisliste!$A:$Q,17,FALSE)+MAX(AU$10:AU11))) -> 0 | BG12: Mehrere WW-Systeme | BH12: =MAX(AL:AL) -> 1 | BJ12: =Translation!A131 -> There are several DHW systems in material list. | BK12: =IF($BH$12<2,0,INDEX($AJ:$AJ,MATCH(1,$AL:$AL,0))) -> 0 | BL12: =IF(BK12=0,"",VLOOKUP(BK12,Preisliste!$A:$P,2,FALSE)) ->  | BM12: =IF($BH$12<2,0,INDEX($AJ:$AJ,MATCH(2,$AL:$AL,0))) -> 0 | BN12: =IF(BM12=0,"",VLOOKUP(BM12,Preisliste!$A:$P,2,FALSE)) ->  | BO12: =IF($BH$12<3,0,INDEX($AJ:$AJ,MATCH(3,$AL:$AL,0))) -> 0 | BP12: =IF(BO12=0,"",VLOOKUP(BO12,Preisliste!$A:$P,2,FALSE)) ->  | BQ12: =IF($BH$12<4,0,INDEX($AJ:$AJ,MATCH(4,$AL:$AL,0))) -> 0 | BR12: =IF(BQ12=0,"",VLOOKUP(BQ12,Preisliste!$A:$P,2,FALSE)) -> 
B13: =IF(D13=0,0,MAX($B$10:B12)+1) -> 4 | D13: 185579 | E13: 1 | F13: =IF(ISERROR(AB13),"---",IF(ISERROR(VLOOKUP(D13,'Langtexte-Vorlage'!A:D,3,FALSE)),AB13,IF($AH$57=TRUE,AB13&CHAR(10)&CHAR(10)&VLOOKUP(D13,'Langtexte-Vorlage'!A:D,3,FALSE)&CHAR(10),AB13))) -> Remote control FE 7 | G13: =IF(ISERROR(VLOOKUP(D13,Preisliste!$A:$C,3,FALSE)),0,VLOOKUP(D13,Preisliste!$A:$C,3,FALSE)) -> 26 | H13: =IF(C13="O",Translation!$A$106,IF(C13="A",Translation!$A$108,IF(C13="S",Translation!$A$109,IF(ISERROR(E13*G13),"---",E13*G13)))) -> 26 | I13: =IF(ISERROR(VLOOKUP(D13,Preisliste!$A:$AQ,43,FALSE)),"",IF(VLOOKUP(D13,Preisliste!$A:$AQ,43,FALSE)=0,"","*")) ->  | O13: FALSE | P13: =IF($U$10=FALSE,0,Auswahl!O12) -> 185579 | Q13: =IF($U$10=FALSE,0,IF(OR(R13=TRUE,S13=TRUE),LEFT(RIGHT(Auswahl!R12,2),1)*1,Auswahl!R12)) -> 1 | R13: =IF(LEFT(Auswahl!R12,3)=LEFT(Translation!$A$107,3),TRUE,FALSE) -> FALSE | S13: =IF(LEFT(Auswahl!R12,3)=LEFT(Translation!$A$109,3),TRUE,FALSE) -> FALSE | T13: =IF(ISERROR(VLOOKUP(D13,Preisliste!$A:$AF,31,FALSE)),"---",VLOOKUP(D13,Preisliste!$A:$AF,31,FALSE)) -> http://www.stiebel-eltron.be/ste_shared/pdf/data/E_6566_0_de_English.pdf | U13: =MATCH(MAX(B10:B95),B:B,0) -> 23 | V13: =Translation!$A$165 -> Heat pump | W13: =IF($U$10=FALSE,"",IF(I13="","",D13&" "&VLOOKUP(D13,Preisliste!$A:$AQ,43,FALSE))) ->  | X13: 234761,233623,234922,185579, | Y13: =VLOOKUP(D13,Preisliste!$A:$D,4,FALSE) -> --- | Z13: =VLOOKUP(D13,Preisliste!$A:$AE,29,FALSE) -> PIC00000609-00.jpg | AA13: =IF(OR(B13=0,B13=""),TRUE,IF(ISERROR(VLOOKUP(D13,'Langtexte-Vorlage'!A:D,3,FALSE)),FALSE,TRUE)) -> TRUE | AB13: =VLOOKUP(D13,Preisliste!$A:$B,2,FALSE) -> Remote control FE 7 | AH13: Gesamtpreis | AJ13: =IF(ISNUMBER(D13),D13,0) -> 185579 | AK13: =IF($AJ13=0,0,IF(VLOOKUP($AJ13,Preisliste!$A:$Q,7,FALSE)="",0,VLOOKUP($AJ13,Preisliste!$A:$Q,7,FALSE)+MAX(AK$10:AK12))) -> 0 | AL13: =IF($AJ13=0,0,IF(VLOOKUP($AJ13,Preisliste!$A:$Q,8,FALSE)="",0,VLOOKUP($AJ13,Preisliste!$A:$Q,8,FALSE)+MAX(AL$10:AL12))) -> 0 | AM13: =IF($AJ13=0,0,IF(VLOOKUP($AJ13,Preisliste!$A:$Q,9,FALSE)="",0,VLOOKUP($AJ13,Preisliste!$A:$Q,9,FALSE)+MAX(AM$10:AM12))) -> 0 | AN13: =IF($AJ13=0,0,IF(VLOOKUP($AJ13,Preisliste!$A:$Q,10,FALSE)="",0,VLOOKUP($AJ13,Preisliste!$A:$Q,10,FALSE)+MAX(AN$10:AN12))) -> 0 | AO13: =IF($AJ13=0,0,IF(VLOOKUP($AJ13,Preisliste!$A:$Q,11,FALSE)="",0,VLOOKUP($AJ13,Preisliste!$A:$Q,11,FALSE)+MAX(AO$10:AO12))) -> 0 | AP13: =IF($AJ13=0,0,IF(VLOOKUP($AJ13,Preisliste!$A:$Q,12,FALSE)="",0,VLOOKUP($AJ13,Preisliste!$A:$Q,12,FALSE)+MAX(AP$10:AP12))) -> 0 | AQ13: =IF($AJ13=0,0,IF(VLOOKUP($AJ13,Preisliste!$A:$Q,13,FALSE)="",0,VLOOKUP($AJ13,Preisliste!$A:$Q,13,FALSE)+MAX(AQ$10:AQ12))) -> 0 | AR13: =IF($AJ13=0,0,IF(VLOOKUP($AJ13,Preisliste!$A:$Q,14,FALSE)="",0,VLOOKUP($AJ13,Preisliste!$A:$Q,14,FALSE)+MAX(AR$10:AR12))) -> 0 | AS13: =IF($AJ13=0,0,IF(VLOOKUP($AJ13,Preisliste!$A:$Q,15,FALSE)="",0,VLOOKUP($AJ13,Preisliste!$A:$Q,15,FALSE)+MAX(AS$10:AS12))) -> 0 | AT13: =IF($AJ13=0,0,IF(VLOOKUP($AJ13,Preisliste!$A:$Q,16,FALSE)="",0,VLOOKUP($AJ13,Preisliste!$A:$Q,16,FALSE)+MAX(AT$10:AT12))) -> 0 | AU13: =IF($AJ13=0,0,IF(VLOOKUP($AJ13,Preisliste!$A:$Q,17,FALSE)="",0,VLOOKUP($AJ13,Preisliste!$A:$Q,17,FALSE)+MAX(AU$10:AU12))) -> 0 | BG13: Mehrere Puffer | BH13: =MAX(AM:AM) -> 1 | BJ13: =Translation!A132 -> There are several buffer systems in material list. | BK13: =IF($BH$13<2,0,INDEX($AJ:$AJ,MATCH(1,$AM:$AM,0))) -> 0 | BL13: =IF(BK13=0,"",VLOOKUP(BK13,Preisliste!$A:$P,2,FALSE)) ->  | BM13: =IF($BH$13<2,0,INDEX($AJ:$AJ,MATCH(2,$AM:$AM,0))) -> 0 | BN13: =IF(BM13=0,"",VLOOKUP(BM13,Preisliste!$A:$P,2,FALSE)) ->  | BO13: =IF($BH$13<3,0,INDEX($AJ:$AJ,MATCH(3,$AM:$AM,0))) -> 0 | BP13: =IF(BO13=0,"",VLOOKUP(BO13,Preisliste!$A:$P,2,FALSE)) ->  | BQ13: =IF($BH$13<4,0,INDEX($AJ:$AJ,MATCH(4,$AM:$AM,0))) -> 0 | BR13: =IF(BQ13=0,"",VLOOKUP(BQ13,Preisliste!$A:$P,2,FALSE)) -> 
B14: =IF(D14=0,0,MAX($B$10:B13)+1) -> 5 | D14: 185458 | E14: 1 | F14: =IF(ISERROR(AB14),"---",IF(ISERROR(VLOOKUP(D14,'Langtexte-Vorlage'!A:D,3,FALSE)),AB14,IF($AH$57=TRUE,AB14&CHAR(10)&CHAR(10)&VLOOKUP(D14,'Langtexte-Vorlage'!A:D,3,FALSE)&CHAR(10),AB14))) -> Buffer cylinder SBP 200 E | G14: =IF(ISERROR(VLOOKUP(D14,Preisliste!$A:$C,3,FALSE)),0,VLOOKUP(D14,Preisliste!$A:$C,3,FALSE)) -> 763 | H14: =IF(C14="O",Translation!$A$106,IF(C14="A",Translation!$A$108,IF(C14="S",Translation!$A$109,IF(ISERROR(E14*G14),"---",E14*G14)))) -> 763 | I14: =IF(ISERROR(VLOOKUP(D14,Preisliste!$A:$AQ,43,FALSE)),"",IF(VLOOKUP(D14,Preisliste!$A:$AQ,43,FALSE)=0,"","*")) ->  | O14: FALSE | P14: =IF($U$10=FALSE,0,Auswahl!O13) -> 185458 | Q14: =IF($U$10=FALSE,0,IF(OR(R14=TRUE,S14=TRUE),LEFT(RIGHT(Auswahl!R13,2),1)*1,Auswahl!R13)) -> 1 | R14: =IF(LEFT(Auswahl!R13,3)=LEFT(Translation!$A$107,3),TRUE,FALSE) -> FALSE | S14: =IF(LEFT(Auswahl!R13,3)=LEFT(Translation!$A$109,3),TRUE,FALSE) -> FALSE | T14: =IF(ISERROR(VLOOKUP(D14,Preisliste!$A:$AF,31,FALSE)),"---",VLOOKUP(D14,Preisliste!$A:$AF,31,FALSE)) -> http://www.stiebel-eltron.be/ste_shared/pdf/data/E_6627_0_de_English.pdf | V14: =Translation!$A$165 -> Heat pump | W14: =IF($U$10=FALSE,"",IF(I14="","",D14&" "&VLOOKUP(D14,Preisliste!$A:$AQ,43,FALSE))) ->  | X14: 234761,233623,234922,185579,185458, | Y14: =VLOOKUP(D14,Preisliste!$A:$D,4,FALSE) -> --- | Z14: =VLOOKUP(D14,Preisliste!$A:$AE,29,FALSE) -> PIC00000600-00.jpg | AA14: =IF(OR(B14=0,B14=""),TRUE,IF(ISERROR(VLOOKUP(D14,'Langtexte-Vorlage'!A:D,3,FALSE)),FALSE,TRUE)) -> TRUE | AB14: =VLOOKUP(D14,Preisliste!$A:$B,2,FALSE) -> Buffer cylinder SBP 200 E | AH14: =H96+H196+H296+H396+H496+H596+H696+H796+H896+H996 -> 14490 | AJ14: 185458 | AK14: =IF($AJ14=0,0,IF(VLOOKUP($AJ14,Preisliste!$A:$Q,7,FALSE)="",0,VLOOKUP($AJ14,Preisliste!$A:$Q,7,FALSE)+MAX(AK$10:AK13))) -> 0 | AL14: =IF($AJ14=0,0,IF(VLOOKUP($AJ14,Preisliste!$A:$Q,8,FALSE)="",0,VLOOKUP($AJ14,Preisliste!$A:$Q,8,FALSE)+MAX(AL$10:AL13))) -> 0 | AM14: =IF($AJ14=0,0,IF(VLOOKUP($AJ14,Preisliste!$A:$Q,9,FALSE)="",0,VLOOKUP($AJ14,Preisliste!$A:$Q,9,FALSE)+MAX(AM$10:AM13))) -> 1 | AN14: =IF($AJ14=0,0,IF(VLOOKUP($AJ14,Preisliste!$A:$Q,10,FALSE)="",0,VLOOKUP($AJ14,Preisliste!$A:$Q,10,FALSE)+MAX(AN$10:AN13))) -> 0 | AO14: =IF($AJ14=0,0,IF(VLOOKUP($AJ14,Preisliste!$A:$Q,11,FALSE)="",0,VLOOKUP($AJ14,Preisliste!$A:$Q,11,FALSE)+MAX(AO$10:AO13))) -> 0 | AP14: =IF($AJ14=0,0,IF(VLOOKUP($AJ14,Preisliste!$A:$Q,12,FALSE)="",0,VLOOKUP($AJ14,Preisliste!$A:$Q,12,FALSE)+MAX(AP$10:AP13))) -> 0 | AQ14: =IF($AJ14=0,0,IF(VLOOKUP($AJ14,Preisliste!$A:$Q,13,FALSE)="",0,VLOOKUP($AJ14,Preisliste!$A:$Q,13,FALSE)+MAX(AQ$10:AQ13))) -> 0 | AR14: =IF($AJ14=0,0,IF(VLOOKUP($AJ14,Preisliste!$A:$Q,14,FALSE)="",0,VLOOKUP($AJ14,Preisliste!$A:$Q,14,FALSE)+MAX(AR$10:AR13))) -> 0 | AS14: =IF($AJ14=0,0,IF(VLOOKUP($AJ14,Preisliste!$A:$Q,15,FALSE)="",0,VLOOKUP($AJ14,Preisliste!$A:$Q,15,FALSE)+MAX(AS$10:AS13))) -> 1 | AT14: =IF($AJ14=0,0,IF(VLOOKUP($AJ14,Preisliste!$A:$Q,16,FALSE)="",0,VLOOKUP($AJ14,Preisliste!$A:$Q,16,FALSE)+MAX(AT$10:AT13))) -> 0 | AU14: =IF($AJ14=0,0,IF(VLOOKUP($AJ14,Preisliste!$A:$Q,17,FALSE)="",0,VLOOKUP($AJ14,Preisliste!$A:$Q,17,FALSE)+MAX(AU$10:AU13))) -> 0 | BG14: Mehrere Solaranlagen | BH14: =MAX(AN:AN) -> 0 | BJ14: =Translation!A133 -> There are several Solar systems in material list. | BK14: =IF($BH$14<2,0,INDEX($AJ:$AJ,MATCH(1,$AN:$AN,0))) -> 0 | BL14: =IF(BK14=0,"",VLOOKUP(BK14,Preisliste!$A:$P,2,FALSE)) ->  | BM14: =IF($BH$14<2,0,INDEX($AJ:$AJ,MATCH(2,$AN:$AN,0))) -> 0 | BN14: =IF(BM14=0,"",VLOOKUP(BM14,Preisliste!$A:$P,2,FALSE)) ->  | BO14: =IF($BH$14<3,0,INDEX($AJ:$AJ,MATCH(3,$AN:$AN,0))) -> 0 | BP14: =IF(BO14=0,"",VLOOKUP(BO14,Preisliste!$A:$P,2,FALSE)) ->  | BQ14: =IF($BH$14<4,0,INDEX($AJ:$AJ,MATCH(4,$AN:$AN,0))) -> 0 | BR14: =IF(BQ14=0,"",VLOOKUP(BQ14,Preisliste!$A:$P,2,FALSE)) -> 
B15: =IF(D15=0,0,MAX($B$10:B14)+1) -> 6 | D15: 234763 | E15: 1 | F15: =IF(ISERROR(AB15),"---",IF(ISERROR(VLOOKUP(D15,'Langtexte-Vorlage'!A:D,3,FALSE)),AB15,IF($AH$57=TRUE,AB15&CHAR(10)&CHAR(10)&VLOOKUP(D15,'Langtexte-Vorlage'!A:D,3,FALSE)&CHAR(10),AB15))) -> Compact installation WPKI 5 | G15: =IF(ISERROR(VLOOKUP(D15,Preisliste!$A:$C,3,FALSE)),0,VLOOKUP(D15,Preisliste!$A:$C,3,FALSE)) -> 279 | H15: =IF(C15="O",Translation!$A$106,IF(C15="A",Translation!$A$108,IF(C15="S",Translation!$A$109,IF(ISERROR(E15*G15),"---",E15*G15)))) -> 279 | I15: =IF(ISERROR(VLOOKUP(D15,Preisliste!$A:$AQ,43,FALSE)),"",IF(VLOOKUP(D15,Preisliste!$A:$AQ,43,FALSE)=0,"","*")) ->  | O15: FALSE | P15: =IF($U$10=FALSE,0,Auswahl!O14) -> 234763 | Q15: =IF($U$10=FALSE,0,IF(OR(R15=TRUE,S15=TRUE),LEFT(RIGHT(Auswahl!R14,2),1)*1,Auswahl!R14)) -> 1 | R15: =IF(LEFT(Auswahl!R14,3)=LEFT(Translation!$A$107,3),TRUE,FALSE) -> FALSE | S15: =IF(LEFT(Auswahl!R14,3)=LEFT(Translation!$A$109,3),TRUE,FALSE) -> FALSE | T15: =IF(ISERROR(VLOOKUP(D15,Preisliste!$A:$AF,31,FALSE)),"---",VLOOKUP(D15,Preisliste!$A:$AF,31,FALSE)) ->  | V15: =Translation!$A$165 -> Heat pump | W15: =IF($U$10=FALSE,"",IF(I15="","",D15&" "&VLOOKUP(D15,Preisliste!$A:$AQ,43,FALSE))) ->  | X15: 234761,233623,234922,185579,185458,234763, | Y15: =VLOOKUP(D15,Preisliste!$A:$D,4,FALSE) -> --- | Z15: =VLOOKUP(D15,Preisliste!$A:$AE,29,FALSE) -> PIC00004940-00.jpg | AA15: =IF(OR(B15=0,B15=""),TRUE,IF(ISERROR(VLOOKUP(D15,'Langtexte-Vorlage'!A:D,3,FALSE)),FALSE,TRUE)) -> TRUE | AB15: =VLOOKUP(D15,Preisliste!$A:$B,2,FALSE) -> Compact installation WPKI 5 | AH15: =Translation!A12&": "&FIXED(AH14,2)&" €" -> Total price: 14.490,00 € | AJ15: 234763 | AK15: =IF($AJ15=0,0,IF(VLOOKUP($AJ15,Preisliste!$A:$Q,7,FALSE)="",0,VLOOKUP($AJ15,Preisliste!$A:$Q,7,FALSE)+MAX(AK$10:AK14))) -> 0 | AL15: =IF($AJ15=0,0,IF(VLOOKUP($AJ15,Preisliste!$A:$Q,8,FALSE)="",0,VLOOKUP($AJ15,Preisliste!$A:$Q,8,FALSE)+MAX(AL$10:AL14))) -> 0 | AM15: =IF($AJ15=0,0,IF(VLOOKUP($AJ15,Preisliste!$A:$Q,9,FALSE)="",0,VLOOKUP($AJ15,Preisliste!$A:$Q,9,FALSE)+MAX(AM$10:AM14))) -> 0 | AN15: =IF($AJ15=0,0,IF(VLOOKUP($AJ15,Preisliste!$A:$Q,10,FALSE)="",0,VLOOKUP($AJ15,Preisliste!$A:$Q,10,FALSE)+MAX(AN$10:AN14))) -> 0 | AO15: =IF($AJ15=0,0,IF(VLOOKUP($AJ15,Preisliste!$A:$Q,11,FALSE)="",0,VLOOKUP($AJ15,Preisliste!$A:$Q,11,FALSE)+MAX(AO$10:AO14))) -> 0 | AP15: =IF($AJ15=0,0,IF(VLOOKUP($AJ15,Preisliste!$A:$Q,12,FALSE)="",0,VLOOKUP($AJ15,Preisliste!$A:$Q,12,FALSE)+MAX(AP$10:AP14))) -> 0 | AQ15: =IF($AJ15=0,0,IF(VLOOKUP($AJ15,Preisliste!$A:$Q,13,FALSE)="",0,VLOOKUP($AJ15,Preisliste!$A:$Q,13,FALSE)+MAX(AQ$10:AQ14))) -> 0 | AR15: =IF($AJ15=0,0,IF(VLOOKUP($AJ15,Preisliste!$A:$Q,14,FALSE)="",0,VLOOKUP($AJ15,Preisliste!$A:$Q,14,FALSE)+MAX(AR$10:AR14))) -> 0 | AS15: =IF($AJ15=0,0,IF(VLOOKUP($AJ15,Preisliste!$A:$Q,15,FALSE)="",0,VLOOKUP($AJ15,Preisliste!$A:$Q,15,FALSE)+MAX(AS$10:AS14))) -> 0 | AT15: =IF($AJ15=0,0,IF(VLOOKUP($AJ15,Preisliste!$A:$Q,16,FALSE)="",0,VLOOKUP($AJ15,Preisliste!$A:$Q,16,FALSE)+MAX(AT$10:AT14))) -> 0 | AU15: =IF($AJ15=0,0,IF(VLOOKUP($AJ15,Preisliste!$A:$Q,17,FALSE)="",0,VLOOKUP($AJ15,Preisliste!$A:$Q,17,FALSE)+MAX(AU$10:AU14))) -> 0 | BG15: Mehrere Lüftungsanlagen | BH15: =MAX(AO:AO) -> 0 | BJ15: =Translation!A134 -> There are several air ventilation systems in material list. | BK15: =IF($BH$15<2,0,INDEX($AJ:$AJ,MATCH(1,$AO:$AO,0))) -> 0 | BL15: =IF(BK15=0,"",VLOOKUP(BK15,Preisliste!$A:$P,2,FALSE)) ->  | BM15: =IF($BH$15<2,0,INDEX($AJ:$AJ,MATCH(2,$AO:$AO,0))) -> 0 | BN15: =IF(BM15=0,"",VLOOKUP(BM15,Preisliste!$A:$P,2,FALSE)) ->  | BO15: =IF($BH$15<3,0,INDEX($AJ:$AJ,MATCH(3,$AO:$AO,0))) -> 0 | BP15: =IF(BO15=0,"",VLOOKUP(BO15,Preisliste!$A:$P,2,FALSE)) ->  | BQ15: =IF($BH$15<4,0,INDEX($AJ:$AJ,MATCH(4,$AO:$AO,0))) -> 0 | BR15: =IF(BQ15=0,"",VLOOKUP(BQ15,Preisliste!$A:$P,2,FALSE)) -> 
B16: =IF(D16=0,0,MAX($B$10:B15)+1) -> 7 | D16: 232943 | E16: 2 | F16: =IF(ISERROR(AB16),"---",IF(ISERROR(VLOOKUP(D16,'Langtexte-Vorlage'!A:D,3,FALSE)),AB16,IF($AH$57=TRUE,AB16&CHAR(10)&CHAR(10)&VLOOKUP(D16,'Langtexte-Vorlage'!A:D,3,FALSE)&CHAR(10),AB16))) -> Circulation pump UP 25/7.5 E | G16: =IF(ISERROR(VLOOKUP(D16,Preisliste!$A:$C,3,FALSE)),0,VLOOKUP(D16,Preisliste!$A:$C,3,FALSE)) -> 184 | H16: =IF(C16="O",Translation!$A$106,IF(C16="A",Translation!$A$108,IF(C16="S",Translation!$A$109,IF(ISERROR(E16*G16),"---",E16*G16)))) -> 368 | I16: =IF(ISERROR(VLOOKUP(D16,Preisliste!$A:$AQ,43,FALSE)),"",IF(VLOOKUP(D16,Preisliste!$A:$AQ,43,FALSE)=0,"","*")) ->  | O16: FALSE | P16: =IF($U$10=FALSE,0,Auswahl!O15) -> 232943 | Q16: =IF($U$10=FALSE,0,IF(OR(R16=TRUE,S16=TRUE),LEFT(RIGHT(Auswahl!R15,2),1)*1,Auswahl!R15)) -> 2 | R16: =IF(LEFT(Auswahl!R15,3)=LEFT(Translation!$A$107,3),TRUE,FALSE) -> FALSE | S16: =IF(LEFT(Auswahl!R15,3)=LEFT(Translation!$A$109,3),TRUE,FALSE) -> FALSE | T16: =IF(ISERROR(VLOOKUP(D16,Preisliste!$A:$AF,31,FALSE)),"---",VLOOKUP(D16,Preisliste!$A:$AF,31,FALSE)) -> http://www.stiebel-eltron.be/ste_shared/pdf/data/E_6631_0_de_English.pdf | V16: =Translation!$A$165 -> Heat pump | W16: =IF($U$10=FALSE,"",IF(I16="","",D16&" "&VLOOKUP(D16,Preisliste!$A:$AQ,43,FALSE))) ->  | X16: 234761,233623,234922,185579,185458,234763,232943, | Y16: =VLOOKUP(D16,Preisliste!$A:$D,4,FALSE) -> --- | Z16: =VLOOKUP(D16,Preisliste!$A:$AE,29,FALSE) -> PIC00004270-00.jpg | AA16: =IF(OR(B16=0,B16=""),TRUE,IF(ISERROR(VLOOKUP(D16,'Langtexte-Vorlage'!A:D,3,FALSE)),FALSE,TRUE)) -> TRUE | AB16: =VLOOKUP(D16,Preisliste!$A:$B,2,FALSE) -> Circulation pump UP 25/7.5 E | AJ16: 232943 | AK16: =IF($AJ16=0,0,IF(VLOOKUP($AJ16,Preisliste!$A:$Q,7,FALSE)="",0,VLOOKUP($AJ16,Preisliste!$A:$Q,7,FALSE)+MAX(AK$10:AK15))) -> 0 | AL16: =IF($AJ16=0,0,IF(VLOOKUP($AJ16,Preisliste!$A:$Q,8,FALSE)="",0,VLOOKUP($AJ16,Preisliste!$A:$Q,8,FALSE)+MAX(AL$10:AL15))) -> 0 | AM16: =IF($AJ16=0,0,IF(VLOOKUP($AJ16,Preisliste!$A:$Q,9,FALSE)="",0,VLOOKUP($AJ16,Preisliste!$A:$Q,9,FALSE)+MAX(AM$10:AM15))) -> 0 | AN16: =IF($AJ16=0,0,IF(VLOOKUP($AJ16,Preisliste!$A:$Q,10,FALSE)="",0,VLOOKUP($AJ16,Preisliste!$A:$Q,10,FALSE)+MAX(AN$10:AN15))) -> 0 | AO16: =IF($AJ16=0,0,IF(VLOOKUP($AJ16,Preisliste!$A:$Q,11,FALSE)="",0,VLOOKUP($AJ16,Preisliste!$A:$Q,11,FALSE)+MAX(AO$10:AO15))) -> 0 | AP16: =IF($AJ16=0,0,IF(VLOOKUP($AJ16,Preisliste!$A:$Q,12,FALSE)="",0,VLOOKUP($AJ16,Preisliste!$A:$Q,12,FALSE)+MAX(AP$10:AP15))) -> 0 | AQ16: =IF($AJ16=0,0,IF(VLOOKUP($AJ16,Preisliste!$A:$Q,13,FALSE)="",0,VLOOKUP($AJ16,Preisliste!$A:$Q,13,FALSE)+MAX(AQ$10:AQ15))) -> 0 | AR16: =IF($AJ16=0,0,IF(VLOOKUP($AJ16,Preisliste!$A:$Q,14,FALSE)="",0,VLOOKUP($AJ16,Preisliste!$A:$Q,14,FALSE)+MAX(AR$10:AR15))) -> 0 | AS16: =IF($AJ16=0,0,IF(VLOOKUP($AJ16,Preisliste!$A:$Q,15,FALSE)="",0,VLOOKUP($AJ16,Preisliste!$A:$Q,15,FALSE)+MAX(AS$10:AS15))) -> 0 | AT16: =IF($AJ16=0,0,IF(VLOOKUP($AJ16,Preisliste!$A:$Q,16,FALSE)="",0,VLOOKUP($AJ16,Preisliste!$A:$Q,16,FALSE)+MAX(AT$10:AT15))) -> 0 | AU16: =IF($AJ16=0,0,IF(VLOOKUP($AJ16,Preisliste!$A:$Q,17,FALSE)="",0,VLOOKUP($AJ16,Preisliste!$A:$Q,17,FALSE)+MAX(AU$10:AU15))) -> 0 | BG16: Material nicht für Luft/Wasser | BH16: =MAX(AP:AP) -> 0 | BI16: =IF(AND(Berechnung!$C$4=TRUE,Waermepumpe!$A$4=1,BH16>0),TRUE,FALSE) -> FALSE | BJ16: =Translation!A135 -> Some items can not be combined with air|water heatpumps. | BK16: =IF(OR($BH$16<1,$BI$16=FALSE),0,INDEX($AJ:$AJ,MATCH(1,$AP:$AP,0))) -> 0 | BL16: =IF(BK16=0,"",VLOOKUP(BK16,Preisliste!$A:$P,2,FALSE)) ->  | BM16: =IF(OR($BH$16<2,$BI$16=FALSE),0,INDEX($AJ:$AJ,MATCH(2,$AP:$AP,0))) -> 0 | BN16: =IF(BM16=0,"",VLOOKUP(BM16,Preisliste!$A:$P,2,FALSE)) ->  | BO16: =IF(OR($BH$16<3,$BI$16=FALSE),0,INDEX($AJ:$AJ,MATCH(3,$AP:$AP,0))) -> 0 | BP16: =IF(BO16=0,"",VLOOKUP(BO16,Preisliste!$A:$P,2,FALSE)) ->  | BQ16: =IF(OR($BH$16<4,$BI$16=FALSE),0,INDEX($AJ:$AJ,MATCH(4,$AP:$AP,0))) -> 0 | BR16: =IF(BQ16=0,"",VLOOKUP(BQ16,Preisliste!$A:$P,2,FALSE)) -> 
B17: =IF(D17=0,0,MAX($B$10:B16)+1) -> 8 | D17: 233602 | E17: 1 | F17: =IF(ISERROR(AB17),"---",IF(ISERROR(VLOOKUP(D17,'Langtexte-Vorlage'!A:D,3,FALSE)),AB17,IF($AH$57=TRUE,AB17&CHAR(10)&CHAR(10)&VLOOKUP(D17,'Langtexte-Vorlage'!A:D,3,FALSE)&CHAR(10),AB17))) -> Compact installation WPKI-HK E | G17: =IF(ISERROR(VLOOKUP(D17,Preisliste!$A:$C,3,FALSE)),0,VLOOKUP(D17,Preisliste!$A:$C,3,FALSE)) -> 416 | H17: =IF(C17="O",Translation!$A$106,IF(C17="A",Translation!$A$108,IF(C17="S",Translation!$A$109,IF(ISERROR(E17*G17),"---",E17*G17)))) -> 416 | I17: =IF(ISERROR(VLOOKUP(D17,Preisliste!$A:$AQ,43,FALSE)),"",IF(VLOOKUP(D17,Preisliste!$A:$AQ,43,FALSE)=0,"","*")) ->  | O17: FALSE | P17: =IF($U$10=FALSE,0,Auswahl!O16) -> 233602 | Q17: =IF($U$10=FALSE,0,IF(OR(R17=TRUE,S17=TRUE),LEFT(RIGHT(Auswahl!R16,2),1)*1,Auswahl!R16)) -> 1 | R17: =IF(LEFT(Auswahl!R16,3)=LEFT(Translation!$A$107,3),TRUE,FALSE) -> FALSE | S17: =IF(LEFT(Auswahl!R16,3)=LEFT(Translation!$A$109,3),TRUE,FALSE) -> FALSE | T17: =IF(ISERROR(VLOOKUP(D17,Preisliste!$A:$AF,31,FALSE)),"---",VLOOKUP(D17,Preisliste!$A:$AF,31,FALSE)) -> http://www.stiebel-eltron.be/ste_shared/pdf/data/E_6638_0_de_English.pdf | V17: =Translation!$A$165 -> Heat pump | W17: =IF($U$10=FALSE,"",IF(I17="","",D17&" "&VLOOKUP(D17,Preisliste!$A:$AQ,43,FALSE))) ->  | X17: 234761,233623,234922,185579,185458,234763,232943,233602, | Y17: =VLOOKUP(D17,Preisliste!$A:$D,4,FALSE) -> --- | Z17: =VLOOKUP(D17,Preisliste!$A:$AE,29,FALSE) -> PIC00004287-00.jpg | AA17: =IF(OR(B17=0,B17=""),TRUE,IF(ISERROR(VLOOKUP(D17,'Langtexte-Vorlage'!A:D,3,FALSE)),FALSE,TRUE)) -> TRUE | AB17: =VLOOKUP(D17,Preisliste!$A:$B,2,FALSE) -> Compact installation WPKI-HK E | AH17: Lieferprobleme ? | AJ17: 233602 | AK17: =IF($AJ17=0,0,IF(VLOOKUP($AJ17,Preisliste!$A:$Q,7,FALSE)="",0,VLOOKUP($AJ17,Preisliste!$A:$Q,7,FALSE)+MAX(AK$10:AK16))) -> 0 | AL17: =IF($AJ17=0,0,IF(VLOOKUP($AJ17,Preisliste!$A:$Q,8,FALSE)="",0,VLOOKUP($AJ17,Preisliste!$A:$Q,8,FALSE)+MAX(AL$10:AL16))) -> 0 | AM17: =IF($AJ17=0,0,IF(VLOOKUP($AJ17,Preisliste!$A:$Q,9,FALSE)="",0,VLOOKUP($AJ17,Preisliste!$A:$Q,9,FALSE)+MAX(AM$10:AM16))) -> 0 | AN17: =IF($AJ17=0,0,IF(VLOOKUP($AJ17,Preisliste!$A:$Q,10,FALSE)="",0,VLOOKUP($AJ17,Preisliste!$A:$Q,10,FALSE)+MAX(AN$10:AN16))) -> 0 | AO17: =IF($AJ17=0,0,IF(VLOOKUP($AJ17,Preisliste!$A:$Q,11,FALSE)="",0,VLOOKUP($AJ17,Preisliste!$A:$Q,11,FALSE)+MAX(AO$10:AO16))) -> 0 | AP17: =IF($AJ17=0,0,IF(VLOOKUP($AJ17,Preisliste!$A:$Q,12,FALSE)="",0,VLOOKUP($AJ17,Preisliste!$A:$Q,12,FALSE)+MAX(AP$10:AP16))) -> 0 | AQ17: =IF($AJ17=0,0,IF(VLOOKUP($AJ17,Preisliste!$A:$Q,13,FALSE)="",0,VLOOKUP($AJ17,Preisliste!$A:$Q,13,FALSE)+MAX(AQ$10:AQ16))) -> 0 | AR17: =IF($AJ17=0,0,IF(VLOOKUP($AJ17,Preisliste!$A:$Q,14,FALSE)="",0,VLOOKUP($AJ17,Preisliste!$A:$Q,14,FALSE)+MAX(AR$10:AR16))) -> 0 | AS17: =IF($AJ17=0,0,IF(VLOOKUP($AJ17,Preisliste!$A:$Q,15,FALSE)="",0,VLOOKUP($AJ17,Preisliste!$A:$Q,15,FALSE)+MAX(AS$10:AS16))) -> 0 | AT17: =IF($AJ17=0,0,IF(VLOOKUP($AJ17,Preisliste!$A:$Q,16,FALSE)="",0,VLOOKUP($AJ17,Preisliste!$A:$Q,16,FALSE)+MAX(AT$10:AT16))) -> 0 | AU17: =IF($AJ17=0,0,IF(VLOOKUP($AJ17,Preisliste!$A:$Q,17,FALSE)="",0,VLOOKUP($AJ17,Preisliste!$A:$Q,17,FALSE)+MAX(AU$10:AU16))) -> 0 | BG17: Material nicht für Sole/Wasser | BH17: =MAX(AQ:AQ) -> 1 | BI17: =IF(AND(Berechnung!$C$4=TRUE,Waermepumpe!$A$4=2,BH17>0),TRUE,FALSE) -> FALSE | BJ17: =Translation!A136 -> Some items can not be combined with brine|water heatpumps. | BK17: =IF(OR($BH$17<1,$BI$17=FALSE),0,INDEX($AJ:$AJ,MATCH(1,$AQ:$AQ,0))) -> 0 | BL17: =IF(BK17=0,"",VLOOKUP(BK17,Preisliste!$A:$P,2,FALSE)) ->  | BM17: =IF(OR($BH$17<2,$BI$17=FALSE),0,INDEX($AJ:$AJ,MATCH(2,$AQ:$AQ,0))) -> 0 | BN17: =IF(BM17=0,"",VLOOKUP(BM17,Preisliste!$A:$P,2,FALSE)) ->  | BO17: =IF(OR($BH$17<3,$BI$17=FALSE),0,INDEX($AJ:$AJ,MATCH(3,$AQ:$AQ,0))) -> 0 | BP17: =IF(BO17=0,"",VLOOKUP(BO17,Preisliste!$A:$P,2,FALSE)) ->  | BQ17: =IF(OR($BH$17<4,$BI$17=FALSE),0,INDEX($AJ:$AJ,MATCH(4,$AQ:$AQ,0))) -> 0 | BR17: =IF(BQ17=0,"",VLOOKUP(BQ17,Preisliste!$A:$P,2,FALSE)) -> 
B18: =IF(D18=0,0,MAX($B$10:B17)+1) -> 9 | D18: 221360 | E18: 1 | F18: =IF(ISERROR(AB18),"---",IF(ISERROR(VLOOKUP(D18,'Langtexte-Vorlage'!A:D,3,FALSE)),AB18,IF($AH$57=TRUE,AB18&CHAR(10)&CHAR(10)&VLOOKUP(D18,'Langtexte-Vorlage'!A:D,3,FALSE)&CHAR(10),AB18))) -> Warm water cylinder SBB 301 WP | G18: =IF(ISERROR(VLOOKUP(D18,Preisliste!$A:$C,3,FALSE)),0,VLOOKUP(D18,Preisliste!$A:$C,3,FALSE)) -> 1924 | H18: =IF(C18="O",Translation!$A$106,IF(C18="A",Translation!$A$108,IF(C18="S",Translation!$A$109,IF(ISERROR(E18*G18),"---",E18*G18)))) -> 1924 | I18: =IF(ISERROR(VLOOKUP(D18,Preisliste!$A:$AQ,43,FALSE)),"",IF(VLOOKUP(D18,Preisliste!$A:$AQ,43,FALSE)=0,"","*")) ->  | O18: FALSE | P18: =IF($U$10=FALSE,0,Auswahl!O17) -> 221360 | Q18: =IF($U$10=FALSE,0,IF(OR(R18=TRUE,S18=TRUE),LEFT(RIGHT(Auswahl!R17,2),1)*1,Auswahl!R17)) -> 1 | R18: =IF(LEFT(Auswahl!R17,3)=LEFT(Translation!$A$107,3),TRUE,FALSE) -> FALSE | S18: =IF(LEFT(Auswahl!R17,3)=LEFT(Translation!$A$109,3),TRUE,FALSE) -> FALSE | T18: =IF(ISERROR(VLOOKUP(D18,Preisliste!$A:$AF,31,FALSE)),"---",VLOOKUP(D18,Preisliste!$A:$AF,31,FALSE)) -> http://www.stiebel-eltron.be/ste_shared/pdf/data/E_6625_0_de_English.pdf | V18: =Translation!$A$165 -> Heat pump | W18: =IF($U$10=FALSE,"",IF(I18="","",D18&" "&VLOOKUP(D18,Preisliste!$A:$AQ,43,FALSE))) ->  | X18: 234761,233623,234922,185579,185458,234763,232943,233602,221360, | Y18: =VLOOKUP(D18,Preisliste!$A:$D,4,FALSE) -> --- | Z18: =VLOOKUP(D18,Preisliste!$A:$AE,29,FALSE) -> PIC00000801-00.jpg | AA18: =IF(OR(B18=0,B18=""),TRUE,IF(ISERROR(VLOOKUP(D18,'Langtexte-Vorlage'!A:D,3,FALSE)),FALSE,TRUE)) -> TRUE | AB18: =VLOOKUP(D18,Preisliste!$A:$B,2,FALSE) -> Warm water cylinder SBB 301 WP | AH18: =IF(COUNTIF(W10:W1000,"")>0,TRUE,FALSE) -> TRUE | AJ18: 221360 | AK18: =IF($AJ18=0,0,IF(VLOOKUP($AJ18,Preisliste!$A:$Q,7,FALSE)="",0,VLOOKUP($AJ18,Preisliste!$A:$Q,7,FALSE)+MAX(AK$10:AK17))) -> 0 | AL18: =IF($AJ18=0,0,IF(VLOOKUP($AJ18,Preisliste!$A:$Q,8,FALSE)="",0,VLOOKUP($AJ18,Preisliste!$A:$Q,8,FALSE)+MAX(AL$10:AL17))) -> 1 | AM18: =IF($AJ18=0,0,IF(VLOOKUP($AJ18,Preisliste!$A:$Q,9,FALSE)="",0,VLOOKUP($AJ18,Preisliste!$A:$Q,9,FALSE)+MAX(AM$10:AM17))) -> 0 | AN18: =IF($AJ18=0,0,IF(VLOOKUP($AJ18,Preisliste!$A:$Q,10,FALSE)="",0,VLOOKUP($AJ18,Preisliste!$A:$Q,10,FALSE)+MAX(AN$10:AN17))) -> 0 | AO18: =IF($AJ18=0,0,IF(VLOOKUP($AJ18,Preisliste!$A:$Q,11,FALSE)="",0,VLOOKUP($AJ18,Preisliste!$A:$Q,11,FALSE)+MAX(AO$10:AO17))) -> 0 | AP18: =IF($AJ18=0,0,IF(VLOOKUP($AJ18,Preisliste!$A:$Q,12,FALSE)="",0,VLOOKUP($AJ18,Preisliste!$A:$Q,12,FALSE)+MAX(AP$10:AP17))) -> 0 | AQ18: =IF($AJ18=0,0,IF(VLOOKUP($AJ18,Preisliste!$A:$Q,13,FALSE)="",0,VLOOKUP($AJ18,Preisliste!$A:$Q,13,FALSE)+MAX(AQ$10:AQ17))) -> 0 | AR18: =IF($AJ18=0,0,IF(VLOOKUP($AJ18,Preisliste!$A:$Q,14,FALSE)="",0,VLOOKUP($AJ18,Preisliste!$A:$Q,14,FALSE)+MAX(AR$10:AR17))) -> 0 | AS18: =IF($AJ18=0,0,IF(VLOOKUP($AJ18,Preisliste!$A:$Q,15,FALSE)="",0,VLOOKUP($AJ18,Preisliste!$A:$Q,15,FALSE)+MAX(AS$10:AS17))) -> 2 | AT18: =IF($AJ18=0,0,IF(VLOOKUP($AJ18,Preisliste!$A:$Q,16,FALSE)="",0,VLOOKUP($AJ18,Preisliste!$A:$Q,16,FALSE)+MAX(AT$10:AT17))) -> 0 | AU18: =IF($AJ18=0,0,IF(VLOOKUP($AJ18,Preisliste!$A:$Q,17,FALSE)="",0,VLOOKUP($AJ18,Preisliste!$A:$Q,17,FALSE)+MAX(AU$10:AU17))) -> 0 | BG18: Material nicht für Wasser/Wasser | BH18: =MAX(AR:AR) -> 1 | BI18: =IF(AND(Berechnung!$C$4=TRUE,Waermepumpe!$A$4=3,BH18>0),TRUE,FALSE) -> FALSE | BJ18: =Translation!A137 -> Some items can not be combined with water|water heatpumps. | BK18: =IF(OR($BH$18<1,$BI$18=FALSE),0,INDEX($AJ:$AJ,MATCH(1,$AR:$AR,0))) -> 0 | BL18: =IF(BK18=0,"",VLOOKUP(BK18,Preisliste!$A:$P,2,FALSE)) ->  | BM18: =IF(OR($BH$18<2,$BI$18=FALSE),0,INDEX($AJ:$AJ,MATCH(2,$AR:$AR,0))) -> 0 | BN18: =IF(BM18=0,"",VLOOKUP(BM18,Preisliste!$A:$P,2,FALSE)) ->  | BO18: =IF(OR($BH$18<3,$BI$18=FALSE),0,INDEX($AJ:$AJ,MATCH(3,$AR:$AR,0))) -> 0 | BP18: =IF(BO18=0,"",VLOOKUP(BO18,Preisliste!$A:$P,2,FALSE)) ->  | BQ18: =IF(OR($BH$18<4,$BI$18=FALSE),0,INDEX($AJ:$AJ,MATCH(4,$AR:$AR,0))) -> 0 | BR18: =IF(BQ18=0,"",VLOOKUP(BQ18,Preisliste!$A:$P,2,FALSE)) -> 
B19: =IF(D19=0,0,MAX($B$10:B18)+1) -> 10 | D19: 234764 | E19: 1 | F19: =IF(ISERROR(AB19),"---",IF(ISERROR(VLOOKUP(D19,'Langtexte-Vorlage'!A:D,3,FALSE)),AB19,IF($AH$57=TRUE,AB19&CHAR(10)&CHAR(10)&VLOOKUP(D19,'Langtexte-Vorlage'!A:D,3,FALSE)&CHAR(10),AB19))) -> Compact installation BBI 5 | G19: =IF(ISERROR(VLOOKUP(D19,Preisliste!$A:$C,3,FALSE)),0,VLOOKUP(D19,Preisliste!$A:$C,3,FALSE)) -> 114 | H19: =IF(C19="O",Translation!$A$106,IF(C19="A",Translation!$A$108,IF(C19="S",Translation!$A$109,IF(ISERROR(E19*G19),"---",E19*G19)))) -> 114 | I19: =IF(ISERROR(VLOOKUP(D19,Preisliste!$A:$AQ,43,FALSE)),"",IF(VLOOKUP(D19,Preisliste!$A:$AQ,43,FALSE)=0,"","*")) ->  | O19: FALSE | P19: =IF($U$10=FALSE,0,Auswahl!O18) -> 234764 | Q19: =IF($U$10=FALSE,0,IF(OR(R19=TRUE,S19=TRUE),LEFT(RIGHT(Auswahl!R18,2),1)*1,Auswahl!R18)) -> 1 | R19: =IF(LEFT(Auswahl!R18,3)=LEFT(Translation!$A$107,3),TRUE,FALSE) -> FALSE | S19: =IF(LEFT(Auswahl!R18,3)=LEFT(Translation!$A$109,3),TRUE,FALSE) -> FALSE | T19: =IF(ISERROR(VLOOKUP(D19,Preisliste!$A:$AF,31,FALSE)),"---",VLOOKUP(D19,Preisliste!$A:$AF,31,FALSE)) ->  | V19: =Translation!$A$165 -> Heat pump | W19: =IF($U$10=FALSE,"",IF(I19="","",D19&" "&VLOOKUP(D19,Preisliste!$A:$AQ,43,FALSE))) ->  | X19: 234761,233623,234922,185579,185458,234763,232943,233602,221360,234764, | Y19: =VLOOKUP(D19,Preisliste!$A:$D,4,FALSE) -> --- | Z19: =VLOOKUP(D19,Preisliste!$A:$AE,29,FALSE) -> PIC00004942-00.jpg | AA19: =IF(OR(B19=0,B19=""),TRUE,IF(ISERROR(VLOOKUP(D19,'Langtexte-Vorlage'!A:D,3,FALSE)),FALSE,TRUE)) -> TRUE | AB19: =VLOOKUP(D19,Preisliste!$A:$B,2,FALSE) -> Compact installation BBI 5 | AJ19: 234764 | AK19: =IF($AJ19=0,0,IF(VLOOKUP($AJ19,Preisliste!$A:$Q,7,FALSE)="",0,VLOOKUP($AJ19,Preisliste!$A:$Q,7,FALSE)+MAX(AK$10:AK18))) -> 0 | AL19: =IF($AJ19=0,0,IF(VLOOKUP($AJ19,Preisliste!$A:$Q,8,FALSE)="",0,VLOOKUP($AJ19,Preisliste!$A:$Q,8,FALSE)+MAX(AL$10:AL18))) -> 0 | AM19: =IF($AJ19=0,0,IF(VLOOKUP($AJ19,Preisliste!$A:$Q,9,FALSE)="",0,VLOOKUP($AJ19,Preisliste!$A:$Q,9,FALSE)+MAX(AM$10:AM18))) -> 0 | AN19: =IF($AJ19=0,0,IF(VLOOKUP($AJ19,Preisliste!$A:$Q,10,FALSE)="",0,VLOOKUP($AJ19,Preisliste!$A:$Q,10,FALSE)+MAX(AN$10:AN18))) -> 0 | AO19: =IF($AJ19=0,0,IF(VLOOKUP($AJ19,Preisliste!$A:$Q,11,FALSE)="",0,VLOOKUP($AJ19,Preisliste!$A:$Q,11,FALSE)+MAX(AO$10:AO18))) -> 0 | AP19: =IF($AJ19=0,0,IF(VLOOKUP($AJ19,Preisliste!$A:$Q,12,FALSE)="",0,VLOOKUP($AJ19,Preisliste!$A:$Q,12,FALSE)+MAX(AP$10:AP18))) -> 0 | AQ19: =IF($AJ19=0,0,IF(VLOOKUP($AJ19,Preisliste!$A:$Q,13,FALSE)="",0,VLOOKUP($AJ19,Preisliste!$A:$Q,13,FALSE)+MAX(AQ$10:AQ18))) -> 0 | AR19: =IF($AJ19=0,0,IF(VLOOKUP($AJ19,Preisliste!$A:$Q,14,FALSE)="",0,VLOOKUP($AJ19,Preisliste!$A:$Q,14,FALSE)+MAX(AR$10:AR18))) -> 0 | AS19: =IF($AJ19=0,0,IF(VLOOKUP($AJ19,Preisliste!$A:$Q,15,FALSE)="",0,VLOOKUP($AJ19,Preisliste!$A:$Q,15,FALSE)+MAX(AS$10:AS18))) -> 0 | AT19: =IF($AJ19=0,0,IF(VLOOKUP($AJ19,Preisliste!$A:$Q,16,FALSE)="",0,VLOOKUP($AJ19,Preisliste!$A:$Q,16,FALSE)+MAX(AT$10:AT18))) -> 0 | AU19: =IF($AJ19=0,0,IF(VLOOKUP($AJ19,Preisliste!$A:$Q,17,FALSE)="",0,VLOOKUP($AJ19,Preisliste!$A:$Q,17,FALSE)+MAX(AU$10:AU18))) -> 0 | BG19: Nicht mit Solar einsetzbar | BH19: =MAX(AS:AS) -> 2 | BI19: =IF(AND(BH14>0,BH19>0),TRUE,FALSE) -> FALSE | BJ19: =Translation!A138 -> Some items can not be combined with solar systems. | BK19: =IF(OR($BH$19<1,$BI$19=FALSE),0,INDEX($AJ:$AJ,MATCH(1,$AS:$AS,0))) -> 0 | BL19: =IF(BK19=0,"",VLOOKUP(BK19,Preisliste!$A:$P,2,FALSE)) ->  | BM19: =IF(OR($BH$19<2,$BI$19=FALSE),0,INDEX($AJ:$AJ,MATCH(2,$AS:$AS,0))) -> 0 | BN19: =IF(BM19=0,"",VLOOKUP(BM19,Preisliste!$A:$P,2,FALSE)) ->  | BO19: =IF(OR($BH$19<3,$BI$19=FALSE),0,INDEX($AJ:$AJ,MATCH(3,$AS:$AS,0))) -> 0 | BP19: =IF(BO19=0,"",VLOOKUP(BO19,Preisliste!$A:$P,2,FALSE)) ->  | BQ19: =IF(OR($BH$19<4,$BI$19=FALSE),0,INDEX($AJ:$AJ,MATCH(4,$AS:$AS,0))) -> 0 | BR19: =IF(BQ19=0,"",VLOOKUP(BQ19,Preisliste!$A:$P,2,FALSE)) -> 
B20: =IF(D20=0,0,MAX($B$10:B19)+1) -> 11 | D20: 230013 | E20: 1 | F20: =IF(ISERROR(AB20),"---",IF(ISERROR(VLOOKUP(D20,'Langtexte-Vorlage'!A:D,3,FALSE)),AB20,IF($AH$57=TRUE,AB20&CHAR(10)&CHAR(10)&VLOOKUP(D20,'Langtexte-Vorlage'!A:D,3,FALSE)&CHAR(10),AB20))) -> Heating descaler HZEA | G20: =IF(ISERROR(VLOOKUP(D20,Preisliste!$A:$C,3,FALSE)),0,VLOOKUP(D20,Preisliste!$A:$C,3,FALSE)) -> 226 | H20: =IF(C20="O",Translation!$A$106,IF(C20="A",Translation!$A$108,IF(C20="S",Translation!$A$109,IF(ISERROR(E20*G20),"---",E20*G20)))) -> 226 | I20: =IF(ISERROR(VLOOKUP(D20,Preisliste!$A:$AQ,43,FALSE)),"",IF(VLOOKUP(D20,Preisliste!$A:$AQ,43,FALSE)=0,"","*")) ->  | O20: FALSE | P20: =IF($U$10=FALSE,0,Auswahl!O19) -> 230013 | Q20: =IF($U$10=FALSE,0,IF(OR(R20=TRUE,S20=TRUE),LEFT(RIGHT(Auswahl!R19,2),1)*1,Auswahl!R19)) -> 1 | R20: =IF(LEFT(Auswahl!R19,3)=LEFT(Translation!$A$107,3),TRUE,FALSE) -> FALSE | S20: =IF(LEFT(Auswahl!R19,3)=LEFT(Translation!$A$109,3),TRUE,FALSE) -> FALSE | T20: =IF(ISERROR(VLOOKUP(D20,Preisliste!$A:$AF,31,FALSE)),"---",VLOOKUP(D20,Preisliste!$A:$AF,31,FALSE)) -> http://www.stiebel-eltron.be/ste_shared/pdf/data/E_7730_0_de_English.pdf | V20: =Translation!$A$165 -> Heat pump | W20: =IF($U$10=FALSE,"",IF(I20="","",D20&" "&VLOOKUP(D20,Preisliste!$A:$AQ,43,FALSE))) ->  | X20: 234761,233623,234922,185579,185458,234763,232943,233602,221360,234764,230013, | Y20: =VLOOKUP(D20,Preisliste!$A:$D,4,FALSE) -> --- | Z20: =VLOOKUP(D20,Preisliste!$A:$AE,29,FALSE) -> PIC00001015-00.jpg | AA20: =IF(OR(B20=0,B20=""),TRUE,IF(ISERROR(VLOOKUP(D20,'Langtexte-Vorlage'!A:D,3,FALSE)),FALSE,TRUE)) -> TRUE | AB20: =VLOOKUP(D20,Preisliste!$A:$B,2,FALSE) -> Heating descaler HZEA | AH20: Link Ausschreiben.de | AJ20: 230013 | AK20: =IF($AJ20=0,0,IF(VLOOKUP($AJ20,Preisliste!$A:$Q,7,FALSE)="",0,VLOOKUP($AJ20,Preisliste!$A:$Q,7,FALSE)+MAX(AK$10:AK19))) -> 0 | AL20: =IF($AJ20=0,0,IF(VLOOKUP($AJ20,Preisliste!$A:$Q,8,FALSE)="",0,VLOOKUP($AJ20,Preisliste!$A:$Q,8,FALSE)+MAX(AL$10:AL19))) -> 0 | AM20: =IF($AJ20=0,0,IF(VLOOKUP($AJ20,Preisliste!$A:$Q,9,FALSE)="",0,VLOOKUP($AJ20,Preisliste!$A:$Q,9,FALSE)+MAX(AM$10:AM19))) -> 0 | AN20: =IF($AJ20=0,0,IF(VLOOKUP($AJ20,Preisliste!$A:$Q,10,FALSE)="",0,VLOOKUP($AJ20,Preisliste!$A:$Q,10,FALSE)+MAX(AN$10:AN19))) -> 0 | AO20: =IF($AJ20=0,0,IF(VLOOKUP($AJ20,Preisliste!$A:$Q,11,FALSE)="",0,VLOOKUP($AJ20,Preisliste!$A:$Q,11,FALSE)+MAX(AO$10:AO19))) -> 0 | AP20: =IF($AJ20=0,0,IF(VLOOKUP($AJ20,Preisliste!$A:$Q,12,FALSE)="",0,VLOOKUP($AJ20,Preisliste!$A:$Q,12,FALSE)+MAX(AP$10:AP19))) -> 0 | AQ20: =IF($AJ20=0,0,IF(VLOOKUP($AJ20,Preisliste!$A:$Q,13,FALSE)="",0,VLOOKUP($AJ20,Preisliste!$A:$Q,13,FALSE)+MAX(AQ$10:AQ19))) -> 0 | AR20: =IF($AJ20=0,0,IF(VLOOKUP($AJ20,Preisliste!$A:$Q,14,FALSE)="",0,VLOOKUP($AJ20,Preisliste!$A:$Q,14,FALSE)+MAX(AR$10:AR19))) -> 0 | AS20: =IF($AJ20=0,0,IF(VLOOKUP($AJ20,Preisliste!$A:$Q,15,FALSE)="",0,VLOOKUP($AJ20,Preisliste!$A:$Q,15,FALSE)+MAX(AS$10:AS19))) -> 0 | AT20: =IF($AJ20=0,0,IF(VLOOKUP($AJ20,Preisliste!$A:$Q,16,FALSE)="",0,VLOOKUP($AJ20,Preisliste!$A:$Q,16,FALSE)+MAX(AT$10:AT19))) -> 0 | AU20: =IF($AJ20=0,0,IF(VLOOKUP($AJ20,Preisliste!$A:$Q,17,FALSE)="",0,VLOOKUP($AJ20,Preisliste!$A:$Q,17,FALSE)+MAX(AU$10:AU19))) -> 0 | BG20: Mehrere PV-Module | BH20: =MAX(AT:AT) -> 0 | BJ20: =Translation!A139 -> There are several PV-systems in material list. | BK20: =IF($BH$20<2,0,INDEX($AJ:$AJ,MATCH(1,$AT:$AT,0))) -> 0 | BL20: =IF(BK20=0,"",VLOOKUP(BK20,Preisliste!$A:$P,2,FALSE)) ->  | BM20: =IF($BH$20<2,0,INDEX($AJ:$AJ,MATCH(2,$AT:$AT,0))) -> 0 | BN20: =IF(BM20=0,"",VLOOKUP(BM20,Preisliste!$A:$P,2,FALSE)) ->  | BO20: =IF($BH$20<3,0,INDEX($AJ:$AJ,MATCH(3,$AT:$AT,0))) -> 0 | BP20: =IF(BO20=0,"",VLOOKUP(BO20,Preisliste!$A:$P,2,FALSE)) ->  | BQ20: =IF($BH$20<4,0,INDEX($AJ:$AJ,MATCH(4,$AT:$AT,0))) -> 0 | BR20: =IF(BQ20=0,"",VLOOKUP(BQ20,Preisliste!$A:$P,2,FALSE)) -> 
B21: =IF(D21=0,0,MAX($B$10:B20)+1) -> 12 | D21: 283722 | E21: 1 | F21: =IF(ISERROR(AB21),"---",IF(ISERROR(VLOOKUP(D21,'Langtexte-Vorlage'!A:D,3,FALSE)),AB21,IF($AH$57=TRUE,AB21&CHAR(10)&CHAR(10)&VLOOKUP(D21,'Langtexte-Vorlage'!A:D,3,FALSE)&CHAR(10),AB21))) -> Commissioning heat pump | G21: =IF(ISERROR(VLOOKUP(D21,Preisliste!$A:$C,3,FALSE)),0,VLOOKUP(D21,Preisliste!$A:$C,3,FALSE)) -> On request | H21: =IF(C21="O",Translation!$A$106,IF(C21="A",Translation!$A$108,IF(C21="S",Translation!$A$109,IF(ISERROR(E21*G21),"---",E21*G21)))) -> --- | I21: =IF(ISERROR(VLOOKUP(D21,Preisliste!$A:$AQ,43,FALSE)),"",IF(VLOOKUP(D21,Preisliste!$A:$AQ,43,FALSE)=0,"","*")) ->  | O21: FALSE | P21: =IF($U$10=FALSE,0,Auswahl!O20) -> 283722 | Q21: =IF($U$10=FALSE,0,IF(OR(R21=TRUE,S21=TRUE),LEFT(RIGHT(Auswahl!R20,2),1)*1,Auswahl!R20)) -> 1 | R21: =IF(LEFT(Auswahl!R20,3)=LEFT(Translation!$A$107,3),TRUE,FALSE) -> FALSE | S21: =IF(LEFT(Auswahl!R20,3)=LEFT(Translation!$A$109,3),TRUE,FALSE) -> FALSE | T21: =IF(ISERROR(VLOOKUP(D21,Preisliste!$A:$AF,31,FALSE)),"---",VLOOKUP(D21,Preisliste!$A:$AF,31,FALSE)) -> http://www.stiebel-eltron.be/ste_shared/pdf/data/E_---_0_de_English.pdf | V21: =Translation!$A$165 -> Heat pump | W21: =IF($U$10=FALSE,"",IF(I21="","",D21&" "&VLOOKUP(D21,Preisliste!$A:$AQ,43,FALSE))) ->  | X21: 234761,233623,234922,185579,185458,234763,232943,233602,221360,234764,230013,283722, | Y21: =VLOOKUP(D21,Preisliste!$A:$D,4,FALSE) -> --- | Z21: =VLOOKUP(D21,Preisliste!$A:$AE,29,FALSE) -> --- | AA21: =IF(OR(B21=0,B21=""),TRUE,IF(ISERROR(VLOOKUP(D21,'Langtexte-Vorlage'!A:D,3,FALSE)),FALSE,TRUE)) -> TRUE | AB21: =VLOOKUP(D21,Preisliste!$A:$B,2,FALSE) -> Commissioning heat pump | AH21: ="http://www.ausschreiben.de/online/usr/export.php?tblst=Stiebel,"&LEFT(X995, LEN(X995)-1)&"&key=ANr&caption=Produktdatenbank%2520Stiebel-Eltron&fmt=" -> http://www.ausschreiben.de/online/usr/export.php?tblst=Stiebel,234761,233623,234922,185579,185458,234763,232943,233602,221360,234764,230013,283722,233719,233711&key=ANr&caption=Produktdatenbank%2520Stiebel-Eltron&fmt= | AJ21: 283722 | AK21: =IF($AJ21=0,0,IF(VLOOKUP($AJ21,Preisliste!$A:$Q,7,FALSE)="",0,VLOOKUP($AJ21,Preisliste!$A:$Q,7,FALSE)+MAX(AK$10:AK20))) -> 0 | AL21: =IF($AJ21=0,0,IF(VLOOKUP($AJ21,Preisliste!$A:$Q,8,FALSE)="",0,VLOOKUP($AJ21,Preisliste!$A:$Q,8,FALSE)+MAX(AL$10:AL20))) -> 0 | AM21: =IF($AJ21=0,0,IF(VLOOKUP($AJ21,Preisliste!$A:$Q,9,FALSE)="",0,VLOOKUP($AJ21,Preisliste!$A:$Q,9,FALSE)+MAX(AM$10:AM20))) -> 0 | AN21: =IF($AJ21=0,0,IF(VLOOKUP($AJ21,Preisliste!$A:$Q,10,FALSE)="",0,VLOOKUP($AJ21,Preisliste!$A:$Q,10,FALSE)+MAX(AN$10:AN20))) -> 0 | AO21: =IF($AJ21=0,0,IF(VLOOKUP($AJ21,Preisliste!$A:$Q,11,FALSE)="",0,VLOOKUP($AJ21,Preisliste!$A:$Q,11,FALSE)+MAX(AO$10:AO20))) -> 0 | AP21: =IF($AJ21=0,0,IF(VLOOKUP($AJ21,Preisliste!$A:$Q,12,FALSE)="",0,VLOOKUP($AJ21,Preisliste!$A:$Q,12,FALSE)+MAX(AP$10:AP20))) -> 0 | AQ21: =IF($AJ21=0,0,IF(VLOOKUP($AJ21,Preisliste!$A:$Q,13,FALSE)="",0,VLOOKUP($AJ21,Preisliste!$A:$Q,13,FALSE)+MAX(AQ$10:AQ20))) -> 0 | AR21: =IF($AJ21=0,0,IF(VLOOKUP($AJ21,Preisliste!$A:$Q,14,FALSE)="",0,VLOOKUP($AJ21,Preisliste!$A:$Q,14,FALSE)+MAX(AR$10:AR20))) -> 0 | AS21: =IF($AJ21=0,0,IF(VLOOKUP($AJ21,Preisliste!$A:$Q,15,FALSE)="",0,VLOOKUP($AJ21,Preisliste!$A:$Q,15,FALSE)+MAX(AS$10:AS20))) -> 0 | AT21: =IF($AJ21=0,0,IF(VLOOKUP($AJ21,Preisliste!$A:$Q,16,FALSE)="",0,VLOOKUP($AJ21,Preisliste!$A:$Q,16,FALSE)+MAX(AT$10:AT20))) -> 0 | AU21: =IF($AJ21=0,0,IF(VLOOKUP($AJ21,Preisliste!$A:$Q,17,FALSE)="",0,VLOOKUP($AJ21,Preisliste!$A:$Q,17,FALSE)+MAX(AU$10:AU20))) -> 0 | BG21: Mehrere ISGs | BH21: =MAX(AU:AU) -> 0 | BJ21: =Translation!A140 -> Several ISG (Internet Service Gateway) have been selected. | BK21: =IF($BH$21<2,0,INDEX($AJ:$AJ,MATCH(1,$AU:$AU,0))) -> 0 | BL21: =IF(BK21=0,"",VLOOKUP(BK21,Preisliste!$A:$P,2,FALSE)) ->  | BM21: =IF($BH$21<2,0,INDEX($AJ:$AJ,MATCH(2,$AU:$AU,0))) -> 0 | BN21: =IF(BM21=0,"",VLOOKUP(BM21,Preisliste!$A:$P,2,FALSE)) ->  | BO21: =IF($BH$21<3,0,INDEX($AJ:$AJ,MATCH(3,$AU:$AU,0))) -> 0 | BP21: =IF(BO21=0,"",VLOOKUP(BO21,Preisliste!$A:$P,2,FALSE)) ->  | BQ21: =IF($BH$21<4,0,INDEX($AJ:$AJ,MATCH(4,$AU:$AU,0))) -> 0 | BR21: =IF(BQ21=0,"",VLOOKUP(BQ21,Preisliste!$A:$P,2,FALSE)) -> 
B22: =IF(D22=0,0,MAX($B$10:B21)+1) -> 13 | C22: O | D22: 233719 | E22: 1 | F22: =IF(ISERROR(AB22),"---",IF(ISERROR(VLOOKUP(D22,'Langtexte-Vorlage'!A:D,3,FALSE)),AB22,IF($AH$57=TRUE,AB22&CHAR(10)&CHAR(10)&VLOOKUP(D22,'Langtexte-Vorlage'!A:D,3,FALSE)&CHAR(10),AB22))) -> Circulation pump DHW UPZ | G22: =IF(ISERROR(VLOOKUP(D22,Preisliste!$A:$C,3,FALSE)),0,VLOOKUP(D22,Preisliste!$A:$C,3,FALSE)) -> 269 | H22: =IF(C22="O",Translation!$A$106,IF(C22="A",Translation!$A$108,IF(C22="S",Translation!$A$109,IF(ISERROR(E22*G22),"---",E22*G22)))) -> Optional | I22: =IF(ISERROR(VLOOKUP(D22,Preisliste!$A:$AQ,43,FALSE)),"",IF(VLOOKUP(D22,Preisliste!$A:$AQ,43,FALSE)=0,"","*")) ->  | O22: FALSE | P22: =IF($U$10=FALSE,0,Auswahl!O21) -> 233719 | Q22: =IF($U$10=FALSE,0,IF(OR(R22=TRUE,S22=TRUE),LEFT(RIGHT(Auswahl!R21,2),1)*1,Auswahl!R21)) -> 1 | R22: =IF(LEFT(Auswahl!R21,3)=LEFT(Translation!$A$107,3),TRUE,FALSE) -> TRUE | S22: =IF(LEFT(Auswahl!R21,3)=LEFT(Translation!$A$109,3),TRUE,FALSE) -> FALSE | T22: =IF(ISERROR(VLOOKUP(D22,Preisliste!$A:$AF,31,FALSE)),"---",VLOOKUP(D22,Preisliste!$A:$AF,31,FALSE)) -> http://www.stiebel-eltron.be/ste_shared/pdf/data/E_---_0_de_English.pdf | V22: =Translation!$A$165 -> Heat pump | W22: =IF($U$10=FALSE,"",IF(I22="","",D22&" "&VLOOKUP(D22,Preisliste!$A:$AQ,43,FALSE))) ->  | X22: 234761,233623,234922,185579,185458,234763,232943,233602,221360,234764,230013,283722,233719, | Y22: =VLOOKUP(D22,Preisliste!$A:$D,4,FALSE) -> --- | Z22: =VLOOKUP(D22,Preisliste!$A:$AE,29,FALSE) -> PIC00004290-00.jpg | AA22: =IF(OR(B22=0,B22=""),TRUE,IF(ISERROR(VLOOKUP(D22,'Langtexte-Vorlage'!A:D,3,FALSE)),FALSE,TRUE)) -> TRUE | AB22: =VLOOKUP(D22,Preisliste!$A:$B,2,FALSE) -> Circulation pump DHW UPZ | AH22: Montageanweisung | AJ22: 233719 | AK22: =IF($AJ22=0,0,IF(VLOOKUP($AJ22,Preisliste!$A:$Q,7,FALSE)="",0,VLOOKUP($AJ22,Preisliste!$A:$Q,7,FALSE)+MAX(AK$10:AK21))) -> 0 | AL22: =IF($AJ22=0,0,IF(VLOOKUP($AJ22,Preisliste!$A:$Q,8,FALSE)="",0,VLOOKUP($AJ22,Preisliste!$A:$Q,8,FALSE)+MAX(AL$10:AL21))) -> 0 | AM22: =IF($AJ22=0,0,IF(VLOOKUP($AJ22,Preisliste!$A:$Q,9,FALSE)="",0,VLOOKUP($AJ22,Preisliste!$A:$Q,9,FALSE)+MAX(AM$10:AM21))) -> 0 | AN22: =IF($AJ22=0,0,IF(VLOOKUP($AJ22,Preisliste!$A:$Q,10,FALSE)="",0,VLOOKUP($AJ22,Preisliste!$A:$Q,10,FALSE)+MAX(AN$10:AN21))) -> 0 | AO22: =IF($AJ22=0,0,IF(VLOOKUP($AJ22,Preisliste!$A:$Q,11,FALSE)="",0,VLOOKUP($AJ22,Preisliste!$A:$Q,11,FALSE)+MAX(AO$10:AO21))) -> 0 | AP22: =IF($AJ22=0,0,IF(VLOOKUP($AJ22,Preisliste!$A:$Q,12,FALSE)="",0,VLOOKUP($AJ22,Preisliste!$A:$Q,12,FALSE)+MAX(AP$10:AP21))) -> 0 | AQ22: =IF($AJ22=0,0,IF(VLOOKUP($AJ22,Preisliste!$A:$Q,13,FALSE)="",0,VLOOKUP($AJ22,Preisliste!$A:$Q,13,FALSE)+MAX(AQ$10:AQ21))) -> 0 | AR22: =IF($AJ22=0,0,IF(VLOOKUP($AJ22,Preisliste!$A:$Q,14,FALSE)="",0,VLOOKUP($AJ22,Preisliste!$A:$Q,14,FALSE)+MAX(AR$10:AR21))) -> 0 | AS22: =IF($AJ22=0,0,IF(VLOOKUP($AJ22,Preisliste!$A:$Q,15,FALSE)="",0,VLOOKUP($AJ22,Preisliste!$A:$Q,15,FALSE)+MAX(AS$10:AS21))) -> 0 | AT22: =IF($AJ22=0,0,IF(VLOOKUP($AJ22,Preisliste!$A:$Q,16,FALSE)="",0,VLOOKUP($AJ22,Preisliste!$A:$Q,16,FALSE)+MAX(AT$10:AT21))) -> 0 | AU22: =IF($AJ22=0,0,IF(VLOOKUP($AJ22,Preisliste!$A:$Q,17,FALSE)="",0,VLOOKUP($AJ22,Preisliste!$A:$Q,17,FALSE)+MAX(AU$10:AU21))) -> 0
B23: =IF(D23=0,0,MAX($B$10:B22)+1) -> 14 | C23: O | D23: 233711 | E23: 1 | F23: =IF(ISERROR(AB23),"---",IF(ISERROR(VLOOKUP(D23,'Langtexte-Vorlage'!A:D,3,FALSE)),AB23,IF($AH$57=TRUE,AB23&CHAR(10)&CHAR(10)&VLOOKUP(D23,'Langtexte-Vorlage'!A:D,3,FALSE)&CHAR(10),AB23))) -> Safety temperature controller STB-FB | G23: =IF(ISERROR(VLOOKUP(D23,Preisliste!$A:$C,3,FALSE)),0,VLOOKUP(D23,Preisliste!$A:$C,3,FALSE)) -> 34 | H23: =IF(C23="O",Translation!$A$106,IF(C23="A",Translation!$A$108,IF(C23="S",Translation!$A$109,IF(ISERROR(E23*G23),"---",E23*G23)))) -> Optional | I23: =IF(ISERROR(VLOOKUP(D23,Preisliste!$A:$AQ,43,FALSE)),"",IF(VLOOKUP(D23,Preisliste!$A:$AQ,43,FALSE)=0,"","*")) ->  | O23: FALSE | P23: =IF($U$10=FALSE,0,Auswahl!O22) -> 233711 | Q23: =IF($U$10=FALSE,0,IF(OR(R23=TRUE,S23=TRUE),LEFT(RIGHT(Auswahl!R22,2),1)*1,Auswahl!R22)) -> 1 | R23: =IF(LEFT(Auswahl!R22,3)=LEFT(Translation!$A$107,3),TRUE,FALSE) -> TRUE | S23: =IF(LEFT(Auswahl!R22,3)=LEFT(Translation!$A$109,3),TRUE,FALSE) -> FALSE | T23: =IF(ISERROR(VLOOKUP(D23,Preisliste!$A:$AF,31,FALSE)),"---",VLOOKUP(D23,Preisliste!$A:$AF,31,FALSE)) -> http://www.stiebel-eltron.be/ste_shared/pdf/data/E_---_0_de_English.pdf | V23: =Translation!$A$165 -> Heat pump | W23: =IF($U$10=FALSE,"",IF(I23="","",D23&" "&VLOOKUP(D23,Preisliste!$A:$AQ,43,FALSE))) ->  | X23: 234761,233623,234922,185579,185458,234763,232943,233602,221360,234764,230013,283722,233719,233711, | Y23: =VLOOKUP(D23,Preisliste!$A:$D,4,FALSE) -> --- | Z23: =VLOOKUP(D23,Preisliste!$A:$AE,29,FALSE) -> PIC00004289-00.jpg | AA23: =IF(OR(B23=0,B23=""),TRUE,IF(ISERROR(VLOOKUP(D23,'Langtexte-Vorlage'!A:D,3,FALSE)),FALSE,TRUE)) -> TRUE | AB23: =VLOOKUP(D23,Preisliste!$A:$B,2,FALSE) -> Safety temperature controller STB-FB | AH23: =IF(VLOOKUP(AH32,Preisliste!$A:$AB,28,FALSE)="---","","https://csd.stiebel-eltron.de/GMA/"&VLOOKUP(AH32,Preisliste!$A:$AB,28,FALSE)&".pdf") -> https://csd.stiebel-eltron.de/GMA/DM0000031125.pdf | AJ23: 233711 | AK23: =IF($AJ23=0,0,IF(VLOOKUP($AJ23,Preisliste!$A:$Q,7,FALSE)="",0,VLOOKUP($AJ23,Preisliste!$A:$Q,7,FALSE)+MAX(AK$10:AK22))) -> 0 | AL23: =IF($AJ23=0,0,IF(VLOOKUP($AJ23,Preisliste!$A:$Q,8,FALSE)="",0,VLOOKUP($AJ23,Preisliste!$A:$Q,8,FALSE)+MAX(AL$10:AL22))) -> 0 | AM23: =IF($AJ23=0,0,IF(VLOOKUP($AJ23,Preisliste!$A:$Q,9,FALSE)="",0,VLOOKUP($AJ23,Preisliste!$A:$Q,9,FALSE)+MAX(AM$10:AM22))) -> 0 | AN23: =IF($AJ23=0,0,IF(VLOOKUP($AJ23,Preisliste!$A:$Q,10,FALSE)="",0,VLOOKUP($AJ23,Preisliste!$A:$Q,10,FALSE)+MAX(AN$10:AN22))) -> 0 | AO23: =IF($AJ23=0,0,IF(VLOOKUP($AJ23,Preisliste!$A:$Q,11,FALSE)="",0,VLOOKUP($AJ23,Preisliste!$A:$Q,11,FALSE)+MAX(AO$10:AO22))) -> 0 | AP23: =IF($AJ23=0,0,IF(VLOOKUP($AJ23,Preisliste!$A:$Q,12,FALSE)="",0,VLOOKUP($AJ23,Preisliste!$A:$Q,12,FALSE)+MAX(AP$10:AP22))) -> 0 | AQ23: =IF($AJ23=0,0,IF(VLOOKUP($AJ23,Preisliste!$A:$Q,13,FALSE)="",0,VLOOKUP($AJ23,Preisliste!$A:$Q,13,FALSE)+MAX(AQ$10:AQ22))) -> 0 | AR23: =IF($AJ23=0,0,IF(VLOOKUP($AJ23,Preisliste!$A:$Q,14,FALSE)="",0,VLOOKUP($AJ23,Preisliste!$A:$Q,14,FALSE)+MAX(AR$10:AR22))) -> 0 | AS23: =IF($AJ23=0,0,IF(VLOOKUP($AJ23,Preisliste!$A:$Q,15,FALSE)="",0,VLOOKUP($AJ23,Preisliste!$A:$Q,15,FALSE)+MAX(AS$10:AS22))) -> 0 | AT23: =IF($AJ23=0,0,IF(VLOOKUP($AJ23,Preisliste!$A:$Q,16,FALSE)="",0,VLOOKUP($AJ23,Preisliste!$A:$Q,16,FALSE)+MAX(AT$10:AT22))) -> 0 | AU23: =IF($AJ23=0,0,IF(VLOOKUP($AJ23,Preisliste!$A:$Q,17,FALSE)="",0,VLOOKUP($AJ23,Preisliste!$A:$Q,17,FALSE)+MAX(AU$10:AU22))) -> 0
B24: =IF(D24=0,0,MAX($B$10:B23)+1) -> 0 | D24: 0 | E24: 0 | F24: =IF(ISERROR(AB24),"---",IF(ISERROR(VLOOKUP(D24,'Langtexte-Vorlage'!A:D,3,FALSE)),AB24,IF($AH$57=TRUE,AB24&CHAR(10)&CHAR(10)&VLOOKUP(D24,'Langtexte-Vorlage'!A:D,3,FALSE)&CHAR(10),AB24))) -> --- | G24: =IF(ISERROR(VLOOKUP(D24,Preisliste!$A:$C,3,FALSE)),0,VLOOKUP(D24,Preisliste!$A:$C,3,FALSE)) -> 0 | H24: =IF(C24="O",Translation!$A$106,IF(C24="A",Translation!$A$108,IF(C24="S",Translation!$A$109,IF(ISERROR(E24*G24),"---",E24*G24)))) -> 0 | I24: =IF(ISERROR(VLOOKUP(D24,Preisliste!$A:$AQ,43,FALSE)),"",IF(VLOOKUP(D24,Preisliste!$A:$AQ,43,FALSE)=0,"","*")) ->  | O24: FALSE | P24: =IF($U$10=FALSE,0,Auswahl!O23) -> 0 | Q24: =IF($U$10=FALSE,0,IF(OR(R24=TRUE,S24=TRUE),LEFT(RIGHT(Auswahl!R23,2),1)*1,Auswahl!R23)) -> 0 | R24: =IF(LEFT(Auswahl!R23,3)=LEFT(Translation!$A$107,3),TRUE,FALSE) -> FALSE | S24: =IF(LEFT(Auswahl!R23,3)=LEFT(Translation!$A$109,3),TRUE,FALSE) -> FALSE | T24: =IF(ISERROR(VLOOKUP(D24,Preisliste!$A:$AF,31,FALSE)),"---",VLOOKUP(D24,Preisliste!$A:$AF,31,FALSE)) -> --- | V24: =Translation!$A$165 -> Heat pump | W24: =IF($U$10=FALSE,"",IF(I24="","",D24&" "&VLOOKUP(D24,Preisliste!$A:$AQ,43,FALSE))) ->  | X24: 234761,233623,234922,185579,185458,234763,232943,233602,221360,234764,230013,283722,233719,233711, | Y24: =VLOOKUP(D24,Preisliste!$A:$D,4,FALSE) ->  | Z24: =VLOOKUP(D24,Preisliste!$A:$AE,29,FALSE) ->  | AA24: =IF(OR(B24=0,B24=""),TRUE,IF(ISERROR(VLOOKUP(D24,'Langtexte-Vorlage'!A:D,3,FALSE)),FALSE,TRUE)) -> TRUE | AB24: =VLOOKUP(D24,Preisliste!$A:$B,2,FALSE) ->  | AH24: Ausschreibungstext | AJ24: 0 | AK24: =IF($AJ24=0,0,IF(VLOOKUP($AJ24,Preisliste!$A:$Q,7,FALSE)="",0,VLOOKUP($AJ24,Preisliste!$A:$Q,7,FALSE)+MAX(AK$10:AK23))) -> 0 | AL24: =IF($AJ24=0,0,IF(VLOOKUP($AJ24,Preisliste!$A:$Q,8,FALSE)="",0,VLOOKUP($AJ24,Preisliste!$A:$Q,8,FALSE)+MAX(AL$10:AL23))) -> 0 | AM24: =IF($AJ24=0,0,IF(VLOOKUP($AJ24,Preisliste!$A:$Q,9,FALSE)="",0,VLOOKUP($AJ24,Preisliste!$A:$Q,9,FALSE)+MAX(AM$10:AM23))) -> 0 | AN24: =IF($AJ24=0,0,IF(VLOOKUP($AJ24,Preisliste!$A:$Q,10,FALSE)="",0,VLOOKUP($AJ24,Preisliste!$A:$Q,10,FALSE)+MAX(AN$10:AN23))) -> 0 | AO24: =IF($AJ24=0,0,IF(VLOOKUP($AJ24,Preisliste!$A:$Q,11,FALSE)="",0,VLOOKUP($AJ24,Preisliste!$A:$Q,11,FALSE)+MAX(AO$10:AO23))) -> 0 | AP24: =IF($AJ24=0,0,IF(VLOOKUP($AJ24,Preisliste!$A:$Q,12,FALSE)="",0,VLOOKUP($AJ24,Preisliste!$A:$Q,12,FALSE)+MAX(AP$10:AP23))) -> 0 | AQ24: =IF($AJ24=0,0,IF(VLOOKUP($AJ24,Preisliste!$A:$Q,13,FALSE)="",0,VLOOKUP($AJ24,Preisliste!$A:$Q,13,FALSE)+MAX(AQ$10:AQ23))) -> 0 | AR24: =IF($AJ24=0,0,IF(VLOOKUP($AJ24,Preisliste!$A:$Q,14,FALSE)="",0,VLOOKUP($AJ24,Preisliste!$A:$Q,14,FALSE)+MAX(AR$10:AR23))) -> 0 | AS24: =IF($AJ24=0,0,IF(VLOOKUP($AJ24,Preisliste!$A:$Q,15,FALSE)="",0,VLOOKUP($AJ24,Preisliste!$A:$Q,15,FALSE)+MAX(AS$10:AS23))) -> 0 | AT24: =IF($AJ24=0,0,IF(VLOOKUP($AJ24,Preisliste!$A:$Q,16,FALSE)="",0,VLOOKUP($AJ24,Preisliste!$A:$Q,16,FALSE)+MAX(AT$10:AT23))) -> 0 | AU24: =IF($AJ24=0,0,IF(VLOOKUP($AJ24,Preisliste!$A:$Q,17,FALSE)="",0,VLOOKUP($AJ24,Preisliste!$A:$Q,17,FALSE)+MAX(AU$10:AU23))) -> 0 | BL24: =IF(BK24=0,"",VLOOKUP(BK24,Preisliste!$A:$P,2,FALSE)) ->  | BN24: =IF(BM24=0,"",VLOOKUP(BM24,Preisliste!$A:$P,2,FALSE)) ->  | BP24: =IF(BO24=0,"",VLOOKUP(BO24,Preisliste!$A:$P,2,FALSE)) ->  | BR24: =IF(BQ24=0,"",VLOOKUP(BQ24,Preisliste!$A:$P,2,FALSE)) -> 
B25: =IF(D25=0,0,MAX($B$10:B24)+1) -> 0 | D25: 0 | E25: 0 | F25: =IF(ISERROR(AB25),"---",IF(ISERROR(VLOOKUP(D25,'Langtexte-Vorlage'!A:D,3,FALSE)),AB25,IF($AH$57=TRUE,AB25&CHAR(10)&CHAR(10)&VLOOKUP(D25,'Langtexte-Vorlage'!A:D,3,FALSE)&CHAR(10),AB25))) -> --- | G25: =IF(ISERROR(VLOOKUP(D25,Preisliste!$A:$C,3,FALSE)),0,VLOOKUP(D25,Preisliste!$A:$C,3,FALSE)) -> 0 | H25: =IF(C25="O",Translation!$A$106,IF(C25="A",Translation!$A$108,IF(C25="S",Translation!$A$109,IF(ISERROR(E25*G25),"---",E25*G25)))) -> 0 | I25: =IF(ISERROR(VLOOKUP(D25,Preisliste!$A:$AQ,43,FALSE)),"",IF(VLOOKUP(D25,Preisliste!$A:$AQ,43,FALSE)=0,"","*")) ->  | O25: FALSE | P25: =IF($U$10=FALSE,0,Auswahl!O24) -> 0 | Q25: =IF($U$10=FALSE,0,IF(OR(R25=TRUE,S25=TRUE),LEFT(RIGHT(Auswahl!R24,2),1)*1,Auswahl!R24)) -> 0 | R25: =IF(LEFT(Auswahl!R24,3)=LEFT(Translation!$A$107,3),TRUE,FALSE) -> FALSE | S25: =IF(LEFT(Auswahl!R24,3)=LEFT(Translation!$A$109,3),TRUE,FALSE) -> FALSE | T25: =IF(ISERROR(VLOOKUP(D25,Preisliste!$A:$AF,31,FALSE)),"---",VLOOKUP(D25,Preisliste!$A:$AF,31,FALSE)) -> --- | V25: =Translation!$A$165 -> Heat pump | W25: =IF($U$10=FALSE,"",IF(I25="","",D25&" "&VLOOKUP(D25,Preisliste!$A:$AQ,43,FALSE))) ->  | X25: 234761,233623,234922,185579,185458,234763,232943,233602,221360,234764,230013,283722,233719,233711, | Y25: =VLOOKUP(D25,Preisliste!$A:$D,4,FALSE) ->  | Z25: =VLOOKUP(D25,Preisliste!$A:$AE,29,FALSE) ->  | AA25: =IF(OR(B25=0,B25=""),TRUE,IF(ISERROR(VLOOKUP(D25,'Langtexte-Vorlage'!A:D,3,FALSE)),FALSE,TRUE)) -> TRUE | AB25: =VLOOKUP(D25,Preisliste!$A:$B,2,FALSE) ->  | AH25: =IF(ISERROR(VLOOKUP(AH32,'Langtexte-Vorlage'!A:C,3,FALSE)),"---",IF(VLOOKUP(AH32,'Langtexte-Vorlage'!A:C,3,FALSE)="","---","http://www.ausschreiben.de/online/usr/export.php?tblst=Stiebel,"&TEXT(AH32,"000000")&"&key=ANr&caption=Produktdatenbank%2520Stiebel-Eltron&fmt=")) -> http://www.ausschreiben.de/online/usr/export.php?tblst=Stiebel,234922&key=ANr&caption=Produktdatenbank%2520Stiebel-Eltron&fmt= | AJ25: 0 | AK25: =IF($AJ25=0,0,IF(VLOOKUP($AJ25,Preisliste!$A:$Q,7,FALSE)="",0,VLOOKUP($AJ25,Preisliste!$A:$Q,7,FALSE)+MAX(AK$10:AK24))) -> 0 | AL25: =IF($AJ25=0,0,IF(VLOOKUP($AJ25,Preisliste!$A:$Q,8,FALSE)="",0,VLOOKUP($AJ25,Preisliste!$A:$Q,8,FALSE)+MAX(AL$10:AL24))) -> 0 | AM25: =IF($AJ25=0,0,IF(VLOOKUP($AJ25,Preisliste!$A:$Q,9,FALSE)="",0,VLOOKUP($AJ25,Preisliste!$A:$Q,9,FALSE)+MAX(AM$10:AM24))) -> 0 | AN25: =IF($AJ25=0,0,IF(VLOOKUP($AJ25,Preisliste!$A:$Q,10,FALSE)="",0,VLOOKUP($AJ25,Preisliste!$A:$Q,10,FALSE)+MAX(AN$10:AN24))) -> 0 | AO25: =IF($AJ25=0,0,IF(VLOOKUP($AJ25,Preisliste!$A:$Q,11,FALSE)="",0,VLOOKUP($AJ25,Preisliste!$A:$Q,11,FALSE)+MAX(AO$10:AO24))) -> 0 | AP25: =IF($AJ25=0,0,IF(VLOOKUP($AJ25,Preisliste!$A:$Q,12,FALSE)="",0,VLOOKUP($AJ25,Preisliste!$A:$Q,12,FALSE)+MAX(AP$10:AP24))) -> 0 | AQ25: =IF($AJ25=0,0,IF(VLOOKUP($AJ25,Preisliste!$A:$Q,13,FALSE)="",0,VLOOKUP($AJ25,Preisliste!$A:$Q,13,FALSE)+MAX(AQ$10:AQ24))) -> 0 | AR25: =IF($AJ25=0,0,IF(VLOOKUP($AJ25,Preisliste!$A:$Q,14,FALSE)="",0,VLOOKUP($AJ25,Preisliste!$A:$Q,14,FALSE)+MAX(AR$10:AR24))) -> 0 | AS25: =IF($AJ25=0,0,IF(VLOOKUP($AJ25,Preisliste!$A:$Q,15,FALSE)="",0,VLOOKUP($AJ25,Preisliste!$A:$Q,15,FALSE)+MAX(AS$10:AS24))) -> 0 | AT25: =IF($AJ25=0,0,IF(VLOOKUP($AJ25,Preisliste!$A:$Q,16,FALSE)="",0,VLOOKUP($AJ25,Preisliste!$A:$Q,16,FALSE)+MAX(AT$10:AT24))) -> 0 | AU25: =IF($AJ25=0,0,IF(VLOOKUP($AJ25,Preisliste!$A:$Q,17,FALSE)="",0,VLOOKUP($AJ25,Preisliste!$A:$Q,17,FALSE)+MAX(AU$10:AU24))) -> 0 | BL25: =IF(BK25=0,"",VLOOKUP(BK25,Preisliste!$A:$P,2,FALSE)) ->  | BN25: =IF(BM25=0,"",VLOOKUP(BM25,Preisliste!$A:$P,2,FALSE)) ->  | BP25: =IF(BO25=0,"",VLOOKUP(BO25,Preisliste!$A:$P,2,FALSE)) ->  | BR25: =IF(BQ25=0,"",VLOOKUP(BQ25,Preisliste!$A:$P,2,FALSE)) -> 
B26: =IF(D26=0,0,MAX($B$10:B25)+1) -> 0 | D26: 0 | E26: 0 | F26: =IF(ISERROR(AB26),"---",IF(ISERROR(VLOOKUP(D26,'Langtexte-Vorlage'!A:D,3,FALSE)),AB26,IF($AH$57=TRUE,AB26&CHAR(10)&CHAR(10)&VLOOKUP(D26,'Langtexte-Vorlage'!A:D,3,FALSE)&CHAR(10),AB26))) -> --- | G26: =IF(ISERROR(VLOOKUP(D26,Preisliste!$A:$C,3,FALSE)),0,VLOOKUP(D26,Preisliste!$A:$C,3,FALSE)) -> 0 | H26: =IF(C26="O",Translation!$A$106,IF(C26="A",Translation!$A$108,IF(C26="S",Translation!$A$109,IF(ISERROR(E26*G26),"---",E26*G26)))) -> 0 | I26: =IF(ISERROR(VLOOKUP(D26,Preisliste!$A:$AQ,43,FALSE)),"",IF(VLOOKUP(D26,Preisliste!$A:$AQ,43,FALSE)=0,"","*")) ->  | O26: FALSE | P26: =IF($U$10=FALSE,0,Auswahl!O25) -> 0 | Q26: =IF($U$10=FALSE,0,IF(OR(R26=TRUE,S26=TRUE),LEFT(RIGHT(Auswahl!R25,2),1)*1,Auswahl!R25)) -> 0 | R26: =IF(LEFT(Auswahl!R25,3)=LEFT(Translation!$A$107,3),TRUE,FALSE) -> FALSE | S26: =IF(LEFT(Auswahl!R25,3)=LEFT(Translation!$A$109,3),TRUE,FALSE) -> FALSE | T26: =IF(ISERROR(VLOOKUP(D26,Preisliste!$A:$AF,31,FALSE)),"---",VLOOKUP(D26,Preisliste!$A:$AF,31,FALSE)) -> --- | V26: =Translation!$A$165 -> Heat pump | W26: =IF($U$10=FALSE,"",IF(I26="","",D26&" "&VLOOKUP(D26,Preisliste!$A:$AQ,43,FALSE))) ->  | X26: 234761,233623,234922,185579,185458,234763,232943,233602,221360,234764,230013,283722,233719,233711, | Y26: =VLOOKUP(D26,Preisliste!$A:$D,4,FALSE) ->  | Z26: =VLOOKUP(D26,Preisliste!$A:$AE,29,FALSE) ->  | AA26: =IF(OR(B26=0,B26=""),TRUE,IF(ISERROR(VLOOKUP(D26,'Langtexte-Vorlage'!A:D,3,FALSE)),FALSE,TRUE)) -> TRUE | AB26: =VLOOKUP(D26,Preisliste!$A:$B,2,FALSE) ->  | AH26: =AH21&"GAEB" -> http://www.ausschreiben.de/online/usr/export.php?tblst=Stiebel,234761,233623,234922,185579,185458,234763,232943,233602,221360,234764,230013,283722,233719,233711&key=ANr&caption=Produktdatenbank%2520Stiebel-Eltron&fmt=GAEB | AJ26: 0 | AK26: =IF($AJ26=0,0,IF(VLOOKUP($AJ26,Preisliste!$A:$Q,7,FALSE)="",0,VLOOKUP($AJ26,Preisliste!$A:$Q,7,FALSE)+MAX(AK$10:AK25))) -> 0 | AL26: =IF($AJ26=0,0,IF(VLOOKUP($AJ26,Preisliste!$A:$Q,8,FALSE)="",0,VLOOKUP($AJ26,Preisliste!$A:$Q,8,FALSE)+MAX(AL$10:AL25))) -> 0 | AM26: =IF($AJ26=0,0,IF(VLOOKUP($AJ26,Preisliste!$A:$Q,9,FALSE)="",0,VLOOKUP($AJ26,Preisliste!$A:$Q,9,FALSE)+MAX(AM$10:AM25))) -> 0 | AN26: =IF($AJ26=0,0,IF(VLOOKUP($AJ26,Preisliste!$A:$Q,10,FALSE)="",0,VLOOKUP($AJ26,Preisliste!$A:$Q,10,FALSE)+MAX(AN$10:AN25))) -> 0 | AO26: =IF($AJ26=0,0,IF(VLOOKUP($AJ26,Preisliste!$A:$Q,11,FALSE)="",0,VLOOKUP($AJ26,Preisliste!$A:$Q,11,FALSE)+MAX(AO$10:AO25))) -> 0 | AP26: =IF($AJ26=0,0,IF(VLOOKUP($AJ26,Preisliste!$A:$Q,12,FALSE)="",0,VLOOKUP($AJ26,Preisliste!$A:$Q,12,FALSE)+MAX(AP$10:AP25))) -> 0 | AQ26: =IF($AJ26=0,0,IF(VLOOKUP($AJ26,Preisliste!$A:$Q,13,FALSE)="",0,VLOOKUP($AJ26,Preisliste!$A:$Q,13,FALSE)+MAX(AQ$10:AQ25))) -> 0 | AR26: =IF($AJ26=0,0,IF(VLOOKUP($AJ26,Preisliste!$A:$Q,14,FALSE)="",0,VLOOKUP($AJ26,Preisliste!$A:$Q,14,FALSE)+MAX(AR$10:AR25))) -> 0 | AS26: =IF($AJ26=0,0,IF(VLOOKUP($AJ26,Preisliste!$A:$Q,15,FALSE)="",0,VLOOKUP($AJ26,Preisliste!$A:$Q,15,FALSE)+MAX(AS$10:AS25))) -> 0 | AT26: =IF($AJ26=0,0,IF(VLOOKUP($AJ26,Preisliste!$A:$Q,16,FALSE)="",0,VLOOKUP($AJ26,Preisliste!$A:$Q,16,FALSE)+MAX(AT$10:AT25))) -> 0 | AU26: =IF($AJ26=0,0,IF(VLOOKUP($AJ26,Preisliste!$A:$Q,17,FALSE)="",0,VLOOKUP($AJ26,Preisliste!$A:$Q,17,FALSE)+MAX(AU$10:AU25))) -> 0 | BL26: =IF(BK26=0,"",VLOOKUP(BK26,Preisliste!$A:$P,2,FALSE)) ->  | BN26: =IF(BM26=0,"",VLOOKUP(BM26,Preisliste!$A:$P,2,FALSE)) ->  | BP26: =IF(BO26=0,"",VLOOKUP(BO26,Preisliste!$A:$P,2,FALSE)) ->  | BR26: =IF(BQ26=0,"",VLOOKUP(BQ26,Preisliste!$A:$P,2,FALSE)) -> 
B27: =IF(D27=0,0,MAX($B$10:B26)+1) -> 0 | D27: 0 | E27: 0 | F27: =IF(ISERROR(AB27),"---",IF(ISERROR(VLOOKUP(D27,'Langtexte-Vorlage'!A:D,3,FALSE)),AB27,IF($AH$57=TRUE,AB27&CHAR(10)&CHAR(10)&VLOOKUP(D27,'Langtexte-Vorlage'!A:D,3,FALSE)&CHAR(10),AB27))) -> --- | G27: =IF(ISERROR(VLOOKUP(D27,Preisliste!$A:$C,3,FALSE)),0,VLOOKUP(D27,Preisliste!$A:$C,3,FALSE)) -> 0 | H27: =IF(C27="O",Translation!$A$106,IF(C27="A",Translation!$A$108,IF(C27="S",Translation!$A$109,IF(ISERROR(E27*G27),"---",E27*G27)))) -> 0 | I27: =IF(ISERROR(VLOOKUP(D27,Preisliste!$A:$AQ,43,FALSE)),"",IF(VLOOKUP(D27,Preisliste!$A:$AQ,43,FALSE)=0,"","*")) ->  | O27: FALSE | P27: =IF($U$10=FALSE,0,Auswahl!O26) -> 0 | Q27: =IF($U$10=FALSE,0,IF(OR(R27=TRUE,S27=TRUE),LEFT(RIGHT(Auswahl!R26,2),1)*1,Auswahl!R26)) -> 0 | R27: =IF(LEFT(Auswahl!R26,3)=LEFT(Translation!$A$107,3),TRUE,FALSE) -> FALSE | S27: =IF(LEFT(Auswahl!R26,3)=LEFT(Translation!$A$109,3),TRUE,FALSE) -> FALSE | T27: =IF(ISERROR(VLOOKUP(D27,Preisliste!$A:$AF,31,FALSE)),"---",VLOOKUP(D27,Preisliste!$A:$AF,31,FALSE)) -> --- | V27: =Translation!$A$165 -> Heat pump | W27: =IF($U$10=FALSE,"",IF(I27="","",D27&" "&VLOOKUP(D27,Preisliste!$A:$AQ,43,FALSE))) ->  | X27: 234761,233623,234922,185579,185458,234763,232943,233602,221360,234764,230013,283722,233719,233711, | Y27: =VLOOKUP(D27,Preisliste!$A:$D,4,FALSE) ->  | Z27: =VLOOKUP(D27,Preisliste!$A:$AE,29,FALSE) ->  | AA27: =IF(OR(B27=0,B27=""),TRUE,IF(ISERROR(VLOOKUP(D27,'Langtexte-Vorlage'!A:D,3,FALSE)),FALSE,TRUE)) -> TRUE | AB27: =VLOOKUP(D27,Preisliste!$A:$B,2,FALSE) ->  | AJ27: 0 | AK27: =IF($AJ27=0,0,IF(VLOOKUP($AJ27,Preisliste!$A:$Q,7,FALSE)="",0,VLOOKUP($AJ27,Preisliste!$A:$Q,7,FALSE)+MAX(AK$10:AK26))) -> 0 | AL27: =IF($AJ27=0,0,IF(VLOOKUP($AJ27,Preisliste!$A:$Q,8,FALSE)="",0,VLOOKUP($AJ27,Preisliste!$A:$Q,8,FALSE)+MAX(AL$10:AL26))) -> 0 | AM27: =IF($AJ27=0,0,IF(VLOOKUP($AJ27,Preisliste!$A:$Q,9,FALSE)="",0,VLOOKUP($AJ27,Preisliste!$A:$Q,9,FALSE)+MAX(AM$10:AM26))) -> 0 | AN27: =IF($AJ27=0,0,IF(VLOOKUP($AJ27,Preisliste!$A:$Q,10,FALSE)="",0,VLOOKUP($AJ27,Preisliste!$A:$Q,10,FALSE)+MAX(AN$10:AN26))) -> 0 | AO27: =IF($AJ27=0,0,IF(VLOOKUP($AJ27,Preisliste!$A:$Q,11,FALSE)="",0,VLOOKUP($AJ27,Preisliste!$A:$Q,11,FALSE)+MAX(AO$10:AO26))) -> 0 | AP27: =IF($AJ27=0,0,IF(VLOOKUP($AJ27,Preisliste!$A:$Q,12,FALSE)="",0,VLOOKUP($AJ27,Preisliste!$A:$Q,12,FALSE)+MAX(AP$10:AP26))) -> 0 | AQ27: =IF($AJ27=0,0,IF(VLOOKUP($AJ27,Preisliste!$A:$Q,13,FALSE)="",0,VLOOKUP($AJ27,Preisliste!$A:$Q,13,FALSE)+MAX(AQ$10:AQ26))) -> 0 | AR27: =IF($AJ27=0,0,IF(VLOOKUP($AJ27,Preisliste!$A:$Q,14,FALSE)="",0,VLOOKUP($AJ27,Preisliste!$A:$Q,14,FALSE)+MAX(AR$10:AR26))) -> 0 | AS27: =IF($AJ27=0,0,IF(VLOOKUP($AJ27,Preisliste!$A:$Q,15,FALSE)="",0,VLOOKUP($AJ27,Preisliste!$A:$Q,15,FALSE)+MAX(AS$10:AS26))) -> 0 | AT27: =IF($AJ27=0,0,IF(VLOOKUP($AJ27,Preisliste!$A:$Q,16,FALSE)="",0,VLOOKUP($AJ27,Preisliste!$A:$Q,16,FALSE)+MAX(AT$10:AT26))) -> 0 | AU27: =IF($AJ27=0,0,IF(VLOOKUP($AJ27,Preisliste!$A:$Q,17,FALSE)="",0,VLOOKUP($AJ27,Preisliste!$A:$Q,17,FALSE)+MAX(AU$10:AU26))) -> 0 | BL27: =IF(BK27=0,"",VLOOKUP(BK27,Preisliste!$A:$P,2,FALSE)) ->  | BN27: =IF(BM27=0,"",VLOOKUP(BM27,Preisliste!$A:$P,2,FALSE)) ->  | BP27: =IF(BO27=0,"",VLOOKUP(BO27,Preisliste!$A:$P,2,FALSE)) ->  | BR27: =IF(BQ27=0,"",VLOOKUP(BQ27,Preisliste!$A:$P,2,FALSE)) -> 
B28: =IF(D28=0,0,MAX($B$10:B27)+1) -> 0 | D28: 0 | E28: 0 | F28: =IF(ISERROR(AB28),"---",IF(ISERROR(VLOOKUP(D28,'Langtexte-Vorlage'!A:D,3,FALSE)),AB28,IF($AH$57=TRUE,AB28&CHAR(10)&CHAR(10)&VLOOKUP(D28,'Langtexte-Vorlage'!A:D,3,FALSE)&CHAR(10),AB28))) -> --- | G28: =IF(ISERROR(VLOOKUP(D28,Preisliste!$A:$C,3,FALSE)),0,VLOOKUP(D28,Preisliste!$A:$C,3,FALSE)) -> 0 | H28: =IF(C28="O",Translation!$A$106,IF(C28="A",Translation!$A$108,IF(C28="S",Translation!$A$109,IF(ISERROR(E28*G28),"---",E28*G28)))) -> 0 | I28: =IF(ISERROR(VLOOKUP(D28,Preisliste!$A:$AQ,43,FALSE)),"",IF(VLOOKUP(D28,Preisliste!$A:$AQ,43,FALSE)=0,"","*")) ->  | O28: FALSE | P28: =IF($U$10=FALSE,0,Auswahl!O27) -> 0 | Q28: =IF($U$10=FALSE,0,IF(OR(R28=TRUE,S28=TRUE),LEFT(RIGHT(Auswahl!R27,2),1)*1,Auswahl!R27)) -> 0 | R28: =IF(LEFT(Auswahl!R27,3)=LEFT(Translation!$A$107,3),TRUE,FALSE) -> FALSE | S28: =IF(LEFT(Auswahl!R27,3)=LEFT(Translation!$A$109,3),TRUE,FALSE) -> FALSE | T28: =IF(ISERROR(VLOOKUP(D28,Preisliste!$A:$AF,31,FALSE)),"---",VLOOKUP(D28,Preisliste!$A:$AF,31,FALSE)) -> --- | V28: =Translation!$A$165 -> Heat pump | W28: =IF($U$10=FALSE,"",IF(I28="","",D28&" "&VLOOKUP(D28,Preisliste!$A:$AQ,43,FALSE))) ->  | X28: 234761,233623,234922,185579,185458,234763,232943,233602,221360,234764,230013,283722,233719,233711, | Y28: =VLOOKUP(D28,Preisliste!$A:$D,4,FALSE) ->  | Z28: =VLOOKUP(D28,Preisliste!$A:$AE,29,FALSE) ->  | AA28: =IF(B28=0,TRUE,IF(ISERROR(VLOOKUP(D28,'Langtexte-Vorlage'!A:D,3,FALSE)),FALSE,TRUE)) -> TRUE | AB28: =VLOOKUP(D28,Preisliste!$A:$B,2,FALSE) ->  | AH28: Rabattschlüssel | AJ28: 0 | AK28: =IF($AJ28=0,0,IF(VLOOKUP($AJ28,Preisliste!$A:$Q,7,FALSE)="",0,VLOOKUP($AJ28,Preisliste!$A:$Q,7,FALSE)+MAX(AK$10:AK27))) -> 0 | AL28: =IF($AJ28=0,0,IF(VLOOKUP($AJ28,Preisliste!$A:$Q,8,FALSE)="",0,VLOOKUP($AJ28,Preisliste!$A:$Q,8,FALSE)+MAX(AL$10:AL27))) -> 0 | AM28: =IF($AJ28=0,0,IF(VLOOKUP($AJ28,Preisliste!$A:$Q,9,FALSE)="",0,VLOOKUP($AJ28,Preisliste!$A:$Q,9,FALSE)+MAX(AM$10:AM27))) -> 0 | AN28: =IF($AJ28=0,0,IF(VLOOKUP($AJ28,Preisliste!$A:$Q,10,FALSE)="",0,VLOOKUP($AJ28,Preisliste!$A:$Q,10,FALSE)+MAX(AN$10:AN27))) -> 0 | AO28: =IF($AJ28=0,0,IF(VLOOKUP($AJ28,Preisliste!$A:$Q,11,FALSE)="",0,VLOOKUP($AJ28,Preisliste!$A:$Q,11,FALSE)+MAX(AO$10:AO27))) -> 0 | AP28: =IF($AJ28=0,0,IF(VLOOKUP($AJ28,Preisliste!$A:$Q,12,FALSE)="",0,VLOOKUP($AJ28,Preisliste!$A:$Q,12,FALSE)+MAX(AP$10:AP27))) -> 0 | AQ28: =IF($AJ28=0,0,IF(VLOOKUP($AJ28,Preisliste!$A:$Q,13,FALSE)="",0,VLOOKUP($AJ28,Preisliste!$A:$Q,13,FALSE)+MAX(AQ$10:AQ27))) -> 0 | AR28: =IF($AJ28=0,0,IF(VLOOKUP($AJ28,Preisliste!$A:$Q,14,FALSE)="",0,VLOOKUP($AJ28,Preisliste!$A:$Q,14,FALSE)+MAX(AR$10:AR27))) -> 0 | AS28: =IF($AJ28=0,0,IF(VLOOKUP($AJ28,Preisliste!$A:$Q,15,FALSE)="",0,VLOOKUP($AJ28,Preisliste!$A:$Q,15,FALSE)+MAX(AS$10:AS27))) -> 0 | AT28: =IF($AJ28=0,0,IF(VLOOKUP($AJ28,Preisliste!$A:$Q,16,FALSE)="",0,VLOOKUP($AJ28,Preisliste!$A:$Q,16,FALSE)+MAX(AT$10:AT27))) -> 0 | AU28: =IF($AJ28=0,0,IF(VLOOKUP($AJ28,Preisliste!$A:$Q,17,FALSE)="",0,VLOOKUP($AJ28,Preisliste!$A:$Q,17,FALSE)+MAX(AU$10:AU27))) -> 0 | BL28: =IF(BK28=0,"",VLOOKUP(BK28,Preisliste!$A:$P,2,FALSE)) ->  | BN28: =IF(BM28=0,"",VLOOKUP(BM28,Preisliste!$A:$P,2,FALSE)) ->  | BP28: =IF(BO28=0,"",VLOOKUP(BO28,Preisliste!$A:$P,2,FALSE)) ->  | BR28: =IF(BQ28=0,"",VLOOKUP(BQ28,Preisliste!$A:$P,2,FALSE)) -> 
B29: =IF(D29=0,0,MAX($B$10:B28)+1) -> 0 | D29: 0 | E29: 0 | F29: =IF(ISERROR(AB29),"---",IF(ISERROR(VLOOKUP(D29,'Langtexte-Vorlage'!A:D,3,FALSE)),AB29,IF($AH$57=TRUE,AB29&CHAR(10)&CHAR(10)&VLOOKUP(D29,'Langtexte-Vorlage'!A:D,3,FALSE)&CHAR(10),AB29))) -> --- | G29: =IF(ISERROR(VLOOKUP(D29,Preisliste!$A:$C,3,FALSE)),0,VLOOKUP(D29,Preisliste!$A:$C,3,FALSE)) -> 0 | H29: =IF(C29="O",Translation!$A$106,IF(C29="A",Translation!$A$108,IF(C29="S",Translation!$A$109,IF(ISERROR(E29*G29),"---",E29*G29)))) -> 0 | I29: =IF(ISERROR(VLOOKUP(D29,Preisliste!$A:$AQ,43,FALSE)),"",IF(VLOOKUP(D29,Preisliste!$A:$AQ,43,FALSE)=0,"","*")) ->  | O29: FALSE | P29: =IF($U$10=FALSE,0,Auswahl!O28) -> 0 | Q29: =IF($U$10=FALSE,0,IF(OR(R29=TRUE,S29=TRUE),LEFT(RIGHT(Auswahl!R28,2),1)*1,Auswahl!R28)) -> 0 | R29: =IF(LEFT(Auswahl!R28,3)=LEFT(Translation!$A$107,3),TRUE,FALSE) -> FALSE | S29: =IF(LEFT(Auswahl!R28,3)=LEFT(Translation!$A$109,3),TRUE,FALSE) -> FALSE | T29: =IF(ISERROR(VLOOKUP(D29,Preisliste!$A:$AF,31,FALSE)),"---",VLOOKUP(D29,Preisliste!$A:$AF,31,FALSE)) -> --- | V29: =Translation!$A$165 -> Heat pump | W29: =IF($U$10=FALSE,"",IF(I29="","",D29&" "&VLOOKUP(D29,Preisliste!$A:$AQ,43,FALSE))) ->  | X29: 234761,233623,234922,185579,185458,234763,232943,233602,221360,234764,230013,283722,233719,233711, | Y29: =VLOOKUP(D29,Preisliste!$A:$D,4,FALSE) ->  | Z29: =VLOOKUP(D29,Preisliste!$A:$AE,29,FALSE) ->  | AA29: =IF(B29=0,TRUE,IF(ISERROR(VLOOKUP(D29,'Langtexte-Vorlage'!A:D,3,FALSE)),FALSE,TRUE)) -> TRUE | AB29: =VLOOKUP(D29,Preisliste!$A:$B,2,FALSE) ->  | AH29: =IF(ISERROR(VLOOKUP(AH32,Preisliste!A:AE,4,FALSE)),"",Translation!A114&": "&VLOOKUP(AH32,Preisliste!A:AE,4,FALSE)) -> Discount: --- | AJ29: 0 | AK29: =IF($AJ29=0,0,IF(VLOOKUP($AJ29,Preisliste!$A:$Q,7,FALSE)="",0,VLOOKUP($AJ29,Preisliste!$A:$Q,7,FALSE)+MAX(AK$10:AK28))) -> 0 | AL29: =IF($AJ29=0,0,IF(VLOOKUP($AJ29,Preisliste!$A:$Q,8,FALSE)="",0,VLOOKUP($AJ29,Preisliste!$A:$Q,8,FALSE)+MAX(AL$10:AL28))) -> 0 | AM29: =IF($AJ29=0,0,IF(VLOOKUP($AJ29,Preisliste!$A:$Q,9,FALSE)="",0,VLOOKUP($AJ29,Preisliste!$A:$Q,9,FALSE)+MAX(AM$10:AM28))) -> 0 | AN29: =IF($AJ29=0,0,IF(VLOOKUP($AJ29,Preisliste!$A:$Q,10,FALSE)="",0,VLOOKUP($AJ29,Preisliste!$A:$Q,10,FALSE)+MAX(AN$10:AN28))) -> 0 | AO29: =IF($AJ29=0,0,IF(VLOOKUP($AJ29,Preisliste!$A:$Q,11,FALSE)="",0,VLOOKUP($AJ29,Preisliste!$A:$Q,11,FALSE)+MAX(AO$10:AO28))) -> 0 | AP29: =IF($AJ29=0,0,IF(VLOOKUP($AJ29,Preisliste!$A:$Q,12,FALSE)="",0,VLOOKUP($AJ29,Preisliste!$A:$Q,12,FALSE)+MAX(AP$10:AP28))) -> 0 | AQ29: =IF($AJ29=0,0,IF(VLOOKUP($AJ29,Preisliste!$A:$Q,13,FALSE)="",0,VLOOKUP($AJ29,Preisliste!$A:$Q,13,FALSE)+MAX(AQ$10:AQ28))) -> 0 | AR29: =IF($AJ29=0,0,IF(VLOOKUP($AJ29,Preisliste!$A:$Q,14,FALSE)="",0,VLOOKUP($AJ29,Preisliste!$A:$Q,14,FALSE)+MAX(AR$10:AR28))) -> 0 | AS29: =IF($AJ29=0,0,IF(VLOOKUP($AJ29,Preisliste!$A:$Q,15,FALSE)="",0,VLOOKUP($AJ29,Preisliste!$A:$Q,15,FALSE)+MAX(AS$10:AS28))) -> 0 | AT29: =IF($AJ29=0,0,IF(VLOOKUP($AJ29,Preisliste!$A:$Q,16,FALSE)="",0,VLOOKUP($AJ29,Preisliste!$A:$Q,16,FALSE)+MAX(AT$10:AT28))) -> 0 | AU29: =IF($AJ29=0,0,IF(VLOOKUP($AJ29,Preisliste!$A:$Q,17,FALSE)="",0,VLOOKUP($AJ29,Preisliste!$A:$Q,17,FALSE)+MAX(AU$10:AU28))) -> 0 | BL29: =IF(BK29=0,"",VLOOKUP(BK29,Preisliste!$A:$P,2,FALSE)) ->  | BN29: =IF(BM29=0,"",VLOOKUP(BM29,Preisliste!$A:$P,2,FALSE)) ->  | BP29: =IF(BO29=0,"",VLOOKUP(BO29,Preisliste!$A:$P,2,FALSE)) ->  | BR29: =IF(BQ29=0,"",VLOOKUP(BQ29,Preisliste!$A:$P,2,FALSE)) -> 
B30: =IF(D30=0,0,MAX($B$10:B29)+1) -> 0 | D30: 0 | E30: 0 | F30: =IF(ISERROR(AB30),"---",IF(ISERROR(VLOOKUP(D30,'Langtexte-Vorlage'!A:D,3,FALSE)),AB30,IF($AH$57=TRUE,AB30&CHAR(10)&CHAR(10)&VLOOKUP(D30,'Langtexte-Vorlage'!A:D,3,FALSE)&CHAR(10),AB30))) -> --- | G30: =IF(ISERROR(VLOOKUP(D30,Preisliste!$A:$C,3,FALSE)),0,VLOOKUP(D30,Preisliste!$A:$C,3,FALSE)) -> 0 | H30: =IF(C30="O",Translation!$A$106,IF(C30="A",Translation!$A$108,IF(C30="S",Translation!$A$109,IF(ISERROR(E30*G30),"---",E30*G30)))) -> 0 | I30: =IF(ISERROR(VLOOKUP(D30,Preisliste!$A:$AQ,43,FALSE)),"",IF(VLOOKUP(D30,Preisliste!$A:$AQ,43,FALSE)=0,"","*")) ->  | O30: FALSE | P30: =IF($U$10=FALSE,0,Auswahl!O29) -> 0 | Q30: =IF($U$10=FALSE,0,IF(OR(R30=TRUE,S30=TRUE),LEFT(RIGHT(Auswahl!R29,2),1)*1,Auswahl!R29)) -> 0 | R30: =IF(LEFT(Auswahl!R29,3)=LEFT(Translation!$A$107,3),TRUE,FALSE) -> FALSE | S30: =IF(LEFT(Auswahl!R29,3)=LEFT(Translation!$A$109,3),TRUE,FALSE) -> FALSE | T30: =IF(ISERROR(VLOOKUP(D30,Preisliste!$A:$AF,31,FALSE)),"---",VLOOKUP(D30,Preisliste!$A:$AF,31,FALSE)) -> --- | V30: =Translation!$A$165 -> Heat pump | W30: =IF($U$10=FALSE,"",IF(I30="","",D30&" "&VLOOKUP(D30,Preisliste!$A:$AQ,43,FALSE))) ->  | X30: 234761,233623,234922,185579,185458,234763,232943,233602,221360,234764,230013,283722,233719,233711, | Y30: =VLOOKUP(D30,Preisliste!$A:$D,4,FALSE) ->  | Z30: =VLOOKUP(D30,Preisliste!$A:$AE,29,FALSE) ->  | AA30: =IF(B30=0,TRUE,IF(ISERROR(VLOOKUP(D30,'Langtexte-Vorlage'!A:D,3,FALSE)),FALSE,TRUE)) -> TRUE | AB30: =VLOOKUP(D30,Preisliste!$A:$B,2,FALSE) ->  | AJ30: 0 | AK30: =IF($AJ30=0,0,IF(VLOOKUP($AJ30,Preisliste!$A:$Q,7,FALSE)="",0,VLOOKUP($AJ30,Preisliste!$A:$Q,7,FALSE)+MAX(AK$10:AK29))) -> 0 | AL30: =IF($AJ30=0,0,IF(VLOOKUP($AJ30,Preisliste!$A:$Q,8,FALSE)="",0,VLOOKUP($AJ30,Preisliste!$A:$Q,8,FALSE)+MAX(AL$10:AL29))) -> 0 | AM30: =IF($AJ30=0,0,IF(VLOOKUP($AJ30,Preisliste!$A:$Q,9,FALSE)="",0,VLOOKUP($AJ30,Preisliste!$A:$Q,9,FALSE)+MAX(AM$10:AM29))) -> 0 | AN30: =IF($AJ30=0,0,IF(VLOOKUP($AJ30,Preisliste!$A:$Q,10,FALSE)="",0,VLOOKUP($AJ30,Preisliste!$A:$Q,10,FALSE)+MAX(AN$10:AN29))) -> 0 | AO30: =IF($AJ30=0,0,IF(VLOOKUP($AJ30,Preisliste!$A:$Q,11,FALSE)="",0,VLOOKUP($AJ30,Preisliste!$A:$Q,11,FALSE)+MAX(AO$10:AO29))) -> 0 | AP30: =IF($AJ30=0,0,IF(VLOOKUP($AJ30,Preisliste!$A:$Q,12,FALSE)="",0,VLOOKUP($AJ30,Preisliste!$A:$Q,12,FALSE)+MAX(AP$10:AP29))) -> 0 | AQ30: =IF($AJ30=0,0,IF(VLOOKUP($AJ30,Preisliste!$A:$Q,13,FALSE)="",0,VLOOKUP($AJ30,Preisliste!$A:$Q,13,FALSE)+MAX(AQ$10:AQ29))) -> 0 | AR30: =IF($AJ30=0,0,IF(VLOOKUP($AJ30,Preisliste!$A:$Q,14,FALSE)="",0,VLOOKUP($AJ30,Preisliste!$A:$Q,14,FALSE)+MAX(AR$10:AR29))) -> 0 | AS30: =IF($AJ30=0,0,IF(VLOOKUP($AJ30,Preisliste!$A:$Q,15,FALSE)="",0,VLOOKUP($AJ30,Preisliste!$A:$Q,15,FALSE)+MAX(AS$10:AS29))) -> 0 | AT30: =IF($AJ30=0,0,IF(VLOOKUP($AJ30,Preisliste!$A:$Q,16,FALSE)="",0,VLOOKUP($AJ30,Preisliste!$A:$Q,16,FALSE)+MAX(AT$10:AT29))) -> 0 | AU30: =IF($AJ30=0,0,IF(VLOOKUP($AJ30,Preisliste!$A:$Q,17,FALSE)="",0,VLOOKUP($AJ30,Preisliste!$A:$Q,17,FALSE)+MAX(AU$10:AU29))) -> 0 | BL30: =IF(BK30=0,"",VLOOKUP(BK30,Preisliste!$A:$P,2,FALSE)) ->  | BN30: =IF(BM30=0,"",VLOOKUP(BM30,Preisliste!$A:$P,2,FALSE)) ->  | BP30: =IF(BO30=0,"",VLOOKUP(BO30,Preisliste!$A:$P,2,FALSE)) ->  | BR30: =IF(BQ30=0,"",VLOOKUP(BQ30,Preisliste!$A:$P,2,FALSE)) -> 
B31: =IF(D31=0,0,MAX($B$10:B30)+1) -> 0 | D31: 0 | E31: 0 | F31: =IF(ISERROR(AB31),"---",IF(ISERROR(VLOOKUP(D31,'Langtexte-Vorlage'!A:D,3,FALSE)),AB31,IF($AH$57=TRUE,AB31&CHAR(10)&CHAR(10)&VLOOKUP(D31,'Langtexte-Vorlage'!A:D,3,FALSE)&CHAR(10),AB31))) -> --- | G31: =IF(ISERROR(VLOOKUP(D31,Preisliste!$A:$C,3,FALSE)),0,VLOOKUP(D31,Preisliste!$A:$C,3,FALSE)) -> 0 | H31: =IF(C31="O",Translation!$A$106,IF(C31="A",Translation!$A$108,IF(C31="S",Translation!$A$109,IF(ISERROR(E31*G31),"---",E31*G31)))) -> 0 | I31: =IF(ISERROR(VLOOKUP(D31,Preisliste!$A:$AQ,43,FALSE)),"",IF(VLOOKUP(D31,Preisliste!$A:$AQ,43,FALSE)=0,"","*")) ->  | O31: FALSE | P31: =IF($U$10=FALSE,0,Auswahl!O30) -> 0 | Q31: =IF($U$10=FALSE,0,IF(OR(R31=TRUE,S31=TRUE),LEFT(RIGHT(Auswahl!R30,2),1)*1,Auswahl!R30)) -> 0 | R31: =IF(LEFT(Auswahl!R30,3)=LEFT(Translation!$A$107,3),TRUE,FALSE) -> FALSE | S31: =IF(LEFT(Auswahl!R30,3)=LEFT(Translation!$A$109,3),TRUE,FALSE) -> FALSE | T31: =IF(ISERROR(VLOOKUP(D31,Preisliste!$A:$AF,31,FALSE)),"---",VLOOKUP(D31,Preisliste!$A:$AF,31,FALSE)) -> --- | V31: =Translation!$A$165 -> Heat pump | W31: =IF($U$10=FALSE,"",IF(I31="","",D31&" "&VLOOKUP(D31,Preisliste!$A:$AQ,43,FALSE))) ->  | X31: 234761,233623,234922,185579,185458,234763,232943,233602,221360,234764,230013,283722,233719,233711, | Y31: =VLOOKUP(D31,Preisliste!$A:$D,4,FALSE) ->  | Z31: =VLOOKUP(D31,Preisliste!$A:$AE,29,FALSE) ->  | AA31: =IF(B31=0,TRUE,IF(ISERROR(VLOOKUP(D31,'Langtexte-Vorlage'!A:D,3,FALSE)),FALSE,TRUE)) -> TRUE | AB31: =VLOOKUP(D31,Preisliste!$A:$B,2,FALSE) ->  | AH31: Typ gewählt | AJ31: 0 | AK31: =IF($AJ31=0,0,IF(VLOOKUP($AJ31,Preisliste!$A:$Q,7,FALSE)="",0,VLOOKUP($AJ31,Preisliste!$A:$Q,7,FALSE)+MAX(AK$10:AK30))) -> 0 | AL31: =IF($AJ31=0,0,IF(VLOOKUP($AJ31,Preisliste!$A:$Q,8,FALSE)="",0,VLOOKUP($AJ31,Preisliste!$A:$Q,8,FALSE)+MAX(AL$10:AL30))) -> 0 | AM31: =IF($AJ31=0,0,IF(VLOOKUP($AJ31,Preisliste!$A:$Q,9,FALSE)="",0,VLOOKUP($AJ31,Preisliste!$A:$Q,9,FALSE)+MAX(AM$10:AM30))) -> 0 | AN31: =IF($AJ31=0,0,IF(VLOOKUP($AJ31,Preisliste!$A:$Q,10,FALSE)="",0,VLOOKUP($AJ31,Preisliste!$A:$Q,10,FALSE)+MAX(AN$10:AN30))) -> 0 | AO31: =IF($AJ31=0,0,IF(VLOOKUP($AJ31,Preisliste!$A:$Q,11,FALSE)="",0,VLOOKUP($AJ31,Preisliste!$A:$Q,11,FALSE)+MAX(AO$10:AO30))) -> 0 | AP31: =IF($AJ31=0,0,IF(VLOOKUP($AJ31,Preisliste!$A:$Q,12,FALSE)="",0,VLOOKUP($AJ31,Preisliste!$A:$Q,12,FALSE)+MAX(AP$10:AP30))) -> 0 | AQ31: =IF($AJ31=0,0,IF(VLOOKUP($AJ31,Preisliste!$A:$Q,13,FALSE)="",0,VLOOKUP($AJ31,Preisliste!$A:$Q,13,FALSE)+MAX(AQ$10:AQ30))) -> 0 | AR31: =IF($AJ31=0,0,IF(VLOOKUP($AJ31,Preisliste!$A:$Q,14,FALSE)="",0,VLOOKUP($AJ31,Preisliste!$A:$Q,14,FALSE)+MAX(AR$10:AR30))) -> 0 | AS31: =IF($AJ31=0,0,IF(VLOOKUP($AJ31,Preisliste!$A:$Q,15,FALSE)="",0,VLOOKUP($AJ31,Preisliste!$A:$Q,15,FALSE)+MAX(AS$10:AS30))) -> 0 | AT31: =IF($AJ31=0,0,IF(VLOOKUP($AJ31,Preisliste!$A:$Q,16,FALSE)="",0,VLOOKUP($AJ31,Preisliste!$A:$Q,16,FALSE)+MAX(AT$10:AT30))) -> 0 | AU31: =IF($AJ31=0,0,IF(VLOOKUP($AJ31,Preisliste!$A:$Q,17,FALSE)="",0,VLOOKUP($AJ31,Preisliste!$A:$Q,17,FALSE)+MAX(AU$10:AU30))) -> 0 | BL31: =IF(BK31=0,"",VLOOKUP(BK31,Preisliste!$A:$P,2,FALSE)) ->  | BN31: =IF(BM31=0,"",VLOOKUP(BM31,Preisliste!$A:$P,2,FALSE)) ->  | BP31: =IF(BO31=0,"",VLOOKUP(BO31,Preisliste!$A:$P,2,FALSE)) ->  | BR31: =IF(BQ31=0,"",VLOOKUP(BQ31,Preisliste!$A:$P,2,FALSE)) -> 
B32: =IF(D32=0,0,MAX($B$10:B31)+1) -> 0 | D32: 0 | E32: 0 | F32: =IF(ISERROR(AB32),"---",IF(ISERROR(VLOOKUP(D32,'Langtexte-Vorlage'!A:D,3,FALSE)),AB32,IF($AH$57=TRUE,AB32&CHAR(10)&CHAR(10)&VLOOKUP(D32,'Langtexte-Vorlage'!A:D,3,FALSE)&CHAR(10),AB32))) -> --- | G32: =IF(ISERROR(VLOOKUP(D32,Preisliste!$A:$C,3,FALSE)),0,VLOOKUP(D32,Preisliste!$A:$C,3,FALSE)) -> 0 | H32: =IF(C32="O",Translation!$A$106,IF(C32="A",Translation!$A$108,IF(C32="S",Translation!$A$109,IF(ISERROR(E32*G32),"---",E32*G32)))) -> 0 | I32: =IF(ISERROR(VLOOKUP(D32,Preisliste!$A:$AQ,43,FALSE)),"",IF(VLOOKUP(D32,Preisliste!$A:$AQ,43,FALSE)=0,"","*")) ->  | O32: FALSE | P32: =IF($U$10=FALSE,0,Auswahl!O31) -> 0 | Q32: =IF($U$10=FALSE,0,IF(OR(R32=TRUE,S32=TRUE),LEFT(RIGHT(Auswahl!R31,2),1)*1,Auswahl!R31)) -> 0 | R32: =IF(LEFT(Auswahl!R31,3)=LEFT(Translation!$A$107,3),TRUE,FALSE) -> FALSE | S32: =IF(LEFT(Auswahl!R31,3)=LEFT(Translation!$A$109,3),TRUE,FALSE) -> FALSE | T32: =IF(ISERROR(VLOOKUP(D32,Preisliste!$A:$AF,31,FALSE)),"---",VLOOKUP(D32,Preisliste!$A:$AF,31,FALSE)) -> --- | V32: =Translation!$A$165 -> Heat pump | W32: =IF($U$10=FALSE,"",IF(I32="","",D32&" "&VLOOKUP(D32,Preisliste!$A:$AQ,43,FALSE))) ->  | X32: 234761,233623,234922,185579,185458,234763,232943,233602,221360,234764,230013,283722,233719,233711, | Y32: =VLOOKUP(D32,Preisliste!$A:$D,4,FALSE) ->  | Z32: =VLOOKUP(D32,Preisliste!$A:$AE,29,FALSE) ->  | AA32: =IF(B32=0,TRUE,IF(ISERROR(VLOOKUP(D32,'Langtexte-Vorlage'!A:D,3,FALSE)),FALSE,TRUE)) -> TRUE | AB32: =VLOOKUP(D32,Preisliste!$A:$B,2,FALSE) ->  | AH32: 234922 | AJ32: 0 | AK32: =IF($AJ32=0,0,IF(VLOOKUP($AJ32,Preisliste!$A:$Q,7,FALSE)="",0,VLOOKUP($AJ32,Preisliste!$A:$Q,7,FALSE)+MAX(AK$10:AK31))) -> 0 | AL32: =IF($AJ32=0,0,IF(VLOOKUP($AJ32,Preisliste!$A:$Q,8,FALSE)="",0,VLOOKUP($AJ32,Preisliste!$A:$Q,8,FALSE)+MAX(AL$10:AL31))) -> 0 | AM32: =IF($AJ32=0,0,IF(VLOOKUP($AJ32,Preisliste!$A:$Q,9,FALSE)="",0,VLOOKUP($AJ32,Preisliste!$A:$Q,9,FALSE)+MAX(AM$10:AM31))) -> 0 | AN32: =IF($AJ32=0,0,IF(VLOOKUP($AJ32,Preisliste!$A:$Q,10,FALSE)="",0,VLOOKUP($AJ32,Preisliste!$A:$Q,10,FALSE)+MAX(AN$10:AN31))) -> 0 | AO32: =IF($AJ32=0,0,IF(VLOOKUP($AJ32,Preisliste!$A:$Q,11,FALSE)="",0,VLOOKUP($AJ32,Preisliste!$A:$Q,11,FALSE)+MAX(AO$10:AO31))) -> 0 | AP32: =IF($AJ32=0,0,IF(VLOOKUP($AJ32,Preisliste!$A:$Q,12,FALSE)="",0,VLOOKUP($AJ32,Preisliste!$A:$Q,12,FALSE)+MAX(AP$10:AP31))) -> 0 | AQ32: =IF($AJ32=0,0,IF(VLOOKUP($AJ32,Preisliste!$A:$Q,13,FALSE)="",0,VLOOKUP($AJ32,Preisliste!$A:$Q,13,FALSE)+MAX(AQ$10:AQ31))) -> 0 | AR32: =IF($AJ32=0,0,IF(VLOOKUP($AJ32,Preisliste!$A:$Q,14,FALSE)="",0,VLOOKUP($AJ32,Preisliste!$A:$Q,14,FALSE)+MAX(AR$10:AR31))) -> 0 | AS32: =IF($AJ32=0,0,IF(VLOOKUP($AJ32,Preisliste!$A:$Q,15,FALSE)="",0,VLOOKUP($AJ32,Preisliste!$A:$Q,15,FALSE)+MAX(AS$10:AS31))) -> 0 | AT32: =IF($AJ32=0,0,IF(VLOOKUP($AJ32,Preisliste!$A:$Q,16,FALSE)="",0,VLOOKUP($AJ32,Preisliste!$A:$Q,16,FALSE)+MAX(AT$10:AT31))) -> 0 | AU32: =IF($AJ32=0,0,IF(VLOOKUP($AJ32,Preisliste!$A:$Q,17,FALSE)="",0,VLOOKUP($AJ32,Preisliste!$A:$Q,17,FALSE)+MAX(AU$10:AU31))) -> 0 | BL32: =IF(BK32=0,"",VLOOKUP(BK32,Preisliste!$A:$P,2,FALSE)) ->  | BN32: =IF(BM32=0,"",VLOOKUP(BM32,Preisliste!$A:$P,2,FALSE)) ->  | BP32: =IF(BO32=0,"",VLOOKUP(BO32,Preisliste!$A:$P,2,FALSE)) ->  | BR32: =IF(BQ32=0,"",VLOOKUP(BQ32,Preisliste!$A:$P,2,FALSE)) -> 
B33: =IF(D33=0,0,MAX($B$10:B32)+1) -> 0 | D33: 0 | E33: 0 | F33: =IF(ISERROR(AB33),"---",IF(ISERROR(VLOOKUP(D33,'Langtexte-Vorlage'!A:D,3,FALSE)),AB33,IF($AH$57=TRUE,AB33&CHAR(10)&CHAR(10)&VLOOKUP(D33,'Langtexte-Vorlage'!A:D,3,FALSE)&CHAR(10),AB33))) -> --- | G33: =IF(ISERROR(VLOOKUP(D33,Preisliste!$A:$C,3,FALSE)),0,VLOOKUP(D33,Preisliste!$A:$C,3,FALSE)) -> 0 | H33: =IF(C33="O",Translation!$A$106,IF(C33="A",Translation!$A$108,IF(C33="S",Translation!$A$109,IF(ISERROR(E33*G33),"---",E33*G33)))) -> 0 | I33: =IF(ISERROR(VLOOKUP(D33,Preisliste!$A:$AQ,43,FALSE)),"",IF(VLOOKUP(D33,Preisliste!$A:$AQ,43,FALSE)=0,"","*")) ->  | O33: FALSE | P33: =IF($U$10=FALSE,0,Auswahl!O32) -> 0 | Q33: =IF($U$10=FALSE,0,IF(OR(R33=TRUE,S33=TRUE),LEFT(RIGHT(Auswahl!R32,2),1)*1,Auswahl!R32)) -> 0 | R33: =IF(LEFT(Auswahl!R32,3)=LEFT(Translation!$A$107,3),TRUE,FALSE) -> FALSE | S33: =IF(LEFT(Auswahl!R32,3)=LEFT(Translation!$A$109,3),TRUE,FALSE) -> FALSE | T33: =IF(ISERROR(VLOOKUP(D33,Preisliste!$A:$AF,31,FALSE)),"---",VLOOKUP(D33,Preisliste!$A:$AF,31,FALSE)) -> --- | V33: =Translation!$A$165 -> Heat pump | W33: =IF($U$10=FALSE,"",IF(I33="","",D33&" "&VLOOKUP(D33,Preisliste!$A:$AQ,43,FALSE))) ->  | X33: 234761,233623,234922,185579,185458,234763,232943,233602,221360,234764,230013,283722,233719,233711, | Y33: =VLOOKUP(D33,Preisliste!$A:$D,4,FALSE) ->  | Z33: =VLOOKUP(D33,Preisliste!$A:$AE,29,FALSE) ->  | AA33: =IF(B33=0,TRUE,IF(ISERROR(VLOOKUP(D33,'Langtexte-Vorlage'!A:D,3,FALSE)),FALSE,TRUE)) -> TRUE | AB33: =VLOOKUP(D33,Preisliste!$A:$B,2,FALSE) ->  | AH33: =VLOOKUP(AH32,Preisliste!A:F,6,FALSE) -> 8 | AJ33: 0 | AK33: =IF($AJ33=0,0,IF(VLOOKUP($AJ33,Preisliste!$A:$Q,7,FALSE)="",0,VLOOKUP($AJ33,Preisliste!$A:$Q,7,FALSE)+MAX(AK$10:AK32))) -> 0 | AL33: =IF($AJ33=0,0,IF(VLOOKUP($AJ33,Preisliste!$A:$Q,8,FALSE)="",0,VLOOKUP($AJ33,Preisliste!$A:$Q,8,FALSE)+MAX(AL$10:AL32))) -> 0 | AM33: =IF($AJ33=0,0,IF(VLOOKUP($AJ33,Preisliste!$A:$Q,9,FALSE)="",0,VLOOKUP($AJ33,Preisliste!$A:$Q,9,FALSE)+MAX(AM$10:AM32))) -> 0 | AN33: =IF($AJ33=0,0,IF(VLOOKUP($AJ33,Preisliste!$A:$Q,10,FALSE)="",0,VLOOKUP($AJ33,Preisliste!$A:$Q,10,FALSE)+MAX(AN$10:AN32))) -> 0 | AO33: =IF($AJ33=0,0,IF(VLOOKUP($AJ33,Preisliste!$A:$Q,11,FALSE)="",0,VLOOKUP($AJ33,Preisliste!$A:$Q,11,FALSE)+MAX(AO$10:AO32))) -> 0 | AP33: =IF($AJ33=0,0,IF(VLOOKUP($AJ33,Preisliste!$A:$Q,12,FALSE)="",0,VLOOKUP($AJ33,Preisliste!$A:$Q,12,FALSE)+MAX(AP$10:AP32))) -> 0 | AQ33: =IF($AJ33=0,0,IF(VLOOKUP($AJ33,Preisliste!$A:$Q,13,FALSE)="",0,VLOOKUP($AJ33,Preisliste!$A:$Q,13,FALSE)+MAX(AQ$10:AQ32))) -> 0 | AR33: =IF($AJ33=0,0,IF(VLOOKUP($AJ33,Preisliste!$A:$Q,14,FALSE)="",0,VLOOKUP($AJ33,Preisliste!$A:$Q,14,FALSE)+MAX(AR$10:AR32))) -> 0 | AS33: =IF($AJ33=0,0,IF(VLOOKUP($AJ33,Preisliste!$A:$Q,15,FALSE)="",0,VLOOKUP($AJ33,Preisliste!$A:$Q,15,FALSE)+MAX(AS$10:AS32))) -> 0 | AT33: =IF($AJ33=0,0,IF(VLOOKUP($AJ33,Preisliste!$A:$Q,16,FALSE)="",0,VLOOKUP($AJ33,Preisliste!$A:$Q,16,FALSE)+MAX(AT$10:AT32))) -> 0 | AU33: =IF($AJ33=0,0,IF(VLOOKUP($AJ33,Preisliste!$A:$Q,17,FALSE)="",0,VLOOKUP($AJ33,Preisliste!$A:$Q,17,FALSE)+MAX(AU$10:AU32))) -> 0 | BL33: =IF(BK33=0,"",VLOOKUP(BK33,Preisliste!$A:$P,2,FALSE)) ->  | BN33: =IF(BM33=0,"",VLOOKUP(BM33,Preisliste!$A:$P,2,FALSE)) ->  | BP33: =IF(BO33=0,"",VLOOKUP(BO33,Preisliste!$A:$P,2,FALSE)) ->  | BR33: =IF(BQ33=0,"",VLOOKUP(BQ33,Preisliste!$A:$P,2,FALSE)) -> 
B34: =IF(D34=0,0,MAX($B$10:B33)+1) -> 0 | D34: 0 | E34: 0 | F34: =IF(ISERROR(AB34),"---",IF(ISERROR(VLOOKUP(D34,'Langtexte-Vorlage'!A:D,3,FALSE)),AB34,IF($AH$57=TRUE,AB34&CHAR(10)&CHAR(10)&VLOOKUP(D34,'Langtexte-Vorlage'!A:D,3,FALSE)&CHAR(10),AB34))) -> --- | G34: =IF(ISERROR(VLOOKUP(D34,Preisliste!$A:$C,3,FALSE)),0,VLOOKUP(D34,Preisliste!$A:$C,3,FALSE)) -> 0 | H34: =IF(C34="O",Translation!$A$106,IF(C34="A",Translation!$A$108,IF(C34="S",Translation!$A$109,IF(ISERROR(E34*G34),"---",E34*G34)))) -> 0 | I34: =IF(ISERROR(VLOOKUP(D34,Preisliste!$A:$AQ,43,FALSE)),"",IF(VLOOKUP(D34,Preisliste!$A:$AQ,43,FALSE)=0,"","*")) ->  | O34: FALSE | P34: =IF($U$10=FALSE,0,Auswahl!O33) -> 0 | Q34: =IF($U$10=FALSE,0,IF(OR(R34=TRUE,S34=TRUE),LEFT(RIGHT(Auswahl!R33,2),1)*1,Auswahl!R33)) -> 0 | R34: =IF(LEFT(Auswahl!R33,3)=LEFT(Translation!$A$107,3),TRUE,FALSE) -> FALSE | S34: =IF(LEFT(Auswahl!R33,3)=LEFT(Translation!$A$109,3),TRUE,FALSE) -> FALSE | T34: =IF(ISERROR(VLOOKUP(D34,Preisliste!$A:$AF,31,FALSE)),"---",VLOOKUP(D34,Preisliste!$A:$AF,31,FALSE)) -> --- | V34: =Translation!$A$165 -> Heat pump | W34: =IF($U$10=FALSE,"",IF(I34="","",D34&" "&VLOOKUP(D34,Preisliste!$A:$AQ,43,FALSE))) ->  | X34: 234761,233623,234922,185579,185458,234763,232943,233602,221360,234764,230013,283722,233719,233711, | Y34: =VLOOKUP(D34,Preisliste!$A:$D,4,FALSE) ->  | Z34: =VLOOKUP(D34,Preisliste!$A:$AE,29,FALSE) ->  | AA34: =IF(B34=0,TRUE,IF(ISERROR(VLOOKUP(D34,'Langtexte-Vorlage'!A:D,3,FALSE)),FALSE,TRUE)) -> TRUE | AB34: =VLOOKUP(D34,Preisliste!$A:$B,2,FALSE) ->  | AH34: 12 | AJ34: 0 | AK34: =IF($AJ34=0,0,IF(VLOOKUP($AJ34,Preisliste!$A:$Q,7,FALSE)="",0,VLOOKUP($AJ34,Preisliste!$A:$Q,7,FALSE)+MAX(AK$10:AK33))) -> 0 | AL34: =IF($AJ34=0,0,IF(VLOOKUP($AJ34,Preisliste!$A:$Q,8,FALSE)="",0,VLOOKUP($AJ34,Preisliste!$A:$Q,8,FALSE)+MAX(AL$10:AL33))) -> 0 | AM34: =IF($AJ34=0,0,IF(VLOOKUP($AJ34,Preisliste!$A:$Q,9,FALSE)="",0,VLOOKUP($AJ34,Preisliste!$A:$Q,9,FALSE)+MAX(AM$10:AM33))) -> 0 | AN34: =IF($AJ34=0,0,IF(VLOOKUP($AJ34,Preisliste!$A:$Q,10,FALSE)="",0,VLOOKUP($AJ34,Preisliste!$A:$Q,10,FALSE)+MAX(AN$10:AN33))) -> 0 | AO34: =IF($AJ34=0,0,IF(VLOOKUP($AJ34,Preisliste!$A:$Q,11,FALSE)="",0,VLOOKUP($AJ34,Preisliste!$A:$Q,11,FALSE)+MAX(AO$10:AO33))) -> 0 | AP34: =IF($AJ34=0,0,IF(VLOOKUP($AJ34,Preisliste!$A:$Q,12,FALSE)="",0,VLOOKUP($AJ34,Preisliste!$A:$Q,12,FALSE)+MAX(AP$10:AP33))) -> 0 | AQ34: =IF($AJ34=0,0,IF(VLOOKUP($AJ34,Preisliste!$A:$Q,13,FALSE)="",0,VLOOKUP($AJ34,Preisliste!$A:$Q,13,FALSE)+MAX(AQ$10:AQ33))) -> 0 | AR34: =IF($AJ34=0,0,IF(VLOOKUP($AJ34,Preisliste!$A:$Q,14,FALSE)="",0,VLOOKUP($AJ34,Preisliste!$A:$Q,14,FALSE)+MAX(AR$10:AR33))) -> 0 | AS34: =IF($AJ34=0,0,IF(VLOOKUP($AJ34,Preisliste!$A:$Q,15,FALSE)="",0,VLOOKUP($AJ34,Preisliste!$A:$Q,15,FALSE)+MAX(AS$10:AS33))) -> 0 | AT34: =IF($AJ34=0,0,IF(VLOOKUP($AJ34,Preisliste!$A:$Q,16,FALSE)="",0,VLOOKUP($AJ34,Preisliste!$A:$Q,16,FALSE)+MAX(AT$10:AT33))) -> 0 | AU34: =IF($AJ34=0,0,IF(VLOOKUP($AJ34,Preisliste!$A:$Q,17,FALSE)="",0,VLOOKUP($AJ34,Preisliste!$A:$Q,17,FALSE)+MAX(AU$10:AU33))) -> 0 | BL34: =IF(BK34=0,"",VLOOKUP(BK34,Preisliste!$A:$P,2,FALSE)) ->  | BN34: =IF(BM34=0,"",VLOOKUP(BM34,Preisliste!$A:$P,2,FALSE)) ->  | BP34: =IF(BO34=0,"",VLOOKUP(BO34,Preisliste!$A:$P,2,FALSE)) ->  | BR34: =IF(BQ34=0,"",VLOOKUP(BQ34,Preisliste!$A:$P,2,FALSE)) -> 
B35: =IF(D35=0,0,MAX($B$10:B34)+1) -> 0 | D35: 0 | E35: 0 | F35: =IF(ISERROR(AB35),"---",IF(ISERROR(VLOOKUP(D35,'Langtexte-Vorlage'!A:D,3,FALSE)),AB35,IF($AH$57=TRUE,AB35&CHAR(10)&CHAR(10)&VLOOKUP(D35,'Langtexte-Vorlage'!A:D,3,FALSE)&CHAR(10),AB35))) -> --- | G35: =IF(ISERROR(VLOOKUP(D35,Preisliste!$A:$C,3,FALSE)),0,VLOOKUP(D35,Preisliste!$A:$C,3,FALSE)) -> 0 | H35: =IF(C35="O",Translation!$A$106,IF(C35="A",Translation!$A$108,IF(C35="S",Translation!$A$109,IF(ISERROR(E35*G35),"---",E35*G35)))) -> 0 | I35: =IF(ISERROR(VLOOKUP(D35,Preisliste!$A:$AQ,43,FALSE)),"",IF(VLOOKUP(D35,Preisliste!$A:$AQ,43,FALSE)=0,"","*")) ->  | O35: FALSE | P35: =IF($U$10=FALSE,0,Auswahl!O34) -> 0 | Q35: =IF($U$10=FALSE,0,IF(OR(R35=TRUE,S35=TRUE),LEFT(RIGHT(Auswahl!R34,2),1)*1,Auswahl!R34)) -> 0 | R35: =IF(LEFT(Auswahl!R34,3)=LEFT(Translation!$A$107,3),TRUE,FALSE) -> FALSE | S35: =IF(LEFT(Auswahl!R34,3)=LEFT(Translation!$A$109,3),TRUE,FALSE) -> FALSE | T35: =IF(ISERROR(VLOOKUP(D35,Preisliste!$A:$AF,31,FALSE)),"---",VLOOKUP(D35,Preisliste!$A:$AF,31,FALSE)) -> --- | V35: =Translation!$A$165 -> Heat pump | W35: =IF($U$10=FALSE,"",IF(I35="","",D35&" "&VLOOKUP(D35,Preisliste!$A:$AQ,43,FALSE))) ->  | X35: 234761,233623,234922,185579,185458,234763,232943,233602,221360,234764,230013,283722,233719,233711, | Y35: =VLOOKUP(D35,Preisliste!$A:$D,4,FALSE) ->  | Z35: =VLOOKUP(D35,Preisliste!$A:$AE,29,FALSE) ->  | AA35: =IF(B35=0,TRUE,IF(ISERROR(VLOOKUP(D35,'Langtexte-Vorlage'!A:D,3,FALSE)),FALSE,TRUE)) -> TRUE | AB35: =VLOOKUP(D35,Preisliste!$A:$B,2,FALSE) ->  | AH35: Manuell geändert? | AJ35: 0 | AK35: =IF($AJ35=0,0,IF(VLOOKUP($AJ35,Preisliste!$A:$Q,7,FALSE)="",0,VLOOKUP($AJ35,Preisliste!$A:$Q,7,FALSE)+MAX(AK$10:AK34))) -> 0 | AL35: =IF($AJ35=0,0,IF(VLOOKUP($AJ35,Preisliste!$A:$Q,8,FALSE)="",0,VLOOKUP($AJ35,Preisliste!$A:$Q,8,FALSE)+MAX(AL$10:AL34))) -> 0 | AM35: =IF($AJ35=0,0,IF(VLOOKUP($AJ35,Preisliste!$A:$Q,9,FALSE)="",0,VLOOKUP($AJ35,Preisliste!$A:$Q,9,FALSE)+MAX(AM$10:AM34))) -> 0 | AN35: =IF($AJ35=0,0,IF(VLOOKUP($AJ35,Preisliste!$A:$Q,10,FALSE)="",0,VLOOKUP($AJ35,Preisliste!$A:$Q,10,FALSE)+MAX(AN$10:AN34))) -> 0 | AO35: =IF($AJ35=0,0,IF(VLOOKUP($AJ35,Preisliste!$A:$Q,11,FALSE)="",0,VLOOKUP($AJ35,Preisliste!$A:$Q,11,FALSE)+MAX(AO$10:AO34))) -> 0 | AP35: =IF($AJ35=0,0,IF(VLOOKUP($AJ35,Preisliste!$A:$Q,12,FALSE)="",0,VLOOKUP($AJ35,Preisliste!$A:$Q,12,FALSE)+MAX(AP$10:AP34))) -> 0 | AQ35: =IF($AJ35=0,0,IF(VLOOKUP($AJ35,Preisliste!$A:$Q,13,FALSE)="",0,VLOOKUP($AJ35,Preisliste!$A:$Q,13,FALSE)+MAX(AQ$10:AQ34))) -> 0 | AR35: =IF($AJ35=0,0,IF(VLOOKUP($AJ35,Preisliste!$A:$Q,14,FALSE)="",0,VLOOKUP($AJ35,Preisliste!$A:$Q,14,FALSE)+MAX(AR$10:AR34))) -> 0 | AS35: =IF($AJ35=0,0,IF(VLOOKUP($AJ35,Preisliste!$A:$Q,15,FALSE)="",0,VLOOKUP($AJ35,Preisliste!$A:$Q,15,FALSE)+MAX(AS$10:AS34))) -> 0 | AT35: =IF($AJ35=0,0,IF(VLOOKUP($AJ35,Preisliste!$A:$Q,16,FALSE)="",0,VLOOKUP($AJ35,Preisliste!$A:$Q,16,FALSE)+MAX(AT$10:AT34))) -> 0 | AU35: =IF($AJ35=0,0,IF(VLOOKUP($AJ35,Preisliste!$A:$Q,17,FALSE)="",0,VLOOKUP($AJ35,Preisliste!$A:$Q,17,FALSE)+MAX(AU$10:AU34))) -> 0 | BL35: =IF(BK35=0,"",VLOOKUP(BK35,Preisliste!$A:$P,2,FALSE)) ->  | BN35: =IF(BM35=0,"",VLOOKUP(BM35,Preisliste!$A:$P,2,FALSE)) ->  | BP35: =IF(BO35=0,"",VLOOKUP(BO35,Preisliste!$A:$P,2,FALSE)) ->  | BR35: =IF(BQ35=0,"",VLOOKUP(BQ35,Preisliste!$A:$P,2,FALSE)) -> 
B36: =IF(D36=0,0,MAX($B$10:B35)+1) -> 0 | D36: 0 | E36: 0 | F36: =IF(ISERROR(AB36),"---",IF(ISERROR(VLOOKUP(D36,'Langtexte-Vorlage'!A:D,3,FALSE)),AB36,IF($AH$57=TRUE,AB36&CHAR(10)&CHAR(10)&VLOOKUP(D36,'Langtexte-Vorlage'!A:D,3,FALSE)&CHAR(10),AB36))) -> --- | G36: =IF(ISERROR(VLOOKUP(D36,Preisliste!$A:$C,3,FALSE)),0,VLOOKUP(D36,Preisliste!$A:$C,3,FALSE)) -> 0 | H36: =IF(C36="O",Translation!$A$106,IF(C36="A",Translation!$A$108,IF(C36="S",Translation!$A$109,IF(ISERROR(E36*G36),"---",E36*G36)))) -> 0 | I36: =IF(ISERROR(VLOOKUP(D36,Preisliste!$A:$AQ,43,FALSE)),"",IF(VLOOKUP(D36,Preisliste!$A:$AQ,43,FALSE)=0,"","*")) ->  | O36: FALSE | P36: =IF($U$10=FALSE,0,Auswahl!O35) -> 0 | Q36: =IF($U$10=FALSE,0,IF(OR(R36=TRUE,S36=TRUE),LEFT(RIGHT(Auswahl!R35,2),1)*1,Auswahl!R35)) -> 0 | R36: =IF(LEFT(Auswahl!R35,3)=LEFT(Translation!$A$107,3),TRUE,FALSE) -> FALSE | S36: =IF(LEFT(Auswahl!R35,3)=LEFT(Translation!$A$109,3),TRUE,FALSE) -> FALSE | T36: =IF(ISERROR(VLOOKUP(D36,Preisliste!$A:$AF,31,FALSE)),"---",VLOOKUP(D36,Preisliste!$A:$AF,31,FALSE)) -> --- | V36: =Translation!$A$165 -> Heat pump | W36: =IF($U$10=FALSE,"",IF(I36="","",D36&" "&VLOOKUP(D36,Preisliste!$A:$AQ,43,FALSE))) ->  | X36: 234761,233623,234922,185579,185458,234763,232943,233602,221360,234764,230013,283722,233719,233711, | Y36: =VLOOKUP(D36,Preisliste!$A:$D,4,FALSE) ->  | Z36: =VLOOKUP(D36,Preisliste!$A:$AE,29,FALSE) ->  | AA36: =IF(B36=0,TRUE,IF(ISERROR(VLOOKUP(D36,'Langtexte-Vorlage'!A:D,3,FALSE)),FALSE,TRUE)) -> TRUE | AB36: =VLOOKUP(D36,Preisliste!$A:$B,2,FALSE) ->  | AH36: =ROUND(AH14,2) -> 14490 | AJ36: 0 | AK36: =IF($AJ36=0,0,IF(VLOOKUP($AJ36,Preisliste!$A:$Q,7,FALSE)="",0,VLOOKUP($AJ36,Preisliste!$A:$Q,7,FALSE)+MAX(AK$10:AK35))) -> 0 | AL36: =IF($AJ36=0,0,IF(VLOOKUP($AJ36,Preisliste!$A:$Q,8,FALSE)="",0,VLOOKUP($AJ36,Preisliste!$A:$Q,8,FALSE)+MAX(AL$10:AL35))) -> 0 | AM36: =IF($AJ36=0,0,IF(VLOOKUP($AJ36,Preisliste!$A:$Q,9,FALSE)="",0,VLOOKUP($AJ36,Preisliste!$A:$Q,9,FALSE)+MAX(AM$10:AM35))) -> 0 | AN36: =IF($AJ36=0,0,IF(VLOOKUP($AJ36,Preisliste!$A:$Q,10,FALSE)="",0,VLOOKUP($AJ36,Preisliste!$A:$Q,10,FALSE)+MAX(AN$10:AN35))) -> 0 | AO36: =IF($AJ36=0,0,IF(VLOOKUP($AJ36,Preisliste!$A:$Q,11,FALSE)="",0,VLOOKUP($AJ36,Preisliste!$A:$Q,11,FALSE)+MAX(AO$10:AO35))) -> 0 | AP36: =IF($AJ36=0,0,IF(VLOOKUP($AJ36,Preisliste!$A:$Q,12,FALSE)="",0,VLOOKUP($AJ36,Preisliste!$A:$Q,12,FALSE)+MAX(AP$10:AP35))) -> 0 | AQ36: =IF($AJ36=0,0,IF(VLOOKUP($AJ36,Preisliste!$A:$Q,13,FALSE)="",0,VLOOKUP($AJ36,Preisliste!$A:$Q,13,FALSE)+MAX(AQ$10:AQ35))) -> 0 | AR36: =IF($AJ36=0,0,IF(VLOOKUP($AJ36,Preisliste!$A:$Q,14,FALSE)="",0,VLOOKUP($AJ36,Preisliste!$A:$Q,14,FALSE)+MAX(AR$10:AR35))) -> 0 | AS36: =IF($AJ36=0,0,IF(VLOOKUP($AJ36,Preisliste!$A:$Q,15,FALSE)="",0,VLOOKUP($AJ36,Preisliste!$A:$Q,15,FALSE)+MAX(AS$10:AS35))) -> 0 | AT36: =IF($AJ36=0,0,IF(VLOOKUP($AJ36,Preisliste!$A:$Q,16,FALSE)="",0,VLOOKUP($AJ36,Preisliste!$A:$Q,16,FALSE)+MAX(AT$10:AT35))) -> 0 | AU36: =IF($AJ36=0,0,IF(VLOOKUP($AJ36,Preisliste!$A:$Q,17,FALSE)="",0,VLOOKUP($AJ36,Preisliste!$A:$Q,17,FALSE)+MAX(AU$10:AU35))) -> 0 | BL36: =IF(BK36=0,"",VLOOKUP(BK36,Preisliste!$A:$P,2,FALSE)) ->  | BN36: =IF(BM36=0,"",VLOOKUP(BM36,Preisliste!$A:$P,2,FALSE)) ->  | BP36: =IF(BO36=0,"",VLOOKUP(BO36,Preisliste!$A:$P,2,FALSE)) ->  | BR36: =IF(BQ36=0,"",VLOOKUP(BQ36,Preisliste!$A:$P,2,FALSE)) -> 
B37: =IF(D37=0,0,MAX($B$10:B36)+1) -> 0 | D37: 0 | E37: 0 | F37: =IF(ISERROR(AB37),"---",IF(ISERROR(VLOOKUP(D37,'Langtexte-Vorlage'!A:D,3,FALSE)),AB37,IF($AH$57=TRUE,AB37&CHAR(10)&CHAR(10)&VLOOKUP(D37,'Langtexte-Vorlage'!A:D,3,FALSE)&CHAR(10),AB37))) -> --- | G37: =IF(ISERROR(VLOOKUP(D37,Preisliste!$A:$C,3,FALSE)),0,VLOOKUP(D37,Preisliste!$A:$C,3,FALSE)) -> 0 | H37: =IF(C37="O",Translation!$A$106,IF(C37="A",Translation!$A$108,IF(C37="S",Translation!$A$109,IF(ISERROR(E37*G37),"---",E37*G37)))) -> 0 | I37: =IF(ISERROR(VLOOKUP(D37,Preisliste!$A:$AQ,43,FALSE)),"",IF(VLOOKUP(D37,Preisliste!$A:$AQ,43,FALSE)=0,"","*")) ->  | O37: FALSE | P37: =IF($U$10=FALSE,0,Auswahl!O36) -> 0 | Q37: =IF($U$10=FALSE,0,IF(OR(R37=TRUE,S37=TRUE),LEFT(RIGHT(Auswahl!R36,2),1)*1,Auswahl!R36)) -> 0 | R37: =IF(LEFT(Auswahl!R36,3)=LEFT(Translation!$A$107,3),TRUE,FALSE) -> FALSE | S37: =IF(LEFT(Auswahl!R36,3)=LEFT(Translation!$A$109,3),TRUE,FALSE) -> FALSE | T37: =IF(ISERROR(VLOOKUP(D37,Preisliste!$A:$AF,31,FALSE)),"---",VLOOKUP(D37,Preisliste!$A:$AF,31,FALSE)) -> --- | V37: =Translation!$A$165 -> Heat pump | W37: =IF($U$10=FALSE,"",IF(I37="","",D37&" "&VLOOKUP(D37,Preisliste!$A:$AQ,43,FALSE))) ->  | X37: 234761,233623,234922,185579,185458,234763,232943,233602,221360,234764,230013,283722,233719,233711, | Y37: =VLOOKUP(D37,Preisliste!$A:$D,4,FALSE) ->  | Z37: =VLOOKUP(D37,Preisliste!$A:$AE,29,FALSE) ->  | AA37: =IF(B37=0,TRUE,IF(ISERROR(VLOOKUP(D37,'Langtexte-Vorlage'!A:D,3,FALSE)),FALSE,TRUE)) -> TRUE | AB37: =VLOOKUP(D37,Preisliste!$A:$B,2,FALSE) ->  | AH37: =ROUND(Berechnung!I21,2) -> 4786 | AJ37: 0 | AK37: =IF($AJ37=0,0,IF(VLOOKUP($AJ37,Preisliste!$A:$Q,7,FALSE)="",0,VLOOKUP($AJ37,Preisliste!$A:$Q,7,FALSE)+MAX(AK$10:AK36))) -> 0 | AL37: =IF($AJ37=0,0,IF(VLOOKUP($AJ37,Preisliste!$A:$Q,8,FALSE)="",0,VLOOKUP($AJ37,Preisliste!$A:$Q,8,FALSE)+MAX(AL$10:AL36))) -> 0 | AM37: =IF($AJ37=0,0,IF(VLOOKUP($AJ37,Preisliste!$A:$Q,9,FALSE)="",0,VLOOKUP($AJ37,Preisliste!$A:$Q,9,FALSE)+MAX(AM$10:AM36))) -> 0 | AN37: =IF($AJ37=0,0,IF(VLOOKUP($AJ37,Preisliste!$A:$Q,10,FALSE)="",0,VLOOKUP($AJ37,Preisliste!$A:$Q,10,FALSE)+MAX(AN$10:AN36))) -> 0 | AO37: =IF($AJ37=0,0,IF(VLOOKUP($AJ37,Preisliste!$A:$Q,11,FALSE)="",0,VLOOKUP($AJ37,Preisliste!$A:$Q,11,FALSE)+MAX(AO$10:AO36))) -> 0 | AP37: =IF($AJ37=0,0,IF(VLOOKUP($AJ37,Preisliste!$A:$Q,12,FALSE)="",0,VLOOKUP($AJ37,Preisliste!$A:$Q,12,FALSE)+MAX(AP$10:AP36))) -> 0 | AQ37: =IF($AJ37=0,0,IF(VLOOKUP($AJ37,Preisliste!$A:$Q,13,FALSE)="",0,VLOOKUP($AJ37,Preisliste!$A:$Q,13,FALSE)+MAX(AQ$10:AQ36))) -> 0 | AR37: =IF($AJ37=0,0,IF(VLOOKUP($AJ37,Preisliste!$A:$Q,14,FALSE)="",0,VLOOKUP($AJ37,Preisliste!$A:$Q,14,FALSE)+MAX(AR$10:AR36))) -> 0 | AS37: =IF($AJ37=0,0,IF(VLOOKUP($AJ37,Preisliste!$A:$Q,15,FALSE)="",0,VLOOKUP($AJ37,Preisliste!$A:$Q,15,FALSE)+MAX(AS$10:AS36))) -> 0 | AT37: =IF($AJ37=0,0,IF(VLOOKUP($AJ37,Preisliste!$A:$Q,16,FALSE)="",0,VLOOKUP($AJ37,Preisliste!$A:$Q,16,FALSE)+MAX(AT$10:AT36))) -> 0 | AU37: =IF($AJ37=0,0,IF(VLOOKUP($AJ37,Preisliste!$A:$Q,17,FALSE)="",0,VLOOKUP($AJ37,Preisliste!$A:$Q,17,FALSE)+MAX(AU$10:AU36))) -> 0 | BL37: =IF(BK37=0,"",VLOOKUP(BK37,Preisliste!$A:$P,2,FALSE)) ->  | BN37: =IF(BM37=0,"",VLOOKUP(BM37,Preisliste!$A:$P,2,FALSE)) ->  | BP37: =IF(BO37=0,"",VLOOKUP(BO37,Preisliste!$A:$P,2,FALSE)) ->  | BR37: =IF(BQ37=0,"",VLOOKUP(BQ37,Preisliste!$A:$P,2,FALSE)) -> 
B38: =IF(D38=0,0,MAX($B$10:B37)+1) -> 0 | D38: 0 | E38: 0 | F38: =IF(ISERROR(AB38),"---",IF(ISERROR(VLOOKUP(D38,'Langtexte-Vorlage'!A:D,3,FALSE)),AB38,IF($AH$57=TRUE,AB38&CHAR(10)&CHAR(10)&VLOOKUP(D38,'Langtexte-Vorlage'!A:D,3,FALSE)&CHAR(10),AB38))) -> --- | G38: =IF(ISERROR(VLOOKUP(D38,Preisliste!$A:$C,3,FALSE)),0,VLOOKUP(D38,Preisliste!$A:$C,3,FALSE)) -> 0 | H38: =IF(C38="O",Translation!$A$106,IF(C38="A",Translation!$A$108,IF(C38="S",Translation!$A$109,IF(ISERROR(E38*G38),"---",E38*G38)))) -> 0 | I38: =IF(ISERROR(VLOOKUP(D38,Preisliste!$A:$AQ,43,FALSE)),"",IF(VLOOKUP(D38,Preisliste!$A:$AQ,43,FALSE)=0,"","*")) ->  | O38: FALSE | P38: =IF($U$10=FALSE,0,Auswahl!O37) -> 0 | Q38: =IF($U$10=FALSE,0,IF(OR(R38=TRUE,S38=TRUE),LEFT(RIGHT(Auswahl!R37,2),1)*1,Auswahl!R37)) -> 0 | R38: =IF(LEFT(Auswahl!R37,3)=LEFT(Translation!$A$107,3),TRUE,FALSE) -> FALSE | S38: =IF(LEFT(Auswahl!R37,3)=LEFT(Translation!$A$109,3),TRUE,FALSE) -> FALSE | T38: =IF(ISERROR(VLOOKUP(D38,Preisliste!$A:$AF,31,FALSE)),"---",VLOOKUP(D38,Preisliste!$A:$AF,31,FALSE)) -> --- | V38: =Translation!$A$165 -> Heat pump | W38: =IF($U$10=FALSE,"",IF(I38="","",D38&" "&VLOOKUP(D38,Preisliste!$A:$AQ,43,FALSE))) ->  | X38: 234761,233623,234922,185579,185458,234763,232943,233602,221360,234764,230013,283722,233719,233711, | Y38: =VLOOKUP(D38,Preisliste!$A:$D,4,FALSE) ->  | Z38: =VLOOKUP(D38,Preisliste!$A:$AE,29,FALSE) ->  | AA38: =IF(B38=0,TRUE,IF(ISERROR(VLOOKUP(D38,'Langtexte-Vorlage'!A:D,3,FALSE)),FALSE,TRUE)) -> TRUE | AB38: =VLOOKUP(D38,Preisliste!$A:$B,2,FALSE) ->  | AH38: =IF(AH36=AH37,FALSE,TRUE) -> TRUE | AJ38: 0 | AK38: =IF($AJ38=0,0,IF(VLOOKUP($AJ38,Preisliste!$A:$Q,7,FALSE)="",0,VLOOKUP($AJ38,Preisliste!$A:$Q,7,FALSE)+MAX(AK$10:AK37))) -> 0 | AL38: =IF($AJ38=0,0,IF(VLOOKUP($AJ38,Preisliste!$A:$Q,8,FALSE)="",0,VLOOKUP($AJ38,Preisliste!$A:$Q,8,FALSE)+MAX(AL$10:AL37))) -> 0 | AM38: =IF($AJ38=0,0,IF(VLOOKUP($AJ38,Preisliste!$A:$Q,9,FALSE)="",0,VLOOKUP($AJ38,Preisliste!$A:$Q,9,FALSE)+MAX(AM$10:AM37))) -> 0 | AN38: =IF($AJ38=0,0,IF(VLOOKUP($AJ38,Preisliste!$A:$Q,10,FALSE)="",0,VLOOKUP($AJ38,Preisliste!$A:$Q,10,FALSE)+MAX(AN$10:AN37))) -> 0 | AO38: =IF($AJ38=0,0,IF(VLOOKUP($AJ38,Preisliste!$A:$Q,11,FALSE)="",0,VLOOKUP($AJ38,Preisliste!$A:$Q,11,FALSE)+MAX(AO$10:AO37))) -> 0 | AP38: =IF($AJ38=0,0,IF(VLOOKUP($AJ38,Preisliste!$A:$Q,12,FALSE)="",0,VLOOKUP($AJ38,Preisliste!$A:$Q,12,FALSE)+MAX(AP$10:AP37))) -> 0 | AQ38: =IF($AJ38=0,0,IF(VLOOKUP($AJ38,Preisliste!$A:$Q,13,FALSE)="",0,VLOOKUP($AJ38,Preisliste!$A:$Q,13,FALSE)+MAX(AQ$10:AQ37))) -> 0 | AR38: =IF($AJ38=0,0,IF(VLOOKUP($AJ38,Preisliste!$A:$Q,14,FALSE)="",0,VLOOKUP($AJ38,Preisliste!$A:$Q,14,FALSE)+MAX(AR$10:AR37))) -> 0 | AS38: =IF($AJ38=0,0,IF(VLOOKUP($AJ38,Preisliste!$A:$Q,15,FALSE)="",0,VLOOKUP($AJ38,Preisliste!$A:$Q,15,FALSE)+MAX(AS$10:AS37))) -> 0 | AT38: =IF($AJ38=0,0,IF(VLOOKUP($AJ38,Preisliste!$A:$Q,16,FALSE)="",0,VLOOKUP($AJ38,Preisliste!$A:$Q,16,FALSE)+MAX(AT$10:AT37))) -> 0 | AU38: =IF($AJ38=0,0,IF(VLOOKUP($AJ38,Preisliste!$A:$Q,17,FALSE)="",0,VLOOKUP($AJ38,Preisliste!$A:$Q,17,FALSE)+MAX(AU$10:AU37))) -> 0 | BL38: =IF(BK38=0,"",VLOOKUP(BK38,Preisliste!$A:$P,2,FALSE)) ->  | BN38: =IF(BM38=0,"",VLOOKUP(BM38,Preisliste!$A:$P,2,FALSE)) ->  | BP38: =IF(BO38=0,"",VLOOKUP(BO38,Preisliste!$A:$P,2,FALSE)) ->  | BR38: =IF(BQ38=0,"",VLOOKUP(BQ38,Preisliste!$A:$P,2,FALSE)) -> 
B39: =IF(D39=0,0,MAX($B$10:B38)+1) -> 0 | D39: 0 | E39: 0 | F39: =IF(ISERROR(AB39),"---",IF(ISERROR(VLOOKUP(D39,'Langtexte-Vorlage'!A:D,3,FALSE)),AB39,IF($AH$57=TRUE,AB39&CHAR(10)&CHAR(10)&VLOOKUP(D39,'Langtexte-Vorlage'!A:D,3,FALSE)&CHAR(10),AB39))) -> --- | G39: =IF(ISERROR(VLOOKUP(D39,Preisliste!$A:$C,3,FALSE)),0,VLOOKUP(D39,Preisliste!$A:$C,3,FALSE)) -> 0 | H39: =IF(C39="O",Translation!$A$106,IF(C39="A",Translation!$A$108,IF(C39="S",Translation!$A$109,IF(ISERROR(E39*G39),"---",E39*G39)))) -> 0 | I39: =IF(ISERROR(VLOOKUP(D39,Preisliste!$A:$AQ,43,FALSE)),"",IF(VLOOKUP(D39,Preisliste!$A:$AQ,43,FALSE)=0,"","*")) ->  | O39: FALSE | P39: =IF($U$10=FALSE,0,Auswahl!O38) -> 0 | Q39: =IF($U$10=FALSE,0,IF(OR(R39=TRUE,S39=TRUE),LEFT(RIGHT(Auswahl!R38,2),1)*1,Auswahl!R38)) -> 0 | R39: =IF(LEFT(Auswahl!R38,3)=LEFT(Translation!$A$107,3),TRUE,FALSE) -> FALSE | S39: =IF(LEFT(Auswahl!R38,3)=LEFT(Translation!$A$109,3),TRUE,FALSE) -> FALSE | T39: =IF(ISERROR(VLOOKUP(D39,Preisliste!$A:$AF,31,FALSE)),"---",VLOOKUP(D39,Preisliste!$A:$AF,31,FALSE)) -> --- | V39: =Translation!$A$165 -> Heat pump | W39: =IF($U$10=FALSE,"",IF(I39="","",D39&" "&VLOOKUP(D39,Preisliste!$A:$AQ,43,FALSE))) ->  | X39: 234761,233623,234922,185579,185458,234763,232943,233602,221360,234764,230013,283722,233719,233711, | Y39: =VLOOKUP(D39,Preisliste!$A:$D,4,FALSE) ->  | Z39: =VLOOKUP(D39,Preisliste!$A:$AE,29,FALSE) ->  | AA39: =IF(B39=0,TRUE,IF(ISERROR(VLOOKUP(D39,'Langtexte-Vorlage'!A:D,3,FALSE)),FALSE,TRUE)) -> TRUE | AB39: =VLOOKUP(D39,Preisliste!$A:$B,2,FALSE) ->  | AJ39: 0 | AK39: =IF($AJ39=0,0,IF(VLOOKUP($AJ39,Preisliste!$A:$Q,7,FALSE)="",0,VLOOKUP($AJ39,Preisliste!$A:$Q,7,FALSE)+MAX(AK$10:AK38))) -> 0 | AL39: =IF($AJ39=0,0,IF(VLOOKUP($AJ39,Preisliste!$A:$Q,8,FALSE)="",0,VLOOKUP($AJ39,Preisliste!$A:$Q,8,FALSE)+MAX(AL$10:AL38))) -> 0 | AM39: =IF($AJ39=0,0,IF(VLOOKUP($AJ39,Preisliste!$A:$Q,9,FALSE)="",0,VLOOKUP($AJ39,Preisliste!$A:$Q,9,FALSE)+MAX(AM$10:AM38))) -> 0 | AN39: =IF($AJ39=0,0,IF(VLOOKUP($AJ39,Preisliste!$A:$Q,10,FALSE)="",0,VLOOKUP($AJ39,Preisliste!$A:$Q,10,FALSE)+MAX(AN$10:AN38))) -> 0 | AO39: =IF($AJ39=0,0,IF(VLOOKUP($AJ39,Preisliste!$A:$Q,11,FALSE)="",0,VLOOKUP($AJ39,Preisliste!$A:$Q,11,FALSE)+MAX(AO$10:AO38))) -> 0 | AP39: =IF($AJ39=0,0,IF(VLOOKUP($AJ39,Preisliste!$A:$Q,12,FALSE)="",0,VLOOKUP($AJ39,Preisliste!$A:$Q,12,FALSE)+MAX(AP$10:AP38))) -> 0 | AQ39: =IF($AJ39=0,0,IF(VLOOKUP($AJ39,Preisliste!$A:$Q,13,FALSE)="",0,VLOOKUP($AJ39,Preisliste!$A:$Q,13,FALSE)+MAX(AQ$10:AQ38))) -> 0 | AR39: =IF($AJ39=0,0,IF(VLOOKUP($AJ39,Preisliste!$A:$Q,14,FALSE)="",0,VLOOKUP($AJ39,Preisliste!$A:$Q,14,FALSE)+MAX(AR$10:AR38))) -> 0 | AS39: =IF($AJ39=0,0,IF(VLOOKUP($AJ39,Preisliste!$A:$Q,15,FALSE)="",0,VLOOKUP($AJ39,Preisliste!$A:$Q,15,FALSE)+MAX(AS$10:AS38))) -> 0 | AT39: =IF($AJ39=0,0,IF(VLOOKUP($AJ39,Preisliste!$A:$Q,16,FALSE)="",0,VLOOKUP($AJ39,Preisliste!$A:$Q,16,FALSE)+MAX(AT$10:AT38))) -> 0 | AU39: =IF($AJ39=0,0,IF(VLOOKUP($AJ39,Preisliste!$A:$Q,17,FALSE)="",0,VLOOKUP($AJ39,Preisliste!$A:$Q,17,FALSE)+MAX(AU$10:AU38))) -> 0 | BL39: =IF(BK39=0,"",VLOOKUP(BK39,Preisliste!$A:$P,2,FALSE)) ->  | BN39: =IF(BM39=0,"",VLOOKUP(BM39,Preisliste!$A:$P,2,FALSE)) ->  | BP39: =IF(BO39=0,"",VLOOKUP(BO39,Preisliste!$A:$P,2,FALSE)) ->  | BR39: =IF(BQ39=0,"",VLOOKUP(BQ39,Preisliste!$A:$P,2,FALSE)) -> 
B40: =IF(D40=0,0,MAX($B$10:B39)+1) -> 0 | D40: 0 | E40: 0 | F40: =IF(ISERROR(AB40),"---",IF(ISERROR(VLOOKUP(D40,'Langtexte-Vorlage'!A:D,3,FALSE)),AB40,IF($AH$57=TRUE,AB40&CHAR(10)&CHAR(10)&VLOOKUP(D40,'Langtexte-Vorlage'!A:D,3,FALSE)&CHAR(10),AB40))) -> --- | G40: =IF(ISERROR(VLOOKUP(D40,Preisliste!$A:$C,3,FALSE)),0,VLOOKUP(D40,Preisliste!$A:$C,3,FALSE)) -> 0 | H40: =IF(C40="O",Translation!$A$106,IF(C40="A",Translation!$A$108,IF(C40="S",Translation!$A$109,IF(ISERROR(E40*G40),"---",E40*G40)))) -> 0 | I40: =IF(ISERROR(VLOOKUP(D40,Preisliste!$A:$AQ,43,FALSE)),"",IF(VLOOKUP(D40,Preisliste!$A:$AQ,43,FALSE)=0,"","*")) ->  | O40: FALSE | P40: =IF($U$10=FALSE,0,Auswahl!O39) -> 0 | Q40: =IF($U$10=FALSE,0,IF(OR(R40=TRUE,S40=TRUE),LEFT(RIGHT(Auswahl!R39,2),1)*1,Auswahl!R39)) -> 0 | R40: =IF(LEFT(Auswahl!R39,3)=LEFT(Translation!$A$107,3),TRUE,FALSE) -> FALSE | S40: =IF(LEFT(Auswahl!R39,3)=LEFT(Translation!$A$109,3),TRUE,FALSE) -> FALSE | T40: =IF(ISERROR(VLOOKUP(D40,Preisliste!$A:$AF,31,FALSE)),"---",VLOOKUP(D40,Preisliste!$A:$AF,31,FALSE)) -> --- | V40: =Translation!$A$165 -> Heat pump | W40: =IF($U$10=FALSE,"",IF(I40="","",D40&" "&VLOOKUP(D40,Preisliste!$A:$AQ,43,FALSE))) ->  | X40: 234761,233623,234922,185579,185458,234763,232943,233602,221360,234764,230013,283722,233719,233711, | Y40: =VLOOKUP(D40,Preisliste!$A:$D,4,FALSE) ->  | Z40: =VLOOKUP(D40,Preisliste!$A:$AE,29,FALSE) ->  | AA40: =IF(B40=0,TRUE,IF(ISERROR(VLOOKUP(D40,'Langtexte-Vorlage'!A:D,3,FALSE)),FALSE,TRUE)) -> TRUE | AB40: =VLOOKUP(D40,Preisliste!$A:$B,2,FALSE) ->  | AJ40: 0 | AK40: =IF($AJ40=0,0,IF(VLOOKUP($AJ40,Preisliste!$A:$Q,7,FALSE)="",0,VLOOKUP($AJ40,Preisliste!$A:$Q,7,FALSE)+MAX(AK$10:AK39))) -> 0 | AL40: =IF($AJ40=0,0,IF(VLOOKUP($AJ40,Preisliste!$A:$Q,8,FALSE)="",0,VLOOKUP($AJ40,Preisliste!$A:$Q,8,FALSE)+MAX(AL$10:AL39))) -> 0 | AM40: =IF($AJ40=0,0,IF(VLOOKUP($AJ40,Preisliste!$A:$Q,9,FALSE)="",0,VLOOKUP($AJ40,Preisliste!$A:$Q,9,FALSE)+MAX(AM$10:AM39))) -> 0 | AN40: =IF($AJ40=0,0,IF(VLOOKUP($AJ40,Preisliste!$A:$Q,10,FALSE)="",0,VLOOKUP($AJ40,Preisliste!$A:$Q,10,FALSE)+MAX(AN$10:AN39))) -> 0 | AO40: =IF($AJ40=0,0,IF(VLOOKUP($AJ40,Preisliste!$A:$Q,11,FALSE)="",0,VLOOKUP($AJ40,Preisliste!$A:$Q,11,FALSE)+MAX(AO$10:AO39))) -> 0 | AP40: =IF($AJ40=0,0,IF(VLOOKUP($AJ40,Preisliste!$A:$Q,12,FALSE)="",0,VLOOKUP($AJ40,Preisliste!$A:$Q,12,FALSE)+MAX(AP$10:AP39))) -> 0 | AQ40: =IF($AJ40=0,0,IF(VLOOKUP($AJ40,Preisliste!$A:$Q,13,FALSE)="",0,VLOOKUP($AJ40,Preisliste!$A:$Q,13,FALSE)+MAX(AQ$10:AQ39))) -> 0 | AR40: =IF($AJ40=0,0,IF(VLOOKUP($AJ40,Preisliste!$A:$Q,14,FALSE)="",0,VLOOKUP($AJ40,Preisliste!$A:$Q,14,FALSE)+MAX(AR$10:AR39))) -> 0 | AS40: =IF($AJ40=0,0,IF(VLOOKUP($AJ40,Preisliste!$A:$Q,15,FALSE)="",0,VLOOKUP($AJ40,Preisliste!$A:$Q,15,FALSE)+MAX(AS$10:AS39))) -> 0 | AT40: =IF($AJ40=0,0,IF(VLOOKUP($AJ40,Preisliste!$A:$Q,16,FALSE)="",0,VLOOKUP($AJ40,Preisliste!$A:$Q,16,FALSE)+MAX(AT$10:AT39))) -> 0 | AU40: =IF($AJ40=0,0,IF(VLOOKUP($AJ40,Preisliste!$A:$Q,17,FALSE)="",0,VLOOKUP($AJ40,Preisliste!$A:$Q,17,FALSE)+MAX(AU$10:AU39))) -> 0 | BL40: =IF(BK40=0,"",VLOOKUP(BK40,Preisliste!$A:$P,2,FALSE)) ->  | BN40: =IF(BM40=0,"",VLOOKUP(BM40,Preisliste!$A:$P,2,FALSE)) ->  | BP40: =IF(BO40=0,"",VLOOKUP(BO40,Preisliste!$A:$P,2,FALSE)) ->  | BR40: =IF(BQ40=0,"",VLOOKUP(BQ40,Preisliste!$A:$P,2,FALSE)) -> 
B41: =IF(D41=0,0,MAX($B$10:B40)+1) -> 0 | D41: 0 | E41: 0 | F41: =IF(ISERROR(AB41),"---",IF(ISERROR(VLOOKUP(D41,'Langtexte-Vorlage'!A:D,3,FALSE)),AB41,IF($AH$57=TRUE,AB41&CHAR(10)&CHAR(10)&VLOOKUP(D41,'Langtexte-Vorlage'!A:D,3,FALSE)&CHAR(10),AB41))) -> --- | G41: =IF(ISERROR(VLOOKUP(D41,Preisliste!$A:$C,3,FALSE)),0,VLOOKUP(D41,Preisliste!$A:$C,3,FALSE)) -> 0 | H41: =IF(C41="O",Translation!$A$106,IF(C41="A",Translation!$A$108,IF(C41="S",Translation!$A$109,IF(ISERROR(E41*G41),"---",E41*G41)))) -> 0 | I41: =IF(ISERROR(VLOOKUP(D41,Preisliste!$A:$AQ,43,FALSE)),"",IF(VLOOKUP(D41,Preisliste!$A:$AQ,43,FALSE)=0,"","*")) ->  | O41: FALSE | P41: =IF($U$10=FALSE,0,Auswahl!O40) -> 0 | Q41: =IF($U$10=FALSE,0,IF(OR(R41=TRUE,S41=TRUE),LEFT(RIGHT(Auswahl!R40,2),1)*1,Auswahl!R40)) -> 0 | R41: =IF(LEFT(Auswahl!R40,3)=LEFT(Translation!$A$107,3),TRUE,FALSE) -> FALSE | S41: =IF(LEFT(Auswahl!R40,3)=LEFT(Translation!$A$109,3),TRUE,FALSE) -> FALSE | T41: =IF(ISERROR(VLOOKUP(D41,Preisliste!$A:$AF,31,FALSE)),"---",VLOOKUP(D41,Preisliste!$A:$AF,31,FALSE)) -> --- | V41: =Translation!$A$165 -> Heat pump | W41: =IF($U$10=FALSE,"",IF(I41="","",D41&" "&VLOOKUP(D41,Preisliste!$A:$AQ,43,FALSE))) ->  | X41: 234761,233623,234922,185579,185458,234763,232943,233602,221360,234764,230013,283722,233719,233711, | Y41: =VLOOKUP(D41,Preisliste!$A:$D,4,FALSE) ->  | Z41: =VLOOKUP(D41,Preisliste!$A:$AE,29,FALSE) ->  | AA41: =IF(B41=0,TRUE,IF(ISERROR(VLOOKUP(D41,'Langtexte-Vorlage'!A:D,3,FALSE)),FALSE,TRUE)) -> TRUE | AB41: =VLOOKUP(D41,Preisliste!$A:$B,2,FALSE) ->  | AH41: Manuell geändert? | AJ41: 0 | AK41: =IF($AJ41=0,0,IF(VLOOKUP($AJ41,Preisliste!$A:$Q,7,FALSE)="",0,VLOOKUP($AJ41,Preisliste!$A:$Q,7,FALSE)+MAX(AK$10:AK40))) -> 0 | AL41: =IF($AJ41=0,0,IF(VLOOKUP($AJ41,Preisliste!$A:$Q,8,FALSE)="",0,VLOOKUP($AJ41,Preisliste!$A:$Q,8,FALSE)+MAX(AL$10:AL40))) -> 0 | AM41: =IF($AJ41=0,0,IF(VLOOKUP($AJ41,Preisliste!$A:$Q,9,FALSE)="",0,VLOOKUP($AJ41,Preisliste!$A:$Q,9,FALSE)+MAX(AM$10:AM40))) -> 0 | AN41: =IF($AJ41=0,0,IF(VLOOKUP($AJ41,Preisliste!$A:$Q,10,FALSE)="",0,VLOOKUP($AJ41,Preisliste!$A:$Q,10,FALSE)+MAX(AN$10:AN40))) -> 0 | AO41: =IF($AJ41=0,0,IF(VLOOKUP($AJ41,Preisliste!$A:$Q,11,FALSE)="",0,VLOOKUP($AJ41,Preisliste!$A:$Q,11,FALSE)+MAX(AO$10:AO40))) -> 0 | AP41: =IF($AJ41=0,0,IF(VLOOKUP($AJ41,Preisliste!$A:$Q,12,FALSE)="",0,VLOOKUP($AJ41,Preisliste!$A:$Q,12,FALSE)+MAX(AP$10:AP40))) -> 0 | AQ41: =IF($AJ41=0,0,IF(VLOOKUP($AJ41,Preisliste!$A:$Q,13,FALSE)="",0,VLOOKUP($AJ41,Preisliste!$A:$Q,13,FALSE)+MAX(AQ$10:AQ40))) -> 0 | AR41: =IF($AJ41=0,0,IF(VLOOKUP($AJ41,Preisliste!$A:$Q,14,FALSE)="",0,VLOOKUP($AJ41,Preisliste!$A:$Q,14,FALSE)+MAX(AR$10:AR40))) -> 0 | AS41: =IF($AJ41=0,0,IF(VLOOKUP($AJ41,Preisliste!$A:$Q,15,FALSE)="",0,VLOOKUP($AJ41,Preisliste!$A:$Q,15,FALSE)+MAX(AS$10:AS40))) -> 0 | AT41: =IF($AJ41=0,0,IF(VLOOKUP($AJ41,Preisliste!$A:$Q,16,FALSE)="",0,VLOOKUP($AJ41,Preisliste!$A:$Q,16,FALSE)+MAX(AT$10:AT40))) -> 0 | AU41: =IF($AJ41=0,0,IF(VLOOKUP($AJ41,Preisliste!$A:$Q,17,FALSE)="",0,VLOOKUP($AJ41,Preisliste!$A:$Q,17,FALSE)+MAX(AU$10:AU40))) -> 0
B42: =IF(D42=0,0,MAX($B$10:B41)+1) -> 0 | D42: 0 | E42: 0 | F42: =IF(ISERROR(AB42),"---",IF(ISERROR(VLOOKUP(D42,'Langtexte-Vorlage'!A:D,3,FALSE)),AB42,IF($AH$57=TRUE,AB42&CHAR(10)&CHAR(10)&VLOOKUP(D42,'Langtexte-Vorlage'!A:D,3,FALSE)&CHAR(10),AB42))) -> --- | G42: =IF(ISERROR(VLOOKUP(D42,Preisliste!$A:$C,3,FALSE)),0,VLOOKUP(D42,Preisliste!$A:$C,3,FALSE)) -> 0 | H42: =IF(C42="O",Translation!$A$106,IF(C42="A",Translation!$A$108,IF(C42="S",Translation!$A$109,IF(ISERROR(E42*G42),"---",E42*G42)))) -> 0 | I42: =IF(ISERROR(VLOOKUP(D42,Preisliste!$A:$AQ,43,FALSE)),"",IF(VLOOKUP(D42,Preisliste!$A:$AQ,43,FALSE)=0,"","*")) ->  | O42: =IF(D42=0,FALSE,IF(COUNTIF($BK$11:$BR$41,D42)>0,TRUE,FALSE)) -> FALSE | P42: =IF($U$10=FALSE,0,Auswahl!O41) -> 0 | Q42: =IF($U$10=FALSE,0,IF(OR(R42=TRUE,S42=TRUE),LEFT(RIGHT(Auswahl!R41,2),1)*1,Auswahl!R41)) -> 0 | R42: =IF(LEFT(Auswahl!R41,3)=LEFT(Translation!$A$107,3),TRUE,FALSE) -> FALSE | S42: =IF(LEFT(Auswahl!R41,3)=LEFT(Translation!$A$109,3),TRUE,FALSE) -> FALSE | T42: =IF(ISERROR(VLOOKUP(D42,Preisliste!$A:$AF,31,FALSE)),"---",VLOOKUP(D42,Preisliste!$A:$AF,31,FALSE)) -> --- | V42: =Translation!$A$165 -> Heat pump | W42: =IF($U$10=FALSE,"",IF(I42="","",D42&" "&VLOOKUP(D42,Preisliste!$A:$AQ,43,FALSE))) ->  | X42: 234761,233623,234922,185579,185458,234763,232943,233602,221360,234764,230013,283722,233719,233711, | Y42: =VLOOKUP(D42,Preisliste!$A:$D,4,FALSE) ->  | Z42: =VLOOKUP(D42,Preisliste!$A:$AE,29,FALSE) ->  | AA42: =IF(B42=0,TRUE,IF(ISERROR(VLOOKUP(D42,'Langtexte-Vorlage'!A:D,3,FALSE)),FALSE,TRUE)) -> TRUE | AB42: =VLOOKUP(D42,Preisliste!$A:$B,2,FALSE) ->  | AH42: =AH37 -> 4786 | AJ42: 0 | AK42: =IF($AJ42=0,0,IF(VLOOKUP($AJ42,Preisliste!$A:$Q,7,FALSE)="",0,VLOOKUP($AJ42,Preisliste!$A:$Q,7,FALSE)+MAX(AK$10:AK41))) -> 0 | AL42: =IF($AJ42=0,0,IF(VLOOKUP($AJ42,Preisliste!$A:$Q,8,FALSE)="",0,VLOOKUP($AJ42,Preisliste!$A:$Q,8,FALSE)+MAX(AL$10:AL41))) -> 0 | AM42: =IF($AJ42=0,0,IF(VLOOKUP($AJ42,Preisliste!$A:$Q,9,FALSE)="",0,VLOOKUP($AJ42,Preisliste!$A:$Q,9,FALSE)+MAX(AM$10:AM41))) -> 0 | AN42: =IF($AJ42=0,0,IF(VLOOKUP($AJ42,Preisliste!$A:$Q,10,FALSE)="",0,VLOOKUP($AJ42,Preisliste!$A:$Q,10,FALSE)+MAX(AN$10:AN41))) -> 0 | AO42: =IF($AJ42=0,0,IF(VLOOKUP($AJ42,Preisliste!$A:$Q,11,FALSE)="",0,VLOOKUP($AJ42,Preisliste!$A:$Q,11,FALSE)+MAX(AO$10:AO41))) -> 0 | AP42: =IF($AJ42=0,0,IF(VLOOKUP($AJ42,Preisliste!$A:$Q,12,FALSE)="",0,VLOOKUP($AJ42,Preisliste!$A:$Q,12,FALSE)+MAX(AP$10:AP41))) -> 0 | AQ42: =IF($AJ42=0,0,IF(VLOOKUP($AJ42,Preisliste!$A:$Q,13,FALSE)="",0,VLOOKUP($AJ42,Preisliste!$A:$Q,13,FALSE)+MAX(AQ$10:AQ41))) -> 0 | AR42: =IF($AJ42=0,0,IF(VLOOKUP($AJ42,Preisliste!$A:$Q,14,FALSE)="",0,VLOOKUP($AJ42,Preisliste!$A:$Q,14,FALSE)+MAX(AR$10:AR41))) -> 0 | AS42: =IF($AJ42=0,0,IF(VLOOKUP($AJ42,Preisliste!$A:$Q,15,FALSE)="",0,VLOOKUP($AJ42,Preisliste!$A:$Q,15,FALSE)+MAX(AS$10:AS41))) -> 0 | AT42: =IF($AJ42=0,0,IF(VLOOKUP($AJ42,Preisliste!$A:$Q,16,FALSE)="",0,VLOOKUP($AJ42,Preisliste!$A:$Q,16,FALSE)+MAX(AT$10:AT41))) -> 0 | AU42: =IF($AJ42=0,0,IF(VLOOKUP($AJ42,Preisliste!$A:$Q,17,FALSE)="",0,VLOOKUP($AJ42,Preisliste!$A:$Q,17,FALSE)+MAX(AU$10:AU41))) -> 0
B43: =IF(D43=0,0,MAX($B$10:B42)+1) -> 0 | D43: 0 | E43: 0 | F43: =IF(ISERROR(AB43),"---",IF(ISERROR(VLOOKUP(D43,'Langtexte-Vorlage'!A:D,3,FALSE)),AB43,IF($AH$57=TRUE,AB43&CHAR(10)&CHAR(10)&VLOOKUP(D43,'Langtexte-Vorlage'!A:D,3,FALSE)&CHAR(10),AB43))) -> --- | G43: =IF(ISERROR(VLOOKUP(D43,Preisliste!$A:$C,3,FALSE)),0,VLOOKUP(D43,Preisliste!$A:$C,3,FALSE)) -> 0 | H43: =IF(C43="O",Translation!$A$106,IF(C43="A",Translation!$A$108,IF(C43="S",Translation!$A$109,IF(ISERROR(E43*G43),"---",E43*G43)))) -> 0 | I43: =IF(ISERROR(VLOOKUP(D43,Preisliste!$A:$AQ,43,FALSE)),"",IF(VLOOKUP(D43,Preisliste!$A:$AQ,43,FALSE)=0,"","*")) ->  | O43: FALSE | P43: =IF($U$10=FALSE,0,Auswahl!O42) -> 0 | Q43: =IF($U$10=FALSE,0,IF(OR(R43=TRUE,S43=TRUE),LEFT(RIGHT(Auswahl!R42,2),1)*1,Auswahl!R42)) -> 0 | R43: =IF(LEFT(Auswahl!R42,3)=LEFT(Translation!$A$107,3),TRUE,FALSE) -> FALSE | S43: =IF(LEFT(Auswahl!R42,3)=LEFT(Translation!$A$109,3),TRUE,FALSE) -> FALSE | T43: =IF(ISERROR(VLOOKUP(D43,Preisliste!$A:$AF,31,FALSE)),"---",VLOOKUP(D43,Preisliste!$A:$AF,31,FALSE)) -> --- | V43: =Translation!$A$165 -> Heat pump | W43: =IF($U$10=FALSE,"",IF(I43="","",D43&" "&VLOOKUP(D43,Preisliste!$A:$AQ,43,FALSE))) ->  | X43: 234761,233623,234922,185579,185458,234763,232943,233602,221360,234764,230013,283722,233719,233711, | Y43: =VLOOKUP(D43,Preisliste!$A:$D,4,FALSE) ->  | Z43: =VLOOKUP(D43,Preisliste!$A:$AE,29,FALSE) ->  | AA43: =IF(B43=0,TRUE,IF(ISERROR(VLOOKUP(D43,'Langtexte-Vorlage'!A:D,3,FALSE)),FALSE,TRUE)) -> TRUE | AB43: =VLOOKUP(D43,Preisliste!$A:$B,2,FALSE) ->  | AH43: 4786 | AJ43: 0 | AK43: =IF($AJ43=0,0,IF(VLOOKUP($AJ43,Preisliste!$A:$Q,7,FALSE)="",0,VLOOKUP($AJ43,Preisliste!$A:$Q,7,FALSE)+MAX(AK$10:AK42))) -> 0 | AL43: =IF($AJ43=0,0,IF(VLOOKUP($AJ43,Preisliste!$A:$Q,8,FALSE)="",0,VLOOKUP($AJ43,Preisliste!$A:$Q,8,FALSE)+MAX(AL$10:AL42))) -> 0 | AM43: =IF($AJ43=0,0,IF(VLOOKUP($AJ43,Preisliste!$A:$Q,9,FALSE)="",0,VLOOKUP($AJ43,Preisliste!$A:$Q,9,FALSE)+MAX(AM$10:AM42))) -> 0 | AN43: =IF($AJ43=0,0,IF(VLOOKUP($AJ43,Preisliste!$A:$Q,10,FALSE)="",0,VLOOKUP($AJ43,Preisliste!$A:$Q,10,FALSE)+MAX(AN$10:AN42))) -> 0 | AO43: =IF($AJ43=0,0,IF(VLOOKUP($AJ43,Preisliste!$A:$Q,11,FALSE)="",0,VLOOKUP($AJ43,Preisliste!$A:$Q,11,FALSE)+MAX(AO$10:AO42))) -> 0 | AP43: =IF($AJ43=0,0,IF(VLOOKUP($AJ43,Preisliste!$A:$Q,12,FALSE)="",0,VLOOKUP($AJ43,Preisliste!$A:$Q,12,FALSE)+MAX(AP$10:AP42))) -> 0 | AQ43: =IF($AJ43=0,0,IF(VLOOKUP($AJ43,Preisliste!$A:$Q,13,FALSE)="",0,VLOOKUP($AJ43,Preisliste!$A:$Q,13,FALSE)+MAX(AQ$10:AQ42))) -> 0 | AR43: =IF($AJ43=0,0,IF(VLOOKUP($AJ43,Preisliste!$A:$Q,14,FALSE)="",0,VLOOKUP($AJ43,Preisliste!$A:$Q,14,FALSE)+MAX(AR$10:AR42))) -> 0 | AS43: =IF($AJ43=0,0,IF(VLOOKUP($AJ43,Preisliste!$A:$Q,15,FALSE)="",0,VLOOKUP($AJ43,Preisliste!$A:$Q,15,FALSE)+MAX(AS$10:AS42))) -> 0 | AT43: =IF($AJ43=0,0,IF(VLOOKUP($AJ43,Preisliste!$A:$Q,16,FALSE)="",0,VLOOKUP($AJ43,Preisliste!$A:$Q,16,FALSE)+MAX(AT$10:AT42))) -> 0 | AU43: =IF($AJ43=0,0,IF(VLOOKUP($AJ43,Preisliste!$A:$Q,17,FALSE)="",0,VLOOKUP($AJ43,Preisliste!$A:$Q,17,FALSE)+MAX(AU$10:AU42))) -> 0
